Workbook

Sheet YARIŞMA BİLGİLERİ
A2: Türkiye Atletizm Federasyonu İzmir Atletizm İl Temsilciliği
A14: =F19 -> Naili Moran Türkiye Atletizm Şampiyonası
A18: Yarışma Bilgileri
A19: Yarışma Adı : | F19: Naili Moran Türkiye Atletizm Şampiyonası
A20: Yarışmanın Yapıldığı İl : | F20: İzmir
A21: Kategori : | F21: 14 Yaş Erkekler
A22: Tarih : | F22: 14 - 15 Haziran 2014
A23: Katılan Sporcu Sayısı : | F23: 143

Sheet YARIŞMA PROGRAMI
H1: Diskalifiye Nedenleri ve Kural Numaraları
B2: ='YARIŞMA BİLGİLERİ'!F19 -> Naili Moran Türkiye Atletizm Şampiyonası
B3: YARIŞMA PROGRAMI
B4: Bakmak istediğiniz branş üzerine "Tıkla"yınız… | H4: KURAL 125.5 : Yarışmalar esnasında sportmenlik dışı davranışlarda bulunan sporcu IAAF Kural 125.5 gereği diskalifiye edilecektir. Sporcunun yarışmanın devamındaki diğer branşlara katılması da engellenecektir. “Bu kurala göre diskalifiye edilen atletin, diskalifiye edildiği yarıştaki dereceleri geçersizdir.” Yarışma sonucunda o atletin karşısında sadece “DQ 125.5” yazacak. Tüm uyarılar ve diskalifikasyonlar (yani sarı ve kırmızı kartlar) yarışma sekreterliğine ve tüm başhakemlere bildirilecektir.
B5: ='YARIŞMA BİLGİLERİ'!F21 -> 14 Yaş Erkekler | D5: 1.GÜN | H5: KURAL 144.2 : Yarışma sırasında kurallar dışında yardım alan veya yardım veren atlet, başhakem tarafından önce sarı kartla uyarılır, tekrarı halinde IAAF Kural 144.2’ye göre diskalifiye edİLİ-İLİr. Yarışma alanında telefon, telsiz, radyo, kasetçalar vb. cihazlar kullanılması, atlete avantaj sağlayacak şekilde yay, tekerlek vb. donanıma sahip ayakkabıların giyilmesi, atma aletlerinin normal ölçülerine eklerin yapılması, “kural dışı yardım” kabul edİLİ-İLİr. Mesafe koşularında tur yemiş ya da tur yemek üzere olan atletlerin tempo vermesi, IAAF Kural 144.2 çerçevesinde her iki atletin de diskalifiye edilmesini gerektirir.
B6: SAAT | C6: BRANŞ | D6: BARAJ DERECESİ | E6: REKOR | H6: KURAL 162.5 :Yerlerinize ya da dikkat komutundan sonra makul bir sürede pozisyon almayan ve yerlerinize komutundan sonra sesle ya da başka şekilde diğer atlet(ler)i rahatsız eden atlet(ler) önce sarı kart, tekrarı halinde kırmızı kart görür.” Eğer başhakem, starterin kararıyla mutabık değilse, tüm atletlere yeşil kart gösterİLİ-İLİr. Bu kural sadece starteri/start başhakemini ilgilendirir.
B7: 14 Haziran 2014 - 18:40 | C7: 100 Metre | H7: KURAL 162.7 : Hatalı çıkış yapan her atlet diskalifiye edİLİ-İLİr. Yarışmada ilk hatalı çıkışı yapan sporcu dahil, hatalı çıkış yapan tüm atletler IAAF Kural 162.7 gereği diskalifiye edilecektir.
B8: 14 Haziran 2014 - 20:45 | C8: 400 Metre | H8: KURAL 163.2 : Yarışma içerisinde bir sporcunun iterek veya çelme takarak, kasıtlı olarak bir başka sporcunun düşmesine neden olması diskalifiye sebebidir. Bunu yapan sporcu IAAF Kural 163.2 gereği diskalifiye edilecektir. (Bu tip olaylarda yardımcı hakem sarı bayrağını kaldıracak ve başhakemi bilgilendirecektir. Diskalifiye olup olmayacağına başhakem karar verecektir.)
B9: 14 Haziran 2014 - 19:45 | C9: 1500 Metre | H9: KURAL 163.3 : Kulvarlı koşuların tamamında sporcu, yarışmayı çıkıştan varışa kadar kendi kulvarında koşmak zorundadır. Virajda kendi kulvarının solundaki kulvara geçen ya da o kulvarın çizgisine temas eden atlet, IAAF Kural 163.3 gereği diskalifiye edilecektir. Ancak sporcu yarışma içerisinde başkası tarafından itilmek veya dengesinin bozulması sonucu kulvar değiştirmek zorunda kalırsa ve bu durum kendisine avantaj sağlamazsa diskalifiye söz konusu olmayacaktır. Düzlükte kendi kulvarının dışına çıkan ve kendisine mesafe avantajı sağlamayan atlet, bir diğer kulvardaki atleti engellememişse diskalifiye edilmez. Virajda kendi kulvarının sağındaki kulvara geçen ya da o kulvarın çizgisiyle temas eden atlet, o kulvarda koşan atleti engellememişse diskalifiye edilmez.
B10: 14 Haziran 2014 - 11:30 | C10: 100 Metre Engelli | H10: KURAL 163.3 : 800 metre koşusunda sporcular kendi kulvarlarını terk edecekleri çizgiye kadar, kulvarlarında koşmak zorundadır. Bu işaretli bölüme gelmeden kulvarını terk eden sporcu IAAF Kural 163.3 gereği diskalifiye edilecektir.
B11: 14 Haziran 2014 - 17:00 | C11: Yüksek Atlama | H11: KURAL 163.3 : 4*400 metre bayrak yarışmasında ikinci sıradaki sporcu kulvar farkı sona erinceye kadar (ilk dönemeç) kendi kulvarında koşacaktır. Bu noktaya gelene kadar kulvar ihlali yapan sporcunun takımı IAAF Kural 163.3 gereği diskalifiye edilecektir
B12: 14 Haziran 2014 - 10:15 | C12: Uzun Atlama A Grubu | H12: KURAL 168.7 : Engel yarışmalarında engel geçişi esnasında ayağını engelin üst kısmının yatay düzeyinin aşağısından geçiren, eli veya ayağı ile engeli kasten deviren ve her ne sebeple olursa olsun engel üzerinden geçmeyen sporcu IAAF Kural 168.7 gereği diskalifiye edilecektir.
B13: 14 Haziran 2014 - 10:15 | C13: Uzun Atlama B Grubu | H13: KURAL 170.9 : 4*400 metre bayrak yarışmasında 3. ve 4. sporcular; kendilerinden önceki takım elemanlarının 200 metreyi geçiş durumuna göre sıralanacaklar ve bu sıralamayı bayrak değişim anına kadar değiştirdikleri takdirde takımları IAAF Kural 170.9 gereği diskalifiye edilecektir.
B14: 14 Haziran 2014 - 19:30 | C14: Disk Atma | H14: KURAL 170.13 : Bayrak yarışmalarında bayrağın yere düşmesi halinde, bayrağı düşüren atlet alacaktır. Bayrağı düşüren atletin dışında bir atletin alması, IAAF Kural 170.13’e göre takımın diskalifiye edilmesine neden olur. Bayrağı düşüren atlet, bayrağı yerden alırken koşulan mesafeyi kısaltır ya da bir başka kulvardaki atleti engellerse, yine bu kural çerçevesinde takımı diskalifiye edİLİ-İLİr.
B15: ='YARIŞMA BİLGİLERİ'!F21 -> 14 Yaş Erkekler | D15: 2.GÜN | H15: KURAL 170.14 : Bayrak yarışmalarında bayrağın değişim sahasının dışında değiştirilmesi durumunda hatalı değişimi yapan takım IAAF Kural 170.14 gereği diskalifiye edilecektir. Bu noktada dikkat edilmesi gereken en önemli husus sporcunun değil, bayrağın değişim alanı içerisinde olmasıdır.
B16: SAAT | C16: BRANŞ | D16: BARAJ DERECESİ | E16: REKOR | H16: Uluslararası kısaltmalar
B17: 15 Haziran 2014 - 12:30 | C17: 200 Metre | H17: DNS : Yarışa başlamadı
B18: 15 Haziran 2014 - 11:15 | C18: 800 Metre | H18: DNF : Yarışı tamamlamadı
B19: 15 Haziran 2014 - 10:00 | C19: 3000 Metre | H19: DQ : Diskalifiye
B20: 15 Haziran 2014 - 13:45 | C20: 300 Metre Engelli | H20: NM : Geçerli derecesi yok
B21: 14 Haziran 2014 - 19:15 | C21: Üçadım Atlama | H21: Türkiye Rekoru Kısaltmaları
B22: 15 Haziran 2014 - 9:30 | C22: Sırıkla Atlama | H22: TR : Türkiye Rekoru
B23: 14 Haziran 2014 - 9:30 | C23: Gülle Atma | H23: GTR : Türkiye Gençler Rekoru
B24: 15 Haziran 2014 - 11:15 | C24: Cirit Atma | H24: YTR : Türkiye Yıldızlar Rekoru
B25: 14 Haziran 2014 - 17:45 | C25: Çekiç Atma
B26: 15 Haziran 2014 - 13:00 | C26: Genel Puan Durumu

Sheet KAYIT LİSTESİ
A1: ='YARIŞMA BİLGİLERİ'!F19 -> Naili Moran Türkiye Atletizm Şampiyonası
A2: ='YARIŞMA BİLGİLERİ'!F21 -> 14 Yaş Erkekler | G2: Kayıt Listesi | I2: =NOW() -> 41805.64032
A3: S.N. | B3: SERİ-KULVAR FORMÜLÜ | C3: GÖĞÜS NO | D3: TC NO | E3: DOĞUM TARİHİ | F3: ADI VE SOYADI | G3: İLİ-İLİ | H3: YARIŞACAĞI BRANŞ | I3: EN İYİ DERECESİ | J3: SERİ | K3: KULVAR | L3: ATMA-ATLAMA SIRASI
A4: 1 | B4: =CONCATENATE(H4,"-",J4,"-",K4) -> 100M-1-4 | C4: 638 | E4: 2000-06-20 | F4: ERDEM BAŞ | G4: SAMSUN | H4: 100M | I4: 1150 | J4: 1 | K4: 4
A5: 2 | B5: =CONCATENATE(H5,"-",J5,"-",K5) -> 100M-1-5 | C5: 529 | E5: 2000-01-04 | F5: BURAK ALIMCI | G5: KONYA | H5: 100M | I5: 1160 | J5: 1 | K5: 5
A6: 3 | B6: 100M-1-3 | C6: 119 | D6: - | E6: 2000-01-01 | F6: KUBİLAY KARADANA | G6: BALIKESİR | H6: 100M | I6: 1160 | J6: 1 | K6: 3
A7: 4 | B7: 100M-1-6 | C7: 639 | E7: 2000-02-28 | F7: YUNUS EMRE AKER | G7: SAMSUN | H7: 100M | I7: 1180 | J7: 1 | K7: 6
A8: 5 | B8: 100M-1-2 | C8: 448 | E8: 2000-01-01 | F8: BATUHAN ALKAN | G8: İZMİR | H8: 100M | I8: 1180 | J8: 1 | K8: 2
A9: 6 | B9: 100M-1-7 | C9: 88 | D9: - | E9: 2000-05-28 | F9: BERKAY ŞİMŞEK | G9: AYDIN | H9: 100M | I9: 1190 | J9: 1 | K9: 7
A10: 7 | B10: 100M-1-1 | C10: 372 | D10: - | E10: 2000-02-20 | F10: ÖMER FARUK IŞIKDAG | G10: İSTANBUL | H10: 100M | I10: 1190 | J10: 1 | K10: 1
A11: 8 | B11: 100M-1-8 | C11: 373 | D11: - | E11: 2000-01-01 | F11: ÖMER FARUK İÇYAR | G11: İSTANBUL | H11: 100M | I11: 1201 | J11: 1 | K11: 8
A12: 9 | B12: 100M-2-4 | C12: 354 | D12: - | E12: 2000-05-15 | F12: NADİR BİLİR | G12: ISPARTA | H12: 100M | I12: 1204 | J12: 2 | K12: 4
A13: 10 | B13: 100M-2-5 | C13: 746 | E13: 2000-05-26 | F13: EFE AHATLAR | G13: SAKARYA | H13: 100M | I13: 1210 | J13: 2 | K13: 5
A14: 11 | B14: 100M-2-3 | C14: 431 | D14: - | E14: 2000-02-02 | F14: BURAK YÜCEER | G14: İZMİR | H14: 100M | I14: 1210 | J14: 2 | K14: 3
A15: 12 | B15: 100M-2-6 | C15: 203 | D15: - | E15: 2000-05-23 | F15: AHMET MELİH ŞEN | G15: BURSA | H15: 100M | I15: 1223 | J15: 2 | K15: 6
A16: 13 | B16: 100M-2-2 | C16: 374 | D16: - | E16: 2000-05-10 | F16: YUNUS EMRE CİN | G16: İSTANBUL | H16: 100M | I16: 1230 | J16: 2 | K16: 2
A17: 14 | B17: 100M-2-7 | C17: 443 | D17: - | E17: 2000-05-06 | F17: MURAT MUTLU | G17: İZMİR | H17: 100M | I17: 1230 | J17: 2 | K17: 7
A18: 15 | B18: 100M-2-1 | C18: 504 | E18: 2000-01-15 | F18: MUSTAFA YORULMAZ | G18: KKTC | H18: 100M | I18: 1235 | J18: 2 | K18: 1
B19: 100M-2-8 | C19: 503 | E19: 2000-06-02 | F19: KUBİLAY TOK | G19: KKTC | H19: 100M | I19: 1240 | J19: 2 | K19: 8
A20: 17 | B20: 100M-3-4 | C20: 513 | E20: 2000-01-06 | F20: EMRE ÇETİNKAYA | G20: KOCAELİ | H20: 100M | I20: 1245 | J20: 3 | K20: 4
A21: 18 | B21: 100M-3-5 | C21: 253 | D21: - | E21: 2000-08-12 | F21: ÇAYAN ENİŞ | G21: ERZİNCAN | H21: 100M | I21: 1260 | J21: 3 | K21: 5
A22: 19 | B22: 100M-3-3 | C22: 193 | D22: - | E22: 2000-07-11 | F22: HALİLMERT AKKAŞ | G22: BURDUR | H22: 100M | I22: 1260 | J22: 3 | K22: 3
A23: 20 | B23: 100M-3-6 | C23: 535 | E23: 2000-05-20 | F23: BURAK ESKİL | G23: KONYA | H23: 100M | I23: 1260 | J23: 3 | K23: 6
A24: 21 | B24: 100M-3-2 | C24: 660 | E24: 2000-01-15 | F24: OKTAY EREN | G24: SİİRT | H24: 100M | I24: 1270 | J24: 3 | K24: 2
A25: 22 | B25: 100M-3-7 | C25: 482 | E25: 2000-09-10 | F25: BERAT YEŞİLYURT | G25: KIRIKKALE | H25: 100M | I25: 1280 | J25: 3 | K25: 7
A26: 23 | B26: 100M-3-1 | C26: 724 | E26: 2000-03-08 | F26: BERKE YAĞIZ ÖZTÜRK | G26: TUNCELİ | H26: 100M | I26: 1280 | J26: 3 | K26: 1
A27: 24 | B27: 100M-3-8 | C27: 224 | D27: - | E27: 2000-01-01 | F27: BEHİÇ CAN ÜNAL | G27: DENİZLİ | H27: 100M | I27: 1280 | J27: 3 | K27: 8
A28: 25 | B28: 100M-4-4 | C28: 191 | D28: - | E28: 2000-03-21 | F28: EGE MELEK | G28: BURDUR | H28: 100M | I28: 1280 | J28: 4 | K28: 4
A29: 26 | B29: 100M-4-5 | C29: 161 | D29: - | E29: 2000-01-01 | F29: ALPEREN KAMALI | G29: BİLECİK | H29: 100M | I29: 1285 | J29: 4 | K29: 5
A30: 27 | B30: 100M-4-3 | C30: 225 | D30: - | E30: 2000-01-01 | F30: ÇAĞRI BOZKAYA | G30: DENİZLİ | H30: 100M | I30: 1285 | J30: 4 | K30: 3
A31: 28 | B31: 100M-4-6 | C31: 239 | D31: - | E31: 2000-01-01 | F31: ENES CUŞA | G31: DİYARBAKIR | H31: 100M | I31: 1290 | J31: 4 | K31: 6
A32: 29 | B32: 100M-4-2 | C32: 163 | D32: - | E32: 2000-01-01 | F32: ANIL ÖZTİRYAKİ | G32: BİLECİK | H32: 100M | I32: 1296 | J32: 4 | K32: 2
A33: 30 | B33: 100M-4-7 | C33: 442 | D33: - | E33: 2000-04-28 | F33: UMUT ACET | G33: İZMİR | H33: 100M | I33: 1300 | J33: 4 | K33: 7
A34: 31 | B34: 100M-4-1 | C34: 441 | D34: - | E34: 2000-02-05 | F34: ENES ŞUMNULU | G34: İZMİR | H34: 100M | I34: 1300 | J34: 4 | K34: 1
B35: 100M-4-8 | C35: 569 | E35: 2000-01-01 | F35: YUSUF ŞAŞMAZ | G35: MUĞLA | H35: 100M | I35: 1300 | J35: 4 | K35: 8
B36: 100M-5-4 | C36: 192 | D36: - | E36: 2000-11-19 | F36: HALİLCAN DANIŞ | G36: BURDUR | H36: 100M | I36: 1300 | J36: 5 | K36: 4
B37: 100M-5-5 | C37: 576 | E37: 2000-04-01 | F37: Yunus SÖZÜGÜZEL | G37: MUŞ | H37: 100M | I37: 1300 | J37: 5 | K37: 5
B38: 100M-5-3 | C38: 710 | E38: 2000-03-25 | F38: BURAK DERTLİ | G38: TRABZON | H38: 100M | I38: 1301 | J38: 5 | K38: 3
B39: 100M-5-6 | C39: 162 | D39: - | E39: 2000-07-05 | F39: MUHAMMET BEGEÇ | G39: BİLECİK | H39: 100M | I39: 1303 | J39: 5 | K39: 6
B40: 100M-5-2 | C40: 409 | D40: - | E40: 2000-08-02 | F40: BURAK ALDENİZ | G40: İZMİR | H40: 100M | I40: 1320 | J40: 5 | K40: 2
B41: 100M-5-7 | C41: 408 | D41: - | E41: 2000-04-12 | F41: SALİH OĞUZ ERDEM | G41: İZMİR | H41: 100M | I41: 1320 | J41: 5 | K41: 7
B42: 100M-5-1 | C42: 352 | D42: - | E42: 2000-06-28 | F42: ERDEM CAN ERGİN | G42: ISPARTA | H42: 100M | I42: 1330 | J42: 5 | K42: 1
B43: 100M-5-8 | C43: 293 | D43: - | E43: 2000-01-01 | F43: ÖKKEŞ FURKAN KARAKUZULU | G43: GAZİANTEP | H43: 100M | I43: 1340 | J43: 5 | K43: 8
B44: 100M-6-4 | C44: 413 | D44: - | E44: 2000-01-01 | F44: SİNAN AYYILDIZ | G44: İZMİR | H44: 100M | I44: 1350 | J44: 6 | K44: 4
B45: 100M-6-5 | C45: 684 | E45: 2000-01-09 | F45: DOĞUKAN SAMAST | G45: TEKİRDAĞ | H45: 100M | I45: 1352 | J45: 6 | K45: 5
B46: 100M-6-3 | C46: 419 | D46: - | E46: 2000-02-25 | F46: ÜMİT AÇILAN | G46: İZMİR | H46: 100M | I46: 1380 | J46: 6 | K46: 3
B47: 100M-6-6 | C47: 194 | D47: - | E47: 2000-09-17 | F47: ATAKAN GÖR | G47: BURDUR | H47: 100M | I47: 1390 | J47: 6 | K47: 6
B48: 100M-6-2 | C48: 747 | E48: 2000-05-30 | F48: ÖZGÜR GİRGİN | G48: SAKARYA | H48: 100M | I48: 1400 | J48: 6 | K48: 2
B49: 100M-6-7 | C49: 145 | D49: - | E49: 2000-02-10 | F49: AHMET DAŞ | G49: BATMAN | H49: 100M | I49: 1400 | J49: 6 | K49: 7
B50: 100M-6-1 | C50: 414 | D50: - | E50: 2000-01-01 | F50: YAĞIZ HACIOĞLU | G50: İZMİR | H50: 100M | I50: 1400 | J50: 6 | K50: 1
B51: 100M-6-8 | C51: 115 | D51: - | E51: 2000-11-27 | F51: VOLKAN ŞAHİN | G51: BALIKESİR | H51: 100M | I51: 1440 | J51: 6 | K51: 8
B52: 100M-7-4 | C52: 416 | D52: - | E52: 2000-01-07 | F52: ALİCAN KARAOĞLAN | G52: İZMİR | H52: 100M | I52: 1600 | J52: 7 | K52: 4
B53: 100M-7-5 | C53: 454 | E53: 2000-03-17 | F53: SANAT SARUHAN | G53: İZMİR | H53: 100M | I53: 1660 | J53: 7 | K53: 5
B54: 100M-7-3 | C54: 256 | D54: - | E54: 2000-09-30 | F54: YUNUS ŞAHİN | G54: ERZİNCAN | H54: 100M | I54: - | J54: 7 | K54: 3
B55: 100M-7-6 | C55: 32 | D55: - | E55: 2000-09-01 | F55: MUSTAFA GÖKSU | G55: ADIYAMAN | H55: 100M | I55: - | J55: 7 | K55: 6
B56: 100M-7-2 | C56: 496 | E56: 2000-07-05 | F56: A.MURAT ÇELİK | G56: KIRŞEHİR | H56: 100M | I56: - | J56: 7 | K56: 2
B57: 100M-7-7 | C57: 501 | E57: 2000-04-30 | F57: ÖMERCAN MERMER | G57: KIRŞEHİR | H57: 100M | I57: - | J57: 7 | K57: 7
B58: 100M-7-1 | C58: 48 | D58: - | E58: 2000-02-06 | F58: HASAN ALİ ŞAHİN | G58: AMASYA | H58: 100M | I58: - | J58: 7 | K58: 1
B59: 100M-7-8 | C59: 13 | D59: - | E59: 2000-01-01 | F59: YASİN İŞCAN | G59: ADANA | H59: 100M | I59: - | J59: 7 | K59: 8
B60: 100M-8-4 | C60: 303 | D60: - | E60: 2000-06-22 | F60: BERKAY ONAT TOKAÇ | G60: GİRESUN | H60: 100M | I60: - | J60: 8 | K60: 4
B61: 100M-8-5 | C61: 406 | D61: - | E61: 2000-01-14 | F61: BATUHAN HIZAL | G61: İZMİR | H61: 100M | I61: - | J61: 8 | K61: 5
B62: 100M-8-3 | C62: 252 | D62: - | E62: 2000-09-03 | F62: FURKAN KIZGIN | G62: ERZİNCAN | H62: 100M | I62: - | J62: 8 | K62: 3
B63: 100M-8-6 | C63: 615 | E63: 2000-05-15 | F63: ÖMER FARUK AVAN | G63: OSMANİYE | H63: 100M | I63: - | J63: 8 | K63: 6
B64: 100M-8-2 | C64: 307 | D64: - | E64: 2000-03-05 | F64: SEDAT TUNAHAN TORUN | G64: GİRESUN | H64: 100M | I64: - | J64: 8 | K64: 2
B65: 100M-8-7 | C65: 593 | E65: 2000-09-12 | F65: MUSTAFA ÜNLÜTÜRK | G65: NEVŞEHİR | H65: 100M | I65: - | J65: 8 | K65: 7
B66: 100M-8-1 | C66: 618 | E66: 2000-04-12 | F66: GÖKTUĞ ZENCİR | G66: OSMANİYE | H66: 100M | I66: - | J66: 8 | K66: 1
B67: 100M-8-8 | C67: 121 | E67: 2000-01-01 | F67: ÖMERCAN KOCAİRİ | G67: BALIKESİR | H67: 100M | J67: 8 | K67: 8
B68: 100M.ENG-1-4 | C68: 503 | E68: 2000-06-02 | F68: KUBİLAY TOK | G68: KKTC | H68: 100M.ENG | I68: 1421 | J68: 1 | K68: 4
B69: 100M.ENG-1-5 | C69: 429 | D69: - | E69: 2000-01-12 | F69: ATAKAN GÜNEŞ | G69: İZMİR | H69: 100M.ENG | I69: 1494 | J69: 1 | K69: 5
A70: 32 | B70: 100M.ENG-1-3 | C70: 430 | D70: - | E70: 2000-02-10 | F70: MUSTAFA VARLİ | G70: İZMİR | H70: 100M.ENG | I70: 1530 | J70: 1 | K70: 3
A71: 33 | B71: 100M.ENG-1-6 | C71: 683 | E71: 2000-05-23 | F71: YAĞIZ ARSLAN | G71: TEKİRDAĞ | H71: 100M.ENG | I71: 1534 | J71: 1 | K71: 6
A72: 34 | B72: 100M.ENG-1-2 | C72: 441 | D72: - | E72: 2000-02-05 | F72: ENES ŞUMNULU | G72: İZMİR | H72: 100M.ENG | I72: 1600 | J72: 1 | K72: 2
A73: 35 | B73: 100M.ENG-1-7 | C73: 352 | D73: - | E73: 2000-06-28 | F73: ERDEM CAN ERGİN | G73: ISPARTA | H73: 100M.ENG | I73: 1640 | J73: 1 | K73: 7
A74: 36 | B74: 100M.ENG-1-1 | C74: 640 | E74: 2000-08-31 | F74: ÖZGÜR GÜLEÇ | G74: SAMSUN | H74: 100M.ENG | I74: 1660 | J74: 1 | K74: 1
A75: 37 | B75: 100M.ENG-2-4 | C75: 163 | D75: - | E75: 2000-01-01 | F75: ANIL ÖZTİRYAKİ | G75: BİLECİK | H75: 100M.ENG | I75: 1710 | J75: 2 | K75: 4
A76: 38 | B76: 100M.ENG-2-5 | C76: 514 | E76: 2000-01-01 | F76: NUREDDİN YOKTAN | G76: KOCAELİ | H76: 100M.ENG | I76: 1771 | J76: 2 | K76: 5
A77: 39 | B77: 100M.ENG-2-3 | C77: 89 | D77: - | E77: 2000-01-02 | F77: NURİ OĞUZHAN SARI | G77: AYDIN | H77: 100M.ENG | I77: - | J77: 2 | K77: 3
A78: 40 | B78: 100M.ENG-2-6 | C78: 12 | D78: - | E78: 2000-01-01 | F78: RAMAZAN GÜL | G78: ADANA | H78: 100M.ENG | I78: - | J78: 2 | K78: 6
A79: 41 | B79: 100M.ENG-2-2 | C79: 49 | D79: - | E79: 2000-01-01 | F79: HASAN CAN BAŞARAN | G79: AMASYA | H79: 100M.ENG | I79: - | J79: 2 | K79: 2
A80: 42 | B80: 100M.ENG-2-7 | C80: 452 | E80: 2000-01-01 | F80: MUHAMMED ENES ALTUN | G80: İZMİR | H80: 100M.ENG | I80: - | J80: 2 | K80: 7
A81: 43 | B81: 100M.ENG-2-1 | C81: 410 | D81: - | E81: 2000-04-13 | F81: MERT KAAN ALPTEKİN | G81: İZMİR | H81: 100M.ENG | I81: - | J81: 2 | K81: 1
A82: 44 | B82: 100M.ENG-- | H82: 100M.ENG
A83: 59 | B83: =CONCATENATE(H83,"-",J83,"-",K83) -> 1500M-1-1 | C83: 43 | D83: - | E83: 2000-03-01 | F83: BATUHAN AĞIL | G83: AKSARAY | H83: 1500M | I83: 3900 | J83: 1 | K83: 1
A84: 60 | B84: --
A85: 61 | B85: 1500M-1-3 | C85: 591 | E85: 2000-08-23 | F85: ERDEM ÖZ | G85: NEVŞEHİR | H85: 1500M | I85: 40800 | J85: 1 | K85: 3
A86: 62 | B86: 1500M-1-4 | C86: 592 | E86: 2000-04-15 | F86: ANIL KALAYCI | G86: NEVŞEHİR | H86: 1500M | I86: 40900 | J86: 1 | K86: 4
A87: 63 | B87: 1500M-1-5 | C87: 468 | E87: 2000-08-28 | F87: RECEP AKDAĞ | G87: KARAMAN | H87: 1500M | I87: 41900 | J87: 1 | K87: 5
B88: 1500M-1-6 | C88: 289 | D88: - | E88: 2000-01-01 | F88: MUSTAFA POLAT | G88: GAZİANTEP | H88: 1500M | I88: 42000 | J88: 1 | K88: 6
B89: -- | D89: -
B90: --
B91: 1500M-1-9 | C91: 467 | E91: 2000-12-10 | F91: M.CELİL DURMAZ | G91: KARAMAN | H91: 1500M | I91: 42400 | J91: 1 | K91: 9
A92: 64 | B92: 1500M-1-10 | C92: 444 | D92: - | E92: 2000-09-30 | F92: ONUR PUŞA | G92: İZMİR | H92: 1500M | I92: 42400 | J92: 1 | K92: 10
A93: 65 | B93: --
A94: 66 | B94: --
A95: 67 | B95: 1500M-2-3 | C95: 484 | E95: 2000-03-30 | F95: MEHMET KÖRPE | G95: KIRIKKALE | H95: 1500M | I95: 42800 | J95: 2 | K95: 3
A96: 68 | B96: 1500M-2-4 | C96: 483 | E96: 2000-07-01 | F96: ORHAM ERDOĞAN | G96: KIRIKKALE | H96: 1500M | I96: 43000 | J96: 2 | K96: 4
A97: 69 | B97: 1500M-2-5 | C97: 61 | D97: - | E97: 2000-01-01 | F97: EREN ERDEM ŞENTÜRK | G97: ARDAHAN | H97: 1500M | I97: 43100 | J97: 2 | K97: 5
A98: 70 | B98: 1500M-2-6 | C98: 62 | D98: - | E98: 2000-01-01 | F98: MUSA IŞIK | G98: ARDAHAN | H98: 1500M | I98: 43300 | J98: 2 | K98: 6
A99: 71 | B99: 1500M-2-7 | C99: 241 | D99: - | E99: 2000-01-27 | F99: HASAN TEK | G99: EDİRNE | H99: 1500M | I99: 43325 | J99: 2 | K99: 7
A100: 72 | B100: 1500M-2-8 | C100: 347 | D100: - | E100: 2000-04-07 | F100: AŞİR ALİ GÖVERCİN | G100: ISPARTA | H100: 1500M | I100: 43500 | J100: 2 | K100: 8
A101: 73 | B101: 1500M-2-9 | C101: 554 | E101: 2000-10-15 | F101: OĞUZ TÜRKER | G101: KÜTAHYA | H101: 1500M | I101: 43500 | J101: 2 | K101: 9
A102: 74 | B102: -- | D102: -
A103: 75 | B103: 1500M-3-1 | C103: 663 | E103: 2000-01-06 | F103: İSMAİL TİMURTAŞ | G103: SİİRT | H103: 1500M | I103: 43800 | J103: 3 | K103: 1
A104: 76 | B104: 1500M-3-2 | C104: 662 | E104: 2000-04-01 | F104: VEYSİ TIZ | G104: SİİRT | H104: 1500M | I104: 43900 | J104: 3 | K104: 2
A105: 77 | B105: 1500M-3-3 | C105: 546 | E105: 2000-01-12 | F105: ENES YÜKSEL | G105: KÜTAHYA | H105: 1500M | I105: 44000 | J105: 3 | K105: 3
A106: 78 | B106: 1500M-3-4 | C106: 118 | D106: - | E106: 2000-01-01 | F106: MERT ADAR | G106: BALIKESİR | H106: 1500M | I106: 44000 | J106: 3 | K106: 4
A107: 79 | B107: --
B108: 1500M-3-6 | C108: 125 | D108: - | E108: 2000-03-19 | F108: ESAT GEZER | G108: BARTIN | H108: 1500M | I108: 44400 | J108: 3 | K108: 6
B109: 1500M-3-7 | C109: 659 | E109: 2000-04-13 | F109: MEHMET EMİN DİLDİRİM | G109: SİİRT | H109: 1500M | I109: 44500 | J109: 3 | K109: 7
B110: 1500M-3-8 | C110: 745 | E110: 2000-01-26 | F110: ENFAL KANTARCI | G110: SAKARYA | H110: 1500M | I110: 44500 | J110: 3 | K110: 8
B111: 1500M-3-9 | C111: 353 | D111: - | E111: 2000-06-01 | F111: BATUHAN AKOL | G111: ISPARTA | H111: 1500M | I111: 50600 | J111: 3 | K111: 9
A112: 80 | B112: 1500M-3-10 | C112: 175 | D112: - | E112: 2000-01-01 | F112: GÜRSEL EDEN | G112: BİNGÖL | H112: 1500M | I112: 51721 | J112: 3 | K112: 10
A113: 81 | B113: 1500M-4-1 | C113: 176 | D113: - | E113: 2000-01-01 | F113: HADİZ BÖRÜ | G113: BİNGÖL | H113: 1500M | I113: 52174 | J113: 4 | K113: 1
A114: 82 | B114: 1500M-4-2 | C114: 594 | E114: 2000-07-07 | F114: OKTAY KARADUMAN | G114: NEVŞEHİR | H114: 1500M | I114: - | J114: 4 | K114: 2
A115: 83 | B115: 1500M-4-3 | C115: 31 | D115: - | E115: 2000-01-01 | F115: KADER DOST | G115: ADIYAMAN | H115: 1500M | I115: - | J115: 4 | K115: 3
B116: -- | D116: -
B117: 1500M-4-5 | C117: 320 | E117: 2000-06-27 | F117: SERTAN KIDU | G117: HATAY | H117: 1500M | I117: - | J117: 4 | K117: 5
B118: 1500M-4-6 | C118: 270 | D118: - | E118: 2000-04-25 | F118: ABDULLAH CANPOLAT | G118: ERZURUM | H118: 1500M | I118: - | J118: 4 | K118: 6
B119: 1500M-4-7 | C119: 318 | E119: 2000-03-06 | F119: BURHAN GÖRÜROĞLU | G119: HATAY | H119: 1500M | I119: - | J119: 4 | K119: 7
B120: 1500M-4-8 | C120: 323 | E120: 2000-01-30 | F120: AHMET CAN BALCIOĞLU | G120: HATAY | H120: 1500M | I120: - | J120: 4 | K120: 8
B121: 1500M-4-9 | C121: 616 | E121: 2000-10-02 | F121: MEHMET ALİ TAN | G121: OSMANİYE | H121: 1500M | I121: - | J121: 4 | K121: 9
B122: 1500M-4-10 | C122: 617 | E122: 2000-03-17 | F122: AHMET BİÇER | G122: OSMANİYE | H122: 1500M | I122: - | J122: 4 | K122: 10
B123: 1500M-4-12 | C123: 532 | E123: 2001-01-10 | F123: VEDAT DEMİR | G123: KONYA | H123: 1500M | J123: 4 | K123: 12
B124: 1500M-1-11 | C124: 371 | E124: 2001-06-02 | F124: SELİM YETKİN | G124: İSTANBUL | H124: 1500M | J124: 1 | K124: 11
B125: 1500M-1-12 | C125: 288 | E125: 2001-01-01 | F125: H.NOOR MAMAD | G125: GAZİANTEP | H125: 1500M | J125: 1 | K125: 12
B126: 1500M-2-11 | C126: 251 | E126: 2001-06-01 | F126: CEMEL KÖKTEN | G126: ERZİNCAN | H126: 1500M | J126: 2 | K126: 11
B127: 1500M-3-11 | C127: 235 | E127: 2001-01-02 | F127: M.BAYRAM KURT | G127: DİYARBAKIR | H127: 1500M | J127: 3 | K127: 11
B128: 1500M-3-12 | C128: 268 | E128: 2001-05-15 | F128: MEHMET KARABAĞ | G128: ERZURUM | H128: 1500M | J128: 3 | K128: 12
B129: 1500M-4-11 | C129: 286 | E129: 2001-01-01 | F129: ENES TÜRKYILMAZ | G129: GAZİANTEP | H129: 1500M | J129: 4 | K129: 11
H130: 1500M
A132: 84 | B132: 200M-1-4 | C132: 639 | E132: 2000-02-28 | F132: YUNUS EMRE AKER | G132: SAMSUN | H132: 200M | I132: 2440 | J132: 1 | K132: 4
A133: 85 | B133: 200M-1-5 | C133: 119 | D133: - | E133: 2000-01-01 | F133: KUBİLAY KARADANA | G133: BALIKESİR | H133: 200M | I133: 2450 | J133: 1 | K133: 5
A134: 86 | B134: 200M-1-3 | C134: 529 | E134: 2000-01-04 | F134: BURAK ALIMCI | G134: KONYA | H134: 200M | I134: 2460 | J134: 1 | K134: 3
A135: 87 | B135: 200M-1-6 | C135: 373 | D135: - | E135: 2000-01-01 | F135: ÖMER FARUK İÇYAR | G135: İSTANBUL | H135: 200M | I135: 2470 | J135: 1 | K135: 6
A136: 88 | B136: 200M-1-2 | C136: 354 | D136: - | E136: 2000-05-15 | F136: NADİR BİLİR | G136: ISPARTA | H136: 200M | I136: 2490 | J136: 1 | K136: 2
A137: 89 | B137: 200M-1-7 | C137: 142 | D137: - | E137: 2000-01-01 | F137: İDRİS GÜNEŞ | G137: BATMAN | H137: 200M | I137: 2500 | J137: 1 | K137: 7
A138: 90 | B138: 200M-1-1 | C138: 374 | D138: - | E138: 2000-05-10 | F138: YUNUS EMRE CİN | G138: İSTANBUL | H138: 200M | I138: 2500 | J138: 1 | K138: 1
A139: 91 | B139: 200M-2-4 | C139: 294 | D139: - | E139: 2000-01-01 | F139: ALİ DOĞAN | G139: GAZİANTEP | H139: 200M | I139: 2530 | J139: 2 | K139: 4
A140: 92 | B140: 200M-2-5 | C140: 638 | E140: 2000-06-20 | F140: ERDEM BAŞ | G140: SAMSUN | H140: 200M | I140: 2530 | J140: 2 | K140: 5
A141: 93 | B141: 200M-2-3 | C141: 226 | D141: - | E141: 2000-01-01 | F141: EROL PINARBAŞ | G141: DENİZLİ | H141: 200M | I141: 2545 | J141: 2 | K141: 3
A142: 94 | B142: 200M-2-6 | C142: 435 | D142: - | E142: 2000-03-30 | F142: BEDRİ ŞİMŞEK | G142: İZMİR | H142: 200M | I142: 2550 | J142: 2 | K142: 6
A143: 95 | B143: 200M-2-2 | C143: 239 | D143: - | E143: 2000-01-01 | F143: ENES CUŞA | G143: DİYARBAKIR | H143: 200M | I143: 2590 | J143: 2 | K143: 2
B144: 200M-2-7 | C144: 193 | D144: - | E144: 2000-07-11 | F144: HALİLMERT AKKAŞ | G144: BURDUR | H144: 200M | I144: 2600 | J144: 2 | K144: 7
B145: 200M-2-1 | C145: 569 | E145: 2000-01-01 | F145: YUSUF ŞAŞMAZ | G145: MUĞLA | H145: 200M | I145: 2600 | J145: 2 | K145: 1
B146: 200M-3-4 | C146: 748 | E146: 2000-02-01 | F146: DOĞAN BİLEN | G146: SAKARYA | H146: 200M | I146: 2600 | J146: 3 | K146: 4
B147: 200M-3-5 | C147: 664 | E147: 2000-04-01 | F147: HARUN SAPKAMAK | G147: SİİRT | H147: 200M | I147: 2614 | J147: 3 | K147: 5
A148: 96 | B148: 200M-3-3 | C148: 162 | D148: - | E148: 2000-07-05 | F148: MUHAMMET BEGEÇ | G148: BİLECİK | H148: 200M | I148: 2628 | J148: 3 | K148: 3
A149: 97 | B149: 200M-3-6 | C149: 513 | E149: 2000-01-06 | F149: EMRE ÇETİNKAYA | G149: KOCAELİ | H149: 200M | I149: 2630 | J149: 3 | K149: 6
A150: 98 | B150: 200M-3-2 | C150: 253 | D150: - | E150: 2000-08-12 | F150: ÇAYAN ENİŞ | G150: ERZİNCAN | H150: 200M | I150: 2635 | J150: 3 | K150: 2
A151: 99 | B151: 200M-3-7 | C151: 482 | E151: 2000-09-10 | F151: BERAT YEŞİLYURT | G151: KIRIKKALE | H151: 200M | I151: 2680 | J151: 3 | K151: 7
A152: 100 | B152: 200M-3-1 | C152: 192 | D152: - | E152: 2000-11-19 | F152: HALİLCAN DANIŞ | G152: BURDUR | H152: 200M | I152: 2700 | J152: 3 | K152: 1
A153: 101 | B153: 200M-4-4 | C153: 224 | D153: - | E153: 2000-01-01 | F153: BEHİÇ CAN ÜNAL | G153: DENİZLİ | H153: 200M | I153: 2715 | J153: 4 | K153: 4
A154: 102 | B154: 200M-4-5 | C154: 424 | D154: - | E154: 2000-01-01 | F154: İSMAİL ÖZDEMİR | G154: İZMİR | H154: 200M | I154: 2750 | J154: 4 | K154: 5
A155: 103 | B155: 200M-4-3 | C155: 409 | D155: - | E155: 2000-08-02 | F155: BURAK ALDENİZ | G155: İZMİR | H155: 200M | I155: 2800 | J155: 4 | K155: 3
A156: 104 | B156: 200M-4-6 | C156: 443 | D156: - | E156: 2000-05-06 | F156: MURAT MUTLU | G156: İZMİR | H156: 200M | I156: 2800 | J156: 4 | K156: 6
A157: 105 | B157: 200M-4-2 | C157: 442 | D157: - | E157: 2000-04-28 | F157: UMUT ACET | G157: İZMİR | H157: 200M | I157: 2800 | J157: 4 | K157: 2
A158: 106 | B158: 200M-4-7 | C158: 408 | D158: - | E158: 2000-04-12 | F158: SALİH OĞUZ ERDEM | G158: İZMİR | H158: 200M | I158: 2800 | J158: 4 | K158: 7
A159: 107 | B159: 200M-4-1 | C159: 319 | E159: 2000-01-10 | F159: AHMET RAMAZAN ESKİN | G159: HATAY | H159: 200M | I159: - | J159: 4 | K159: 1
A160: 108 | B160: 200M-5-4 | C160: 32 | D160: - | E160: 2000-09-01 | F160: MUSTAFA GÖKSU | G160: ADIYAMAN | H160: 200M | I160: - | J160: 5 | K160: 4
A161: 109 | B161: 200M-5-5 | C161: 496 | E161: 2000-07-05 | F161: A.MURAT ÇELİK | G161: KIRŞEHİR | H161: 200M | I161: - | J161: 5 | K161: 5
A162: 110 | B162: =CONCATENATE(H162,"-",J162,"-",K162) -> 200M-5-3 | C162: 89 | D162: - | E162: 2000-01-02 | F162: NURİ OĞUZHAN SARI | G162: AYDIN | H162: 200M | I162: - | J162: 5 | K162: 3
A163: 111 | B163: 200M-5-6 | C163: 49 | D163: - | E163: 2000-01-01 | F163: HASAN CAN BAŞARAN | G163: AMASYA | H163: 200M | I163: - | J163: 5 | K163: 6
B164: 200M-5-2 | C164: 303 | D164: - | E164: 2000-06-22 | F164: BERKAY ONAT TOKAÇ | G164: GİRESUN | H164: 200M | I164: - | J164: 5 | K164: 2
B165: 200M-5-7 | C165: 558 | E165: 2000-01-24 | F165: ÇAĞRI UZUNBİLEK | G165: MERSİN | H165: 200M | I165: - | J165: 5 | K165: 7
H166: 200M
H167: 200M
B168: 3000M-1-1 | C168: 592 | E168: 2000-04-15 | F168: ANIL KALAYCI | G168: NEVŞEHİR | H168: 3000M | I168: - | J168: 1 | K168: 1
B169: 3000M-1-2 | C169: 34 | D169: - | E169: 2000-01-01 | F169: MUSTAFA SÜREN | G169: ADIYAMAN | H169: 3000M | I169: - | J169: 1 | K169: 2
B170: 3000M-1-3 | C170: 435 | D170: - | E170: 2000-03-30 | F170: BEDRİ ŞİMŞEK | G170: İZMİR | H170: 3000M | I170: 5750 | J170: 1 | K170: 3
A171: 112 | B171: 3000M-1-4 | C171: 238 | D171: - | E171: 2000-01-01 | F171: FIRAT DEMİR | G171: DİYARBAKIR | H171: 3000M | I171: 95800 | J171: 1 | K171: 4
A172: 113 | B172: 3000M-1-5 | C172: 241 | D172: - | E172: 2000-01-27 | F172: HASAN TEK | G172: EDİRNE | H172: 3000M | I172: 93932 | J172: 1 | K172: 5
A173: 114 | B173: 3000M-- | H173: 3000M
A174: 138 | B174: 300M.ENG-1-4 | C174: 430 | D174: - | E174: 2000-02-10 | F174: MUSTAFA VARLİ | G174: İZMİR | H174: 300M.ENG | I174: 4305 | J174: 1 | K174: 4
A175: 139 | B175: 300M.ENG-1-5 | C175: 429 | D175: - | E175: 2000-01-12 | F175: ATAKAN GÜNEŞ | G175: İZMİR | H175: 300M.ENG | I175: 4320 | J175: 1 | K175: 5
A176: 140 | B176: 300M.ENG-1-3 | C176: 203 | D176: - | E176: 2000-05-23 | F176: AHMET MELİH ŞEN | G176: BURSA | H176: 300M.ENG | I176: 4423 | J176: 1 | K176: 3
A177: 141 | B177: 300M.ENG-1-6 | C177: 433 | D177: - | E177: 2000-01-01 | F177: ABDURRAHİM KARAGÖZ | G177: İZMİR | H177: 300M.ENG | I177: 4500 | J177: 1 | K177: 6
A178: 142 | B178: 300M.ENG-1-2 | C178: 514 | E178: 2000-01-01 | F178: NUREDDİN YOKTAN | G178: KOCAELİ | H178: 300M.ENG | I178: 4850 | J178: 1 | K178: 2
A179: 143 | B179: 300M.ENG-1-7 | C179: 748 | E179: 2000-02-01 | F179: DOĞAN BİLEN | G179: SAKARYA | H179: 300M.ENG | I179: 4900 | J179: 1 | K179: 7
B180: 300M.ENG-2-4 | C180: 500 | E180: 2000-02-14 | F180: İSMAİL TEKBIÇAK | G180: KIRŞEHİR | H180: 300M.ENG | I180: - | J180: 2 | K180: 4
B181: 300M.ENG-2-5 | C181: 13 | D181: - | E181: 2000-01-01 | F181: YASİN İŞCAN | G181: ADANA | H181: 300M.ENG | I181: - | J181: 2 | K181: 5
B182: 300M.ENG-2-3 | C182: 145 | D182: - | E182: 2000-02-10 | F182: AHMET DAŞ | G182: BATMAN | H182: 300M.ENG | I182: - | J182: 2 | K182: 3
B183: 300M.ENG-2-6 | C183: 12 | D183: - | E183: 2000-01-01 | F183: RAMAZAN GÜL | G183: ADANA | H183: 300M.ENG | I183: - | J183: 2 | K183: 6
A184: 144 | B184: 300M.ENG-2-2 | C184: 452 | E184: 2000-01-01 | F184: MUHAMMED ENES ALTUN | G184: İZMİR | H184: 300M.ENG | I184: - | J184: 2 | K184: 2
A185: 145 | B185: 300M.ENG-2-7 | C185: 736 | D185: - | E185: 2000-01-01 | F185: AYKUT KORAMAN | G185: BURSA | H185: 300M.ENG | I185: - | J185: 2 | K185: 7
A186: 146 | B186: 300M.ENG-- | H186: 300M.ENG
A187: 163 | B187: =CONCATENATE(H187,"-",J187,"-",K187) -> 400M-1-4 | C187: 226 | D187: - | E187: 2000-01-01 | F187: EROL PINARBAŞ | G187: DENİZLİ | H187: 400M | I187: 5468 | J187: 1 | K187: 4
A188: 164 | B188: 400M-1-5 | C188: 294 | D188: - | E188: 2000-01-01 | F188: ALİ DOĞAN | G188: GAZİANTEP | H188: 400M | I188: 5500 | J188: 1 | K188: 5
A189: 165 | B189: 400M-1-3 | C189: 238 | D189: - | E189: 2000-01-01 | F189: FIRAT DEMİR | G189: DİYARBAKIR | H189: 400M | I189: 5510 | J189: 1 | K189: 3
A190: 166 | B190: 400M-1-6 | C190: 512 | E190: 2000-03-28 | F190: KAMURAN ÖZEN | G190: KOCAELİ | H190: 400M | I190: 5600 | J190: 1 | K190: 6
A191: 167 | B191: 400M-1-2 | C191: 641 | E191: 2000-07-07 | F191: BURAK YALÇIN | G191: SAMSUN | H191: 400M | I191: 5759 | J191: 1 | K191: 2
A192: 168 | B192: 400M-1-7 | C192: 218 | D192: - | E192: 2000-05-06 | F192: AHMET RAHİM SEYHAN | G192: ÇANAKKALE | H192: 400M | I192: 5800 | J192: 1 | K192: 7
A193: 169 | B193: 400M-1-1 | C193: 144 | D193: - | E193: 2000-01-01 | F193: FERHAT İLİMEN | G193: BATMAN | H193: 400M | I193: 5800 | J193: 1 | K193: 1
A194: 170 | B194: 400M-2-4 | C194: 606 | E194: 2000-04-20 | F194: MEHMET TOK | G194: NİĞDE | H194: 400M | I194: 5803 | J194: 2 | K194: 4
A195: 171 | B195: 400M-2-5 | C195: 290 | D195: - | E195: 2000-01-01 | F195: CEMAL TOSUN | G195: GAZİANTEP | H195: 400M | I195: 5815 | J195: 2 | K195: 5
A196: 172 | B196: 400M-2-3 | C196: 664 | E196: 2000-04-01 | F196: HARUN SAPKAMAK | G196: SİİRT | H196: 400M | I196: 5940 | J196: 2 | K196: 3
A197: 173 | B197: 400M-2-6 | C197: 663 | E197: 2000-01-06 | F197: İSMAİL TİMURTAŞ | G197: SİİRT | H197: 400M | I197: 5980 | J197: 2 | K197: 6
A198: 174 | B198: 400M-2-2 | C198: 146 | D198: - | E198: 2000-10-16 | F198: SEDAT KARTAL | G198: BATMAN | H198: 400M | I198: 10000 | J198: 2 | K198: 2
A199: 175 | B199: 400M-2-7 | C199: 219 | D199: - | E199: 2000-03-07 | F199: TOLGA GARİP | G199: ÇANAKKALE | H199: 400M | I199: 10000 | J199: 2 | K199: 7
B200: 400M-2-1 | C200: 424 | D200: - | E200: 2000-01-01 | F200: İSMAİL ÖZDEMİR | G200: İZMİR | H200: 400M | I200: 10000 | J200: 2 | K200: 1
B201: 400M-3-4 | C201: 355 | D201: - | E201: 2000-02-05 | F201: ŞERİF DOĞAN | G201: ISPARTA | H201: 400M | I201: 10800 | J201: 3 | K201: 4
... 274 more rows

Sheet 1.Gün Start Listesi (hidden)
A1: =('YARIŞMA BİLGİLERİ'!A2) -> Türkiye Atletizm Federasyonu İzmir Atletizm İl Temsilciliği
A2: ='YARIŞMA BİLGİLERİ'!F19 -> Naili Moran Türkiye Atletizm Şampiyonası
A3: 1.GÜN GENÇ ERKEKLER START LİSTELERİ
A4: 100 METRE | J4: 400 METRE
A5: 1. SERİ | I5: SIRA NO | J5: 1. SERİ
A6: Sıra No | B6: Formül | C6: Göğüs No | D6: Doğum Tarihi | E6: Adı ve Soyadı | F6: Okulu | G6: Start Kontrol | J6: Sıra No | K6: Formül | L6: Göğüs No | M6: Doğum Tarihi | N6: Adı ve Soyadı | O6: Okulu | P6: Start Kontrol
A7: 1 | B7: 100M-1-1 | C7: =IF(ISERROR(VLOOKUP(B7,'KAYIT LİSTESİ'!$B$4:$H$1019,2,0)),"",(VLOOKUP(B7,'KAYIT LİSTESİ'!$B$4:$H$1019,2,0))) -> 372 | D7: =IF(ISERROR(VLOOKUP(B7,'KAYIT LİSTESİ'!$B$4:$H$1019,4,0)),"",(VLOOKUP(B7,'KAYIT LİSTESİ'!$B$4:$H$1019,4,0))) -> 2000-02-20 | E7: =IF(ISERROR(VLOOKUP(B7,'KAYIT LİSTESİ'!$B$4:$H$1019,5,0)),"",(VLOOKUP(B7,'KAYIT LİSTESİ'!$B$4:$H$1019,5,0))) -> ÖMER FARUK IŞIKDAG | F7: =IF(ISERROR(VLOOKUP(B7,'KAYIT LİSTESİ'!$B$4:$H$1019,6,0)),"",(VLOOKUP(B7,'KAYIT LİSTESİ'!$B$4:$H$1019,6,0))) -> İSTANBUL | I7: 1 | J7: 1 | K7: 400M-1-1 | L7: =IF(ISERROR(VLOOKUP(K7,'KAYIT LİSTESİ'!$B$4:$H$1019,2,0)),"",(VLOOKUP(K7,'KAYIT LİSTESİ'!$B$4:$H$1019,2,0))) -> 144 | M7: =IF(ISERROR(VLOOKUP(K7,'KAYIT LİSTESİ'!$B$4:$H$1019,4,0)),"",(VLOOKUP(K7,'KAYIT LİSTESİ'!$B$4:$H$1019,4,0))) -> 2000-01-01 | N7: =IF(ISERROR(VLOOKUP(K7,'KAYIT LİSTESİ'!$B$4:$H$1019,5,0)),"",(VLOOKUP(K7,'KAYIT LİSTESİ'!$B$4:$H$1019,5,0))) -> FERHAT İLİMEN | O7: =IF(ISERROR(VLOOKUP(K7,'KAYIT LİSTESİ'!$B$4:$H$1019,6,0)),"",(VLOOKUP(K7,'KAYIT LİSTESİ'!$B$4:$H$1019,6,0))) -> BATMAN
A8: 2 | B8: 100M-1-2 | C8: =IF(ISERROR(VLOOKUP(B8,'KAYIT LİSTESİ'!$B$4:$H$1019,2,0)),"",(VLOOKUP(B8,'KAYIT LİSTESİ'!$B$4:$H$1019,2,0))) -> 448 | D8: =IF(ISERROR(VLOOKUP(B8,'KAYIT LİSTESİ'!$B$4:$H$1019,4,0)),"",(VLOOKUP(B8,'KAYIT LİSTESİ'!$B$4:$H$1019,4,0))) -> 2000-01-01 | E8: =IF(ISERROR(VLOOKUP(B8,'KAYIT LİSTESİ'!$B$4:$H$1019,5,0)),"",(VLOOKUP(B8,'KAYIT LİSTESİ'!$B$4:$H$1019,5,0))) -> BATUHAN ALKAN | F8: =IF(ISERROR(VLOOKUP(B8,'KAYIT LİSTESİ'!$B$4:$H$1019,6,0)),"",(VLOOKUP(B8,'KAYIT LİSTESİ'!$B$4:$H$1019,6,0))) -> İZMİR | I8: 2 | J8: 2 | K8: 400M-1-2 | L8: =IF(ISERROR(VLOOKUP(K8,'KAYIT LİSTESİ'!$B$4:$H$1019,2,0)),"",(VLOOKUP(K8,'KAYIT LİSTESİ'!$B$4:$H$1019,2,0))) -> 641 | M8: =IF(ISERROR(VLOOKUP(K8,'KAYIT LİSTESİ'!$B$4:$H$1019,4,0)),"",(VLOOKUP(K8,'KAYIT LİSTESİ'!$B$4:$H$1019,4,0))) -> 2000-07-07 | N8: =IF(ISERROR(VLOOKUP(K8,'KAYIT LİSTESİ'!$B$4:$H$1019,5,0)),"",(VLOOKUP(K8,'KAYIT LİSTESİ'!$B$4:$H$1019,5,0))) -> BURAK YALÇIN | O8: =IF(ISERROR(VLOOKUP(K8,'KAYIT LİSTESİ'!$B$4:$H$1019,6,0)),"",(VLOOKUP(K8,'KAYIT LİSTESİ'!$B$4:$H$1019,6,0))) -> SAMSUN
A9: 3 | B9: 100M-1-3 | C9: =IF(ISERROR(VLOOKUP(B9,'KAYIT LİSTESİ'!$B$4:$H$1019,2,0)),"",(VLOOKUP(B9,'KAYIT LİSTESİ'!$B$4:$H$1019,2,0))) -> 119 | D9: =IF(ISERROR(VLOOKUP(B9,'KAYIT LİSTESİ'!$B$4:$H$1019,4,0)),"",(VLOOKUP(B9,'KAYIT LİSTESİ'!$B$4:$H$1019,4,0))) -> 2000-01-01 | E9: =IF(ISERROR(VLOOKUP(B9,'KAYIT LİSTESİ'!$B$4:$H$1019,5,0)),"",(VLOOKUP(B9,'KAYIT LİSTESİ'!$B$4:$H$1019,5,0))) -> KUBİLAY KARADANA | F9: =IF(ISERROR(VLOOKUP(B9,'KAYIT LİSTESİ'!$B$4:$H$1019,6,0)),"",(VLOOKUP(B9,'KAYIT LİSTESİ'!$B$4:$H$1019,6,0))) -> BALIKESİR | I9: 3 | J9: 3 | K9: 400M-1-3 | L9: =IF(ISERROR(VLOOKUP(K9,'KAYIT LİSTESİ'!$B$4:$H$1019,2,0)),"",(VLOOKUP(K9,'KAYIT LİSTESİ'!$B$4:$H$1019,2,0))) -> 238 | M9: =IF(ISERROR(VLOOKUP(K9,'KAYIT LİSTESİ'!$B$4:$H$1019,4,0)),"",(VLOOKUP(K9,'KAYIT LİSTESİ'!$B$4:$H$1019,4,0))) -> 2000-01-01 | N9: =IF(ISERROR(VLOOKUP(K9,'KAYIT LİSTESİ'!$B$4:$H$1019,5,0)),"",(VLOOKUP(K9,'KAYIT LİSTESİ'!$B$4:$H$1019,5,0))) -> FIRAT DEMİR | O9: =IF(ISERROR(VLOOKUP(K9,'KAYIT LİSTESİ'!$B$4:$H$1019,6,0)),"",(VLOOKUP(K9,'KAYIT LİSTESİ'!$B$4:$H$1019,6,0))) -> DİYARBAKIR
A10: 4 | B10: 100M-1-4 | C10: =IF(ISERROR(VLOOKUP(B10,'KAYIT LİSTESİ'!$B$4:$H$1019,2,0)),"",(VLOOKUP(B10,'KAYIT LİSTESİ'!$B$4:$H$1019,2,0))) -> 638 | D10: =IF(ISERROR(VLOOKUP(B10,'KAYIT LİSTESİ'!$B$4:$H$1019,4,0)),"",(VLOOKUP(B10,'KAYIT LİSTESİ'!$B$4:$H$1019,4,0))) -> 2000-06-20 | E10: =IF(ISERROR(VLOOKUP(B10,'KAYIT LİSTESİ'!$B$4:$H$1019,5,0)),"",(VLOOKUP(B10,'KAYIT LİSTESİ'!$B$4:$H$1019,5,0))) -> ERDEM BAŞ | F10: =IF(ISERROR(VLOOKUP(B10,'KAYIT LİSTESİ'!$B$4:$H$1019,6,0)),"",(VLOOKUP(B10,'KAYIT LİSTESİ'!$B$4:$H$1019,6,0))) -> SAMSUN | I10: 4 | J10: 4 | K10: 400M-1-4 | L10: =IF(ISERROR(VLOOKUP(K10,'KAYIT LİSTESİ'!$B$4:$H$1019,2,0)),"",(VLOOKUP(K10,'KAYIT LİSTESİ'!$B$4:$H$1019,2,0))) -> 226 | M10: =IF(ISERROR(VLOOKUP(K10,'KAYIT LİSTESİ'!$B$4:$H$1019,4,0)),"",(VLOOKUP(K10,'KAYIT LİSTESİ'!$B$4:$H$1019,4,0))) -> 2000-01-01 | N10: =IF(ISERROR(VLOOKUP(K10,'KAYIT LİSTESİ'!$B$4:$H$1019,5,0)),"",(VLOOKUP(K10,'KAYIT LİSTESİ'!$B$4:$H$1019,5,0))) -> EROL PINARBAŞ | O10: =IF(ISERROR(VLOOKUP(K10,'KAYIT LİSTESİ'!$B$4:$H$1019,6,0)),"",(VLOOKUP(K10,'KAYIT LİSTESİ'!$B$4:$H$1019,6,0))) -> DENİZLİ
A11: 5 | B11: 100M-1-5 | C11: =IF(ISERROR(VLOOKUP(B11,'KAYIT LİSTESİ'!$B$4:$H$1019,2,0)),"",(VLOOKUP(B11,'KAYIT LİSTESİ'!$B$4:$H$1019,2,0))) -> 529 | D11: =IF(ISERROR(VLOOKUP(B11,'KAYIT LİSTESİ'!$B$4:$H$1019,4,0)),"",(VLOOKUP(B11,'KAYIT LİSTESİ'!$B$4:$H$1019,4,0))) -> 2000-01-04 | E11: =IF(ISERROR(VLOOKUP(B11,'KAYIT LİSTESİ'!$B$4:$H$1019,5,0)),"",(VLOOKUP(B11,'KAYIT LİSTESİ'!$B$4:$H$1019,5,0))) -> BURAK ALIMCI | F11: =IF(ISERROR(VLOOKUP(B11,'KAYIT LİSTESİ'!$B$4:$H$1019,6,0)),"",(VLOOKUP(B11,'KAYIT LİSTESİ'!$B$4:$H$1019,6,0))) -> KONYA | I11: 5 | J11: 5 | K11: 400M-1-5 | L11: =IF(ISERROR(VLOOKUP(K11,'KAYIT LİSTESİ'!$B$4:$H$1019,2,0)),"",(VLOOKUP(K11,'KAYIT LİSTESİ'!$B$4:$H$1019,2,0))) -> 294 | M11: =IF(ISERROR(VLOOKUP(K11,'KAYIT LİSTESİ'!$B$4:$H$1019,4,0)),"",(VLOOKUP(K11,'KAYIT LİSTESİ'!$B$4:$H$1019,4,0))) -> 2000-01-01 | N11: =IF(ISERROR(VLOOKUP(K11,'KAYIT LİSTESİ'!$B$4:$H$1019,5,0)),"",(VLOOKUP(K11,'KAYIT LİSTESİ'!$B$4:$H$1019,5,0))) -> ALİ DOĞAN | O11: =IF(ISERROR(VLOOKUP(K11,'KAYIT LİSTESİ'!$B$4:$H$1019,6,0)),"",(VLOOKUP(K11,'KAYIT LİSTESİ'!$B$4:$H$1019,6,0))) -> GAZİANTEP
A12: 6 | B12: 100M-1-6 | C12: =IF(ISERROR(VLOOKUP(B12,'KAYIT LİSTESİ'!$B$4:$H$1019,2,0)),"",(VLOOKUP(B12,'KAYIT LİSTESİ'!$B$4:$H$1019,2,0))) -> 639 | D12: =IF(ISERROR(VLOOKUP(B12,'KAYIT LİSTESİ'!$B$4:$H$1019,4,0)),"",(VLOOKUP(B12,'KAYIT LİSTESİ'!$B$4:$H$1019,4,0))) -> 2000-02-28 | E12: =IF(ISERROR(VLOOKUP(B12,'KAYIT LİSTESİ'!$B$4:$H$1019,5,0)),"",(VLOOKUP(B12,'KAYIT LİSTESİ'!$B$4:$H$1019,5,0))) -> YUNUS EMRE AKER | F12: =IF(ISERROR(VLOOKUP(B12,'KAYIT LİSTESİ'!$B$4:$H$1019,6,0)),"",(VLOOKUP(B12,'KAYIT LİSTESİ'!$B$4:$H$1019,6,0))) -> SAMSUN | I12: 6 | J12: 6 | K12: 400M-1-6 | L12: =IF(ISERROR(VLOOKUP(K12,'KAYIT LİSTESİ'!$B$4:$H$1019,2,0)),"",(VLOOKUP(K12,'KAYIT LİSTESİ'!$B$4:$H$1019,2,0))) -> 512 | M12: =IF(ISERROR(VLOOKUP(K12,'KAYIT LİSTESİ'!$B$4:$H$1019,4,0)),"",(VLOOKUP(K12,'KAYIT LİSTESİ'!$B$4:$H$1019,4,0))) -> 2000-03-28 | N12: =IF(ISERROR(VLOOKUP(K12,'KAYIT LİSTESİ'!$B$4:$H$1019,5,0)),"",(VLOOKUP(K12,'KAYIT LİSTESİ'!$B$4:$H$1019,5,0))) -> KAMURAN ÖZEN | O12: =IF(ISERROR(VLOOKUP(K12,'KAYIT LİSTESİ'!$B$4:$H$1019,6,0)),"",(VLOOKUP(K12,'KAYIT LİSTESİ'!$B$4:$H$1019,6,0))) -> KOCAELİ
A13: 7 | B13: 100M-1-7 | C13: =IF(ISERROR(VLOOKUP(B13,'KAYIT LİSTESİ'!$B$4:$H$1019,2,0)),"",(VLOOKUP(B13,'KAYIT LİSTESİ'!$B$4:$H$1019,2,0))) -> 88 | D13: =IF(ISERROR(VLOOKUP(B13,'KAYIT LİSTESİ'!$B$4:$H$1019,4,0)),"",(VLOOKUP(B13,'KAYIT LİSTESİ'!$B$4:$H$1019,4,0))) -> 2000-05-28 | E13: =IF(ISERROR(VLOOKUP(B13,'KAYIT LİSTESİ'!$B$4:$H$1019,5,0)),"",(VLOOKUP(B13,'KAYIT LİSTESİ'!$B$4:$H$1019,5,0))) -> BERKAY ŞİMŞEK | F13: =IF(ISERROR(VLOOKUP(B13,'KAYIT LİSTESİ'!$B$4:$H$1019,6,0)),"",(VLOOKUP(B13,'KAYIT LİSTESİ'!$B$4:$H$1019,6,0))) -> AYDIN | I13: 7 | J13: 7 | K13: 400M-1-7 | L13: =IF(ISERROR(VLOOKUP(K13,'KAYIT LİSTESİ'!$B$4:$H$1019,2,0)),"",(VLOOKUP(K13,'KAYIT LİSTESİ'!$B$4:$H$1019,2,0))) -> 218 | M13: =IF(ISERROR(VLOOKUP(K13,'KAYIT LİSTESİ'!$B$4:$H$1019,4,0)),"",(VLOOKUP(K13,'KAYIT LİSTESİ'!$B$4:$H$1019,4,0))) -> 2000-05-06 | N13: =IF(ISERROR(VLOOKUP(K13,'KAYIT LİSTESİ'!$B$4:$H$1019,5,0)),"",(VLOOKUP(K13,'KAYIT LİSTESİ'!$B$4:$H$1019,5,0))) -> AHMET RAHİM SEYHAN | O13: =IF(ISERROR(VLOOKUP(K13,'KAYIT LİSTESİ'!$B$4:$H$1019,6,0)),"",(VLOOKUP(K13,'KAYIT LİSTESİ'!$B$4:$H$1019,6,0))) -> ÇANAKKALE
A14: 8 | B14: 100M-1-8 | C14: =IF(ISERROR(VLOOKUP(B14,'KAYIT LİSTESİ'!$B$4:$H$1019,2,0)),"",(VLOOKUP(B14,'KAYIT LİSTESİ'!$B$4:$H$1019,2,0))) -> 373 | D14: =IF(ISERROR(VLOOKUP(B14,'KAYIT LİSTESİ'!$B$4:$H$1019,4,0)),"",(VLOOKUP(B14,'KAYIT LİSTESİ'!$B$4:$H$1019,4,0))) -> 2000-01-01 | E14: =IF(ISERROR(VLOOKUP(B14,'KAYIT LİSTESİ'!$B$4:$H$1019,5,0)),"",(VLOOKUP(B14,'KAYIT LİSTESİ'!$B$4:$H$1019,5,0))) -> ÖMER FARUK İÇYAR | F14: =IF(ISERROR(VLOOKUP(B14,'KAYIT LİSTESİ'!$B$4:$H$1019,6,0)),"",(VLOOKUP(B14,'KAYIT LİSTESİ'!$B$4:$H$1019,6,0))) -> İSTANBUL | I14: 8 | J14: 8 | K14: 400M-1-8 | L14: =IF(ISERROR(VLOOKUP(K14,'KAYIT LİSTESİ'!$B$4:$H$1019,2,0)),"",(VLOOKUP(K14,'KAYIT LİSTESİ'!$B$4:$H$1019,2,0))) ->  | M14: =IF(ISERROR(VLOOKUP(K14,'KAYIT LİSTESİ'!$B$4:$H$1019,4,0)),"",(VLOOKUP(K14,'KAYIT LİSTESİ'!$B$4:$H$1019,4,0))) ->  | N14: =IF(ISERROR(VLOOKUP(K14,'KAYIT LİSTESİ'!$B$4:$H$1019,5,0)),"",(VLOOKUP(K14,'KAYIT LİSTESİ'!$B$4:$H$1019,5,0))) ->  | O14: =IF(ISERROR(VLOOKUP(K14,'KAYIT LİSTESİ'!$B$4:$H$1019,6,0)),"",(VLOOKUP(K14,'KAYIT LİSTESİ'!$B$4:$H$1019,6,0))) -> 
A15: 2. SERİ | I15: 9 | J15: 2. SERİ
A16: Sıra No | B16: Formül | C16: Göğüs No | D16: Doğum Tarihi | E16: Adı ve Soyadı | F16: Okulu | G16: Start Kontrol | I16: 10 | J16: Sıra No | K16: Formül | L16: Göğüs No | M16: Doğum Tarihi | N16: Adı ve Soyadı | O16: Okulu | P16: Start Kontrol
A17: 1 | B17: 100M-2-1 | C17: =IF(ISERROR(VLOOKUP(B17,'KAYIT LİSTESİ'!$B$4:$H$1019,2,0)),"",(VLOOKUP(B17,'KAYIT LİSTESİ'!$B$4:$H$1019,2,0))) -> 504 | D17: =IF(ISERROR(VLOOKUP(B17,'KAYIT LİSTESİ'!$B$4:$H$1019,4,0)),"",(VLOOKUP(B17,'KAYIT LİSTESİ'!$B$4:$H$1019,4,0))) -> 2000-01-15 | E17: =IF(ISERROR(VLOOKUP(B17,'KAYIT LİSTESİ'!$B$4:$H$1019,5,0)),"",(VLOOKUP(B17,'KAYIT LİSTESİ'!$B$4:$H$1019,5,0))) -> MUSTAFA YORULMAZ | F17: =IF(ISERROR(VLOOKUP(B17,'KAYIT LİSTESİ'!$B$4:$H$1019,6,0)),"",(VLOOKUP(B17,'KAYIT LİSTESİ'!$B$4:$H$1019,6,0))) -> KKTC | I17: 11 | J17: 1 | K17: 400M-2-1 | L17: =IF(ISERROR(VLOOKUP(K17,'KAYIT LİSTESİ'!$B$4:$H$1019,2,0)),"",(VLOOKUP(K17,'KAYIT LİSTESİ'!$B$4:$H$1019,2,0))) -> 424 | M17: =IF(ISERROR(VLOOKUP(K17,'KAYIT LİSTESİ'!$B$4:$H$1019,4,0)),"",(VLOOKUP(K17,'KAYIT LİSTESİ'!$B$4:$H$1019,4,0))) -> 2000-01-01 | N17: =IF(ISERROR(VLOOKUP(K17,'KAYIT LİSTESİ'!$B$4:$H$1019,5,0)),"",(VLOOKUP(K17,'KAYIT LİSTESİ'!$B$4:$H$1019,5,0))) -> İSMAİL ÖZDEMİR | O17: =IF(ISERROR(VLOOKUP(K17,'KAYIT LİSTESİ'!$B$4:$H$1019,6,0)),"",(VLOOKUP(K17,'KAYIT LİSTESİ'!$B$4:$H$1019,6,0))) -> İZMİR
A18: 2 | B18: 100M-2-2 | C18: =IF(ISERROR(VLOOKUP(B18,'KAYIT LİSTESİ'!$B$4:$H$1019,2,0)),"",(VLOOKUP(B18,'KAYIT LİSTESİ'!$B$4:$H$1019,2,0))) -> 374 | D18: =IF(ISERROR(VLOOKUP(B18,'KAYIT LİSTESİ'!$B$4:$H$1019,4,0)),"",(VLOOKUP(B18,'KAYIT LİSTESİ'!$B$4:$H$1019,4,0))) -> 2000-05-10 | E18: =IF(ISERROR(VLOOKUP(B18,'KAYIT LİSTESİ'!$B$4:$H$1019,5,0)),"",(VLOOKUP(B18,'KAYIT LİSTESİ'!$B$4:$H$1019,5,0))) -> YUNUS EMRE CİN | F18: =IF(ISERROR(VLOOKUP(B18,'KAYIT LİSTESİ'!$B$4:$H$1019,6,0)),"",(VLOOKUP(B18,'KAYIT LİSTESİ'!$B$4:$H$1019,6,0))) -> İSTANBUL | I18: 12 | J18: 2 | K18: 400M-2-2 | L18: =IF(ISERROR(VLOOKUP(K18,'KAYIT LİSTESİ'!$B$4:$H$1019,2,0)),"",(VLOOKUP(K18,'KAYIT LİSTESİ'!$B$4:$H$1019,2,0))) -> 146 | M18: =IF(ISERROR(VLOOKUP(K18,'KAYIT LİSTESİ'!$B$4:$H$1019,4,0)),"",(VLOOKUP(K18,'KAYIT LİSTESİ'!$B$4:$H$1019,4,0))) -> 2000-10-16 | N18: =IF(ISERROR(VLOOKUP(K18,'KAYIT LİSTESİ'!$B$4:$H$1019,5,0)),"",(VLOOKUP(K18,'KAYIT LİSTESİ'!$B$4:$H$1019,5,0))) -> SEDAT KARTAL | O18: =IF(ISERROR(VLOOKUP(K18,'KAYIT LİSTESİ'!$B$4:$H$1019,6,0)),"",(VLOOKUP(K18,'KAYIT LİSTESİ'!$B$4:$H$1019,6,0))) -> BATMAN
A19: 3 | B19: 100M-2-3 | C19: =IF(ISERROR(VLOOKUP(B19,'KAYIT LİSTESİ'!$B$4:$H$1019,2,0)),"",(VLOOKUP(B19,'KAYIT LİSTESİ'!$B$4:$H$1019,2,0))) -> 431 | D19: =IF(ISERROR(VLOOKUP(B19,'KAYIT LİSTESİ'!$B$4:$H$1019,4,0)),"",(VLOOKUP(B19,'KAYIT LİSTESİ'!$B$4:$H$1019,4,0))) -> 2000-02-02 | E19: =IF(ISERROR(VLOOKUP(B19,'KAYIT LİSTESİ'!$B$4:$H$1019,5,0)),"",(VLOOKUP(B19,'KAYIT LİSTESİ'!$B$4:$H$1019,5,0))) -> BURAK YÜCEER | F19: =IF(ISERROR(VLOOKUP(B19,'KAYIT LİSTESİ'!$B$4:$H$1019,6,0)),"",(VLOOKUP(B19,'KAYIT LİSTESİ'!$B$4:$H$1019,6,0))) -> İZMİR | I19: 13 | J19: 3 | K19: 400M-2-3 | L19: =IF(ISERROR(VLOOKUP(K19,'KAYIT LİSTESİ'!$B$4:$H$1019,2,0)),"",(VLOOKUP(K19,'KAYIT LİSTESİ'!$B$4:$H$1019,2,0))) -> 664 | M19: =IF(ISERROR(VLOOKUP(K19,'KAYIT LİSTESİ'!$B$4:$H$1019,4,0)),"",(VLOOKUP(K19,'KAYIT LİSTESİ'!$B$4:$H$1019,4,0))) -> 2000-04-01 | N19: =IF(ISERROR(VLOOKUP(K19,'KAYIT LİSTESİ'!$B$4:$H$1019,5,0)),"",(VLOOKUP(K19,'KAYIT LİSTESİ'!$B$4:$H$1019,5,0))) -> HARUN SAPKAMAK | O19: =IF(ISERROR(VLOOKUP(K19,'KAYIT LİSTESİ'!$B$4:$H$1019,6,0)),"",(VLOOKUP(K19,'KAYIT LİSTESİ'!$B$4:$H$1019,6,0))) -> SİİRT
A20: 4 | B20: 100M-2-4 | C20: =IF(ISERROR(VLOOKUP(B20,'KAYIT LİSTESİ'!$B$4:$H$1019,2,0)),"",(VLOOKUP(B20,'KAYIT LİSTESİ'!$B$4:$H$1019,2,0))) -> 354 | D20: =IF(ISERROR(VLOOKUP(B20,'KAYIT LİSTESİ'!$B$4:$H$1019,4,0)),"",(VLOOKUP(B20,'KAYIT LİSTESİ'!$B$4:$H$1019,4,0))) -> 2000-05-15 | E20: =IF(ISERROR(VLOOKUP(B20,'KAYIT LİSTESİ'!$B$4:$H$1019,5,0)),"",(VLOOKUP(B20,'KAYIT LİSTESİ'!$B$4:$H$1019,5,0))) -> NADİR BİLİR | F20: =IF(ISERROR(VLOOKUP(B20,'KAYIT LİSTESİ'!$B$4:$H$1019,6,0)),"",(VLOOKUP(B20,'KAYIT LİSTESİ'!$B$4:$H$1019,6,0))) -> ISPARTA | I20: 14 | J20: 4 | K20: 400M-2-4 | L20: =IF(ISERROR(VLOOKUP(K20,'KAYIT LİSTESİ'!$B$4:$H$1019,2,0)),"",(VLOOKUP(K20,'KAYIT LİSTESİ'!$B$4:$H$1019,2,0))) -> 606 | M20: =IF(ISERROR(VLOOKUP(K20,'KAYIT LİSTESİ'!$B$4:$H$1019,4,0)),"",(VLOOKUP(K20,'KAYIT LİSTESİ'!$B$4:$H$1019,4,0))) -> 2000-04-20 | N20: =IF(ISERROR(VLOOKUP(K20,'KAYIT LİSTESİ'!$B$4:$H$1019,5,0)),"",(VLOOKUP(K20,'KAYIT LİSTESİ'!$B$4:$H$1019,5,0))) -> MEHMET TOK | O20: =IF(ISERROR(VLOOKUP(K20,'KAYIT LİSTESİ'!$B$4:$H$1019,6,0)),"",(VLOOKUP(K20,'KAYIT LİSTESİ'!$B$4:$H$1019,6,0))) -> NİĞDE
A21: 5 | B21: 100M-2-5 | C21: =IF(ISERROR(VLOOKUP(B21,'KAYIT LİSTESİ'!$B$4:$H$1019,2,0)),"",(VLOOKUP(B21,'KAYIT LİSTESİ'!$B$4:$H$1019,2,0))) -> 746 | D21: =IF(ISERROR(VLOOKUP(B21,'KAYIT LİSTESİ'!$B$4:$H$1019,4,0)),"",(VLOOKUP(B21,'KAYIT LİSTESİ'!$B$4:$H$1019,4,0))) -> 2000-05-26 | E21: =IF(ISERROR(VLOOKUP(B21,'KAYIT LİSTESİ'!$B$4:$H$1019,5,0)),"",(VLOOKUP(B21,'KAYIT LİSTESİ'!$B$4:$H$1019,5,0))) -> EFE AHATLAR | F21: =IF(ISERROR(VLOOKUP(B21,'KAYIT LİSTESİ'!$B$4:$H$1019,6,0)),"",(VLOOKUP(B21,'KAYIT LİSTESİ'!$B$4:$H$1019,6,0))) -> SAKARYA | I21: 15 | J21: 5 | K21: 400M-2-5 | L21: =IF(ISERROR(VLOOKUP(K21,'KAYIT LİSTESİ'!$B$4:$H$1019,2,0)),"",(VLOOKUP(K21,'KAYIT LİSTESİ'!$B$4:$H$1019,2,0))) -> 290 | M21: =IF(ISERROR(VLOOKUP(K21,'KAYIT LİSTESİ'!$B$4:$H$1019,4,0)),"",(VLOOKUP(K21,'KAYIT LİSTESİ'!$B$4:$H$1019,4,0))) -> 2000-01-01 | N21: =IF(ISERROR(VLOOKUP(K21,'KAYIT LİSTESİ'!$B$4:$H$1019,5,0)),"",(VLOOKUP(K21,'KAYIT LİSTESİ'!$B$4:$H$1019,5,0))) -> CEMAL TOSUN | O21: =IF(ISERROR(VLOOKUP(K21,'KAYIT LİSTESİ'!$B$4:$H$1019,6,0)),"",(VLOOKUP(K21,'KAYIT LİSTESİ'!$B$4:$H$1019,6,0))) -> GAZİANTEP
A22: 6 | B22: 100M-2-6 | C22: =IF(ISERROR(VLOOKUP(B22,'KAYIT LİSTESİ'!$B$4:$H$1019,2,0)),"",(VLOOKUP(B22,'KAYIT LİSTESİ'!$B$4:$H$1019,2,0))) -> 203 | D22: =IF(ISERROR(VLOOKUP(B22,'KAYIT LİSTESİ'!$B$4:$H$1019,4,0)),"",(VLOOKUP(B22,'KAYIT LİSTESİ'!$B$4:$H$1019,4,0))) -> 2000-05-23 | E22: =IF(ISERROR(VLOOKUP(B22,'KAYIT LİSTESİ'!$B$4:$H$1019,5,0)),"",(VLOOKUP(B22,'KAYIT LİSTESİ'!$B$4:$H$1019,5,0))) -> AHMET MELİH ŞEN | F22: =IF(ISERROR(VLOOKUP(B22,'KAYIT LİSTESİ'!$B$4:$H$1019,6,0)),"",(VLOOKUP(B22,'KAYIT LİSTESİ'!$B$4:$H$1019,6,0))) -> BURSA | I22: 16 | J22: 6 | K22: 400M-2-6 | L22: =IF(ISERROR(VLOOKUP(K22,'KAYIT LİSTESİ'!$B$4:$H$1019,2,0)),"",(VLOOKUP(K22,'KAYIT LİSTESİ'!$B$4:$H$1019,2,0))) -> 663 | M22: =IF(ISERROR(VLOOKUP(K22,'KAYIT LİSTESİ'!$B$4:$H$1019,4,0)),"",(VLOOKUP(K22,'KAYIT LİSTESİ'!$B$4:$H$1019,4,0))) -> 2000-01-06 | N22: =IF(ISERROR(VLOOKUP(K22,'KAYIT LİSTESİ'!$B$4:$H$1019,5,0)),"",(VLOOKUP(K22,'KAYIT LİSTESİ'!$B$4:$H$1019,5,0))) -> İSMAİL TİMURTAŞ | O22: =IF(ISERROR(VLOOKUP(K22,'KAYIT LİSTESİ'!$B$4:$H$1019,6,0)),"",(VLOOKUP(K22,'KAYIT LİSTESİ'!$B$4:$H$1019,6,0))) -> SİİRT
A23: 7 | B23: 100M-2-7 | C23: =IF(ISERROR(VLOOKUP(B23,'KAYIT LİSTESİ'!$B$4:$H$1019,2,0)),"",(VLOOKUP(B23,'KAYIT LİSTESİ'!$B$4:$H$1019,2,0))) -> 443 | D23: =IF(ISERROR(VLOOKUP(B23,'KAYIT LİSTESİ'!$B$4:$H$1019,4,0)),"",(VLOOKUP(B23,'KAYIT LİSTESİ'!$B$4:$H$1019,4,0))) -> 2000-05-06 | E23: =IF(ISERROR(VLOOKUP(B23,'KAYIT LİSTESİ'!$B$4:$H$1019,5,0)),"",(VLOOKUP(B23,'KAYIT LİSTESİ'!$B$4:$H$1019,5,0))) -> MURAT MUTLU | F23: =IF(ISERROR(VLOOKUP(B23,'KAYIT LİSTESİ'!$B$4:$H$1019,6,0)),"",(VLOOKUP(B23,'KAYIT LİSTESİ'!$B$4:$H$1019,6,0))) -> İZMİR | I23: 17 | J23: 7 | K23: 400M-2-7 | L23: =IF(ISERROR(VLOOKUP(K23,'KAYIT LİSTESİ'!$B$4:$H$1019,2,0)),"",(VLOOKUP(K23,'KAYIT LİSTESİ'!$B$4:$H$1019,2,0))) -> 219 | M23: =IF(ISERROR(VLOOKUP(K23,'KAYIT LİSTESİ'!$B$4:$H$1019,4,0)),"",(VLOOKUP(K23,'KAYIT LİSTESİ'!$B$4:$H$1019,4,0))) -> 2000-03-07 | N23: =IF(ISERROR(VLOOKUP(K23,'KAYIT LİSTESİ'!$B$4:$H$1019,5,0)),"",(VLOOKUP(K23,'KAYIT LİSTESİ'!$B$4:$H$1019,5,0))) -> TOLGA GARİP | O23: =IF(ISERROR(VLOOKUP(K23,'KAYIT LİSTESİ'!$B$4:$H$1019,6,0)),"",(VLOOKUP(K23,'KAYIT LİSTESİ'!$B$4:$H$1019,6,0))) -> ÇANAKKALE
A24: 8 | B24: 100M-2-8 | C24: =IF(ISERROR(VLOOKUP(B24,'KAYIT LİSTESİ'!$B$4:$H$1019,2,0)),"",(VLOOKUP(B24,'KAYIT LİSTESİ'!$B$4:$H$1019,2,0))) -> 503 | D24: =IF(ISERROR(VLOOKUP(B24,'KAYIT LİSTESİ'!$B$4:$H$1019,4,0)),"",(VLOOKUP(B24,'KAYIT LİSTESİ'!$B$4:$H$1019,4,0))) -> 2000-06-02 | E24: =IF(ISERROR(VLOOKUP(B24,'KAYIT LİSTESİ'!$B$4:$H$1019,5,0)),"",(VLOOKUP(B24,'KAYIT LİSTESİ'!$B$4:$H$1019,5,0))) -> KUBİLAY TOK | F24: =IF(ISERROR(VLOOKUP(B24,'KAYIT LİSTESİ'!$B$4:$H$1019,6,0)),"",(VLOOKUP(B24,'KAYIT LİSTESİ'!$B$4:$H$1019,6,0))) -> KKTC | I24: 18 | J24: 8 | K24: 400M-2-8 | L24: =IF(ISERROR(VLOOKUP(K24,'KAYIT LİSTESİ'!$B$4:$H$1019,2,0)),"",(VLOOKUP(K24,'KAYIT LİSTESİ'!$B$4:$H$1019,2,0))) ->  | M24: =IF(ISERROR(VLOOKUP(K24,'KAYIT LİSTESİ'!$B$4:$H$1019,4,0)),"",(VLOOKUP(K24,'KAYIT LİSTESİ'!$B$4:$H$1019,4,0))) ->  | N24: =IF(ISERROR(VLOOKUP(K24,'KAYIT LİSTESİ'!$B$4:$H$1019,5,0)),"",(VLOOKUP(K24,'KAYIT LİSTESİ'!$B$4:$H$1019,5,0))) ->  | O24: =IF(ISERROR(VLOOKUP(K24,'KAYIT LİSTESİ'!$B$4:$H$1019,6,0)),"",(VLOOKUP(K24,'KAYIT LİSTESİ'!$B$4:$H$1019,6,0))) -> 
A25: 3. SERİ | I25: 19 | J25: 3. SERİ
A26: Sıra No | B26: Formül | C26: Göğüs No | D26: Doğum Tarihi | E26: Adı ve Soyadı | F26: Okulu | G26: Start Kontrol | I26: 20 | J26: Sıra No | K26: Formül | L26: Göğüs No | M26: Doğum Tarihi | N26: Adı ve Soyadı | O26: Okulu | P26: Start Kontrol
A27: 1 | B27: 100M-3-1 | C27: =IF(ISERROR(VLOOKUP(B27,'KAYIT LİSTESİ'!$B$4:$H$1019,2,0)),"",(VLOOKUP(B27,'KAYIT LİSTESİ'!$B$4:$H$1019,2,0))) -> 724 | D27: =IF(ISERROR(VLOOKUP(B27,'KAYIT LİSTESİ'!$B$4:$H$1019,4,0)),"",(VLOOKUP(B27,'KAYIT LİSTESİ'!$B$4:$H$1019,4,0))) -> 2000-03-08 | E27: =IF(ISERROR(VLOOKUP(B27,'KAYIT LİSTESİ'!$B$4:$H$1019,5,0)),"",(VLOOKUP(B27,'KAYIT LİSTESİ'!$B$4:$H$1019,5,0))) -> BERKE YAĞIZ ÖZTÜRK | F27: =IF(ISERROR(VLOOKUP(B27,'KAYIT LİSTESİ'!$B$4:$H$1019,6,0)),"",(VLOOKUP(B27,'KAYIT LİSTESİ'!$B$4:$H$1019,6,0))) -> TUNCELİ | I27: 21 | J27: 1 | K27: 400M-3-1 | L27: =IF(ISERROR(VLOOKUP(K27,'KAYIT LİSTESİ'!$B$4:$H$1019,2,0)),"",(VLOOKUP(K27,'KAYIT LİSTESİ'!$B$4:$H$1019,2,0))) -> 319 | M27: =IF(ISERROR(VLOOKUP(K27,'KAYIT LİSTESİ'!$B$4:$H$1019,4,0)),"",(VLOOKUP(K27,'KAYIT LİSTESİ'!$B$4:$H$1019,4,0))) -> 2000-01-10 | N27: =IF(ISERROR(VLOOKUP(K27,'KAYIT LİSTESİ'!$B$4:$H$1019,5,0)),"",(VLOOKUP(K27,'KAYIT LİSTESİ'!$B$4:$H$1019,5,0))) -> AHMET RAMAZAN ESKİN | O27: =IF(ISERROR(VLOOKUP(K27,'KAYIT LİSTESİ'!$B$4:$H$1019,6,0)),"",(VLOOKUP(K27,'KAYIT LİSTESİ'!$B$4:$H$1019,6,0))) -> HATAY
A28: 2 | B28: 100M-3-2 | C28: =IF(ISERROR(VLOOKUP(B28,'KAYIT LİSTESİ'!$B$4:$H$1019,2,0)),"",(VLOOKUP(B28,'KAYIT LİSTESİ'!$B$4:$H$1019,2,0))) -> 660 | D28: =IF(ISERROR(VLOOKUP(B28,'KAYIT LİSTESİ'!$B$4:$H$1019,4,0)),"",(VLOOKUP(B28,'KAYIT LİSTESİ'!$B$4:$H$1019,4,0))) -> 2000-01-15 | E28: =IF(ISERROR(VLOOKUP(B28,'KAYIT LİSTESİ'!$B$4:$H$1019,5,0)),"",(VLOOKUP(B28,'KAYIT LİSTESİ'!$B$4:$H$1019,5,0))) -> OKTAY EREN | F28: =IF(ISERROR(VLOOKUP(B28,'KAYIT LİSTESİ'!$B$4:$H$1019,6,0)),"",(VLOOKUP(B28,'KAYIT LİSTESİ'!$B$4:$H$1019,6,0))) -> SİİRT | I28: 22 | J28: 2 | K28: 400M-3-2 | L28: =IF(ISERROR(VLOOKUP(K28,'KAYIT LİSTESİ'!$B$4:$H$1019,2,0)),"",(VLOOKUP(K28,'KAYIT LİSTESİ'!$B$4:$H$1019,2,0))) -> 321 | M28: =IF(ISERROR(VLOOKUP(K28,'KAYIT LİSTESİ'!$B$4:$H$1019,4,0)),"",(VLOOKUP(K28,'KAYIT LİSTESİ'!$B$4:$H$1019,4,0))) -> 2000-02-11 | N28: =IF(ISERROR(VLOOKUP(K28,'KAYIT LİSTESİ'!$B$4:$H$1019,5,0)),"",(VLOOKUP(K28,'KAYIT LİSTESİ'!$B$4:$H$1019,5,0))) -> OKTAY KESER | O28: =IF(ISERROR(VLOOKUP(K28,'KAYIT LİSTESİ'!$B$4:$H$1019,6,0)),"",(VLOOKUP(K28,'KAYIT LİSTESİ'!$B$4:$H$1019,6,0))) -> HATAY
A29: 3 | B29: 100M-3-3 | C29: =IF(ISERROR(VLOOKUP(B29,'KAYIT LİSTESİ'!$B$4:$H$1019,2,0)),"",(VLOOKUP(B29,'KAYIT LİSTESİ'!$B$4:$H$1019,2,0))) -> 193 | D29: =IF(ISERROR(VLOOKUP(B29,'KAYIT LİSTESİ'!$B$4:$H$1019,4,0)),"",(VLOOKUP(B29,'KAYIT LİSTESİ'!$B$4:$H$1019,4,0))) -> 2000-07-11 | E29: =IF(ISERROR(VLOOKUP(B29,'KAYIT LİSTESİ'!$B$4:$H$1019,5,0)),"",(VLOOKUP(B29,'KAYIT LİSTESİ'!$B$4:$H$1019,5,0))) -> HALİLMERT AKKAŞ | F29: =IF(ISERROR(VLOOKUP(B29,'KAYIT LİSTESİ'!$B$4:$H$1019,6,0)),"",(VLOOKUP(B29,'KAYIT LİSTESİ'!$B$4:$H$1019,6,0))) -> BURDUR | I29: 23 | J29: 3 | K29: 400M-3-3 | L29: =IF(ISERROR(VLOOKUP(K29,'KAYIT LİSTESİ'!$B$4:$H$1019,2,0)),"",(VLOOKUP(K29,'KAYIT LİSTESİ'!$B$4:$H$1019,2,0))) -> 308 | M29: =IF(ISERROR(VLOOKUP(K29,'KAYIT LİSTESİ'!$B$4:$H$1019,4,0)),"",(VLOOKUP(K29,'KAYIT LİSTESİ'!$B$4:$H$1019,4,0))) -> 2000-08-31 | N29: =IF(ISERROR(VLOOKUP(K29,'KAYIT LİSTESİ'!$B$4:$H$1019,5,0)),"",(VLOOKUP(K29,'KAYIT LİSTESİ'!$B$4:$H$1019,5,0))) -> BATUHAN GEDİK | O29: =IF(ISERROR(VLOOKUP(K29,'KAYIT LİSTESİ'!$B$4:$H$1019,6,0)),"",(VLOOKUP(K29,'KAYIT LİSTESİ'!$B$4:$H$1019,6,0))) -> GİRESUN
A30: 4 | B30: 100M-3-4 | C30: =IF(ISERROR(VLOOKUP(B30,'KAYIT LİSTESİ'!$B$4:$H$1019,2,0)),"",(VLOOKUP(B30,'KAYIT LİSTESİ'!$B$4:$H$1019,2,0))) -> 513 | D30: =IF(ISERROR(VLOOKUP(B30,'KAYIT LİSTESİ'!$B$4:$H$1019,4,0)),"",(VLOOKUP(B30,'KAYIT LİSTESİ'!$B$4:$H$1019,4,0))) -> 2000-01-06 | E30: =IF(ISERROR(VLOOKUP(B30,'KAYIT LİSTESİ'!$B$4:$H$1019,5,0)),"",(VLOOKUP(B30,'KAYIT LİSTESİ'!$B$4:$H$1019,5,0))) -> EMRE ÇETİNKAYA | F30: =IF(ISERROR(VLOOKUP(B30,'KAYIT LİSTESİ'!$B$4:$H$1019,6,0)),"",(VLOOKUP(B30,'KAYIT LİSTESİ'!$B$4:$H$1019,6,0))) -> KOCAELİ | I30: 24 | J30: 4 | K30: 400M-3-4 | L30: =IF(ISERROR(VLOOKUP(K30,'KAYIT LİSTESİ'!$B$4:$H$1019,2,0)),"",(VLOOKUP(K30,'KAYIT LİSTESİ'!$B$4:$H$1019,2,0))) -> 355 | M30: =IF(ISERROR(VLOOKUP(K30,'KAYIT LİSTESİ'!$B$4:$H$1019,4,0)),"",(VLOOKUP(K30,'KAYIT LİSTESİ'!$B$4:$H$1019,4,0))) -> 2000-02-05 | N30: =IF(ISERROR(VLOOKUP(K30,'KAYIT LİSTESİ'!$B$4:$H$1019,5,0)),"",(VLOOKUP(K30,'KAYIT LİSTESİ'!$B$4:$H$1019,5,0))) -> ŞERİF DOĞAN | O30: =IF(ISERROR(VLOOKUP(K30,'KAYIT LİSTESİ'!$B$4:$H$1019,6,0)),"",(VLOOKUP(K30,'KAYIT LİSTESİ'!$B$4:$H$1019,6,0))) -> ISPARTA
A31: 5 | B31: 100M-3-5 | C31: =IF(ISERROR(VLOOKUP(B31,'KAYIT LİSTESİ'!$B$4:$H$1019,2,0)),"",(VLOOKUP(B31,'KAYIT LİSTESİ'!$B$4:$H$1019,2,0))) -> 253 | D31: =IF(ISERROR(VLOOKUP(B31,'KAYIT LİSTESİ'!$B$4:$H$1019,4,0)),"",(VLOOKUP(B31,'KAYIT LİSTESİ'!$B$4:$H$1019,4,0))) -> 2000-08-12 | E31: =IF(ISERROR(VLOOKUP(B31,'KAYIT LİSTESİ'!$B$4:$H$1019,5,0)),"",(VLOOKUP(B31,'KAYIT LİSTESİ'!$B$4:$H$1019,5,0))) -> ÇAYAN ENİŞ | F31: =IF(ISERROR(VLOOKUP(B31,'KAYIT LİSTESİ'!$B$4:$H$1019,6,0)),"",(VLOOKUP(B31,'KAYIT LİSTESİ'!$B$4:$H$1019,6,0))) -> ERZİNCAN | I31: 25 | J31: 5 | K31: 400M-3-5 | L31: =IF(ISERROR(VLOOKUP(K31,'KAYIT LİSTESİ'!$B$4:$H$1019,2,0)),"",(VLOOKUP(K31,'KAYIT LİSTESİ'!$B$4:$H$1019,2,0))) -> 46 | M31: =IF(ISERROR(VLOOKUP(K31,'KAYIT LİSTESİ'!$B$4:$H$1019,4,0)),"",(VLOOKUP(K31,'KAYIT LİSTESİ'!$B$4:$H$1019,4,0))) -> 2000-09-25 | N31: =IF(ISERROR(VLOOKUP(K31,'KAYIT LİSTESİ'!$B$4:$H$1019,5,0)),"",(VLOOKUP(K31,'KAYIT LİSTESİ'!$B$4:$H$1019,5,0))) -> ŞAFAK AY | O31: =IF(ISERROR(VLOOKUP(K31,'KAYIT LİSTESİ'!$B$4:$H$1019,6,0)),"",(VLOOKUP(K31,'KAYIT LİSTESİ'!$B$4:$H$1019,6,0))) -> AMASYA
A32: 6 | B32: 100M-3-6 | C32: =IF(ISERROR(VLOOKUP(B32,'KAYIT LİSTESİ'!$B$4:$H$1019,2,0)),"",(VLOOKUP(B32,'KAYIT LİSTESİ'!$B$4:$H$1019,2,0))) -> 535 | D32: =IF(ISERROR(VLOOKUP(B32,'KAYIT LİSTESİ'!$B$4:$H$1019,4,0)),"",(VLOOKUP(B32,'KAYIT LİSTESİ'!$B$4:$H$1019,4,0))) -> 2000-05-20 | E32: =IF(ISERROR(VLOOKUP(B32,'KAYIT LİSTESİ'!$B$4:$H$1019,5,0)),"",(VLOOKUP(B32,'KAYIT LİSTESİ'!$B$4:$H$1019,5,0))) -> BURAK ESKİL | F32: =IF(ISERROR(VLOOKUP(B32,'KAYIT LİSTESİ'!$B$4:$H$1019,6,0)),"",(VLOOKUP(B32,'KAYIT LİSTESİ'!$B$4:$H$1019,6,0))) -> KONYA | J32: 6 | K32: 400M-3-6 | L32: =IF(ISERROR(VLOOKUP(K32,'KAYIT LİSTESİ'!$B$4:$H$1019,2,0)),"",(VLOOKUP(K32,'KAYIT LİSTESİ'!$B$4:$H$1019,2,0))) -> 47 | M32: =IF(ISERROR(VLOOKUP(K32,'KAYIT LİSTESİ'!$B$4:$H$1019,4,0)),"",(VLOOKUP(K32,'KAYIT LİSTESİ'!$B$4:$H$1019,4,0))) -> 2000-03-24 | N32: =IF(ISERROR(VLOOKUP(K32,'KAYIT LİSTESİ'!$B$4:$H$1019,5,0)),"",(VLOOKUP(K32,'KAYIT LİSTESİ'!$B$4:$H$1019,5,0))) -> EMRE DEMİR | O32: =IF(ISERROR(VLOOKUP(K32,'KAYIT LİSTESİ'!$B$4:$H$1019,6,0)),"",(VLOOKUP(K32,'KAYIT LİSTESİ'!$B$4:$H$1019,6,0))) -> AMASYA
A33: 7 | B33: 100M-3-7 | C33: =IF(ISERROR(VLOOKUP(B33,'KAYIT LİSTESİ'!$B$4:$H$1019,2,0)),"",(VLOOKUP(B33,'KAYIT LİSTESİ'!$B$4:$H$1019,2,0))) -> 482 | D33: =IF(ISERROR(VLOOKUP(B33,'KAYIT LİSTESİ'!$B$4:$H$1019,4,0)),"",(VLOOKUP(B33,'KAYIT LİSTESİ'!$B$4:$H$1019,4,0))) -> 2000-09-10 | E33: =IF(ISERROR(VLOOKUP(B33,'KAYIT LİSTESİ'!$B$4:$H$1019,5,0)),"",(VLOOKUP(B33,'KAYIT LİSTESİ'!$B$4:$H$1019,5,0))) -> BERAT YEŞİLYURT | F33: =IF(ISERROR(VLOOKUP(B33,'KAYIT LİSTESİ'!$B$4:$H$1019,6,0)),"",(VLOOKUP(B33,'KAYIT LİSTESİ'!$B$4:$H$1019,6,0))) -> KIRIKKALE | J33: 7 | K33: 400M-3-7 | L33: =IF(ISERROR(VLOOKUP(K33,'KAYIT LİSTESİ'!$B$4:$H$1019,2,0)),"",(VLOOKUP(K33,'KAYIT LİSTESİ'!$B$4:$H$1019,2,0))) -> 316 | M33: =IF(ISERROR(VLOOKUP(K33,'KAYIT LİSTESİ'!$B$4:$H$1019,4,0)),"",(VLOOKUP(K33,'KAYIT LİSTESİ'!$B$4:$H$1019,4,0))) -> 2000-01-30 | N33: =IF(ISERROR(VLOOKUP(K33,'KAYIT LİSTESİ'!$B$4:$H$1019,5,0)),"",(VLOOKUP(K33,'KAYIT LİSTESİ'!$B$4:$H$1019,5,0))) -> YUSUF ASLAN | O33: =IF(ISERROR(VLOOKUP(K33,'KAYIT LİSTESİ'!$B$4:$H$1019,6,0)),"",(VLOOKUP(K33,'KAYIT LİSTESİ'!$B$4:$H$1019,6,0))) -> HATAY
A34: 8 | B34: 100M-3-8 | C34: =IF(ISERROR(VLOOKUP(B34,'KAYIT LİSTESİ'!$B$4:$H$1019,2,0)),"",(VLOOKUP(B34,'KAYIT LİSTESİ'!$B$4:$H$1019,2,0))) -> 224 | D34: =IF(ISERROR(VLOOKUP(B34,'KAYIT LİSTESİ'!$B$4:$H$1019,4,0)),"",(VLOOKUP(B34,'KAYIT LİSTESİ'!$B$4:$H$1019,4,0))) -> 2000-01-01 | E34: =IF(ISERROR(VLOOKUP(B34,'KAYIT LİSTESİ'!$B$4:$H$1019,5,0)),"",(VLOOKUP(B34,'KAYIT LİSTESİ'!$B$4:$H$1019,5,0))) -> BEHİÇ CAN ÜNAL | F34: =IF(ISERROR(VLOOKUP(B34,'KAYIT LİSTESİ'!$B$4:$H$1019,6,0)),"",(VLOOKUP(B34,'KAYIT LİSTESİ'!$B$4:$H$1019,6,0))) -> DENİZLİ | J34: 8 | K34: 400M-3-8 | L34: =IF(ISERROR(VLOOKUP(K34,'KAYIT LİSTESİ'!$B$4:$H$1019,2,0)),"",(VLOOKUP(K34,'KAYIT LİSTESİ'!$B$4:$H$1019,2,0))) ->  | M34: =IF(ISERROR(VLOOKUP(K34,'KAYIT LİSTESİ'!$B$4:$H$1019,4,0)),"",(VLOOKUP(K34,'KAYIT LİSTESİ'!$B$4:$H$1019,4,0))) ->  | N34: =IF(ISERROR(VLOOKUP(K34,'KAYIT LİSTESİ'!$B$4:$H$1019,5,0)),"",(VLOOKUP(K34,'KAYIT LİSTESİ'!$B$4:$H$1019,5,0))) ->  | O34: =IF(ISERROR(VLOOKUP(K34,'KAYIT LİSTESİ'!$B$4:$H$1019,6,0)),"",(VLOOKUP(K34,'KAYIT LİSTESİ'!$B$4:$H$1019,6,0))) -> 
A35: 4. SERİ | J35: 4. SERİ
A36: Sıra No | B36: Formül | C36: Göğüs No | D36: Doğum Tarihi | E36: Adı ve Soyadı | F36: Okulu | G36: Start Kontrol | J36: Sıra No | K36: Formül | L36: Göğüs No | M36: Doğum Tarihi | N36: Adı ve Soyadı | O36: Okulu | P36: Start Kontrol
A37: 1 | B37: 100M-4-1 | C37: =IF(ISERROR(VLOOKUP(B37,'KAYIT LİSTESİ'!$B$4:$H$1019,2,0)),"",(VLOOKUP(B37,'KAYIT LİSTESİ'!$B$4:$H$1019,2,0))) -> 441 | D37: =IF(ISERROR(VLOOKUP(B37,'KAYIT LİSTESİ'!$B$4:$H$1019,4,0)),"",(VLOOKUP(B37,'KAYIT LİSTESİ'!$B$4:$H$1019,4,0))) -> 2000-02-05 | E37: =IF(ISERROR(VLOOKUP(B37,'KAYIT LİSTESİ'!$B$4:$H$1019,5,0)),"",(VLOOKUP(B37,'KAYIT LİSTESİ'!$B$4:$H$1019,5,0))) -> ENES ŞUMNULU | F37: =IF(ISERROR(VLOOKUP(B37,'KAYIT LİSTESİ'!$B$4:$H$1019,6,0)),"",(VLOOKUP(B37,'KAYIT LİSTESİ'!$B$4:$H$1019,6,0))) -> İZMİR | J37: 1 | K37: 400M-4-1 | L37: =IF(ISERROR(VLOOKUP(K37,'KAYIT LİSTESİ'!$B$4:$H$1019,2,0)),"",(VLOOKUP(K37,'KAYIT LİSTESİ'!$B$4:$H$1019,2,0))) ->  | M37: =IF(ISERROR(VLOOKUP(K37,'KAYIT LİSTESİ'!$B$4:$H$1019,4,0)),"",(VLOOKUP(K37,'KAYIT LİSTESİ'!$B$4:$H$1019,4,0))) ->  | N37: =IF(ISERROR(VLOOKUP(K37,'KAYIT LİSTESİ'!$B$4:$H$1019,5,0)),"",(VLOOKUP(K37,'KAYIT LİSTESİ'!$B$4:$H$1019,5,0))) ->  | O37: =IF(ISERROR(VLOOKUP(K37,'KAYIT LİSTESİ'!$B$4:$H$1019,6,0)),"",(VLOOKUP(K37,'KAYIT LİSTESİ'!$B$4:$H$1019,6,0))) -> 
A38: 2 | B38: 100M-4-2 | C38: =IF(ISERROR(VLOOKUP(B38,'KAYIT LİSTESİ'!$B$4:$H$1019,2,0)),"",(VLOOKUP(B38,'KAYIT LİSTESİ'!$B$4:$H$1019,2,0))) -> 163 | D38: =IF(ISERROR(VLOOKUP(B38,'KAYIT LİSTESİ'!$B$4:$H$1019,4,0)),"",(VLOOKUP(B38,'KAYIT LİSTESİ'!$B$4:$H$1019,4,0))) -> 2000-01-01 | E38: =IF(ISERROR(VLOOKUP(B38,'KAYIT LİSTESİ'!$B$4:$H$1019,5,0)),"",(VLOOKUP(B38,'KAYIT LİSTESİ'!$B$4:$H$1019,5,0))) -> ANIL ÖZTİRYAKİ | F38: =IF(ISERROR(VLOOKUP(B38,'KAYIT LİSTESİ'!$B$4:$H$1019,6,0)),"",(VLOOKUP(B38,'KAYIT LİSTESİ'!$B$4:$H$1019,6,0))) -> BİLECİK | J38: 2 | K38: 400M-4-2 | L38: =IF(ISERROR(VLOOKUP(K38,'KAYIT LİSTESİ'!$B$4:$H$1019,2,0)),"",(VLOOKUP(K38,'KAYIT LİSTESİ'!$B$4:$H$1019,2,0))) ->  | M38: =IF(ISERROR(VLOOKUP(K38,'KAYIT LİSTESİ'!$B$4:$H$1019,4,0)),"",(VLOOKUP(K38,'KAYIT LİSTESİ'!$B$4:$H$1019,4,0))) ->  | N38: =IF(ISERROR(VLOOKUP(K38,'KAYIT LİSTESİ'!$B$4:$H$1019,5,0)),"",(VLOOKUP(K38,'KAYIT LİSTESİ'!$B$4:$H$1019,5,0))) ->  | O38: =IF(ISERROR(VLOOKUP(K38,'KAYIT LİSTESİ'!$B$4:$H$1019,6,0)),"",(VLOOKUP(K38,'KAYIT LİSTESİ'!$B$4:$H$1019,6,0))) -> 
A39: 3 | B39: 100M-4-3 | C39: =IF(ISERROR(VLOOKUP(B39,'KAYIT LİSTESİ'!$B$4:$H$1019,2,0)),"",(VLOOKUP(B39,'KAYIT LİSTESİ'!$B$4:$H$1019,2,0))) -> 225 | D39: =IF(ISERROR(VLOOKUP(B39,'KAYIT LİSTESİ'!$B$4:$H$1019,4,0)),"",(VLOOKUP(B39,'KAYIT LİSTESİ'!$B$4:$H$1019,4,0))) -> 2000-01-01 | E39: =IF(ISERROR(VLOOKUP(B39,'KAYIT LİSTESİ'!$B$4:$H$1019,5,0)),"",(VLOOKUP(B39,'KAYIT LİSTESİ'!$B$4:$H$1019,5,0))) -> ÇAĞRI BOZKAYA | F39: =IF(ISERROR(VLOOKUP(B39,'KAYIT LİSTESİ'!$B$4:$H$1019,6,0)),"",(VLOOKUP(B39,'KAYIT LİSTESİ'!$B$4:$H$1019,6,0))) -> DENİZLİ | J39: 3 | K39: 400M-4-3 | L39: =IF(ISERROR(VLOOKUP(K39,'KAYIT LİSTESİ'!$B$4:$H$1019,2,0)),"",(VLOOKUP(K39,'KAYIT LİSTESİ'!$B$4:$H$1019,2,0))) ->  | M39: =IF(ISERROR(VLOOKUP(K39,'KAYIT LİSTESİ'!$B$4:$H$1019,4,0)),"",(VLOOKUP(K39,'KAYIT LİSTESİ'!$B$4:$H$1019,4,0))) ->  | N39: =IF(ISERROR(VLOOKUP(K39,'KAYIT LİSTESİ'!$B$4:$H$1019,5,0)),"",(VLOOKUP(K39,'KAYIT LİSTESİ'!$B$4:$H$1019,5,0))) ->  | O39: =IF(ISERROR(VLOOKUP(K39,'KAYIT LİSTESİ'!$B$4:$H$1019,6,0)),"",(VLOOKUP(K39,'KAYIT LİSTESİ'!$B$4:$H$1019,6,0))) -> 
A40: 4 | B40: 100M-4-4 | C40: =IF(ISERROR(VLOOKUP(B40,'KAYIT LİSTESİ'!$B$4:$H$1019,2,0)),"",(VLOOKUP(B40,'KAYIT LİSTESİ'!$B$4:$H$1019,2,0))) -> 191 | D40: =IF(ISERROR(VLOOKUP(B40,'KAYIT LİSTESİ'!$B$4:$H$1019,4,0)),"",(VLOOKUP(B40,'KAYIT LİSTESİ'!$B$4:$H$1019,4,0))) -> 2000-03-21 | E40: =IF(ISERROR(VLOOKUP(B40,'KAYIT LİSTESİ'!$B$4:$H$1019,5,0)),"",(VLOOKUP(B40,'KAYIT LİSTESİ'!$B$4:$H$1019,5,0))) -> EGE MELEK | F40: =IF(ISERROR(VLOOKUP(B40,'KAYIT LİSTESİ'!$B$4:$H$1019,6,0)),"",(VLOOKUP(B40,'KAYIT LİSTESİ'!$B$4:$H$1019,6,0))) -> BURDUR | J40: 4 | K40: 400M-4-4 | L40: =IF(ISERROR(VLOOKUP(K40,'KAYIT LİSTESİ'!$B$4:$H$1019,2,0)),"",(VLOOKUP(K40,'KAYIT LİSTESİ'!$B$4:$H$1019,2,0))) ->  | M40: =IF(ISERROR(VLOOKUP(K40,'KAYIT LİSTESİ'!$B$4:$H$1019,4,0)),"",(VLOOKUP(K40,'KAYIT LİSTESİ'!$B$4:$H$1019,4,0))) ->  | N40: =IF(ISERROR(VLOOKUP(K40,'KAYIT LİSTESİ'!$B$4:$H$1019,5,0)),"",(VLOOKUP(K40,'KAYIT LİSTESİ'!$B$4:$H$1019,5,0))) ->  | O40: =IF(ISERROR(VLOOKUP(K40,'KAYIT LİSTESİ'!$B$4:$H$1019,6,0)),"",(VLOOKUP(K40,'KAYIT LİSTESİ'!$B$4:$H$1019,6,0))) -> 
A41: 5 | B41: 100M-4-5 | C41: =IF(ISERROR(VLOOKUP(B41,'KAYIT LİSTESİ'!$B$4:$H$1019,2,0)),"",(VLOOKUP(B41,'KAYIT LİSTESİ'!$B$4:$H$1019,2,0))) -> 161 | D41: =IF(ISERROR(VLOOKUP(B41,'KAYIT LİSTESİ'!$B$4:$H$1019,4,0)),"",(VLOOKUP(B41,'KAYIT LİSTESİ'!$B$4:$H$1019,4,0))) -> 2000-01-01 | E41: =IF(ISERROR(VLOOKUP(B41,'KAYIT LİSTESİ'!$B$4:$H$1019,5,0)),"",(VLOOKUP(B41,'KAYIT LİSTESİ'!$B$4:$H$1019,5,0))) -> ALPEREN KAMALI | F41: =IF(ISERROR(VLOOKUP(B41,'KAYIT LİSTESİ'!$B$4:$H$1019,6,0)),"",(VLOOKUP(B41,'KAYIT LİSTESİ'!$B$4:$H$1019,6,0))) -> BİLECİK | J41: 5 | K41: 400M-4-5 | L41: =IF(ISERROR(VLOOKUP(K41,'KAYIT LİSTESİ'!$B$4:$H$1019,2,0)),"",(VLOOKUP(K41,'KAYIT LİSTESİ'!$B$4:$H$1019,2,0))) ->  | M41: =IF(ISERROR(VLOOKUP(K41,'KAYIT LİSTESİ'!$B$4:$H$1019,4,0)),"",(VLOOKUP(K41,'KAYIT LİSTESİ'!$B$4:$H$1019,4,0))) ->  | N41: =IF(ISERROR(VLOOKUP(K41,'KAYIT LİSTESİ'!$B$4:$H$1019,5,0)),"",(VLOOKUP(K41,'KAYIT LİSTESİ'!$B$4:$H$1019,5,0))) ->  | O41: =IF(ISERROR(VLOOKUP(K41,'KAYIT LİSTESİ'!$B$4:$H$1019,6,0)),"",(VLOOKUP(K41,'KAYIT LİSTESİ'!$B$4:$H$1019,6,0))) -> 
A42: 6 | B42: 100M-4-6 | C42: =IF(ISERROR(VLOOKUP(B42,'KAYIT LİSTESİ'!$B$4:$H$1019,2,0)),"",(VLOOKUP(B42,'KAYIT LİSTESİ'!$B$4:$H$1019,2,0))) -> 239 | D42: =IF(ISERROR(VLOOKUP(B42,'KAYIT LİSTESİ'!$B$4:$H$1019,4,0)),"",(VLOOKUP(B42,'KAYIT LİSTESİ'!$B$4:$H$1019,4,0))) -> 2000-01-01 | E42: =IF(ISERROR(VLOOKUP(B42,'KAYIT LİSTESİ'!$B$4:$H$1019,5,0)),"",(VLOOKUP(B42,'KAYIT LİSTESİ'!$B$4:$H$1019,5,0))) -> ENES CUŞA | F42: =IF(ISERROR(VLOOKUP(B42,'KAYIT LİSTESİ'!$B$4:$H$1019,6,0)),"",(VLOOKUP(B42,'KAYIT LİSTESİ'!$B$4:$H$1019,6,0))) -> DİYARBAKIR | J42: 6 | K42: 400M-4-6 | L42: =IF(ISERROR(VLOOKUP(K42,'KAYIT LİSTESİ'!$B$4:$H$1019,2,0)),"",(VLOOKUP(K42,'KAYIT LİSTESİ'!$B$4:$H$1019,2,0))) ->  | M42: =IF(ISERROR(VLOOKUP(K42,'KAYIT LİSTESİ'!$B$4:$H$1019,4,0)),"",(VLOOKUP(K42,'KAYIT LİSTESİ'!$B$4:$H$1019,4,0))) ->  | N42: =IF(ISERROR(VLOOKUP(K42,'KAYIT LİSTESİ'!$B$4:$H$1019,5,0)),"",(VLOOKUP(K42,'KAYIT LİSTESİ'!$B$4:$H$1019,5,0))) ->  | O42: =IF(ISERROR(VLOOKUP(K42,'KAYIT LİSTESİ'!$B$4:$H$1019,6,0)),"",(VLOOKUP(K42,'KAYIT LİSTESİ'!$B$4:$H$1019,6,0))) -> 
A43: 7 | B43: 100M-4-7 | C43: =IF(ISERROR(VLOOKUP(B43,'KAYIT LİSTESİ'!$B$4:$H$1019,2,0)),"",(VLOOKUP(B43,'KAYIT LİSTESİ'!$B$4:$H$1019,2,0))) -> 442 | D43: =IF(ISERROR(VLOOKUP(B43,'KAYIT LİSTESİ'!$B$4:$H$1019,4,0)),"",(VLOOKUP(B43,'KAYIT LİSTESİ'!$B$4:$H$1019,4,0))) -> 2000-04-28 | E43: =IF(ISERROR(VLOOKUP(B43,'KAYIT LİSTESİ'!$B$4:$H$1019,5,0)),"",(VLOOKUP(B43,'KAYIT LİSTESİ'!$B$4:$H$1019,5,0))) -> UMUT ACET | F43: =IF(ISERROR(VLOOKUP(B43,'KAYIT LİSTESİ'!$B$4:$H$1019,6,0)),"",(VLOOKUP(B43,'KAYIT LİSTESİ'!$B$4:$H$1019,6,0))) -> İZMİR | J43: 7 | K43: 400M-4-7 | L43: =IF(ISERROR(VLOOKUP(K43,'KAYIT LİSTESİ'!$B$4:$H$1019,2,0)),"",(VLOOKUP(K43,'KAYIT LİSTESİ'!$B$4:$H$1019,2,0))) ->  | M43: =IF(ISERROR(VLOOKUP(K43,'KAYIT LİSTESİ'!$B$4:$H$1019,4,0)),"",(VLOOKUP(K43,'KAYIT LİSTESİ'!$B$4:$H$1019,4,0))) ->  | N43: =IF(ISERROR(VLOOKUP(K43,'KAYIT LİSTESİ'!$B$4:$H$1019,5,0)),"",(VLOOKUP(K43,'KAYIT LİSTESİ'!$B$4:$H$1019,5,0))) ->  | O43: =IF(ISERROR(VLOOKUP(K43,'KAYIT LİSTESİ'!$B$4:$H$1019,6,0)),"",(VLOOKUP(K43,'KAYIT LİSTESİ'!$B$4:$H$1019,6,0))) -> 
A44: 8 | B44: 100M-4-8 | C44: =IF(ISERROR(VLOOKUP(B44,'KAYIT LİSTESİ'!$B$4:$H$1019,2,0)),"",(VLOOKUP(B44,'KAYIT LİSTESİ'!$B$4:$H$1019,2,0))) -> 569 | D44: =IF(ISERROR(VLOOKUP(B44,'KAYIT LİSTESİ'!$B$4:$H$1019,4,0)),"",(VLOOKUP(B44,'KAYIT LİSTESİ'!$B$4:$H$1019,4,0))) -> 2000-01-01 | E44: =IF(ISERROR(VLOOKUP(B44,'KAYIT LİSTESİ'!$B$4:$H$1019,5,0)),"",(VLOOKUP(B44,'KAYIT LİSTESİ'!$B$4:$H$1019,5,0))) -> YUSUF ŞAŞMAZ | F44: =IF(ISERROR(VLOOKUP(B44,'KAYIT LİSTESİ'!$B$4:$H$1019,6,0)),"",(VLOOKUP(B44,'KAYIT LİSTESİ'!$B$4:$H$1019,6,0))) -> MUĞLA | J44: 8 | K44: 400M-4-8 | L44: =IF(ISERROR(VLOOKUP(K44,'KAYIT LİSTESİ'!$B$4:$H$1019,2,0)),"",(VLOOKUP(K44,'KAYIT LİSTESİ'!$B$4:$H$1019,2,0))) ->  | M44: =IF(ISERROR(VLOOKUP(K44,'KAYIT LİSTESİ'!$B$4:$H$1019,4,0)),"",(VLOOKUP(K44,'KAYIT LİSTESİ'!$B$4:$H$1019,4,0))) ->  | N44: =IF(ISERROR(VLOOKUP(K44,'KAYIT LİSTESİ'!$B$4:$H$1019,5,0)),"",(VLOOKUP(K44,'KAYIT LİSTESİ'!$B$4:$H$1019,5,0))) ->  | O44: =IF(ISERROR(VLOOKUP(K44,'KAYIT LİSTESİ'!$B$4:$H$1019,6,0)),"",(VLOOKUP(K44,'KAYIT LİSTESİ'!$B$4:$H$1019,6,0))) -> 
A45: 110 METRE ENGELLİ | J45: YÜKSEK ATLAMA
A46: 1. SERİ | J46: SIRA NO | L46: GÖĞÜS NO | M46: DOĞUM TARİHİ | N46: ADI VE SOYADI | O46: OKULU | P46: Start Kontrol
A47: Sıra No | B47: Formül | C47: Göğüs No | D47: Doğum Tarihi | E47: Adı ve Soyadı | F47: Okulu | G47: Start Kontrol
A48: 1 | B48: 110M.ENG-1-1 | C48: =IF(ISERROR(VLOOKUP(B48,'KAYIT LİSTESİ'!$B$4:$H$1019,2,0)),"",(VLOOKUP(B48,'KAYIT LİSTESİ'!$B$4:$H$1019,2,0))) ->  | D48: =IF(ISERROR(VLOOKUP(B48,'KAYIT LİSTESİ'!$B$4:$H$1019,4,0)),"",(VLOOKUP(B48,'KAYIT LİSTESİ'!$B$4:$H$1019,4,0))) ->  | E48: =IF(ISERROR(VLOOKUP(B48,'KAYIT LİSTESİ'!$B$4:$H$1019,5,0)),"",(VLOOKUP(B48,'KAYIT LİSTESİ'!$B$4:$H$1019,5,0))) ->  | F48: =IF(ISERROR(VLOOKUP(B48,'KAYIT LİSTESİ'!$B$4:$H$1019,6,0)),"",(VLOOKUP(B48,'KAYIT LİSTESİ'!$B$4:$H$1019,6,0))) ->  | J48: 1 | K48: YÜKSEK-1 | L48: =IF(ISERROR(VLOOKUP(K48,'KAYIT LİSTESİ'!$B$4:$H$1019,2,0)),"",(VLOOKUP(K48,'KAYIT LİSTESİ'!$B$4:$H$1019,2,0))) -> 307 | M48: =IF(ISERROR(VLOOKUP(K48,'KAYIT LİSTESİ'!$B$4:$H$1019,4,0)),"",(VLOOKUP(K48,'KAYIT LİSTESİ'!$B$4:$H$1019,4,0))) -> 2000-03-05 | N48: =IF(ISERROR(VLOOKUP(K48,'KAYIT LİSTESİ'!$B$4:$H$1019,5,0)),"",(VLOOKUP(K48,'KAYIT LİSTESİ'!$B$4:$H$1019,5,0))) -> SEDAT TUNAHAN TORUN | O48: =IF(ISERROR(VLOOKUP(K48,'KAYIT LİSTESİ'!$B$4:$H$1019,6,0)),"",(VLOOKUP(K48,'KAYIT LİSTESİ'!$B$4:$H$1019,6,0))) -> GİRESUN
A49: 2 | B49: 110M.ENG-1-2 | C49: =IF(ISERROR(VLOOKUP(B49,'KAYIT LİSTESİ'!$B$4:$H$1019,2,0)),"",(VLOOKUP(B49,'KAYIT LİSTESİ'!$B$4:$H$1019,2,0))) ->  | D49: =IF(ISERROR(VLOOKUP(B49,'KAYIT LİSTESİ'!$B$4:$H$1019,4,0)),"",(VLOOKUP(B49,'KAYIT LİSTESİ'!$B$4:$H$1019,4,0))) ->  | E49: =IF(ISERROR(VLOOKUP(B49,'KAYIT LİSTESİ'!$B$4:$H$1019,5,0)),"",(VLOOKUP(B49,'KAYIT LİSTESİ'!$B$4:$H$1019,5,0))) ->  | F49: =IF(ISERROR(VLOOKUP(B49,'KAYIT LİSTESİ'!$B$4:$H$1019,6,0)),"",(VLOOKUP(B49,'KAYIT LİSTESİ'!$B$4:$H$1019,6,0))) ->  | J49: 2 | K49: YÜKSEK-2 | L49: =IF(ISERROR(VLOOKUP(K49,'KAYIT LİSTESİ'!$B$4:$H$1019,2,0)),"",(VLOOKUP(K49,'KAYIT LİSTESİ'!$B$4:$H$1019,2,0))) -> 593 | M49: =IF(ISERROR(VLOOKUP(K49,'KAYIT LİSTESİ'!$B$4:$H$1019,4,0)),"",(VLOOKUP(K49,'KAYIT LİSTESİ'!$B$4:$H$1019,4,0))) -> 2000-09-12 | N49: =IF(ISERROR(VLOOKUP(K49,'KAYIT LİSTESİ'!$B$4:$H$1019,5,0)),"",(VLOOKUP(K49,'KAYIT LİSTESİ'!$B$4:$H$1019,5,0))) -> MUSTAFA ÜNLÜTÜRK | O49: =IF(ISERROR(VLOOKUP(K49,'KAYIT LİSTESİ'!$B$4:$H$1019,6,0)),"",(VLOOKUP(K49,'KAYIT LİSTESİ'!$B$4:$H$1019,6,0))) -> NEVŞEHİR
A50: 3 | B50: 110M.ENG-1-3 | C50: =IF(ISERROR(VLOOKUP(B50,'KAYIT LİSTESİ'!$B$4:$H$1019,2,0)),"",(VLOOKUP(B50,'KAYIT LİSTESİ'!$B$4:$H$1019,2,0))) ->  | D50: =IF(ISERROR(VLOOKUP(B50,'KAYIT LİSTESİ'!$B$4:$H$1019,4,0)),"",(VLOOKUP(B50,'KAYIT LİSTESİ'!$B$4:$H$1019,4,0))) ->  | E50: =IF(ISERROR(VLOOKUP(B50,'KAYIT LİSTESİ'!$B$4:$H$1019,5,0)),"",(VLOOKUP(B50,'KAYIT LİSTESİ'!$B$4:$H$1019,5,0))) ->  | F50: =IF(ISERROR(VLOOKUP(B50,'KAYIT LİSTESİ'!$B$4:$H$1019,6,0)),"",(VLOOKUP(B50,'KAYIT LİSTESİ'!$B$4:$H$1019,6,0))) ->  | J50: 3 | K50: YÜKSEK-3 | L50: =IF(ISERROR(VLOOKUP(K50,'KAYIT LİSTESİ'!$B$4:$H$1019,2,0)),"",(VLOOKUP(K50,'KAYIT LİSTESİ'!$B$4:$H$1019,2,0))) -> 618 | M50: =IF(ISERROR(VLOOKUP(K50,'KAYIT LİSTESİ'!$B$4:$H$1019,4,0)),"",(VLOOKUP(K50,'KAYIT LİSTESİ'!$B$4:$H$1019,4,0))) -> 2000-04-12 | N50: =IF(ISERROR(VLOOKUP(K50,'KAYIT LİSTESİ'!$B$4:$H$1019,5,0)),"",(VLOOKUP(K50,'KAYIT LİSTESİ'!$B$4:$H$1019,5,0))) -> GÖKTUĞ ZENCİR | O50: =IF(ISERROR(VLOOKUP(K50,'KAYIT LİSTESİ'!$B$4:$H$1019,6,0)),"",(VLOOKUP(K50,'KAYIT LİSTESİ'!$B$4:$H$1019,6,0))) -> OSMANİYE
A51: 4 | B51: 110M.ENG-1-4 | C51: =IF(ISERROR(VLOOKUP(B51,'KAYIT LİSTESİ'!$B$4:$H$1019,2,0)),"",(VLOOKUP(B51,'KAYIT LİSTESİ'!$B$4:$H$1019,2,0))) ->  | D51: =IF(ISERROR(VLOOKUP(B51,'KAYIT LİSTESİ'!$B$4:$H$1019,4,0)),"",(VLOOKUP(B51,'KAYIT LİSTESİ'!$B$4:$H$1019,4,0))) ->  | E51: =IF(ISERROR(VLOOKUP(B51,'KAYIT LİSTESİ'!$B$4:$H$1019,5,0)),"",(VLOOKUP(B51,'KAYIT LİSTESİ'!$B$4:$H$1019,5,0))) ->  | F51: =IF(ISERROR(VLOOKUP(B51,'KAYIT LİSTESİ'!$B$4:$H$1019,6,0)),"",(VLOOKUP(B51,'KAYIT LİSTESİ'!$B$4:$H$1019,6,0))) ->  | J51: 4 | K51: YÜKSEK-4 | L51: =IF(ISERROR(VLOOKUP(K51,'KAYIT LİSTESİ'!$B$4:$H$1019,2,0)),"",(VLOOKUP(K51,'KAYIT LİSTESİ'!$B$4:$H$1019,2,0))) -> 256 | M51: =IF(ISERROR(VLOOKUP(K51,'KAYIT LİSTESİ'!$B$4:$H$1019,4,0)),"",(VLOOKUP(K51,'KAYIT LİSTESİ'!$B$4:$H$1019,4,0))) -> 2000-09-30 | N51: =IF(ISERROR(VLOOKUP(K51,'KAYIT LİSTESİ'!$B$4:$H$1019,5,0)),"",(VLOOKUP(K51,'KAYIT LİSTESİ'!$B$4:$H$1019,5,0))) -> YUNUS ŞAHİN | O51: =IF(ISERROR(VLOOKUP(K51,'KAYIT LİSTESİ'!$B$4:$H$1019,6,0)),"",(VLOOKUP(K51,'KAYIT LİSTESİ'!$B$4:$H$1019,6,0))) -> ERZİNCAN
A52: 5 | B52: 110M.ENG-1-5 | C52: =IF(ISERROR(VLOOKUP(B52,'KAYIT LİSTESİ'!$B$4:$H$1019,2,0)),"",(VLOOKUP(B52,'KAYIT LİSTESİ'!$B$4:$H$1019,2,0))) ->  | D52: =IF(ISERROR(VLOOKUP(B52,'KAYIT LİSTESİ'!$B$4:$H$1019,4,0)),"",(VLOOKUP(B52,'KAYIT LİSTESİ'!$B$4:$H$1019,4,0))) ->  | E52: =IF(ISERROR(VLOOKUP(B52,'KAYIT LİSTESİ'!$B$4:$H$1019,5,0)),"",(VLOOKUP(B52,'KAYIT LİSTESİ'!$B$4:$H$1019,5,0))) ->  | F52: =IF(ISERROR(VLOOKUP(B52,'KAYIT LİSTESİ'!$B$4:$H$1019,6,0)),"",(VLOOKUP(B52,'KAYIT LİSTESİ'!$B$4:$H$1019,6,0))) ->  | J52: 5 | K52: YÜKSEK-5 | L52: =IF(ISERROR(VLOOKUP(K52,'KAYIT LİSTESİ'!$B$4:$H$1019,2,0)),"",(VLOOKUP(K52,'KAYIT LİSTESİ'!$B$4:$H$1019,2,0))) -> 48 | M52: =IF(ISERROR(VLOOKUP(K52,'KAYIT LİSTESİ'!$B$4:$H$1019,4,0)),"",(VLOOKUP(K52,'KAYIT LİSTESİ'!$B$4:$H$1019,4,0))) -> 2000-02-06 | N52: =IF(ISERROR(VLOOKUP(K52,'KAYIT LİSTESİ'!$B$4:$H$1019,5,0)),"",(VLOOKUP(K52,'KAYIT LİSTESİ'!$B$4:$H$1019,5,0))) -> HASAN ALİ ŞAHİN | O52: =IF(ISERROR(VLOOKUP(K52,'KAYIT LİSTESİ'!$B$4:$H$1019,6,0)),"",(VLOOKUP(K52,'KAYIT LİSTESİ'!$B$4:$H$1019,6,0))) -> AMASYA
A53: 6 | B53: 110M.ENG-1-6 | C53: =IF(ISERROR(VLOOKUP(B53,'KAYIT LİSTESİ'!$B$4:$H$1019,2,0)),"",(VLOOKUP(B53,'KAYIT LİSTESİ'!$B$4:$H$1019,2,0))) ->  | D53: =IF(ISERROR(VLOOKUP(B53,'KAYIT LİSTESİ'!$B$4:$H$1019,4,0)),"",(VLOOKUP(B53,'KAYIT LİSTESİ'!$B$4:$H$1019,4,0))) ->  | E53: =IF(ISERROR(VLOOKUP(B53,'KAYIT LİSTESİ'!$B$4:$H$1019,5,0)),"",(VLOOKUP(B53,'KAYIT LİSTESİ'!$B$4:$H$1019,5,0))) ->  | F53: =IF(ISERROR(VLOOKUP(B53,'KAYIT LİSTESİ'!$B$4:$H$1019,6,0)),"",(VLOOKUP(B53,'KAYIT LİSTESİ'!$B$4:$H$1019,6,0))) ->  | J53: 6 | K53: YÜKSEK-6 | L53: =IF(ISERROR(VLOOKUP(K53,'KAYIT LİSTESİ'!$B$4:$H$1019,2,0)),"",(VLOOKUP(K53,'KAYIT LİSTESİ'!$B$4:$H$1019,2,0))) -> 352 | M53: =IF(ISERROR(VLOOKUP(K53,'KAYIT LİSTESİ'!$B$4:$H$1019,4,0)),"",(VLOOKUP(K53,'KAYIT LİSTESİ'!$B$4:$H$1019,4,0))) -> 2000-06-28 | N53: =IF(ISERROR(VLOOKUP(K53,'KAYIT LİSTESİ'!$B$4:$H$1019,5,0)),"",(VLOOKUP(K53,'KAYIT LİSTESİ'!$B$4:$H$1019,5,0))) -> ERDEM CAN ERGİN | O53: =IF(ISERROR(VLOOKUP(K53,'KAYIT LİSTESİ'!$B$4:$H$1019,6,0)),"",(VLOOKUP(K53,'KAYIT LİSTESİ'!$B$4:$H$1019,6,0))) -> ISPARTA
A54: 7 | B54: 110M.ENG-1-7 | C54: =IF(ISERROR(VLOOKUP(B54,'KAYIT LİSTESİ'!$B$4:$H$1019,2,0)),"",(VLOOKUP(B54,'KAYIT LİSTESİ'!$B$4:$H$1019,2,0))) ->  | D54: =IF(ISERROR(VLOOKUP(B54,'KAYIT LİSTESİ'!$B$4:$H$1019,4,0)),"",(VLOOKUP(B54,'KAYIT LİSTESİ'!$B$4:$H$1019,4,0))) ->  | E54: =IF(ISERROR(VLOOKUP(B54,'KAYIT LİSTESİ'!$B$4:$H$1019,5,0)),"",(VLOOKUP(B54,'KAYIT LİSTESİ'!$B$4:$H$1019,5,0))) ->  | F54: =IF(ISERROR(VLOOKUP(B54,'KAYIT LİSTESİ'!$B$4:$H$1019,6,0)),"",(VLOOKUP(B54,'KAYIT LİSTESİ'!$B$4:$H$1019,6,0))) ->  | J54: 7 | K54: YÜKSEK-7 | L54: =IF(ISERROR(VLOOKUP(K54,'KAYIT LİSTESİ'!$B$4:$H$1019,2,0)),"",(VLOOKUP(K54,'KAYIT LİSTESİ'!$B$4:$H$1019,2,0))) -> 218 | M54: =IF(ISERROR(VLOOKUP(K54,'KAYIT LİSTESİ'!$B$4:$H$1019,4,0)),"",(VLOOKUP(K54,'KAYIT LİSTESİ'!$B$4:$H$1019,4,0))) -> 2000-05-06 | N54: =IF(ISERROR(VLOOKUP(K54,'KAYIT LİSTESİ'!$B$4:$H$1019,5,0)),"",(VLOOKUP(K54,'KAYIT LİSTESİ'!$B$4:$H$1019,5,0))) -> AHMET RAHİM SEYHAN | O54: =IF(ISERROR(VLOOKUP(K54,'KAYIT LİSTESİ'!$B$4:$H$1019,6,0)),"",(VLOOKUP(K54,'KAYIT LİSTESİ'!$B$4:$H$1019,6,0))) -> ÇANAKKALE
A55: 8 | B55: 110M.ENG-1-8 | C55: =IF(ISERROR(VLOOKUP(B55,'KAYIT LİSTESİ'!$B$4:$H$1019,2,0)),"",(VLOOKUP(B55,'KAYIT LİSTESİ'!$B$4:$H$1019,2,0))) ->  | D55: =IF(ISERROR(VLOOKUP(B55,'KAYIT LİSTESİ'!$B$4:$H$1019,4,0)),"",(VLOOKUP(B55,'KAYIT LİSTESİ'!$B$4:$H$1019,4,0))) ->  | E55: =IF(ISERROR(VLOOKUP(B55,'KAYIT LİSTESİ'!$B$4:$H$1019,5,0)),"",(VLOOKUP(B55,'KAYIT LİSTESİ'!$B$4:$H$1019,5,0))) ->  | F55: =IF(ISERROR(VLOOKUP(B55,'KAYIT LİSTESİ'!$B$4:$H$1019,6,0)),"",(VLOOKUP(B55,'KAYIT LİSTESİ'!$B$4:$H$1019,6,0))) ->  | J55: 8 | K55: YÜKSEK-8 | L55: =IF(ISERROR(VLOOKUP(K55,'KAYIT LİSTESİ'!$B$4:$H$1019,2,0)),"",(VLOOKUP(K55,'KAYIT LİSTESİ'!$B$4:$H$1019,2,0))) -> 410 | M55: =IF(ISERROR(VLOOKUP(K55,'KAYIT LİSTESİ'!$B$4:$H$1019,4,0)),"",(VLOOKUP(K55,'KAYIT LİSTESİ'!$B$4:$H$1019,4,0))) -> 2000-04-13 | N55: =IF(ISERROR(VLOOKUP(K55,'KAYIT LİSTESİ'!$B$4:$H$1019,5,0)),"",(VLOOKUP(K55,'KAYIT LİSTESİ'!$B$4:$H$1019,5,0))) -> MERT KAAN ALPTEKİN | O55: =IF(ISERROR(VLOOKUP(K55,'KAYIT LİSTESİ'!$B$4:$H$1019,6,0)),"",(VLOOKUP(K55,'KAYIT LİSTESİ'!$B$4:$H$1019,6,0))) -> İZMİR
A56: 2. SERİ | J56: 9 | K56: YÜKSEK-9 | L56: =IF(ISERROR(VLOOKUP(K56,'KAYIT LİSTESİ'!$B$4:$H$1019,2,0)),"",(VLOOKUP(K56,'KAYIT LİSTESİ'!$B$4:$H$1019,2,0))) -> 161 | M56: =IF(ISERROR(VLOOKUP(K56,'KAYIT LİSTESİ'!$B$4:$H$1019,4,0)),"",(VLOOKUP(K56,'KAYIT LİSTESİ'!$B$4:$H$1019,4,0))) -> 2000-01-01 | N56: =IF(ISERROR(VLOOKUP(K56,'KAYIT LİSTESİ'!$B$4:$H$1019,5,0)),"",(VLOOKUP(K56,'KAYIT LİSTESİ'!$B$4:$H$1019,5,0))) -> ALPEREN KAMALI | O56: =IF(ISERROR(VLOOKUP(K56,'KAYIT LİSTESİ'!$B$4:$H$1019,6,0)),"",(VLOOKUP(K56,'KAYIT LİSTESİ'!$B$4:$H$1019,6,0))) -> BİLECİK
A57: Sıra No | B57: Formül | C57: Göğüs No | D57: Doğum Tarihi | E57: Adı ve Soyadı | F57: Okulu | G57: Start Kontrol | J57: 10 | K57: YÜKSEK-10 | L57: =IF(ISERROR(VLOOKUP(K57,'KAYIT LİSTESİ'!$B$4:$H$1019,2,0)),"",(VLOOKUP(K57,'KAYIT LİSTESİ'!$B$4:$H$1019,2,0))) -> 191 | M57: =IF(ISERROR(VLOOKUP(K57,'KAYIT LİSTESİ'!$B$4:$H$1019,4,0)),"",(VLOOKUP(K57,'KAYIT LİSTESİ'!$B$4:$H$1019,4,0))) -> 2000-03-21 | N57: =IF(ISERROR(VLOOKUP(K57,'KAYIT LİSTESİ'!$B$4:$H$1019,5,0)),"",(VLOOKUP(K57,'KAYIT LİSTESİ'!$B$4:$H$1019,5,0))) -> EGE MELEK | O57: =IF(ISERROR(VLOOKUP(K57,'KAYIT LİSTESİ'!$B$4:$H$1019,6,0)),"",(VLOOKUP(K57,'KAYIT LİSTESİ'!$B$4:$H$1019,6,0))) -> BURDUR
A58: 1 | B58: 110M.ENG-2-1 | C58: =IF(ISERROR(VLOOKUP(B58,'KAYIT LİSTESİ'!$B$4:$H$1019,2,0)),"",(VLOOKUP(B58,'KAYIT LİSTESİ'!$B$4:$H$1019,2,0))) ->  | D58: =IF(ISERROR(VLOOKUP(B58,'KAYIT LİSTESİ'!$B$4:$H$1019,4,0)),"",(VLOOKUP(B58,'KAYIT LİSTESİ'!$B$4:$H$1019,4,0))) ->  | E58: =IF(ISERROR(VLOOKUP(B58,'KAYIT LİSTESİ'!$B$4:$H$1019,5,0)),"",(VLOOKUP(B58,'KAYIT LİSTESİ'!$B$4:$H$1019,5,0))) ->  | F58: =IF(ISERROR(VLOOKUP(B58,'KAYIT LİSTESİ'!$B$4:$H$1019,6,0)),"",(VLOOKUP(B58,'KAYIT LİSTESİ'!$B$4:$H$1019,6,0))) ->  | J58: 11 | K58: YÜKSEK-11 | L58: =IF(ISERROR(VLOOKUP(K58,'KAYIT LİSTESİ'!$B$4:$H$1019,2,0)),"",(VLOOKUP(K58,'KAYIT LİSTESİ'!$B$4:$H$1019,2,0))) -> 503 | M58: =IF(ISERROR(VLOOKUP(K58,'KAYIT LİSTESİ'!$B$4:$H$1019,4,0)),"",(VLOOKUP(K58,'KAYIT LİSTESİ'!$B$4:$H$1019,4,0))) -> 2000-06-02 | N58: =IF(ISERROR(VLOOKUP(K58,'KAYIT LİSTESİ'!$B$4:$H$1019,5,0)),"",(VLOOKUP(K58,'KAYIT LİSTESİ'!$B$4:$H$1019,5,0))) -> KUBİLAY TOK | O58: =IF(ISERROR(VLOOKUP(K58,'KAYIT LİSTESİ'!$B$4:$H$1019,6,0)),"",(VLOOKUP(K58,'KAYIT LİSTESİ'!$B$4:$H$1019,6,0))) -> KKTC
A59: 2 | B59: 110M.ENG-2-2 | C59: =IF(ISERROR(VLOOKUP(B59,'KAYIT LİSTESİ'!$B$4:$H$1019,2,0)),"",(VLOOKUP(B59,'KAYIT LİSTESİ'!$B$4:$H$1019,2,0))) ->  | D59: =IF(ISERROR(VLOOKUP(B59,'KAYIT LİSTESİ'!$B$4:$H$1019,4,0)),"",(VLOOKUP(B59,'KAYIT LİSTESİ'!$B$4:$H$1019,4,0))) ->  | E59: =IF(ISERROR(VLOOKUP(B59,'KAYIT LİSTESİ'!$B$4:$H$1019,5,0)),"",(VLOOKUP(B59,'KAYIT LİSTESİ'!$B$4:$H$1019,5,0))) ->  | F59: =IF(ISERROR(VLOOKUP(B59,'KAYIT LİSTESİ'!$B$4:$H$1019,6,0)),"",(VLOOKUP(B59,'KAYIT LİSTESİ'!$B$4:$H$1019,6,0))) ->  | J59: 12 | K59: YÜKSEK-12 | L59: =IF(ISERROR(VLOOKUP(K59,'KAYIT LİSTESİ'!$B$4:$H$1019,2,0)),"",(VLOOKUP(K59,'KAYIT LİSTESİ'!$B$4:$H$1019,2,0))) -> 88 | M59: =IF(ISERROR(VLOOKUP(K59,'KAYIT LİSTESİ'!$B$4:$H$1019,4,0)),"",(VLOOKUP(K59,'KAYIT LİSTESİ'!$B$4:$H$1019,4,0))) -> 2000-05-28 | N59: =IF(ISERROR(VLOOKUP(K59,'KAYIT LİSTESİ'!$B$4:$H$1019,5,0)),"",(VLOOKUP(K59,'KAYIT LİSTESİ'!$B$4:$H$1019,5,0))) -> BERKAY ŞİMŞEK | O59: =IF(ISERROR(VLOOKUP(K59,'KAYIT LİSTESİ'!$B$4:$H$1019,6,0)),"",(VLOOKUP(K59,'KAYIT LİSTESİ'!$B$4:$H$1019,6,0))) -> AYDIN
A60: 3 | B60: 110M.ENG-2-3 | C60: =IF(ISERROR(VLOOKUP(B60,'KAYIT LİSTESİ'!$B$4:$H$1019,2,0)),"",(VLOOKUP(B60,'KAYIT LİSTESİ'!$B$4:$H$1019,2,0))) ->  | D60: =IF(ISERROR(VLOOKUP(B60,'KAYIT LİSTESİ'!$B$4:$H$1019,4,0)),"",(VLOOKUP(B60,'KAYIT LİSTESİ'!$B$4:$H$1019,4,0))) ->  | E60: =IF(ISERROR(VLOOKUP(B60,'KAYIT LİSTESİ'!$B$4:$H$1019,5,0)),"",(VLOOKUP(B60,'KAYIT LİSTESİ'!$B$4:$H$1019,5,0))) ->  | F60: =IF(ISERROR(VLOOKUP(B60,'KAYIT LİSTESİ'!$B$4:$H$1019,6,0)),"",(VLOOKUP(B60,'KAYIT LİSTESİ'!$B$4:$H$1019,6,0))) ->  | J60: 13 | K60: YÜKSEK-13 | L60: =IF(ISERROR(VLOOKUP(K60,'KAYIT LİSTESİ'!$B$4:$H$1019,2,0)),"",(VLOOKUP(K60,'KAYIT LİSTESİ'!$B$4:$H$1019,2,0))) ->  | M60: =IF(ISERROR(VLOOKUP(K60,'KAYIT LİSTESİ'!$B$4:$H$1019,4,0)),"",(VLOOKUP(K60,'KAYIT LİSTESİ'!$B$4:$H$1019,4,0))) ->  | N60: =IF(ISERROR(VLOOKUP(K60,'KAYIT LİSTESİ'!$B$4:$H$1019,5,0)),"",(VLOOKUP(K60,'KAYIT LİSTESİ'!$B$4:$H$1019,5,0))) ->  | O60: =IF(ISERROR(VLOOKUP(K60,'KAYIT LİSTESİ'!$B$4:$H$1019,6,0)),"",(VLOOKUP(K60,'KAYIT LİSTESİ'!$B$4:$H$1019,6,0))) -> 
A61: 4 | B61: 110M.ENG-2-4 | C61: =IF(ISERROR(VLOOKUP(B61,'KAYIT LİSTESİ'!$B$4:$H$1019,2,0)),"",(VLOOKUP(B61,'KAYIT LİSTESİ'!$B$4:$H$1019,2,0))) ->  | D61: =IF(ISERROR(VLOOKUP(B61,'KAYIT LİSTESİ'!$B$4:$H$1019,4,0)),"",(VLOOKUP(B61,'KAYIT LİSTESİ'!$B$4:$H$1019,4,0))) ->  | E61: =IF(ISERROR(VLOOKUP(B61,'KAYIT LİSTESİ'!$B$4:$H$1019,5,0)),"",(VLOOKUP(B61,'KAYIT LİSTESİ'!$B$4:$H$1019,5,0))) ->  | F61: =IF(ISERROR(VLOOKUP(B61,'KAYIT LİSTESİ'!$B$4:$H$1019,6,0)),"",(VLOOKUP(B61,'KAYIT LİSTESİ'!$B$4:$H$1019,6,0))) ->  | J61: 14 | K61: YÜKSEK-14 | L61: =IF(ISERROR(VLOOKUP(K61,'KAYIT LİSTESİ'!$B$4:$H$1019,2,0)),"",(VLOOKUP(K61,'KAYIT LİSTESİ'!$B$4:$H$1019,2,0))) ->  | M61: =IF(ISERROR(VLOOKUP(K61,'KAYIT LİSTESİ'!$B$4:$H$1019,4,0)),"",(VLOOKUP(K61,'KAYIT LİSTESİ'!$B$4:$H$1019,4,0))) ->  | N61: =IF(ISERROR(VLOOKUP(K61,'KAYIT LİSTESİ'!$B$4:$H$1019,5,0)),"",(VLOOKUP(K61,'KAYIT LİSTESİ'!$B$4:$H$1019,5,0))) ->  | O61: =IF(ISERROR(VLOOKUP(K61,'KAYIT LİSTESİ'!$B$4:$H$1019,6,0)),"",(VLOOKUP(K61,'KAYIT LİSTESİ'!$B$4:$H$1019,6,0))) -> 
A62: 5 | B62: 110M.ENG-2-5 | C62: =IF(ISERROR(VLOOKUP(B62,'KAYIT LİSTESİ'!$B$4:$H$1019,2,0)),"",(VLOOKUP(B62,'KAYIT LİSTESİ'!$B$4:$H$1019,2,0))) ->  | D62: =IF(ISERROR(VLOOKUP(B62,'KAYIT LİSTESİ'!$B$4:$H$1019,4,0)),"",(VLOOKUP(B62,'KAYIT LİSTESİ'!$B$4:$H$1019,4,0))) ->  | E62: =IF(ISERROR(VLOOKUP(B62,'KAYIT LİSTESİ'!$B$4:$H$1019,5,0)),"",(VLOOKUP(B62,'KAYIT LİSTESİ'!$B$4:$H$1019,5,0))) ->  | F62: =IF(ISERROR(VLOOKUP(B62,'KAYIT LİSTESİ'!$B$4:$H$1019,6,0)),"",(VLOOKUP(B62,'KAYIT LİSTESİ'!$B$4:$H$1019,6,0))) ->  | J62: 15 | K62: YÜKSEK-15 | L62: =IF(ISERROR(VLOOKUP(K62,'KAYIT LİSTESİ'!$B$4:$H$1019,2,0)),"",(VLOOKUP(K62,'KAYIT LİSTESİ'!$B$4:$H$1019,2,0))) ->  | M62: =IF(ISERROR(VLOOKUP(K62,'KAYIT LİSTESİ'!$B$4:$H$1019,4,0)),"",(VLOOKUP(K62,'KAYIT LİSTESİ'!$B$4:$H$1019,4,0))) ->  | N62: =IF(ISERROR(VLOOKUP(K62,'KAYIT LİSTESİ'!$B$4:$H$1019,5,0)),"",(VLOOKUP(K62,'KAYIT LİSTESİ'!$B$4:$H$1019,5,0))) ->  | O62: =IF(ISERROR(VLOOKUP(K62,'KAYIT LİSTESİ'!$B$4:$H$1019,6,0)),"",(VLOOKUP(K62,'KAYIT LİSTESİ'!$B$4:$H$1019,6,0))) -> 
A63: 6 | B63: 110M.ENG-2-6 | C63: =IF(ISERROR(VLOOKUP(B63,'KAYIT LİSTESİ'!$B$4:$H$1019,2,0)),"",(VLOOKUP(B63,'KAYIT LİSTESİ'!$B$4:$H$1019,2,0))) ->  | D63: =IF(ISERROR(VLOOKUP(B63,'KAYIT LİSTESİ'!$B$4:$H$1019,4,0)),"",(VLOOKUP(B63,'KAYIT LİSTESİ'!$B$4:$H$1019,4,0))) ->  | E63: =IF(ISERROR(VLOOKUP(B63,'KAYIT LİSTESİ'!$B$4:$H$1019,5,0)),"",(VLOOKUP(B63,'KAYIT LİSTESİ'!$B$4:$H$1019,5,0))) ->  | F63: =IF(ISERROR(VLOOKUP(B63,'KAYIT LİSTESİ'!$B$4:$H$1019,6,0)),"",(VLOOKUP(B63,'KAYIT LİSTESİ'!$B$4:$H$1019,6,0))) ->  | J63: 16 | K63: YÜKSEK-16 | L63: =IF(ISERROR(VLOOKUP(K63,'KAYIT LİSTESİ'!$B$4:$H$1019,2,0)),"",(VLOOKUP(K63,'KAYIT LİSTESİ'!$B$4:$H$1019,2,0))) ->  | M63: =IF(ISERROR(VLOOKUP(K63,'KAYIT LİSTESİ'!$B$4:$H$1019,4,0)),"",(VLOOKUP(K63,'KAYIT LİSTESİ'!$B$4:$H$1019,4,0))) ->  | N63: =IF(ISERROR(VLOOKUP(K63,'KAYIT LİSTESİ'!$B$4:$H$1019,5,0)),"",(VLOOKUP(K63,'KAYIT LİSTESİ'!$B$4:$H$1019,5,0))) ->  | O63: =IF(ISERROR(VLOOKUP(K63,'KAYIT LİSTESİ'!$B$4:$H$1019,6,0)),"",(VLOOKUP(K63,'KAYIT LİSTESİ'!$B$4:$H$1019,6,0))) -> 
A64: 7 | B64: 110M.ENG-2-7 | C64: =IF(ISERROR(VLOOKUP(B64,'KAYIT LİSTESİ'!$B$4:$H$1019,2,0)),"",(VLOOKUP(B64,'KAYIT LİSTESİ'!$B$4:$H$1019,2,0))) ->  | D64: =IF(ISERROR(VLOOKUP(B64,'KAYIT LİSTESİ'!$B$4:$H$1019,4,0)),"",(VLOOKUP(B64,'KAYIT LİSTESİ'!$B$4:$H$1019,4,0))) ->  | E64: =IF(ISERROR(VLOOKUP(B64,'KAYIT LİSTESİ'!$B$4:$H$1019,5,0)),"",(VLOOKUP(B64,'KAYIT LİSTESİ'!$B$4:$H$1019,5,0))) ->  | F64: =IF(ISERROR(VLOOKUP(B64,'KAYIT LİSTESİ'!$B$4:$H$1019,6,0)),"",(VLOOKUP(B64,'KAYIT LİSTESİ'!$B$4:$H$1019,6,0))) ->  | J64: 17 | K64: YÜKSEK-17 | L64: =IF(ISERROR(VLOOKUP(K64,'KAYIT LİSTESİ'!$B$4:$H$1019,2,0)),"",(VLOOKUP(K64,'KAYIT LİSTESİ'!$B$4:$H$1019,2,0))) ->  | M64: =IF(ISERROR(VLOOKUP(K64,'KAYIT LİSTESİ'!$B$4:$H$1019,4,0)),"",(VLOOKUP(K64,'KAYIT LİSTESİ'!$B$4:$H$1019,4,0))) ->  | N64: =IF(ISERROR(VLOOKUP(K64,'KAYIT LİSTESİ'!$B$4:$H$1019,5,0)),"",(VLOOKUP(K64,'KAYIT LİSTESİ'!$B$4:$H$1019,5,0))) ->  | O64: =IF(ISERROR(VLOOKUP(K64,'KAYIT LİSTESİ'!$B$4:$H$1019,6,0)),"",(VLOOKUP(K64,'KAYIT LİSTESİ'!$B$4:$H$1019,6,0))) -> 
A65: 8 | B65: 110M.ENG-2-8 | C65: =IF(ISERROR(VLOOKUP(B65,'KAYIT LİSTESİ'!$B$4:$H$1019,2,0)),"",(VLOOKUP(B65,'KAYIT LİSTESİ'!$B$4:$H$1019,2,0))) ->  | D65: =IF(ISERROR(VLOOKUP(B65,'KAYIT LİSTESİ'!$B$4:$H$1019,4,0)),"",(VLOOKUP(B65,'KAYIT LİSTESİ'!$B$4:$H$1019,4,0))) ->  | E65: =IF(ISERROR(VLOOKUP(B65,'KAYIT LİSTESİ'!$B$4:$H$1019,5,0)),"",(VLOOKUP(B65,'KAYIT LİSTESİ'!$B$4:$H$1019,5,0))) ->  | F65: =IF(ISERROR(VLOOKUP(B65,'KAYIT LİSTESİ'!$B$4:$H$1019,6,0)),"",(VLOOKUP(B65,'KAYIT LİSTESİ'!$B$4:$H$1019,6,0))) ->  | J65: 18 | K65: YÜKSEK-18 | L65: =IF(ISERROR(VLOOKUP(K65,'KAYIT LİSTESİ'!$B$4:$H$1019,2,0)),"",(VLOOKUP(K65,'KAYIT LİSTESİ'!$B$4:$H$1019,2,0))) ->  | M65: =IF(ISERROR(VLOOKUP(K65,'KAYIT LİSTESİ'!$B$4:$H$1019,4,0)),"",(VLOOKUP(K65,'KAYIT LİSTESİ'!$B$4:$H$1019,4,0))) ->  | N65: =IF(ISERROR(VLOOKUP(K65,'KAYIT LİSTESİ'!$B$4:$H$1019,5,0)),"",(VLOOKUP(K65,'KAYIT LİSTESİ'!$B$4:$H$1019,5,0))) ->  | O65: =IF(ISERROR(VLOOKUP(K65,'KAYIT LİSTESİ'!$B$4:$H$1019,6,0)),"",(VLOOKUP(K65,'KAYIT LİSTESİ'!$B$4:$H$1019,6,0))) -> 
A66: 3. SERİ | J66: 19 | K66: YÜKSEK-19 | L66: =IF(ISERROR(VLOOKUP(K66,'KAYIT LİSTESİ'!$B$4:$H$1019,2,0)),"",(VLOOKUP(K66,'KAYIT LİSTESİ'!$B$4:$H$1019,2,0))) ->  | M66: =IF(ISERROR(VLOOKUP(K66,'KAYIT LİSTESİ'!$B$4:$H$1019,4,0)),"",(VLOOKUP(K66,'KAYIT LİSTESİ'!$B$4:$H$1019,4,0))) ->  | N66: =IF(ISERROR(VLOOKUP(K66,'KAYIT LİSTESİ'!$B$4:$H$1019,5,0)),"",(VLOOKUP(K66,'KAYIT LİSTESİ'!$B$4:$H$1019,5,0))) ->  | O66: =IF(ISERROR(VLOOKUP(K66,'KAYIT LİSTESİ'!$B$4:$H$1019,6,0)),"",(VLOOKUP(K66,'KAYIT LİSTESİ'!$B$4:$H$1019,6,0))) -> 
A67: Sıra No | B67: Formül | C67: Göğüs No | D67: Doğum Tarihi | E67: Adı ve Soyadı | F67: Okulu | G67: Start Kontrol | J67: 20 | K67: YÜKSEK-20 | L67: =IF(ISERROR(VLOOKUP(K67,'KAYIT LİSTESİ'!$B$4:$H$1019,2,0)),"",(VLOOKUP(K67,'KAYIT LİSTESİ'!$B$4:$H$1019,2,0))) ->  | M67: =IF(ISERROR(VLOOKUP(K67,'KAYIT LİSTESİ'!$B$4:$H$1019,4,0)),"",(VLOOKUP(K67,'KAYIT LİSTESİ'!$B$4:$H$1019,4,0))) ->  | N67: =IF(ISERROR(VLOOKUP(K67,'KAYIT LİSTESİ'!$B$4:$H$1019,5,0)),"",(VLOOKUP(K67,'KAYIT LİSTESİ'!$B$4:$H$1019,5,0))) ->  | O67: =IF(ISERROR(VLOOKUP(K67,'KAYIT LİSTESİ'!$B$4:$H$1019,6,0)),"",(VLOOKUP(K67,'KAYIT LİSTESİ'!$B$4:$H$1019,6,0))) -> 
A68: 1 | B68: 110M.ENG-3-1 | C68: =IF(ISERROR(VLOOKUP(B68,'KAYIT LİSTESİ'!$B$4:$H$1019,2,0)),"",(VLOOKUP(B68,'KAYIT LİSTESİ'!$B$4:$H$1019,2,0))) ->  | D68: =IF(ISERROR(VLOOKUP(B68,'KAYIT LİSTESİ'!$B$4:$H$1019,4,0)),"",(VLOOKUP(B68,'KAYIT LİSTESİ'!$B$4:$H$1019,4,0))) ->  | E68: =IF(ISERROR(VLOOKUP(B68,'KAYIT LİSTESİ'!$B$4:$H$1019,5,0)),"",(VLOOKUP(B68,'KAYIT LİSTESİ'!$B$4:$H$1019,5,0))) ->  | F68: =IF(ISERROR(VLOOKUP(B68,'KAYIT LİSTESİ'!$B$4:$H$1019,6,0)),"",(VLOOKUP(B68,'KAYIT LİSTESİ'!$B$4:$H$1019,6,0))) ->  | J68: 21 | K68: YÜKSEK-21 | L68: =IF(ISERROR(VLOOKUP(K68,'KAYIT LİSTESİ'!$B$4:$H$1019,2,0)),"",(VLOOKUP(K68,'KAYIT LİSTESİ'!$B$4:$H$1019,2,0))) ->  | M68: =IF(ISERROR(VLOOKUP(K68,'KAYIT LİSTESİ'!$B$4:$H$1019,4,0)),"",(VLOOKUP(K68,'KAYIT LİSTESİ'!$B$4:$H$1019,4,0))) ->  | N68: =IF(ISERROR(VLOOKUP(K68,'KAYIT LİSTESİ'!$B$4:$H$1019,5,0)),"",(VLOOKUP(K68,'KAYIT LİSTESİ'!$B$4:$H$1019,5,0))) ->  | O68: =IF(ISERROR(VLOOKUP(K68,'KAYIT LİSTESİ'!$B$4:$H$1019,6,0)),"",(VLOOKUP(K68,'KAYIT LİSTESİ'!$B$4:$H$1019,6,0))) -> 
A69: 2 | B69: 110M.ENG-3-2 | C69: =IF(ISERROR(VLOOKUP(B69,'KAYIT LİSTESİ'!$B$4:$H$1019,2,0)),"",(VLOOKUP(B69,'KAYIT LİSTESİ'!$B$4:$H$1019,2,0))) ->  | D69: =IF(ISERROR(VLOOKUP(B69,'KAYIT LİSTESİ'!$B$4:$H$1019,4,0)),"",(VLOOKUP(B69,'KAYIT LİSTESİ'!$B$4:$H$1019,4,0))) ->  | E69: =IF(ISERROR(VLOOKUP(B69,'KAYIT LİSTESİ'!$B$4:$H$1019,5,0)),"",(VLOOKUP(B69,'KAYIT LİSTESİ'!$B$4:$H$1019,5,0))) ->  | F69: =IF(ISERROR(VLOOKUP(B69,'KAYIT LİSTESİ'!$B$4:$H$1019,6,0)),"",(VLOOKUP(B69,'KAYIT LİSTESİ'!$B$4:$H$1019,6,0))) ->  | J69: 22 | K69: YÜKSEK-22 | L69: =IF(ISERROR(VLOOKUP(K69,'KAYIT LİSTESİ'!$B$4:$H$1019,2,0)),"",(VLOOKUP(K69,'KAYIT LİSTESİ'!$B$4:$H$1019,2,0))) ->  | M69: =IF(ISERROR(VLOOKUP(K69,'KAYIT LİSTESİ'!$B$4:$H$1019,4,0)),"",(VLOOKUP(K69,'KAYIT LİSTESİ'!$B$4:$H$1019,4,0))) ->  | N69: =IF(ISERROR(VLOOKUP(K69,'KAYIT LİSTESİ'!$B$4:$H$1019,5,0)),"",(VLOOKUP(K69,'KAYIT LİSTESİ'!$B$4:$H$1019,5,0))) ->  | O69: =IF(ISERROR(VLOOKUP(K69,'KAYIT LİSTESİ'!$B$4:$H$1019,6,0)),"",(VLOOKUP(K69,'KAYIT LİSTESİ'!$B$4:$H$1019,6,0))) -> 
A70: 3 | B70: 110M.ENG-3-3 | C70: =IF(ISERROR(VLOOKUP(B70,'KAYIT LİSTESİ'!$B$4:$H$1019,2,0)),"",(VLOOKUP(B70,'KAYIT LİSTESİ'!$B$4:$H$1019,2,0))) ->  | D70: =IF(ISERROR(VLOOKUP(B70,'KAYIT LİSTESİ'!$B$4:$H$1019,4,0)),"",(VLOOKUP(B70,'KAYIT LİSTESİ'!$B$4:$H$1019,4,0))) ->  | E70: =IF(ISERROR(VLOOKUP(B70,'KAYIT LİSTESİ'!$B$4:$H$1019,5,0)),"",(VLOOKUP(B70,'KAYIT LİSTESİ'!$B$4:$H$1019,5,0))) ->  | F70: =IF(ISERROR(VLOOKUP(B70,'KAYIT LİSTESİ'!$B$4:$H$1019,6,0)),"",(VLOOKUP(B70,'KAYIT LİSTESİ'!$B$4:$H$1019,6,0))) ->  | J70: 23 | K70: YÜKSEK-23 | L70: =IF(ISERROR(VLOOKUP(K70,'KAYIT LİSTESİ'!$B$4:$H$1019,2,0)),"",(VLOOKUP(K70,'KAYIT LİSTESİ'!$B$4:$H$1019,2,0))) ->  | M70: =IF(ISERROR(VLOOKUP(K70,'KAYIT LİSTESİ'!$B$4:$H$1019,4,0)),"",(VLOOKUP(K70,'KAYIT LİSTESİ'!$B$4:$H$1019,4,0))) ->  | N70: =IF(ISERROR(VLOOKUP(K70,'KAYIT LİSTESİ'!$B$4:$H$1019,5,0)),"",(VLOOKUP(K70,'KAYIT LİSTESİ'!$B$4:$H$1019,5,0))) ->  | O70: =IF(ISERROR(VLOOKUP(K70,'KAYIT LİSTESİ'!$B$4:$H$1019,6,0)),"",(VLOOKUP(K70,'KAYIT LİSTESİ'!$B$4:$H$1019,6,0))) -> 
A71: 4 | B71: 110M.ENG-3-4 | C71: =IF(ISERROR(VLOOKUP(B71,'KAYIT LİSTESİ'!$B$4:$H$1019,2,0)),"",(VLOOKUP(B71,'KAYIT LİSTESİ'!$B$4:$H$1019,2,0))) ->  | D71: =IF(ISERROR(VLOOKUP(B71,'KAYIT LİSTESİ'!$B$4:$H$1019,4,0)),"",(VLOOKUP(B71,'KAYIT LİSTESİ'!$B$4:$H$1019,4,0))) ->  | E71: =IF(ISERROR(VLOOKUP(B71,'KAYIT LİSTESİ'!$B$4:$H$1019,5,0)),"",(VLOOKUP(B71,'KAYIT LİSTESİ'!$B$4:$H$1019,5,0))) ->  | F71: =IF(ISERROR(VLOOKUP(B71,'KAYIT LİSTESİ'!$B$4:$H$1019,6,0)),"",(VLOOKUP(B71,'KAYIT LİSTESİ'!$B$4:$H$1019,6,0))) ->  | J71: 24 | K71: YÜKSEK-24 | L71: =IF(ISERROR(VLOOKUP(K71,'KAYIT LİSTESİ'!$B$4:$H$1019,2,0)),"",(VLOOKUP(K71,'KAYIT LİSTESİ'!$B$4:$H$1019,2,0))) ->  | M71: =IF(ISERROR(VLOOKUP(K71,'KAYIT LİSTESİ'!$B$4:$H$1019,4,0)),"",(VLOOKUP(K71,'KAYIT LİSTESİ'!$B$4:$H$1019,4,0))) ->  | N71: =IF(ISERROR(VLOOKUP(K71,'KAYIT LİSTESİ'!$B$4:$H$1019,5,0)),"",(VLOOKUP(K71,'KAYIT LİSTESİ'!$B$4:$H$1019,5,0))) ->  | O71: =IF(ISERROR(VLOOKUP(K71,'KAYIT LİSTESİ'!$B$4:$H$1019,6,0)),"",(VLOOKUP(K71,'KAYIT LİSTESİ'!$B$4:$H$1019,6,0))) -> 
A72: 5 | B72: 110M.ENG-3-5 | C72: =IF(ISERROR(VLOOKUP(B72,'KAYIT LİSTESİ'!$B$4:$H$1019,2,0)),"",(VLOOKUP(B72,'KAYIT LİSTESİ'!$B$4:$H$1019,2,0))) ->  | D72: =IF(ISERROR(VLOOKUP(B72,'KAYIT LİSTESİ'!$B$4:$H$1019,4,0)),"",(VLOOKUP(B72,'KAYIT LİSTESİ'!$B$4:$H$1019,4,0))) ->  | E72: =IF(ISERROR(VLOOKUP(B72,'KAYIT LİSTESİ'!$B$4:$H$1019,5,0)),"",(VLOOKUP(B72,'KAYIT LİSTESİ'!$B$4:$H$1019,5,0))) ->  | F72: =IF(ISERROR(VLOOKUP(B72,'KAYIT LİSTESİ'!$B$4:$H$1019,6,0)),"",(VLOOKUP(B72,'KAYIT LİSTESİ'!$B$4:$H$1019,6,0))) ->  | J72: 25 | K72: YÜKSEK-25 | L72: =IF(ISERROR(VLOOKUP(K72,'KAYIT LİSTESİ'!$B$4:$H$1019,2,0)),"",(VLOOKUP(K72,'KAYIT LİSTESİ'!$B$4:$H$1019,2,0))) ->  | M72: =IF(ISERROR(VLOOKUP(K72,'KAYIT LİSTESİ'!$B$4:$H$1019,4,0)),"",(VLOOKUP(K72,'KAYIT LİSTESİ'!$B$4:$H$1019,4,0))) ->  | N72: =IF(ISERROR(VLOOKUP(K72,'KAYIT LİSTESİ'!$B$4:$H$1019,5,0)),"",(VLOOKUP(K72,'KAYIT LİSTESİ'!$B$4:$H$1019,5,0))) ->  | O72: =IF(ISERROR(VLOOKUP(K72,'KAYIT LİSTESİ'!$B$4:$H$1019,6,0)),"",(VLOOKUP(K72,'KAYIT LİSTESİ'!$B$4:$H$1019,6,0))) -> 
A73: 6 | B73: 110M.ENG-3-6 | C73: =IF(ISERROR(VLOOKUP(B73,'KAYIT LİSTESİ'!$B$4:$H$1019,2,0)),"",(VLOOKUP(B73,'KAYIT LİSTESİ'!$B$4:$H$1019,2,0))) ->  | D73: =IF(ISERROR(VLOOKUP(B73,'KAYIT LİSTESİ'!$B$4:$H$1019,4,0)),"",(VLOOKUP(B73,'KAYIT LİSTESİ'!$B$4:$H$1019,4,0))) ->  | E73: =IF(ISERROR(VLOOKUP(B73,'KAYIT LİSTESİ'!$B$4:$H$1019,5,0)),"",(VLOOKUP(B73,'KAYIT LİSTESİ'!$B$4:$H$1019,5,0))) ->  | F73: =IF(ISERROR(VLOOKUP(B73,'KAYIT LİSTESİ'!$B$4:$H$1019,6,0)),"",(VLOOKUP(B73,'KAYIT LİSTESİ'!$B$4:$H$1019,6,0))) ->  | J73: GÜLLE ATMA
A74: 7 | B74: 110M.ENG-3-7 | C74: =IF(ISERROR(VLOOKUP(B74,'KAYIT LİSTESİ'!$B$4:$H$1019,2,0)),"",(VLOOKUP(B74,'KAYIT LİSTESİ'!$B$4:$H$1019,2,0))) ->  | D74: =IF(ISERROR(VLOOKUP(B74,'KAYIT LİSTESİ'!$B$4:$H$1019,4,0)),"",(VLOOKUP(B74,'KAYIT LİSTESİ'!$B$4:$H$1019,4,0))) ->  | E74: =IF(ISERROR(VLOOKUP(B74,'KAYIT LİSTESİ'!$B$4:$H$1019,5,0)),"",(VLOOKUP(B74,'KAYIT LİSTESİ'!$B$4:$H$1019,5,0))) ->  | F74: =IF(ISERROR(VLOOKUP(B74,'KAYIT LİSTESİ'!$B$4:$H$1019,6,0)),"",(VLOOKUP(B74,'KAYIT LİSTESİ'!$B$4:$H$1019,6,0))) ->  | J74: SIRA NO | L74: GÖĞÜS NO | M74: DOĞUM TARİHİ | N74: ADI VE SOYADI | O74: OKULU | P74: Start Kontrol
A75: 8 | B75: 110M.ENG-3-8 | C75: =IF(ISERROR(VLOOKUP(B75,'KAYIT LİSTESİ'!$B$4:$H$1019,2,0)),"",(VLOOKUP(B75,'KAYIT LİSTESİ'!$B$4:$H$1019,2,0))) ->  | D75: =IF(ISERROR(VLOOKUP(B75,'KAYIT LİSTESİ'!$B$4:$H$1019,4,0)),"",(VLOOKUP(B75,'KAYIT LİSTESİ'!$B$4:$H$1019,4,0))) ->  | E75: =IF(ISERROR(VLOOKUP(B75,'KAYIT LİSTESİ'!$B$4:$H$1019,5,0)),"",(VLOOKUP(B75,'KAYIT LİSTESİ'!$B$4:$H$1019,5,0))) ->  | F75: =IF(ISERROR(VLOOKUP(B75,'KAYIT LİSTESİ'!$B$4:$H$1019,6,0)),"",(VLOOKUP(B75,'KAYIT LİSTESİ'!$B$4:$H$1019,6,0))) -> 
A76: 4. SERİ | J76: 1 | K76: GÜLLE-1 | L76: =IF(ISERROR(VLOOKUP(K76,'KAYIT LİSTESİ'!$B$4:$H$1019,2,0)),"",(VLOOKUP(K76,'KAYIT LİSTESİ'!$B$4:$H$1019,2,0))) -> 593 | M76: =IF(ISERROR(VLOOKUP(K76,'KAYIT LİSTESİ'!$B$4:$H$1019,4,0)),"",(VLOOKUP(K76,'KAYIT LİSTESİ'!$B$4:$H$1019,4,0))) -> 2000-09-12 | N76: =IF(ISERROR(VLOOKUP(K76,'KAYIT LİSTESİ'!$B$4:$H$1019,5,0)),"",(VLOOKUP(K76,'KAYIT LİSTESİ'!$B$4:$H$1019,5,0))) -> MUSTAFA ÜNLÜTÜRK | O76: =IF(ISERROR(VLOOKUP(K76,'KAYIT LİSTESİ'!$B$4:$H$1019,6,0)),"",(VLOOKUP(K76,'KAYIT LİSTESİ'!$B$4:$H$1019,6,0))) -> NEVŞEHİR
A77: Sıra No | B77: Formül | C77: Göğüs No | D77: Doğum Tarihi | E77: Adı ve Soyadı | F77: Okulu | G77: Start Kontrol | J77: 2 | K77: GÜLLE-2 | L77: =IF(ISERROR(VLOOKUP(K77,'KAYIT LİSTESİ'!$B$4:$H$1019,2,0)),"",(VLOOKUP(K77,'KAYIT LİSTESİ'!$B$4:$H$1019,2,0))) -> 454 | M77: =IF(ISERROR(VLOOKUP(K77,'KAYIT LİSTESİ'!$B$4:$H$1019,4,0)),"",(VLOOKUP(K77,'KAYIT LİSTESİ'!$B$4:$H$1019,4,0))) -> 2000-03-17 | N77: =IF(ISERROR(VLOOKUP(K77,'KAYIT LİSTESİ'!$B$4:$H$1019,5,0)),"",(VLOOKUP(K77,'KAYIT LİSTESİ'!$B$4:$H$1019,5,0))) -> SANAT SARUHAN | O77: =IF(ISERROR(VLOOKUP(K77,'KAYIT LİSTESİ'!$B$4:$H$1019,6,0)),"",(VLOOKUP(K77,'KAYIT LİSTESİ'!$B$4:$H$1019,6,0))) -> İZMİR
A78: 1 | B78: 110M.ENG-4-1 | C78: =IF(ISERROR(VLOOKUP(B78,'KAYIT LİSTESİ'!$B$4:$H$1019,2,0)),"",(VLOOKUP(B78,'KAYIT LİSTESİ'!$B$4:$H$1019,2,0))) ->  | D78: =IF(ISERROR(VLOOKUP(B78,'KAYIT LİSTESİ'!$B$4:$H$1019,4,0)),"",(VLOOKUP(B78,'KAYIT LİSTESİ'!$B$4:$H$1019,4,0))) ->  | E78: =IF(ISERROR(VLOOKUP(B78,'KAYIT LİSTESİ'!$B$4:$H$1019,5,0)),"",(VLOOKUP(B78,'KAYIT LİSTESİ'!$B$4:$H$1019,5,0))) ->  | F78: =IF(ISERROR(VLOOKUP(B78,'KAYIT LİSTESİ'!$B$4:$H$1019,6,0)),"",(VLOOKUP(B78,'KAYIT LİSTESİ'!$B$4:$H$1019,6,0))) ->  | J78: 3 | K78: GÜLLE-3 | L78: =IF(ISERROR(VLOOKUP(K78,'KAYIT LİSTESİ'!$B$4:$H$1019,2,0)),"",(VLOOKUP(K78,'KAYIT LİSTESİ'!$B$4:$H$1019,2,0))) -> 87 | M78: =IF(ISERROR(VLOOKUP(K78,'KAYIT LİSTESİ'!$B$4:$H$1019,4,0)),"",(VLOOKUP(K78,'KAYIT LİSTESİ'!$B$4:$H$1019,4,0))) -> 2000-11-20 | N78: =IF(ISERROR(VLOOKUP(K78,'KAYIT LİSTESİ'!$B$4:$H$1019,5,0)),"",(VLOOKUP(K78,'KAYIT LİSTESİ'!$B$4:$H$1019,5,0))) -> ABDÜLKADİR YANILMA | O78: =IF(ISERROR(VLOOKUP(K78,'KAYIT LİSTESİ'!$B$4:$H$1019,6,0)),"",(VLOOKUP(K78,'KAYIT LİSTESİ'!$B$4:$H$1019,6,0))) -> AYDIN
A79: 2 | B79: 110M.ENG-4-2 | C79: =IF(ISERROR(VLOOKUP(B79,'KAYIT LİSTESİ'!$B$4:$H$1019,2,0)),"",(VLOOKUP(B79,'KAYIT LİSTESİ'!$B$4:$H$1019,2,0))) ->  | D79: =IF(ISERROR(VLOOKUP(B79,'KAYIT LİSTESİ'!$B$4:$H$1019,4,0)),"",(VLOOKUP(B79,'KAYIT LİSTESİ'!$B$4:$H$1019,4,0))) ->  | E79: =IF(ISERROR(VLOOKUP(B79,'KAYIT LİSTESİ'!$B$4:$H$1019,5,0)),"",(VLOOKUP(B79,'KAYIT LİSTESİ'!$B$4:$H$1019,5,0))) ->  | F79: =IF(ISERROR(VLOOKUP(B79,'KAYIT LİSTESİ'!$B$4:$H$1019,6,0)),"",(VLOOKUP(B79,'KAYIT LİSTESİ'!$B$4:$H$1019,6,0))) ->  | J79: 4 | K79: GÜLLE-4 | L79: =IF(ISERROR(VLOOKUP(K79,'KAYIT LİSTESİ'!$B$4:$H$1019,2,0)),"",(VLOOKUP(K79,'KAYIT LİSTESİ'!$B$4:$H$1019,2,0))) -> 252 | M79: =IF(ISERROR(VLOOKUP(K79,'KAYIT LİSTESİ'!$B$4:$H$1019,4,0)),"",(VLOOKUP(K79,'KAYIT LİSTESİ'!$B$4:$H$1019,4,0))) -> 2000-09-03 | N79: =IF(ISERROR(VLOOKUP(K79,'KAYIT LİSTESİ'!$B$4:$H$1019,5,0)),"",(VLOOKUP(K79,'KAYIT LİSTESİ'!$B$4:$H$1019,5,0))) -> FURKAN KIZGIN | O79: =IF(ISERROR(VLOOKUP(K79,'KAYIT LİSTESİ'!$B$4:$H$1019,6,0)),"",(VLOOKUP(K79,'KAYIT LİSTESİ'!$B$4:$H$1019,6,0))) -> ERZİNCAN
A80: 3 | B80: 110M.ENG-4-3 | C80: =IF(ISERROR(VLOOKUP(B80,'KAYIT LİSTESİ'!$B$4:$H$1019,2,0)),"",(VLOOKUP(B80,'KAYIT LİSTESİ'!$B$4:$H$1019,2,0))) ->  | D80: =IF(ISERROR(VLOOKUP(B80,'KAYIT LİSTESİ'!$B$4:$H$1019,4,0)),"",(VLOOKUP(B80,'KAYIT LİSTESİ'!$B$4:$H$1019,4,0))) ->  | E80: =IF(ISERROR(VLOOKUP(B80,'KAYIT LİSTESİ'!$B$4:$H$1019,5,0)),"",(VLOOKUP(B80,'KAYIT LİSTESİ'!$B$4:$H$1019,5,0))) ->  | F80: =IF(ISERROR(VLOOKUP(B80,'KAYIT LİSTESİ'!$B$4:$H$1019,6,0)),"",(VLOOKUP(B80,'KAYIT LİSTESİ'!$B$4:$H$1019,6,0))) ->  | J80: 5 | K80: GÜLLE-5 | L80: =IF(ISERROR(VLOOKUP(K80,'KAYIT LİSTESİ'!$B$4:$H$1019,2,0)),"",(VLOOKUP(K80,'KAYIT LİSTESİ'!$B$4:$H$1019,2,0))) -> 62 | M80: =IF(ISERROR(VLOOKUP(K80,'KAYIT LİSTESİ'!$B$4:$H$1019,4,0)),"",(VLOOKUP(K80,'KAYIT LİSTESİ'!$B$4:$H$1019,4,0))) -> 2000-01-01 | N80: =IF(ISERROR(VLOOKUP(K80,'KAYIT LİSTESİ'!$B$4:$H$1019,5,0)),"",(VLOOKUP(K80,'KAYIT LİSTESİ'!$B$4:$H$1019,5,0))) -> MUSA IŞIK | O80: =IF(ISERROR(VLOOKUP(K80,'KAYIT LİSTESİ'!$B$4:$H$1019,6,0)),"",(VLOOKUP(K80,'KAYIT LİSTESİ'!$B$4:$H$1019,6,0))) -> ARDAHAN
A81: 4 | B81: 110M.ENG-4-4 | C81: =IF(ISERROR(VLOOKUP(B81,'KAYIT LİSTESİ'!$B$4:$H$1019,2,0)),"",(VLOOKUP(B81,'KAYIT LİSTESİ'!$B$4:$H$1019,2,0))) ->  | D81: =IF(ISERROR(VLOOKUP(B81,'KAYIT LİSTESİ'!$B$4:$H$1019,4,0)),"",(VLOOKUP(B81,'KAYIT LİSTESİ'!$B$4:$H$1019,4,0))) ->  | E81: =IF(ISERROR(VLOOKUP(B81,'KAYIT LİSTESİ'!$B$4:$H$1019,5,0)),"",(VLOOKUP(B81,'KAYIT LİSTESİ'!$B$4:$H$1019,5,0))) ->  | F81: =IF(ISERROR(VLOOKUP(B81,'KAYIT LİSTESİ'!$B$4:$H$1019,6,0)),"",(VLOOKUP(B81,'KAYIT LİSTESİ'!$B$4:$H$1019,6,0))) ->  | J81: 6 | K81: GÜLLE-6 | L81: =IF(ISERROR(VLOOKUP(K81,'KAYIT LİSTESİ'!$B$4:$H$1019,2,0)),"",(VLOOKUP(K81,'KAYIT LİSTESİ'!$B$4:$H$1019,2,0))) -> 226 | M81: =IF(ISERROR(VLOOKUP(K81,'KAYIT LİSTESİ'!$B$4:$H$1019,4,0)),"",(VLOOKUP(K81,'KAYIT LİSTESİ'!$B$4:$H$1019,4,0))) -> 2000-01-01 | N81: =IF(ISERROR(VLOOKUP(K81,'KAYIT LİSTESİ'!$B$4:$H$1019,5,0)),"",(VLOOKUP(K81,'KAYIT LİSTESİ'!$B$4:$H$1019,5,0))) -> EROL PINARBAŞ | O81: =IF(ISERROR(VLOOKUP(K81,'KAYIT LİSTESİ'!$B$4:$H$1019,6,0)),"",(VLOOKUP(K81,'KAYIT LİSTESİ'!$B$4:$H$1019,6,0))) -> DENİZLİ
A82: 5 | B82: 110M.ENG-4-5 | C82: =IF(ISERROR(VLOOKUP(B82,'KAYIT LİSTESİ'!$B$4:$H$1019,2,0)),"",(VLOOKUP(B82,'KAYIT LİSTESİ'!$B$4:$H$1019,2,0))) ->  | D82: =IF(ISERROR(VLOOKUP(B82,'KAYIT LİSTESİ'!$B$4:$H$1019,4,0)),"",(VLOOKUP(B82,'KAYIT LİSTESİ'!$B$4:$H$1019,4,0))) ->  | E82: =IF(ISERROR(VLOOKUP(B82,'KAYIT LİSTESİ'!$B$4:$H$1019,5,0)),"",(VLOOKUP(B82,'KAYIT LİSTESİ'!$B$4:$H$1019,5,0))) ->  | F82: =IF(ISERROR(VLOOKUP(B82,'KAYIT LİSTESİ'!$B$4:$H$1019,6,0)),"",(VLOOKUP(B82,'KAYIT LİSTESİ'!$B$4:$H$1019,6,0))) ->  | J82: 7 | K82: GÜLLE-7 | L82: =IF(ISERROR(VLOOKUP(K82,'KAYIT LİSTESİ'!$B$4:$H$1019,2,0)),"",(VLOOKUP(K82,'KAYIT LİSTESİ'!$B$4:$H$1019,2,0))) -> 408 | M82: =IF(ISERROR(VLOOKUP(K82,'KAYIT LİSTESİ'!$B$4:$H$1019,4,0)),"",(VLOOKUP(K82,'KAYIT LİSTESİ'!$B$4:$H$1019,4,0))) -> 2000-04-12 | N82: =IF(ISERROR(VLOOKUP(K82,'KAYIT LİSTESİ'!$B$4:$H$1019,5,0)),"",(VLOOKUP(K82,'KAYIT LİSTESİ'!$B$4:$H$1019,5,0))) -> SALİH OĞUZ ERDEM | O82: =IF(ISERROR(VLOOKUP(K82,'KAYIT LİSTESİ'!$B$4:$H$1019,6,0)),"",(VLOOKUP(K82,'KAYIT LİSTESİ'!$B$4:$H$1019,6,0))) -> İZMİR
A83: 6 | B83: 110M.ENG-4-6 | C83: =IF(ISERROR(VLOOKUP(B83,'KAYIT LİSTESİ'!$B$4:$H$1019,2,0)),"",(VLOOKUP(B83,'KAYIT LİSTESİ'!$B$4:$H$1019,2,0))) ->  | D83: =IF(ISERROR(VLOOKUP(B83,'KAYIT LİSTESİ'!$B$4:$H$1019,4,0)),"",(VLOOKUP(B83,'KAYIT LİSTESİ'!$B$4:$H$1019,4,0))) ->  | E83: =IF(ISERROR(VLOOKUP(B83,'KAYIT LİSTESİ'!$B$4:$H$1019,5,0)),"",(VLOOKUP(B83,'KAYIT LİSTESİ'!$B$4:$H$1019,5,0))) ->  | F83: =IF(ISERROR(VLOOKUP(B83,'KAYIT LİSTESİ'!$B$4:$H$1019,6,0)),"",(VLOOKUP(B83,'KAYIT LİSTESİ'!$B$4:$H$1019,6,0))) ->  | J83: 8 | K83: GÜLLE-8 | L83: =IF(ISERROR(VLOOKUP(K83,'KAYIT LİSTESİ'!$B$4:$H$1019,2,0)),"",(VLOOKUP(K83,'KAYIT LİSTESİ'!$B$4:$H$1019,2,0))) -> 684 | M83: =IF(ISERROR(VLOOKUP(K83,'KAYIT LİSTESİ'!$B$4:$H$1019,4,0)),"",(VLOOKUP(K83,'KAYIT LİSTESİ'!$B$4:$H$1019,4,0))) -> 2000-01-09 | N83: =IF(ISERROR(VLOOKUP(K83,'KAYIT LİSTESİ'!$B$4:$H$1019,5,0)),"",(VLOOKUP(K83,'KAYIT LİSTESİ'!$B$4:$H$1019,5,0))) -> DOĞUKAN SAMAST | O83: =IF(ISERROR(VLOOKUP(K83,'KAYIT LİSTESİ'!$B$4:$H$1019,6,0)),"",(VLOOKUP(K83,'KAYIT LİSTESİ'!$B$4:$H$1019,6,0))) -> TEKİRDAĞ
A84: 7 | B84: 110M.ENG-4-7 | C84: =IF(ISERROR(VLOOKUP(B84,'KAYIT LİSTESİ'!$B$4:$H$1019,2,0)),"",(VLOOKUP(B84,'KAYIT LİSTESİ'!$B$4:$H$1019,2,0))) ->  | D84: =IF(ISERROR(VLOOKUP(B84,'KAYIT LİSTESİ'!$B$4:$H$1019,4,0)),"",(VLOOKUP(B84,'KAYIT LİSTESİ'!$B$4:$H$1019,4,0))) ->  | E84: =IF(ISERROR(VLOOKUP(B84,'KAYIT LİSTESİ'!$B$4:$H$1019,5,0)),"",(VLOOKUP(B84,'KAYIT LİSTESİ'!$B$4:$H$1019,5,0))) ->  | F84: =IF(ISERROR(VLOOKUP(B84,'KAYIT LİSTESİ'!$B$4:$H$1019,6,0)),"",(VLOOKUP(B84,'KAYIT LİSTESİ'!$B$4:$H$1019,6,0))) ->  | J84: 9 | K84: GÜLLE-9 | L84: =IF(ISERROR(VLOOKUP(K84,'KAYIT LİSTESİ'!$B$4:$H$1019,2,0)),"",(VLOOKUP(K84,'KAYIT LİSTESİ'!$B$4:$H$1019,2,0))) -> 660 | M84: =IF(ISERROR(VLOOKUP(K84,'KAYIT LİSTESİ'!$B$4:$H$1019,4,0)),"",(VLOOKUP(K84,'KAYIT LİSTESİ'!$B$4:$H$1019,4,0))) -> 2000-01-15 | N84: =IF(ISERROR(VLOOKUP(K84,'KAYIT LİSTESİ'!$B$4:$H$1019,5,0)),"",(VLOOKUP(K84,'KAYIT LİSTESİ'!$B$4:$H$1019,5,0))) -> OKTAY EREN | O84: =IF(ISERROR(VLOOKUP(K84,'KAYIT LİSTESİ'!$B$4:$H$1019,6,0)),"",(VLOOKUP(K84,'KAYIT LİSTESİ'!$B$4:$H$1019,6,0))) -> SİİRT
A85: 8 | B85: 110M.ENG-4-8 | C85: =IF(ISERROR(VLOOKUP(B85,'KAYIT LİSTESİ'!$B$4:$H$1019,2,0)),"",(VLOOKUP(B85,'KAYIT LİSTESİ'!$B$4:$H$1019,2,0))) ->  | D85: =IF(ISERROR(VLOOKUP(B85,'KAYIT LİSTESİ'!$B$4:$H$1019,4,0)),"",(VLOOKUP(B85,'KAYIT LİSTESİ'!$B$4:$H$1019,4,0))) ->  | E85: =IF(ISERROR(VLOOKUP(B85,'KAYIT LİSTESİ'!$B$4:$H$1019,5,0)),"",(VLOOKUP(B85,'KAYIT LİSTESİ'!$B$4:$H$1019,5,0))) ->  | F85: =IF(ISERROR(VLOOKUP(B85,'KAYIT LİSTESİ'!$B$4:$H$1019,6,0)),"",(VLOOKUP(B85,'KAYIT LİSTESİ'!$B$4:$H$1019,6,0))) ->  | J85: 10 | K85: GÜLLE-10 | L85: =IF(ISERROR(VLOOKUP(K85,'KAYIT LİSTESİ'!$B$4:$H$1019,2,0)),"",(VLOOKUP(K85,'KAYIT LİSTESİ'!$B$4:$H$1019,2,0))) -> 414 | M85: =IF(ISERROR(VLOOKUP(K85,'KAYIT LİSTESİ'!$B$4:$H$1019,4,0)),"",(VLOOKUP(K85,'KAYIT LİSTESİ'!$B$4:$H$1019,4,0))) -> 2000-01-01 | N85: =IF(ISERROR(VLOOKUP(K85,'KAYIT LİSTESİ'!$B$4:$H$1019,5,0)),"",(VLOOKUP(K85,'KAYIT LİSTESİ'!$B$4:$H$1019,5,0))) -> YAĞIZ HACIOĞLU | O85: =IF(ISERROR(VLOOKUP(K85,'KAYIT LİSTESİ'!$B$4:$H$1019,6,0)),"",(VLOOKUP(K85,'KAYIT LİSTESİ'!$B$4:$H$1019,6,0))) -> İZMİR
A86: 1500 METRE | J86: 11 | K86: GÜLLE-11 | L86: =IF(ISERROR(VLOOKUP(K86,'KAYIT LİSTESİ'!$B$4:$H$1019,2,0)),"",(VLOOKUP(K86,'KAYIT LİSTESİ'!$B$4:$H$1019,2,0))) -> 146 | M86: =IF(ISERROR(VLOOKUP(K86,'KAYIT LİSTESİ'!$B$4:$H$1019,4,0)),"",(VLOOKUP(K86,'KAYIT LİSTESİ'!$B$4:$H$1019,4,0))) -> 2000-10-16 | N86: =IF(ISERROR(VLOOKUP(K86,'KAYIT LİSTESİ'!$B$4:$H$1019,5,0)),"",(VLOOKUP(K86,'KAYIT LİSTESİ'!$B$4:$H$1019,5,0))) -> SEDAT KARTAL | O86: =IF(ISERROR(VLOOKUP(K86,'KAYIT LİSTESİ'!$B$4:$H$1019,6,0)),"",(VLOOKUP(K86,'KAYIT LİSTESİ'!$B$4:$H$1019,6,0))) -> BATMAN
A87: 1. SERİ | J87: 12 | K87: GÜLLE-12 | L87: =IF(ISERROR(VLOOKUP(K87,'KAYIT LİSTESİ'!$B$4:$H$1019,2,0)),"",(VLOOKUP(K87,'KAYIT LİSTESİ'!$B$4:$H$1019,2,0))) -> 145 | M87: =IF(ISERROR(VLOOKUP(K87,'KAYIT LİSTESİ'!$B$4:$H$1019,4,0)),"",(VLOOKUP(K87,'KAYIT LİSTESİ'!$B$4:$H$1019,4,0))) -> 2000-02-10 | N87: =IF(ISERROR(VLOOKUP(K87,'KAYIT LİSTESİ'!$B$4:$H$1019,5,0)),"",(VLOOKUP(K87,'KAYIT LİSTESİ'!$B$4:$H$1019,5,0))) -> AHMET DAŞ | O87: =IF(ISERROR(VLOOKUP(K87,'KAYIT LİSTESİ'!$B$4:$H$1019,6,0)),"",(VLOOKUP(K87,'KAYIT LİSTESİ'!$B$4:$H$1019,6,0))) -> BATMAN
A88: Sıra No | B88: Formül | C88: Göğüs No | D88: Doğum Tarihi | E88: Adı ve Soyadı | F88: Okulu | G88: Start Kontrol | J88: 13 | K88: GÜLLE-13 | L88: =IF(ISERROR(VLOOKUP(K88,'KAYIT LİSTESİ'!$B$4:$H$1019,2,0)),"",(VLOOKUP(K88,'KAYIT LİSTESİ'!$B$4:$H$1019,2,0))) -> 144 | M88: =IF(ISERROR(VLOOKUP(K88,'KAYIT LİSTESİ'!$B$4:$H$1019,4,0)),"",(VLOOKUP(K88,'KAYIT LİSTESİ'!$B$4:$H$1019,4,0))) -> 2000-01-01 | N88: =IF(ISERROR(VLOOKUP(K88,'KAYIT LİSTESİ'!$B$4:$H$1019,5,0)),"",(VLOOKUP(K88,'KAYIT LİSTESİ'!$B$4:$H$1019,5,0))) -> FERHAT İLİMEN | O88: =IF(ISERROR(VLOOKUP(K88,'KAYIT LİSTESİ'!$B$4:$H$1019,6,0)),"",(VLOOKUP(K88,'KAYIT LİSTESİ'!$B$4:$H$1019,6,0))) -> BATMAN
A89: 1 | B89: 1500M-1-1 | C89: =IF(ISERROR(VLOOKUP(B89,'KAYIT LİSTESİ'!$B$4:$H$1019,2,0)),"",(VLOOKUP(B89,'KAYIT LİSTESİ'!$B$4:$H$1019,2,0))) -> 43 | D89: =IF(ISERROR(VLOOKUP(B89,'KAYIT LİSTESİ'!$B$4:$H$1019,4,0)),"",(VLOOKUP(B89,'KAYIT LİSTESİ'!$B$4:$H$1019,4,0))) -> 2000-03-01 | E89: =IF(ISERROR(VLOOKUP(B89,'KAYIT LİSTESİ'!$B$4:$H$1019,5,0)),"",(VLOOKUP(B89,'KAYIT LİSTESİ'!$B$4:$H$1019,5,0))) -> BATUHAN AĞIL | F89: =IF(ISERROR(VLOOKUP(B89,'KAYIT LİSTESİ'!$B$4:$H$1019,6,0)),"",(VLOOKUP(B89,'KAYIT LİSTESİ'!$B$4:$H$1019,6,0))) -> AKSARAY | J89: 14 | K89: GÜLLE-14 | L89: =IF(ISERROR(VLOOKUP(K89,'KAYIT LİSTESİ'!$B$4:$H$1019,2,0)),"",(VLOOKUP(K89,'KAYIT LİSTESİ'!$B$4:$H$1019,2,0))) ->  | M89: =IF(ISERROR(VLOOKUP(K89,'KAYIT LİSTESİ'!$B$4:$H$1019,4,0)),"",(VLOOKUP(K89,'KAYIT LİSTESİ'!$B$4:$H$1019,4,0))) ->  | N89: =IF(ISERROR(VLOOKUP(K89,'KAYIT LİSTESİ'!$B$4:$H$1019,5,0)),"",(VLOOKUP(K89,'KAYIT LİSTESİ'!$B$4:$H$1019,5,0))) ->  | O89: =IF(ISERROR(VLOOKUP(K89,'KAYIT LİSTESİ'!$B$4:$H$1019,6,0)),"",(VLOOKUP(K89,'KAYIT LİSTESİ'!$B$4:$H$1019,6,0))) -> 
A90: 2 | B90: 1500M-1-2 | C90: =IF(ISERROR(VLOOKUP(B90,'KAYIT LİSTESİ'!$B$4:$H$1019,2,0)),"",(VLOOKUP(B90,'KAYIT LİSTESİ'!$B$4:$H$1019,2,0))) ->  | D90: =IF(ISERROR(VLOOKUP(B90,'KAYIT LİSTESİ'!$B$4:$H$1019,4,0)),"",(VLOOKUP(B90,'KAYIT LİSTESİ'!$B$4:$H$1019,4,0))) ->  | E90: =IF(ISERROR(VLOOKUP(B90,'KAYIT LİSTESİ'!$B$4:$H$1019,5,0)),"",(VLOOKUP(B90,'KAYIT LİSTESİ'!$B$4:$H$1019,5,0))) ->  | F90: =IF(ISERROR(VLOOKUP(B90,'KAYIT LİSTESİ'!$B$4:$H$1019,6,0)),"",(VLOOKUP(B90,'KAYIT LİSTESİ'!$B$4:$H$1019,6,0))) ->  | J90: 15 | K90: GÜLLE-15 | L90: =IF(ISERROR(VLOOKUP(K90,'KAYIT LİSTESİ'!$B$4:$H$1019,2,0)),"",(VLOOKUP(K90,'KAYIT LİSTESİ'!$B$4:$H$1019,2,0))) ->  | M90: =IF(ISERROR(VLOOKUP(K90,'KAYIT LİSTESİ'!$B$4:$H$1019,4,0)),"",(VLOOKUP(K90,'KAYIT LİSTESİ'!$B$4:$H$1019,4,0))) ->  | N90: =IF(ISERROR(VLOOKUP(K90,'KAYIT LİSTESİ'!$B$4:$H$1019,5,0)),"",(VLOOKUP(K90,'KAYIT LİSTESİ'!$B$4:$H$1019,5,0))) ->  | O90: =IF(ISERROR(VLOOKUP(K90,'KAYIT LİSTESİ'!$B$4:$H$1019,6,0)),"",(VLOOKUP(K90,'KAYIT LİSTESİ'!$B$4:$H$1019,6,0))) -> 
A91: 3 | B91: 1500M-1-3 | C91: =IF(ISERROR(VLOOKUP(B91,'KAYIT LİSTESİ'!$B$4:$H$1019,2,0)),"",(VLOOKUP(B91,'KAYIT LİSTESİ'!$B$4:$H$1019,2,0))) -> 591 | D91: =IF(ISERROR(VLOOKUP(B91,'KAYIT LİSTESİ'!$B$4:$H$1019,4,0)),"",(VLOOKUP(B91,'KAYIT LİSTESİ'!$B$4:$H$1019,4,0))) -> 2000-08-23 | E91: =IF(ISERROR(VLOOKUP(B91,'KAYIT LİSTESİ'!$B$4:$H$1019,5,0)),"",(VLOOKUP(B91,'KAYIT LİSTESİ'!$B$4:$H$1019,5,0))) -> ERDEM ÖZ | F91: =IF(ISERROR(VLOOKUP(B91,'KAYIT LİSTESİ'!$B$4:$H$1019,6,0)),"",(VLOOKUP(B91,'KAYIT LİSTESİ'!$B$4:$H$1019,6,0))) -> NEVŞEHİR | J91: 16 | K91: GÜLLE-16 | L91: =IF(ISERROR(VLOOKUP(K91,'KAYIT LİSTESİ'!$B$4:$H$1019,2,0)),"",(VLOOKUP(K91,'KAYIT LİSTESİ'!$B$4:$H$1019,2,0))) -> 413 | M91: =IF(ISERROR(VLOOKUP(K91,'KAYIT LİSTESİ'!$B$4:$H$1019,4,0)),"",(VLOOKUP(K91,'KAYIT LİSTESİ'!$B$4:$H$1019,4,0))) -> 2000-01-01 | N91: =IF(ISERROR(VLOOKUP(K91,'KAYIT LİSTESİ'!$B$4:$H$1019,5,0)),"",(VLOOKUP(K91,'KAYIT LİSTESİ'!$B$4:$H$1019,5,0))) -> SİNAN AYYILDIZ | O91: =IF(ISERROR(VLOOKUP(K91,'KAYIT LİSTESİ'!$B$4:$H$1019,6,0)),"",(VLOOKUP(K91,'KAYIT LİSTESİ'!$B$4:$H$1019,6,0))) -> İZMİR
A92: 4 | B92: 1500M-1-4 | C92: =IF(ISERROR(VLOOKUP(B92,'KAYIT LİSTESİ'!$B$4:$H$1019,2,0)),"",(VLOOKUP(B92,'KAYIT LİSTESİ'!$B$4:$H$1019,2,0))) -> 592 | D92: =IF(ISERROR(VLOOKUP(B92,'KAYIT LİSTESİ'!$B$4:$H$1019,4,0)),"",(VLOOKUP(B92,'KAYIT LİSTESİ'!$B$4:$H$1019,4,0))) -> 2000-04-15 | E92: =IF(ISERROR(VLOOKUP(B92,'KAYIT LİSTESİ'!$B$4:$H$1019,5,0)),"",(VLOOKUP(B92,'KAYIT LİSTESİ'!$B$4:$H$1019,5,0))) -> ANIL KALAYCI | F92: =IF(ISERROR(VLOOKUP(B92,'KAYIT LİSTESİ'!$B$4:$H$1019,6,0)),"",(VLOOKUP(B92,'KAYIT LİSTESİ'!$B$4:$H$1019,6,0))) -> NEVŞEHİR | J92: 17 | K92: GÜLLE-17 | L92: =IF(ISERROR(VLOOKUP(K92,'KAYIT LİSTESİ'!$B$4:$H$1019,2,0)),"",(VLOOKUP(K92,'KAYIT LİSTESİ'!$B$4:$H$1019,2,0))) -> 115 | M92: =IF(ISERROR(VLOOKUP(K92,'KAYIT LİSTESİ'!$B$4:$H$1019,4,0)),"",(VLOOKUP(K92,'KAYIT LİSTESİ'!$B$4:$H$1019,4,0))) -> 2000-11-27 | N92: =IF(ISERROR(VLOOKUP(K92,'KAYIT LİSTESİ'!$B$4:$H$1019,5,0)),"",(VLOOKUP(K92,'KAYIT LİSTESİ'!$B$4:$H$1019,5,0))) -> VOLKAN ŞAHİN | O92: =IF(ISERROR(VLOOKUP(K92,'KAYIT LİSTESİ'!$B$4:$H$1019,6,0)),"",(VLOOKUP(K92,'KAYIT LİSTESİ'!$B$4:$H$1019,6,0))) -> BALIKESİR
A93: 5 | B93: 1500M-1-5 | C93: =IF(ISERROR(VLOOKUP(B93,'KAYIT LİSTESİ'!$B$4:$H$1019,2,0)),"",(VLOOKUP(B93,'KAYIT LİSTESİ'!$B$4:$H$1019,2,0))) -> 468 | D93: =IF(ISERROR(VLOOKUP(B93,'KAYIT LİSTESİ'!$B$4:$H$1019,4,0)),"",(VLOOKUP(B93,'KAYIT LİSTESİ'!$B$4:$H$1019,4,0))) -> 2000-08-28 | E93: =IF(ISERROR(VLOOKUP(B93,'KAYIT LİSTESİ'!$B$4:$H$1019,5,0)),"",(VLOOKUP(B93,'KAYIT LİSTESİ'!$B$4:$H$1019,5,0))) -> RECEP AKDAĞ | F93: =IF(ISERROR(VLOOKUP(B93,'KAYIT LİSTESİ'!$B$4:$H$1019,6,0)),"",(VLOOKUP(B93,'KAYIT LİSTESİ'!$B$4:$H$1019,6,0))) -> KARAMAN | J93: 18 | K93: GÜLLE-18 | L93: =IF(ISERROR(VLOOKUP(K93,'KAYIT LİSTESİ'!$B$4:$H$1019,2,0)),"",(VLOOKUP(K93,'KAYIT LİSTESİ'!$B$4:$H$1019,2,0))) -> 194 | M93: =IF(ISERROR(VLOOKUP(K93,'KAYIT LİSTESİ'!$B$4:$H$1019,4,0)),"",(VLOOKUP(K93,'KAYIT LİSTESİ'!$B$4:$H$1019,4,0))) -> 2000-09-17 | N93: =IF(ISERROR(VLOOKUP(K93,'KAYIT LİSTESİ'!$B$4:$H$1019,5,0)),"",(VLOOKUP(K93,'KAYIT LİSTESİ'!$B$4:$H$1019,5,0))) -> ATAKAN GÖR | O93: =IF(ISERROR(VLOOKUP(K93,'KAYIT LİSTESİ'!$B$4:$H$1019,6,0)),"",(VLOOKUP(K93,'KAYIT LİSTESİ'!$B$4:$H$1019,6,0))) -> BURDUR
A94: 6 | B94: 1500M-1-6 | C94: =IF(ISERROR(VLOOKUP(B94,'KAYIT LİSTESİ'!$B$4:$H$1019,2,0)),"",(VLOOKUP(B94,'KAYIT LİSTESİ'!$B$4:$H$1019,2,0))) -> 289 | D94: =IF(ISERROR(VLOOKUP(B94,'KAYIT LİSTESİ'!$B$4:$H$1019,4,0)),"",(VLOOKUP(B94,'KAYIT LİSTESİ'!$B$4:$H$1019,4,0))) -> 2000-01-01 | E94: =IF(ISERROR(VLOOKUP(B94,'KAYIT LİSTESİ'!$B$4:$H$1019,5,0)),"",(VLOOKUP(B94,'KAYIT LİSTESİ'!$B$4:$H$1019,5,0))) -> MUSTAFA POLAT | F94: =IF(ISERROR(VLOOKUP(B94,'KAYIT LİSTESİ'!$B$4:$H$1019,6,0)),"",(VLOOKUP(B94,'KAYIT LİSTESİ'!$B$4:$H$1019,6,0))) -> GAZİANTEP | J94: 19 | K94: GÜLLE-19 | L94: =IF(ISERROR(VLOOKUP(K94,'KAYIT LİSTESİ'!$B$4:$H$1019,2,0)),"",(VLOOKUP(K94,'KAYIT LİSTESİ'!$B$4:$H$1019,2,0))) -> 164 | M94: =IF(ISERROR(VLOOKUP(K94,'KAYIT LİSTESİ'!$B$4:$H$1019,4,0)),"",(VLOOKUP(K94,'KAYIT LİSTESİ'!$B$4:$H$1019,4,0))) -> 2000-08-10 | N94: =IF(ISERROR(VLOOKUP(K94,'KAYIT LİSTESİ'!$B$4:$H$1019,5,0)),"",(VLOOKUP(K94,'KAYIT LİSTESİ'!$B$4:$H$1019,5,0))) -> EGEMEN TEZGEÇ | O94: =IF(ISERROR(VLOOKUP(K94,'KAYIT LİSTESİ'!$B$4:$H$1019,6,0)),"",(VLOOKUP(K94,'KAYIT LİSTESİ'!$B$4:$H$1019,6,0))) -> BİLECİK
A95: 7 | B95: 1500M-1-7 | C95: =IF(ISERROR(VLOOKUP(B95,'KAYIT LİSTESİ'!$B$4:$H$1019,2,0)),"",(VLOOKUP(B95,'KAYIT LİSTESİ'!$B$4:$H$1019,2,0))) ->  | D95: =IF(ISERROR(VLOOKUP(B95,'KAYIT LİSTESİ'!$B$4:$H$1019,4,0)),"",(VLOOKUP(B95,'KAYIT LİSTESİ'!$B$4:$H$1019,4,0))) ->  | E95: =IF(ISERROR(VLOOKUP(B95,'KAYIT LİSTESİ'!$B$4:$H$1019,5,0)),"",(VLOOKUP(B95,'KAYIT LİSTESİ'!$B$4:$H$1019,5,0))) ->  | F95: =IF(ISERROR(VLOOKUP(B95,'KAYIT LİSTESİ'!$B$4:$H$1019,6,0)),"",(VLOOKUP(B95,'KAYIT LİSTESİ'!$B$4:$H$1019,6,0))) ->  | J95: 20 | K95: GÜLLE-20 | L95: =IF(ISERROR(VLOOKUP(K95,'KAYIT LİSTESİ'!$B$4:$H$1019,2,0)),"",(VLOOKUP(K95,'KAYIT LİSTESİ'!$B$4:$H$1019,2,0))) -> 482 | M95: =IF(ISERROR(VLOOKUP(K95,'KAYIT LİSTESİ'!$B$4:$H$1019,4,0)),"",(VLOOKUP(K95,'KAYIT LİSTESİ'!$B$4:$H$1019,4,0))) -> 2000-09-10 | N95: =IF(ISERROR(VLOOKUP(K95,'KAYIT LİSTESİ'!$B$4:$H$1019,5,0)),"",(VLOOKUP(K95,'KAYIT LİSTESİ'!$B$4:$H$1019,5,0))) -> BERAT YEŞİLYURT | O95: =IF(ISERROR(VLOOKUP(K95,'KAYIT LİSTESİ'!$B$4:$H$1019,6,0)),"",(VLOOKUP(K95,'KAYIT LİSTESİ'!$B$4:$H$1019,6,0))) -> KIRIKKALE
A96: 8 | B96: 1500M-1-8 | C96: =IF(ISERROR(VLOOKUP(B96,'KAYIT LİSTESİ'!$B$4:$H$1019,2,0)),"",(VLOOKUP(B96,'KAYIT LİSTESİ'!$B$4:$H$1019,2,0))) ->  | D96: =IF(ISERROR(VLOOKUP(B96,'KAYIT LİSTESİ'!$B$4:$H$1019,4,0)),"",(VLOOKUP(B96,'KAYIT LİSTESİ'!$B$4:$H$1019,4,0))) ->  | E96: =IF(ISERROR(VLOOKUP(B96,'KAYIT LİSTESİ'!$B$4:$H$1019,5,0)),"",(VLOOKUP(B96,'KAYIT LİSTESİ'!$B$4:$H$1019,5,0))) ->  | F96: =IF(ISERROR(VLOOKUP(B96,'KAYIT LİSTESİ'!$B$4:$H$1019,6,0)),"",(VLOOKUP(B96,'KAYIT LİSTESİ'!$B$4:$H$1019,6,0))) ->  | J96: 21 | K96: GÜLLE-21 | L96: =IF(ISERROR(VLOOKUP(K96,'KAYIT LİSTESİ'!$B$4:$H$1019,2,0)),"",(VLOOKUP(K96,'KAYIT LİSTESİ'!$B$4:$H$1019,2,0))) -> 419 | M96: =IF(ISERROR(VLOOKUP(K96,'KAYIT LİSTESİ'!$B$4:$H$1019,4,0)),"",(VLOOKUP(K96,'KAYIT LİSTESİ'!$B$4:$H$1019,4,0))) -> 2000-02-25 | N96: =IF(ISERROR(VLOOKUP(K96,'KAYIT LİSTESİ'!$B$4:$H$1019,5,0)),"",(VLOOKUP(K96,'KAYIT LİSTESİ'!$B$4:$H$1019,5,0))) -> ÜMİT AÇILAN | O96: =IF(ISERROR(VLOOKUP(K96,'KAYIT LİSTESİ'!$B$4:$H$1019,6,0)),"",(VLOOKUP(K96,'KAYIT LİSTESİ'!$B$4:$H$1019,6,0))) -> İZMİR
A97: 9 | B97: 1500M-1-9 | C97: =IF(ISERROR(VLOOKUP(B97,'KAYIT LİSTESİ'!$B$4:$H$1019,2,0)),"",(VLOOKUP(B97,'KAYIT LİSTESİ'!$B$4:$H$1019,2,0))) -> 467 | D97: =IF(ISERROR(VLOOKUP(B97,'KAYIT LİSTESİ'!$B$4:$H$1019,4,0)),"",(VLOOKUP(B97,'KAYIT LİSTESİ'!$B$4:$H$1019,4,0))) -> 2000-12-10 | E97: =IF(ISERROR(VLOOKUP(B97,'KAYIT LİSTESİ'!$B$4:$H$1019,5,0)),"",(VLOOKUP(B97,'KAYIT LİSTESİ'!$B$4:$H$1019,5,0))) -> M.CELİL DURMAZ | F97: =IF(ISERROR(VLOOKUP(B97,'KAYIT LİSTESİ'!$B$4:$H$1019,6,0)),"",(VLOOKUP(B97,'KAYIT LİSTESİ'!$B$4:$H$1019,6,0))) -> KARAMAN | J97: 22 | K97: GÜLLE-22 | L97: =IF(ISERROR(VLOOKUP(K97,'KAYIT LİSTESİ'!$B$4:$H$1019,2,0)),"",(VLOOKUP(K97,'KAYIT LİSTESİ'!$B$4:$H$1019,2,0))) -> 225 | M97: =IF(ISERROR(VLOOKUP(K97,'KAYIT LİSTESİ'!$B$4:$H$1019,4,0)),"",(VLOOKUP(K97,'KAYIT LİSTESİ'!$B$4:$H$1019,4,0))) -> 2000-01-01 | N97: =IF(ISERROR(VLOOKUP(K97,'KAYIT LİSTESİ'!$B$4:$H$1019,5,0)),"",(VLOOKUP(K97,'KAYIT LİSTESİ'!$B$4:$H$1019,5,0))) -> ÇAĞRI BOZKAYA | O97: =IF(ISERROR(VLOOKUP(K97,'KAYIT LİSTESİ'!$B$4:$H$1019,6,0)),"",(VLOOKUP(K97,'KAYIT LİSTESİ'!$B$4:$H$1019,6,0))) -> DENİZLİ
A98: 10 | B98: 1500M-1-10 | C98: =IF(ISERROR(VLOOKUP(B98,'KAYIT LİSTESİ'!$B$4:$H$1019,2,0)),"",(VLOOKUP(B98,'KAYIT LİSTESİ'!$B$4:$H$1019,2,0))) -> 444 | D98: =IF(ISERROR(VLOOKUP(B98,'KAYIT LİSTESİ'!$B$4:$H$1019,4,0)),"",(VLOOKUP(B98,'KAYIT LİSTESİ'!$B$4:$H$1019,4,0))) -> 2000-09-30 | E98: =IF(ISERROR(VLOOKUP(B98,'KAYIT LİSTESİ'!$B$4:$H$1019,5,0)),"",(VLOOKUP(B98,'KAYIT LİSTESİ'!$B$4:$H$1019,5,0))) -> ONUR PUŞA | F98: =IF(ISERROR(VLOOKUP(B98,'KAYIT LİSTESİ'!$B$4:$H$1019,6,0)),"",(VLOOKUP(B98,'KAYIT LİSTESİ'!$B$4:$H$1019,6,0))) -> İZMİR | J98: 23 | K98: GÜLLE-23 | L98: =IF(ISERROR(VLOOKUP(K98,'KAYIT LİSTESİ'!$B$4:$H$1019,2,0)),"",(VLOOKUP(K98,'KAYIT LİSTESİ'!$B$4:$H$1019,2,0))) -> 710 | M98: =IF(ISERROR(VLOOKUP(K98,'KAYIT LİSTESİ'!$B$4:$H$1019,4,0)),"",(VLOOKUP(K98,'KAYIT LİSTESİ'!$B$4:$H$1019,4,0))) -> 2000-03-25 | N98: =IF(ISERROR(VLOOKUP(K98,'KAYIT LİSTESİ'!$B$4:$H$1019,5,0)),"",(VLOOKUP(K98,'KAYIT LİSTESİ'!$B$4:$H$1019,5,0))) -> BURAK DERTLİ | O98: =IF(ISERROR(VLOOKUP(K98,'KAYIT LİSTESİ'!$B$4:$H$1019,6,0)),"",(VLOOKUP(K98,'KAYIT LİSTESİ'!$B$4:$H$1019,6,0))) -> TRABZON
A99: 11 | B99: 1500M-1-11 | C99: =IF(ISERROR(VLOOKUP(B99,'KAYIT LİSTESİ'!$B$4:$H$1019,2,0)),"",(VLOOKUP(B99,'KAYIT LİSTESİ'!$B$4:$H$1019,2,0))) -> 371 | D99: =IF(ISERROR(VLOOKUP(B99,'KAYIT LİSTESİ'!$B$4:$H$1019,4,0)),"",(VLOOKUP(B99,'KAYIT LİSTESİ'!$B$4:$H$1019,4,0))) -> 2001-06-02 | E99: =IF(ISERROR(VLOOKUP(B99,'KAYIT LİSTESİ'!$B$4:$H$1019,5,0)),"",(VLOOKUP(B99,'KAYIT LİSTESİ'!$B$4:$H$1019,5,0))) -> SELİM YETKİN | F99: =IF(ISERROR(VLOOKUP(B99,'KAYIT LİSTESİ'!$B$4:$H$1019,6,0)),"",(VLOOKUP(B99,'KAYIT LİSTESİ'!$B$4:$H$1019,6,0))) -> İSTANBUL | J99: 24 | K99: GÜLLE-24 | L99: =IF(ISERROR(VLOOKUP(K99,'KAYIT LİSTESİ'!$B$4:$H$1019,2,0)),"",(VLOOKUP(K99,'KAYIT LİSTESİ'!$B$4:$H$1019,2,0))) -> 576 | M99: =IF(ISERROR(VLOOKUP(K99,'KAYIT LİSTESİ'!$B$4:$H$1019,4,0)),"",(VLOOKUP(K99,'KAYIT LİSTESİ'!$B$4:$H$1019,4,0))) -> 2000-04-01 | N99: =IF(ISERROR(VLOOKUP(K99,'KAYIT LİSTESİ'!$B$4:$H$1019,5,0)),"",(VLOOKUP(K99,'KAYIT LİSTESİ'!$B$4:$H$1019,5,0))) -> Yunus SÖZÜGÜZEL | O99: =IF(ISERROR(VLOOKUP(K99,'KAYIT LİSTESİ'!$B$4:$H$1019,6,0)),"",(VLOOKUP(K99,'KAYIT LİSTESİ'!$B$4:$H$1019,6,0))) -> MUŞ
A100: 12 | B100: 1500M-1-12 | C100: =IF(ISERROR(VLOOKUP(B100,'KAYIT LİSTESİ'!$B$4:$H$1019,2,0)),"",(VLOOKUP(B100,'KAYIT LİSTESİ'!$B$4:$H$1019,2,0))) -> 288 | D100: =IF(ISERROR(VLOOKUP(B100,'KAYIT LİSTESİ'!$B$4:$H$1019,4,0)),"",(VLOOKUP(B100,'KAYIT LİSTESİ'!$B$4:$H$1019,4,0))) -> 2001-01-01 | E100: =IF(ISERROR(VLOOKUP(B100,'KAYIT LİSTESİ'!$B$4:$H$1019,5,0)),"",(VLOOKUP(B100,'KAYIT LİSTESİ'!$B$4:$H$1019,5,0))) -> H.NOOR MAMAD | F100: =IF(ISERROR(VLOOKUP(B100,'KAYIT LİSTESİ'!$B$4:$H$1019,6,0)),"",(VLOOKUP(B100,'KAYIT LİSTESİ'!$B$4:$H$1019,6,0))) -> GAZİANTEP | J100: 25 | K100: GÜLLE-25 | L100: =IF(ISERROR(VLOOKUP(K100,'KAYIT LİSTESİ'!$B$4:$H$1019,2,0)),"",(VLOOKUP(K100,'KAYIT LİSTESİ'!$B$4:$H$1019,2,0))) ->  | M100: =IF(ISERROR(VLOOKUP(K100,'KAYIT LİSTESİ'!$B$4:$H$1019,4,0)),"",(VLOOKUP(K100,'KAYIT LİSTESİ'!$B$4:$H$1019,4,0))) ->  | N100: =IF(ISERROR(VLOOKUP(K100,'KAYIT LİSTESİ'!$B$4:$H$1019,5,0)),"",(VLOOKUP(K100,'KAYIT LİSTESİ'!$B$4:$H$1019,5,0))) ->  | O100: =IF(ISERROR(VLOOKUP(K100,'KAYIT LİSTESİ'!$B$4:$H$1019,6,0)),"",(VLOOKUP(K100,'KAYIT LİSTESİ'!$B$4:$H$1019,6,0))) -> 
A101: 2. SERİ | J101: 26 | K101: GÜLLE-26 | L101: =IF(ISERROR(VLOOKUP(K101,'KAYIT LİSTESİ'!$B$4:$H$1019,2,0)),"",(VLOOKUP(K101,'KAYIT LİSTESİ'!$B$4:$H$1019,2,0))) ->  | M101: =IF(ISERROR(VLOOKUP(K101,'KAYIT LİSTESİ'!$B$4:$H$1019,4,0)),"",(VLOOKUP(K101,'KAYIT LİSTESİ'!$B$4:$H$1019,4,0))) ->  | N101: =IF(ISERROR(VLOOKUP(K101,'KAYIT LİSTESİ'!$B$4:$H$1019,5,0)),"",(VLOOKUP(K101,'KAYIT LİSTESİ'!$B$4:$H$1019,5,0))) ->  | O101: =IF(ISERROR(VLOOKUP(K101,'KAYIT LİSTESİ'!$B$4:$H$1019,6,0)),"",(VLOOKUP(K101,'KAYIT LİSTESİ'!$B$4:$H$1019,6,0))) -> 
A102: Sıra No | B102: Formül | C102: Göğüs No | D102: Doğum Tarihi | E102: Adı ve Soyadı | F102: Okulu | G102: Start Kontrol | J102: 27 | K102: GÜLLE-27 | L102: =IF(ISERROR(VLOOKUP(K102,'KAYIT LİSTESİ'!$B$4:$H$1019,2,0)),"",(VLOOKUP(K102,'KAYIT LİSTESİ'!$B$4:$H$1019,2,0))) ->  | M102: =IF(ISERROR(VLOOKUP(K102,'KAYIT LİSTESİ'!$B$4:$H$1019,4,0)),"",(VLOOKUP(K102,'KAYIT LİSTESİ'!$B$4:$H$1019,4,0))) ->  | N102: =IF(ISERROR(VLOOKUP(K102,'KAYIT LİSTESİ'!$B$4:$H$1019,5,0)),"",(VLOOKUP(K102,'KAYIT LİSTESİ'!$B$4:$H$1019,5,0))) ->  | O102: =IF(ISERROR(VLOOKUP(K102,'KAYIT LİSTESİ'!$B$4:$H$1019,6,0)),"",(VLOOKUP(K102,'KAYIT LİSTESİ'!$B$4:$H$1019,6,0))) -> 
A103: 1 | B103: 1500M-2-1 | C103: =IF(ISERROR(VLOOKUP(B103,'KAYIT LİSTESİ'!$B$4:$H$1019,2,0)),"",(VLOOKUP(B103,'KAYIT LİSTESİ'!$B$4:$H$1019,2,0))) ->  | D103: =IF(ISERROR(VLOOKUP(B103,'KAYIT LİSTESİ'!$B$4:$H$1019,4,0)),"",(VLOOKUP(B103,'KAYIT LİSTESİ'!$B$4:$H$1019,4,0))) ->  | E103: =IF(ISERROR(VLOOKUP(B103,'KAYIT LİSTESİ'!$B$4:$H$1019,5,0)),"",(VLOOKUP(B103,'KAYIT LİSTESİ'!$B$4:$H$1019,5,0))) ->  | F103: =IF(ISERROR(VLOOKUP(B103,'KAYIT LİSTESİ'!$B$4:$H$1019,6,0)),"",(VLOOKUP(B103,'KAYIT LİSTESİ'!$B$4:$H$1019,6,0))) ->  | J103: 28 | K103: GÜLLE-28 | L103: =IF(ISERROR(VLOOKUP(K103,'KAYIT LİSTESİ'!$B$4:$H$1019,2,0)),"",(VLOOKUP(K103,'KAYIT LİSTESİ'!$B$4:$H$1019,2,0))) ->  | M103: =IF(ISERROR(VLOOKUP(K103,'KAYIT LİSTESİ'!$B$4:$H$1019,4,0)),"",(VLOOKUP(K103,'KAYIT LİSTESİ'!$B$4:$H$1019,4,0))) ->  | N103: =IF(ISERROR(VLOOKUP(K103,'KAYIT LİSTESİ'!$B$4:$H$1019,5,0)),"",(VLOOKUP(K103,'KAYIT LİSTESİ'!$B$4:$H$1019,5,0))) ->  | O103: =IF(ISERROR(VLOOKUP(K103,'KAYIT LİSTESİ'!$B$4:$H$1019,6,0)),"",(VLOOKUP(K103,'KAYIT LİSTESİ'!$B$4:$H$1019,6,0))) -> 
A104: 2 | B104: 1500M-2-2 | C104: =IF(ISERROR(VLOOKUP(B104,'KAYIT LİSTESİ'!$B$4:$H$1019,2,0)),"",(VLOOKUP(B104,'KAYIT LİSTESİ'!$B$4:$H$1019,2,0))) ->  | D104: =IF(ISERROR(VLOOKUP(B104,'KAYIT LİSTESİ'!$B$4:$H$1019,4,0)),"",(VLOOKUP(B104,'KAYIT LİSTESİ'!$B$4:$H$1019,4,0))) ->  | E104: =IF(ISERROR(VLOOKUP(B104,'KAYIT LİSTESİ'!$B$4:$H$1019,5,0)),"",(VLOOKUP(B104,'KAYIT LİSTESİ'!$B$4:$H$1019,5,0))) ->  | F104: =IF(ISERROR(VLOOKUP(B104,'KAYIT LİSTESİ'!$B$4:$H$1019,6,0)),"",(VLOOKUP(B104,'KAYIT LİSTESİ'!$B$4:$H$1019,6,0))) ->  | J104: 29 | K104: GÜLLE-29 | L104: =IF(ISERROR(VLOOKUP(K104,'KAYIT LİSTESİ'!$B$4:$H$1019,2,0)),"",(VLOOKUP(K104,'KAYIT LİSTESİ'!$B$4:$H$1019,2,0))) ->  | M104: =IF(ISERROR(VLOOKUP(K104,'KAYIT LİSTESİ'!$B$4:$H$1019,4,0)),"",(VLOOKUP(K104,'KAYIT LİSTESİ'!$B$4:$H$1019,4,0))) ->  | N104: =IF(ISERROR(VLOOKUP(K104,'KAYIT LİSTESİ'!$B$4:$H$1019,5,0)),"",(VLOOKUP(K104,'KAYIT LİSTESİ'!$B$4:$H$1019,5,0))) ->  | O104: =IF(ISERROR(VLOOKUP(K104,'KAYIT LİSTESİ'!$B$4:$H$1019,6,0)),"",(VLOOKUP(K104,'KAYIT LİSTESİ'!$B$4:$H$1019,6,0))) -> 
A105: 3 | B105: 1500M-2-3 | C105: =IF(ISERROR(VLOOKUP(B105,'KAYIT LİSTESİ'!$B$4:$H$1019,2,0)),"",(VLOOKUP(B105,'KAYIT LİSTESİ'!$B$4:$H$1019,2,0))) -> 484 | D105: =IF(ISERROR(VLOOKUP(B105,'KAYIT LİSTESİ'!$B$4:$H$1019,4,0)),"",(VLOOKUP(B105,'KAYIT LİSTESİ'!$B$4:$H$1019,4,0))) -> 2000-03-30 | E105: =IF(ISERROR(VLOOKUP(B105,'KAYIT LİSTESİ'!$B$4:$H$1019,5,0)),"",(VLOOKUP(B105,'KAYIT LİSTESİ'!$B$4:$H$1019,5,0))) -> MEHMET KÖRPE | F105: =IF(ISERROR(VLOOKUP(B105,'KAYIT LİSTESİ'!$B$4:$H$1019,6,0)),"",(VLOOKUP(B105,'KAYIT LİSTESİ'!$B$4:$H$1019,6,0))) -> KIRIKKALE | J105: 30 | K105: GÜLLE-30 | L105: =IF(ISERROR(VLOOKUP(K105,'KAYIT LİSTESİ'!$B$4:$H$1019,2,0)),"",(VLOOKUP(K105,'KAYIT LİSTESİ'!$B$4:$H$1019,2,0))) ->  | M105: =IF(ISERROR(VLOOKUP(K105,'KAYIT LİSTESİ'!$B$4:$H$1019,4,0)),"",(VLOOKUP(K105,'KAYIT LİSTESİ'!$B$4:$H$1019,4,0))) ->  | N105: =IF(ISERROR(VLOOKUP(K105,'KAYIT LİSTESİ'!$B$4:$H$1019,5,0)),"",(VLOOKUP(K105,'KAYIT LİSTESİ'!$B$4:$H$1019,5,0))) ->  | O105: =IF(ISERROR(VLOOKUP(K105,'KAYIT LİSTESİ'!$B$4:$H$1019,6,0)),"",(VLOOKUP(K105,'KAYIT LİSTESİ'!$B$4:$H$1019,6,0))) -> 
A106: 4 | B106: 1500M-2-4 | C106: =IF(ISERROR(VLOOKUP(B106,'KAYIT LİSTESİ'!$B$4:$H$1019,2,0)),"",(VLOOKUP(B106,'KAYIT LİSTESİ'!$B$4:$H$1019,2,0))) -> 483 | D106: =IF(ISERROR(VLOOKUP(B106,'KAYIT LİSTESİ'!$B$4:$H$1019,4,0)),"",(VLOOKUP(B106,'KAYIT LİSTESİ'!$B$4:$H$1019,4,0))) -> 2000-07-01 | E106: =IF(ISERROR(VLOOKUP(B106,'KAYIT LİSTESİ'!$B$4:$H$1019,5,0)),"",(VLOOKUP(B106,'KAYIT LİSTESİ'!$B$4:$H$1019,5,0))) -> ORHAM ERDOĞAN | F106: =IF(ISERROR(VLOOKUP(B106,'KAYIT LİSTESİ'!$B$4:$H$1019,6,0)),"",(VLOOKUP(B106,'KAYIT LİSTESİ'!$B$4:$H$1019,6,0))) -> KIRIKKALE | J106: 31 | K106: GÜLLE-31 | L106: =IF(ISERROR(VLOOKUP(K106,'KAYIT LİSTESİ'!$B$4:$H$1019,2,0)),"",(VLOOKUP(K106,'KAYIT LİSTESİ'!$B$4:$H$1019,2,0))) ->  | M106: =IF(ISERROR(VLOOKUP(K106,'KAYIT LİSTESİ'!$B$4:$H$1019,4,0)),"",(VLOOKUP(K106,'KAYIT LİSTESİ'!$B$4:$H$1019,4,0))) ->  | N106: =IF(ISERROR(VLOOKUP(K106,'KAYIT LİSTESİ'!$B$4:$H$1019,5,0)),"",(VLOOKUP(K106,'KAYIT LİSTESİ'!$B$4:$H$1019,5,0))) ->  | O106: =IF(ISERROR(VLOOKUP(K106,'KAYIT LİSTESİ'!$B$4:$H$1019,6,0)),"",(VLOOKUP(K106,'KAYIT LİSTESİ'!$B$4:$H$1019,6,0))) -> 
A107: 5 | B107: 1500M-2-5 | C107: =IF(ISERROR(VLOOKUP(B107,'KAYIT LİSTESİ'!$B$4:$H$1019,2,0)),"",(VLOOKUP(B107,'KAYIT LİSTESİ'!$B$4:$H$1019,2,0))) -> 61 | D107: =IF(ISERROR(VLOOKUP(B107,'KAYIT LİSTESİ'!$B$4:$H$1019,4,0)),"",(VLOOKUP(B107,'KAYIT LİSTESİ'!$B$4:$H$1019,4,0))) -> 2000-01-01 | E107: =IF(ISERROR(VLOOKUP(B107,'KAYIT LİSTESİ'!$B$4:$H$1019,5,0)),"",(VLOOKUP(B107,'KAYIT LİSTESİ'!$B$4:$H$1019,5,0))) -> EREN ERDEM ŞENTÜRK | F107: =IF(ISERROR(VLOOKUP(B107,'KAYIT LİSTESİ'!$B$4:$H$1019,6,0)),"",(VLOOKUP(B107,'KAYIT LİSTESİ'!$B$4:$H$1019,6,0))) -> ARDAHAN | J107: 32 | K107: GÜLLE-32 | L107: =IF(ISERROR(VLOOKUP(K107,'KAYIT LİSTESİ'!$B$4:$H$1019,2,0)),"",(VLOOKUP(K107,'KAYIT LİSTESİ'!$B$4:$H$1019,2,0))) ->  | M107: =IF(ISERROR(VLOOKUP(K107,'KAYIT LİSTESİ'!$B$4:$H$1019,4,0)),"",(VLOOKUP(K107,'KAYIT LİSTESİ'!$B$4:$H$1019,4,0))) ->  | N107: =IF(ISERROR(VLOOKUP(K107,'KAYIT LİSTESİ'!$B$4:$H$1019,5,0)),"",(VLOOKUP(K107,'KAYIT LİSTESİ'!$B$4:$H$1019,5,0))) ->  | O107: =IF(ISERROR(VLOOKUP(K107,'KAYIT LİSTESİ'!$B$4:$H$1019,6,0)),"",(VLOOKUP(K107,'KAYIT LİSTESİ'!$B$4:$H$1019,6,0))) -> 
A108: 6 | B108: 1500M-2-6 | C108: =IF(ISERROR(VLOOKUP(B108,'KAYIT LİSTESİ'!$B$4:$H$1019,2,0)),"",(VLOOKUP(B108,'KAYIT LİSTESİ'!$B$4:$H$1019,2,0))) -> 62 | D108: =IF(ISERROR(VLOOKUP(B108,'KAYIT LİSTESİ'!$B$4:$H$1019,4,0)),"",(VLOOKUP(B108,'KAYIT LİSTESİ'!$B$4:$H$1019,4,0))) -> 2000-01-01 | E108: =IF(ISERROR(VLOOKUP(B108,'KAYIT LİSTESİ'!$B$4:$H$1019,5,0)),"",(VLOOKUP(B108,'KAYIT LİSTESİ'!$B$4:$H$1019,5,0))) -> MUSA IŞIK | F108: =IF(ISERROR(VLOOKUP(B108,'KAYIT LİSTESİ'!$B$4:$H$1019,6,0)),"",(VLOOKUP(B108,'KAYIT LİSTESİ'!$B$4:$H$1019,6,0))) -> ARDAHAN | J108: 33 | K108: GÜLLE-33 | L108: =IF(ISERROR(VLOOKUP(K108,'KAYIT LİSTESİ'!$B$4:$H$1019,2,0)),"",(VLOOKUP(K108,'KAYIT LİSTESİ'!$B$4:$H$1019,2,0))) ->  | M108: =IF(ISERROR(VLOOKUP(K108,'KAYIT LİSTESİ'!$B$4:$H$1019,4,0)),"",(VLOOKUP(K108,'KAYIT LİSTESİ'!$B$4:$H$1019,4,0))) ->  | N108: =IF(ISERROR(VLOOKUP(K108,'KAYIT LİSTESİ'!$B$4:$H$1019,5,0)),"",(VLOOKUP(K108,'KAYIT LİSTESİ'!$B$4:$H$1019,5,0))) ->  | O108: =IF(ISERROR(VLOOKUP(K108,'KAYIT LİSTESİ'!$B$4:$H$1019,6,0)),"",(VLOOKUP(K108,'KAYIT LİSTESİ'!$B$4:$H$1019,6,0))) -> 
A109: 7 | B109: 1500M-2-7 | C109: =IF(ISERROR(VLOOKUP(B109,'KAYIT LİSTESİ'!$B$4:$H$1019,2,0)),"",(VLOOKUP(B109,'KAYIT LİSTESİ'!$B$4:$H$1019,2,0))) -> 241 | D109: =IF(ISERROR(VLOOKUP(B109,'KAYIT LİSTESİ'!$B$4:$H$1019,4,0)),"",(VLOOKUP(B109,'KAYIT LİSTESİ'!$B$4:$H$1019,4,0))) -> 2000-01-27 | E109: =IF(ISERROR(VLOOKUP(B109,'KAYIT LİSTESİ'!$B$4:$H$1019,5,0)),"",(VLOOKUP(B109,'KAYIT LİSTESİ'!$B$4:$H$1019,5,0))) -> HASAN TEK | F109: =IF(ISERROR(VLOOKUP(B109,'KAYIT LİSTESİ'!$B$4:$H$1019,6,0)),"",(VLOOKUP(B109,'KAYIT LİSTESİ'!$B$4:$H$1019,6,0))) -> EDİRNE | J109: 34 | K109: GÜLLE-34 | L109: =IF(ISERROR(VLOOKUP(K109,'KAYIT LİSTESİ'!$B$4:$H$1019,2,0)),"",(VLOOKUP(K109,'KAYIT LİSTESİ'!$B$4:$H$1019,2,0))) ->  | M109: =IF(ISERROR(VLOOKUP(K109,'KAYIT LİSTESİ'!$B$4:$H$1019,4,0)),"",(VLOOKUP(K109,'KAYIT LİSTESİ'!$B$4:$H$1019,4,0))) ->  | N109: =IF(ISERROR(VLOOKUP(K109,'KAYIT LİSTESİ'!$B$4:$H$1019,5,0)),"",(VLOOKUP(K109,'KAYIT LİSTESİ'!$B$4:$H$1019,5,0))) ->  | O109: =IF(ISERROR(VLOOKUP(K109,'KAYIT LİSTESİ'!$B$4:$H$1019,6,0)),"",(VLOOKUP(K109,'KAYIT LİSTESİ'!$B$4:$H$1019,6,0))) -> 
A110: 8 | B110: 1500M-2-8 | C110: =IF(ISERROR(VLOOKUP(B110,'KAYIT LİSTESİ'!$B$4:$H$1019,2,0)),"",(VLOOKUP(B110,'KAYIT LİSTESİ'!$B$4:$H$1019,2,0))) -> 347 | D110: =IF(ISERROR(VLOOKUP(B110,'KAYIT LİSTESİ'!$B$4:$H$1019,4,0)),"",(VLOOKUP(B110,'KAYIT LİSTESİ'!$B$4:$H$1019,4,0))) -> 2000-04-07 | E110: =IF(ISERROR(VLOOKUP(B110,'KAYIT LİSTESİ'!$B$4:$H$1019,5,0)),"",(VLOOKUP(B110,'KAYIT LİSTESİ'!$B$4:$H$1019,5,0))) -> AŞİR ALİ GÖVERCİN | F110: =IF(ISERROR(VLOOKUP(B110,'KAYIT LİSTESİ'!$B$4:$H$1019,6,0)),"",(VLOOKUP(B110,'KAYIT LİSTESİ'!$B$4:$H$1019,6,0))) -> ISPARTA | J110: 35 | K110: GÜLLE-35 | L110: =IF(ISERROR(VLOOKUP(K110,'KAYIT LİSTESİ'!$B$4:$H$1019,2,0)),"",(VLOOKUP(K110,'KAYIT LİSTESİ'!$B$4:$H$1019,2,0))) ->  | M110: =IF(ISERROR(VLOOKUP(K110,'KAYIT LİSTESİ'!$B$4:$H$1019,4,0)),"",(VLOOKUP(K110,'KAYIT LİSTESİ'!$B$4:$H$1019,4,0))) ->  | N110: =IF(ISERROR(VLOOKUP(K110,'KAYIT LİSTESİ'!$B$4:$H$1019,5,0)),"",(VLOOKUP(K110,'KAYIT LİSTESİ'!$B$4:$H$1019,5,0))) ->  | O110: =IF(ISERROR(VLOOKUP(K110,'KAYIT LİSTESİ'!$B$4:$H$1019,6,0)),"",(VLOOKUP(K110,'KAYIT LİSTESİ'!$B$4:$H$1019,6,0))) -> 
A111: 9 | B111: 1500M-2-9 | C111: =IF(ISERROR(VLOOKUP(B111,'KAYIT LİSTESİ'!$B$4:$H$1019,2,0)),"",(VLOOKUP(B111,'KAYIT LİSTESİ'!$B$4:$H$1019,2,0))) -> 554 | D111: =IF(ISERROR(VLOOKUP(B111,'KAYIT LİSTESİ'!$B$4:$H$1019,4,0)),"",(VLOOKUP(B111,'KAYIT LİSTESİ'!$B$4:$H$1019,4,0))) -> 2000-10-15 | E111: =IF(ISERROR(VLOOKUP(B111,'KAYIT LİSTESİ'!$B$4:$H$1019,5,0)),"",(VLOOKUP(B111,'KAYIT LİSTESİ'!$B$4:$H$1019,5,0))) -> OĞUZ TÜRKER | F111: =IF(ISERROR(VLOOKUP(B111,'KAYIT LİSTESİ'!$B$4:$H$1019,6,0)),"",(VLOOKUP(B111,'KAYIT LİSTESİ'!$B$4:$H$1019,6,0))) -> KÜTAHYA | J111: 36 | K111: GÜLLE-36 | L111: =IF(ISERROR(VLOOKUP(K111,'KAYIT LİSTESİ'!$B$4:$H$1019,2,0)),"",(VLOOKUP(K111,'KAYIT LİSTESİ'!$B$4:$H$1019,2,0))) ->  | M111: =IF(ISERROR(VLOOKUP(K111,'KAYIT LİSTESİ'!$B$4:$H$1019,4,0)),"",(VLOOKUP(K111,'KAYIT LİSTESİ'!$B$4:$H$1019,4,0))) ->  | N111: =IF(ISERROR(VLOOKUP(K111,'KAYIT LİSTESİ'!$B$4:$H$1019,5,0)),"",(VLOOKUP(K111,'KAYIT LİSTESİ'!$B$4:$H$1019,5,0))) ->  | O111: =IF(ISERROR(VLOOKUP(K111,'KAYIT LİSTESİ'!$B$4:$H$1019,6,0)),"",(VLOOKUP(K111,'KAYIT LİSTESİ'!$B$4:$H$1019,6,0))) -> 
A112: 10 | B112: 1500M-2-10 | C112: =IF(ISERROR(VLOOKUP(B112,'KAYIT LİSTESİ'!$B$4:$H$1019,2,0)),"",(VLOOKUP(B112,'KAYIT LİSTESİ'!$B$4:$H$1019,2,0))) ->  | D112: =IF(ISERROR(VLOOKUP(B112,'KAYIT LİSTESİ'!$B$4:$H$1019,4,0)),"",(VLOOKUP(B112,'KAYIT LİSTESİ'!$B$4:$H$1019,4,0))) ->  | E112: =IF(ISERROR(VLOOKUP(B112,'KAYIT LİSTESİ'!$B$4:$H$1019,5,0)),"",(VLOOKUP(B112,'KAYIT LİSTESİ'!$B$4:$H$1019,5,0))) ->  | F112: =IF(ISERROR(VLOOKUP(B112,'KAYIT LİSTESİ'!$B$4:$H$1019,6,0)),"",(VLOOKUP(B112,'KAYIT LİSTESİ'!$B$4:$H$1019,6,0))) ->  | J112: 37 | K112: GÜLLE-37 | L112: =IF(ISERROR(VLOOKUP(K112,'KAYIT LİSTESİ'!$B$4:$H$1019,2,0)),"",(VLOOKUP(K112,'KAYIT LİSTESİ'!$B$4:$H$1019,2,0))) ->  | M112: =IF(ISERROR(VLOOKUP(K112,'KAYIT LİSTESİ'!$B$4:$H$1019,4,0)),"",(VLOOKUP(K112,'KAYIT LİSTESİ'!$B$4:$H$1019,4,0))) ->  | N112: =IF(ISERROR(VLOOKUP(K112,'KAYIT LİSTESİ'!$B$4:$H$1019,5,0)),"",(VLOOKUP(K112,'KAYIT LİSTESİ'!$B$4:$H$1019,5,0))) ->  | O112: =IF(ISERROR(VLOOKUP(K112,'KAYIT LİSTESİ'!$B$4:$H$1019,6,0)),"",(VLOOKUP(K112,'KAYIT LİSTESİ'!$B$4:$H$1019,6,0))) -> 
A113: 11 | B113: 1500M-2-11 | C113: =IF(ISERROR(VLOOKUP(B113,'KAYIT LİSTESİ'!$B$4:$H$1019,2,0)),"",(VLOOKUP(B113,'KAYIT LİSTESİ'!$B$4:$H$1019,2,0))) -> 251 | D113: =IF(ISERROR(VLOOKUP(B113,'KAYIT LİSTESİ'!$B$4:$H$1019,4,0)),"",(VLOOKUP(B113,'KAYIT LİSTESİ'!$B$4:$H$1019,4,0))) -> 2001-06-01 | E113: =IF(ISERROR(VLOOKUP(B113,'KAYIT LİSTESİ'!$B$4:$H$1019,5,0)),"",(VLOOKUP(B113,'KAYIT LİSTESİ'!$B$4:$H$1019,5,0))) -> CEMEL KÖKTEN | F113: =IF(ISERROR(VLOOKUP(B113,'KAYIT LİSTESİ'!$B$4:$H$1019,6,0)),"",(VLOOKUP(B113,'KAYIT LİSTESİ'!$B$4:$H$1019,6,0))) -> ERZİNCAN | J113: 38 | K113: GÜLLE-38 | L113: =IF(ISERROR(VLOOKUP(K113,'KAYIT LİSTESİ'!$B$4:$H$1019,2,0)),"",(VLOOKUP(K113,'KAYIT LİSTESİ'!$B$4:$H$1019,2,0))) ->  | M113: =IF(ISERROR(VLOOKUP(K113,'KAYIT LİSTESİ'!$B$4:$H$1019,4,0)),"",(VLOOKUP(K113,'KAYIT LİSTESİ'!$B$4:$H$1019,4,0))) ->  | N113: =IF(ISERROR(VLOOKUP(K113,'KAYIT LİSTESİ'!$B$4:$H$1019,5,0)),"",(VLOOKUP(K113,'KAYIT LİSTESİ'!$B$4:$H$1019,5,0))) ->  | O113: =IF(ISERROR(VLOOKUP(K113,'KAYIT LİSTESİ'!$B$4:$H$1019,6,0)),"",(VLOOKUP(K113,'KAYIT LİSTESİ'!$B$4:$H$1019,6,0))) -> 
A114: 12 | B114: 1500M-2-12 | C114: =IF(ISERROR(VLOOKUP(B114,'KAYIT LİSTESİ'!$B$4:$H$1019,2,0)),"",(VLOOKUP(B114,'KAYIT LİSTESİ'!$B$4:$H$1019,2,0))) ->  | D114: =IF(ISERROR(VLOOKUP(B114,'KAYIT LİSTESİ'!$B$4:$H$1019,4,0)),"",(VLOOKUP(B114,'KAYIT LİSTESİ'!$B$4:$H$1019,4,0))) ->  | E114: =IF(ISERROR(VLOOKUP(B114,'KAYIT LİSTESİ'!$B$4:$H$1019,5,0)),"",(VLOOKUP(B114,'KAYIT LİSTESİ'!$B$4:$H$1019,5,0))) ->  | F114: =IF(ISERROR(VLOOKUP(B114,'KAYIT LİSTESİ'!$B$4:$H$1019,6,0)),"",(VLOOKUP(B114,'KAYIT LİSTESİ'!$B$4:$H$1019,6,0))) ->  | J114: 39 | K114: GÜLLE-39 | L114: =IF(ISERROR(VLOOKUP(K114,'KAYIT LİSTESİ'!$B$4:$H$1019,2,0)),"",(VLOOKUP(K114,'KAYIT LİSTESİ'!$B$4:$H$1019,2,0))) ->  | M114: =IF(ISERROR(VLOOKUP(K114,'KAYIT LİSTESİ'!$B$4:$H$1019,4,0)),"",(VLOOKUP(K114,'KAYIT LİSTESİ'!$B$4:$H$1019,4,0))) ->  | N114: =IF(ISERROR(VLOOKUP(K114,'KAYIT LİSTESİ'!$B$4:$H$1019,5,0)),"",(VLOOKUP(K114,'KAYIT LİSTESİ'!$B$4:$H$1019,5,0))) ->  | O114: =IF(ISERROR(VLOOKUP(K114,'KAYIT LİSTESİ'!$B$4:$H$1019,6,0)),"",(VLOOKUP(K114,'KAYIT LİSTESİ'!$B$4:$H$1019,6,0))) -> 
A115: 3. SERİ | J115: 40 | K115: GÜLLE-40 | L115: =IF(ISERROR(VLOOKUP(K115,'KAYIT LİSTESİ'!$B$4:$H$1019,2,0)),"",(VLOOKUP(K115,'KAYIT LİSTESİ'!$B$4:$H$1019,2,0))) ->  | M115: =IF(ISERROR(VLOOKUP(K115,'KAYIT LİSTESİ'!$B$4:$H$1019,4,0)),"",(VLOOKUP(K115,'KAYIT LİSTESİ'!$B$4:$H$1019,4,0))) ->  | N115: =IF(ISERROR(VLOOKUP(K115,'KAYIT LİSTESİ'!$B$4:$H$1019,5,0)),"",(VLOOKUP(K115,'KAYIT LİSTESİ'!$B$4:$H$1019,5,0))) ->  | O115: =IF(ISERROR(VLOOKUP(K115,'KAYIT LİSTESİ'!$B$4:$H$1019,6,0)),"",(VLOOKUP(K115,'KAYIT LİSTESİ'!$B$4:$H$1019,6,0))) -> 
A116: Sıra No | B116: Formül | C116: Göğüs No | D116: Doğum Tarihi | E116: Adı ve Soyadı | F116: Okulu | G116: Start Kontrol | J116: UZUN ATLAMA
A117: 1 | B117: 1500M-3-1 | C117: =IF(ISERROR(VLOOKUP(B117,'KAYIT LİSTESİ'!$B$4:$H$1019,2,0)),"",(VLOOKUP(B117,'KAYIT LİSTESİ'!$B$4:$H$1019,2,0))) -> 663 | D117: =IF(ISERROR(VLOOKUP(B117,'KAYIT LİSTESİ'!$B$4:$H$1019,4,0)),"",(VLOOKUP(B117,'KAYIT LİSTESİ'!$B$4:$H$1019,4,0))) -> 2000-01-06 | E117: =IF(ISERROR(VLOOKUP(B117,'KAYIT LİSTESİ'!$B$4:$H$1019,5,0)),"",(VLOOKUP(B117,'KAYIT LİSTESİ'!$B$4:$H$1019,5,0))) -> İSMAİL TİMURTAŞ | F117: =IF(ISERROR(VLOOKUP(B117,'KAYIT LİSTESİ'!$B$4:$H$1019,6,0)),"",(VLOOKUP(B117,'KAYIT LİSTESİ'!$B$4:$H$1019,6,0))) -> SİİRT | J117: SIRA NO | L117: GÖĞÜS NO | M117: DOĞUM TARİHİ | N117: ADI VE SOYADI | O117: OKULU | P117: Start Kontrol
A118: 2 | B118: 1500M-3-2 | C118: =IF(ISERROR(VLOOKUP(B118,'KAYIT LİSTESİ'!$B$4:$H$1019,2,0)),"",(VLOOKUP(B118,'KAYIT LİSTESİ'!$B$4:$H$1019,2,0))) -> 662 | D118: =IF(ISERROR(VLOOKUP(B118,'KAYIT LİSTESİ'!$B$4:$H$1019,4,0)),"",(VLOOKUP(B118,'KAYIT LİSTESİ'!$B$4:$H$1019,4,0))) -> 2000-04-01 | E118: =IF(ISERROR(VLOOKUP(B118,'KAYIT LİSTESİ'!$B$4:$H$1019,5,0)),"",(VLOOKUP(B118,'KAYIT LİSTESİ'!$B$4:$H$1019,5,0))) -> VEYSİ TIZ | F118: =IF(ISERROR(VLOOKUP(B118,'KAYIT LİSTESİ'!$B$4:$H$1019,6,0)),"",(VLOOKUP(B118,'KAYIT LİSTESİ'!$B$4:$H$1019,6,0))) -> SİİRT
A119: 3 | B119: 1500M-3-3 | C119: =IF(ISERROR(VLOOKUP(B119,'KAYIT LİSTESİ'!$B$4:$H$1019,2,0)),"",(VLOOKUP(B119,'KAYIT LİSTESİ'!$B$4:$H$1019,2,0))) -> 546 | D119: =IF(ISERROR(VLOOKUP(B119,'KAYIT LİSTESİ'!$B$4:$H$1019,4,0)),"",(VLOOKUP(B119,'KAYIT LİSTESİ'!$B$4:$H$1019,4,0))) -> 2000-01-12 | E119: =IF(ISERROR(VLOOKUP(B119,'KAYIT LİSTESİ'!$B$4:$H$1019,5,0)),"",(VLOOKUP(B119,'KAYIT LİSTESİ'!$B$4:$H$1019,5,0))) -> ENES YÜKSEL | F119: =IF(ISERROR(VLOOKUP(B119,'KAYIT LİSTESİ'!$B$4:$H$1019,6,0)),"",(VLOOKUP(B119,'KAYIT LİSTESİ'!$B$4:$H$1019,6,0))) -> KÜTAHYA | J119: 1 | K119: UZUN-1 | L119: =IF(ISERROR(VLOOKUP(K119,'KAYIT LİSTESİ'!$B$4:$H$1019,2,0)),"",(VLOOKUP(K119,'KAYIT LİSTESİ'!$B$4:$H$1019,2,0))) ->  | M119: =IF(ISERROR(VLOOKUP(K119,'KAYIT LİSTESİ'!$B$4:$H$1019,4,0)),"",(VLOOKUP(K119,'KAYIT LİSTESİ'!$B$4:$H$1019,4,0))) ->  | N119: =IF(ISERROR(VLOOKUP(K119,'KAYIT LİSTESİ'!$B$4:$H$1019,5,0)),"",(VLOOKUP(K119,'KAYIT LİSTESİ'!$B$4:$H$1019,5,0))) ->  | O119: =IF(ISERROR(VLOOKUP(K119,'KAYIT LİSTESİ'!$B$4:$H$1019,6,0)),"",(VLOOKUP(K119,'KAYIT LİSTESİ'!$B$4:$H$1019,6,0))) -> 
A120: 4 | B120: 1500M-3-4 | C120: =IF(ISERROR(VLOOKUP(B120,'KAYIT LİSTESİ'!$B$4:$H$1019,2,0)),"",(VLOOKUP(B120,'KAYIT LİSTESİ'!$B$4:$H$1019,2,0))) -> 118 | D120: =IF(ISERROR(VLOOKUP(B120,'KAYIT LİSTESİ'!$B$4:$H$1019,4,0)),"",(VLOOKUP(B120,'KAYIT LİSTESİ'!$B$4:$H$1019,4,0))) -> 2000-01-01 | E120: =IF(ISERROR(VLOOKUP(B120,'KAYIT LİSTESİ'!$B$4:$H$1019,5,0)),"",(VLOOKUP(B120,'KAYIT LİSTESİ'!$B$4:$H$1019,5,0))) -> MERT ADAR | F120: =IF(ISERROR(VLOOKUP(B120,'KAYIT LİSTESİ'!$B$4:$H$1019,6,0)),"",(VLOOKUP(B120,'KAYIT LİSTESİ'!$B$4:$H$1019,6,0))) -> BALIKESİR | J120: 2 | K120: UZUN-2 | L120: =IF(ISERROR(VLOOKUP(K120,'KAYIT LİSTESİ'!$B$4:$H$1019,2,0)),"",(VLOOKUP(K120,'KAYIT LİSTESİ'!$B$4:$H$1019,2,0))) ->  | M120: =IF(ISERROR(VLOOKUP(K120,'KAYIT LİSTESİ'!$B$4:$H$1019,4,0)),"",(VLOOKUP(K120,'KAYIT LİSTESİ'!$B$4:$H$1019,4,0))) ->  | N120: =IF(ISERROR(VLOOKUP(K120,'KAYIT LİSTESİ'!$B$4:$H$1019,5,0)),"",(VLOOKUP(K120,'KAYIT LİSTESİ'!$B$4:$H$1019,5,0))) ->  | O120: =IF(ISERROR(VLOOKUP(K120,'KAYIT LİSTESİ'!$B$4:$H$1019,6,0)),"",(VLOOKUP(K120,'KAYIT LİSTESİ'!$B$4:$H$1019,6,0))) -> 
A121: 5 | B121: 1500M-3-5 | C121: =IF(ISERROR(VLOOKUP(B121,'KAYIT LİSTESİ'!$B$4:$H$1019,2,0)),"",(VLOOKUP(B121,'KAYIT LİSTESİ'!$B$4:$H$1019,2,0))) ->  | D121: =IF(ISERROR(VLOOKUP(B121,'KAYIT LİSTESİ'!$B$4:$H$1019,4,0)),"",(VLOOKUP(B121,'KAYIT LİSTESİ'!$B$4:$H$1019,4,0))) ->  | E121: =IF(ISERROR(VLOOKUP(B121,'KAYIT LİSTESİ'!$B$4:$H$1019,5,0)),"",(VLOOKUP(B121,'KAYIT LİSTESİ'!$B$4:$H$1019,5,0))) ->  | F121: =IF(ISERROR(VLOOKUP(B121,'KAYIT LİSTESİ'!$B$4:$H$1019,6,0)),"",(VLOOKUP(B121,'KAYIT LİSTESİ'!$B$4:$H$1019,6,0))) ->  | J121: 3 | K121: UZUN-3 | L121: =IF(ISERROR(VLOOKUP(K121,'KAYIT LİSTESİ'!$B$4:$H$1019,2,0)),"",(VLOOKUP(K121,'KAYIT LİSTESİ'!$B$4:$H$1019,2,0))) ->  | M121: =IF(ISERROR(VLOOKUP(K121,'KAYIT LİSTESİ'!$B$4:$H$1019,4,0)),"",(VLOOKUP(K121,'KAYIT LİSTESİ'!$B$4:$H$1019,4,0))) ->  | N121: =IF(ISERROR(VLOOKUP(K121,'KAYIT LİSTESİ'!$B$4:$H$1019,5,0)),"",(VLOOKUP(K121,'KAYIT LİSTESİ'!$B$4:$H$1019,5,0))) ->  | O121: =IF(ISERROR(VLOOKUP(K121,'KAYIT LİSTESİ'!$B$4:$H$1019,6,0)),"",(VLOOKUP(K121,'KAYIT LİSTESİ'!$B$4:$H$1019,6,0))) -> 
A122: 6 | B122: 1500M-3-6 | C122: =IF(ISERROR(VLOOKUP(B122,'KAYIT LİSTESİ'!$B$4:$H$1019,2,0)),"",(VLOOKUP(B122,'KAYIT LİSTESİ'!$B$4:$H$1019,2,0))) -> 125 | D122: =IF(ISERROR(VLOOKUP(B122,'KAYIT LİSTESİ'!$B$4:$H$1019,4,0)),"",(VLOOKUP(B122,'KAYIT LİSTESİ'!$B$4:$H$1019,4,0))) -> 2000-03-19 | E122: =IF(ISERROR(VLOOKUP(B122,'KAYIT LİSTESİ'!$B$4:$H$1019,5,0)),"",(VLOOKUP(B122,'KAYIT LİSTESİ'!$B$4:$H$1019,5,0))) -> ESAT GEZER | F122: =IF(ISERROR(VLOOKUP(B122,'KAYIT LİSTESİ'!$B$4:$H$1019,6,0)),"",(VLOOKUP(B122,'KAYIT LİSTESİ'!$B$4:$H$1019,6,0))) -> BARTIN | J122: 4 | K122: UZUN-4 | L122: =IF(ISERROR(VLOOKUP(K122,'KAYIT LİSTESİ'!$B$4:$H$1019,2,0)),"",(VLOOKUP(K122,'KAYIT LİSTESİ'!$B$4:$H$1019,2,0))) ->  | M122: =IF(ISERROR(VLOOKUP(K122,'KAYIT LİSTESİ'!$B$4:$H$1019,4,0)),"",(VLOOKUP(K122,'KAYIT LİSTESİ'!$B$4:$H$1019,4,0))) ->  | N122: =IF(ISERROR(VLOOKUP(K122,'KAYIT LİSTESİ'!$B$4:$H$1019,5,0)),"",(VLOOKUP(K122,'KAYIT LİSTESİ'!$B$4:$H$1019,5,0))) ->  | O122: =IF(ISERROR(VLOOKUP(K122,'KAYIT LİSTESİ'!$B$4:$H$1019,6,0)),"",(VLOOKUP(K122,'KAYIT LİSTESİ'!$B$4:$H$1019,6,0))) -> 
A123: 7 | B123: 1500M-3-7 | C123: =IF(ISERROR(VLOOKUP(B123,'KAYIT LİSTESİ'!$B$4:$H$1019,2,0)),"",(VLOOKUP(B123,'KAYIT LİSTESİ'!$B$4:$H$1019,2,0))) -> 659 | D123: =IF(ISERROR(VLOOKUP(B123,'KAYIT LİSTESİ'!$B$4:$H$1019,4,0)),"",(VLOOKUP(B123,'KAYIT LİSTESİ'!$B$4:$H$1019,4,0))) -> 2000-04-13 | E123: =IF(ISERROR(VLOOKUP(B123,'KAYIT LİSTESİ'!$B$4:$H$1019,5,0)),"",(VLOOKUP(B123,'KAYIT LİSTESİ'!$B$4:$H$1019,5,0))) -> MEHMET EMİN DİLDİRİM | F123: =IF(ISERROR(VLOOKUP(B123,'KAYIT LİSTESİ'!$B$4:$H$1019,6,0)),"",(VLOOKUP(B123,'KAYIT LİSTESİ'!$B$4:$H$1019,6,0))) -> SİİRT | J123: 5 | K123: UZUN-5 | L123: =IF(ISERROR(VLOOKUP(K123,'KAYIT LİSTESİ'!$B$4:$H$1019,2,0)),"",(VLOOKUP(K123,'KAYIT LİSTESİ'!$B$4:$H$1019,2,0))) ->  | M123: =IF(ISERROR(VLOOKUP(K123,'KAYIT LİSTESİ'!$B$4:$H$1019,4,0)),"",(VLOOKUP(K123,'KAYIT LİSTESİ'!$B$4:$H$1019,4,0))) ->  | N123: =IF(ISERROR(VLOOKUP(K123,'KAYIT LİSTESİ'!$B$4:$H$1019,5,0)),"",(VLOOKUP(K123,'KAYIT LİSTESİ'!$B$4:$H$1019,5,0))) ->  | O123: =IF(ISERROR(VLOOKUP(K123,'KAYIT LİSTESİ'!$B$4:$H$1019,6,0)),"",(VLOOKUP(K123,'KAYIT LİSTESİ'!$B$4:$H$1019,6,0))) -> 
A124: 8 | B124: 1500M-3-8 | C124: =IF(ISERROR(VLOOKUP(B124,'KAYIT LİSTESİ'!$B$4:$H$1019,2,0)),"",(VLOOKUP(B124,'KAYIT LİSTESİ'!$B$4:$H$1019,2,0))) -> 745 | D124: =IF(ISERROR(VLOOKUP(B124,'KAYIT LİSTESİ'!$B$4:$H$1019,4,0)),"",(VLOOKUP(B124,'KAYIT LİSTESİ'!$B$4:$H$1019,4,0))) -> 2000-01-26 | E124: =IF(ISERROR(VLOOKUP(B124,'KAYIT LİSTESİ'!$B$4:$H$1019,5,0)),"",(VLOOKUP(B124,'KAYIT LİSTESİ'!$B$4:$H$1019,5,0))) -> ENFAL KANTARCI | F124: =IF(ISERROR(VLOOKUP(B124,'KAYIT LİSTESİ'!$B$4:$H$1019,6,0)),"",(VLOOKUP(B124,'KAYIT LİSTESİ'!$B$4:$H$1019,6,0))) -> SAKARYA | J124: 6 | K124: UZUN-6 | L124: =IF(ISERROR(VLOOKUP(K124,'KAYIT LİSTESİ'!$B$4:$H$1019,2,0)),"",(VLOOKUP(K124,'KAYIT LİSTESİ'!$B$4:$H$1019,2,0))) ->  | M124: =IF(ISERROR(VLOOKUP(K124,'KAYIT LİSTESİ'!$B$4:$H$1019,4,0)),"",(VLOOKUP(K124,'KAYIT LİSTESİ'!$B$4:$H$1019,4,0))) ->  | N124: =IF(ISERROR(VLOOKUP(K124,'KAYIT LİSTESİ'!$B$4:$H$1019,5,0)),"",(VLOOKUP(K124,'KAYIT LİSTESİ'!$B$4:$H$1019,5,0))) ->  | O124: =IF(ISERROR(VLOOKUP(K124,'KAYIT LİSTESİ'!$B$4:$H$1019,6,0)),"",(VLOOKUP(K124,'KAYIT LİSTESİ'!$B$4:$H$1019,6,0))) -> 
A125: 9 | B125: 1500M-3-9 | C125: =IF(ISERROR(VLOOKUP(B125,'KAYIT LİSTESİ'!$B$4:$H$1019,2,0)),"",(VLOOKUP(B125,'KAYIT LİSTESİ'!$B$4:$H$1019,2,0))) -> 353 | D125: =IF(ISERROR(VLOOKUP(B125,'KAYIT LİSTESİ'!$B$4:$H$1019,4,0)),"",(VLOOKUP(B125,'KAYIT LİSTESİ'!$B$4:$H$1019,4,0))) -> 2000-06-01 | E125: =IF(ISERROR(VLOOKUP(B125,'KAYIT LİSTESİ'!$B$4:$H$1019,5,0)),"",(VLOOKUP(B125,'KAYIT LİSTESİ'!$B$4:$H$1019,5,0))) -> BATUHAN AKOL | F125: =IF(ISERROR(VLOOKUP(B125,'KAYIT LİSTESİ'!$B$4:$H$1019,6,0)),"",(VLOOKUP(B125,'KAYIT LİSTESİ'!$B$4:$H$1019,6,0))) -> ISPARTA | J125: 7 | K125: UZUN-7 | L125: =IF(ISERROR(VLOOKUP(K125,'KAYIT LİSTESİ'!$B$4:$H$1019,2,0)),"",(VLOOKUP(K125,'KAYIT LİSTESİ'!$B$4:$H$1019,2,0))) ->  | M125: =IF(ISERROR(VLOOKUP(K125,'KAYIT LİSTESİ'!$B$4:$H$1019,4,0)),"",(VLOOKUP(K125,'KAYIT LİSTESİ'!$B$4:$H$1019,4,0))) ->  | N125: =IF(ISERROR(VLOOKUP(K125,'KAYIT LİSTESİ'!$B$4:$H$1019,5,0)),"",(VLOOKUP(K125,'KAYIT LİSTESİ'!$B$4:$H$1019,5,0))) ->  | O125: =IF(ISERROR(VLOOKUP(K125,'KAYIT LİSTESİ'!$B$4:$H$1019,6,0)),"",(VLOOKUP(K125,'KAYIT LİSTESİ'!$B$4:$H$1019,6,0))) -> 
A126: 10 | B126: 1500M-3-10 | C126: =IF(ISERROR(VLOOKUP(B126,'KAYIT LİSTESİ'!$B$4:$H$1019,2,0)),"",(VLOOKUP(B126,'KAYIT LİSTESİ'!$B$4:$H$1019,2,0))) -> 175 | D126: =IF(ISERROR(VLOOKUP(B126,'KAYIT LİSTESİ'!$B$4:$H$1019,4,0)),"",(VLOOKUP(B126,'KAYIT LİSTESİ'!$B$4:$H$1019,4,0))) -> 2000-01-01 | E126: =IF(ISERROR(VLOOKUP(B126,'KAYIT LİSTESİ'!$B$4:$H$1019,5,0)),"",(VLOOKUP(B126,'KAYIT LİSTESİ'!$B$4:$H$1019,5,0))) -> GÜRSEL EDEN | F126: =IF(ISERROR(VLOOKUP(B126,'KAYIT LİSTESİ'!$B$4:$H$1019,6,0)),"",(VLOOKUP(B126,'KAYIT LİSTESİ'!$B$4:$H$1019,6,0))) -> BİNGÖL | J126: 8 | K126: UZUN-8 | L126: =IF(ISERROR(VLOOKUP(K126,'KAYIT LİSTESİ'!$B$4:$H$1019,2,0)),"",(VLOOKUP(K126,'KAYIT LİSTESİ'!$B$4:$H$1019,2,0))) ->  | M126: =IF(ISERROR(VLOOKUP(K126,'KAYIT LİSTESİ'!$B$4:$H$1019,4,0)),"",(VLOOKUP(K126,'KAYIT LİSTESİ'!$B$4:$H$1019,4,0))) ->  | N126: =IF(ISERROR(VLOOKUP(K126,'KAYIT LİSTESİ'!$B$4:$H$1019,5,0)),"",(VLOOKUP(K126,'KAYIT LİSTESİ'!$B$4:$H$1019,5,0))) ->  | O126: =IF(ISERROR(VLOOKUP(K126,'KAYIT LİSTESİ'!$B$4:$H$1019,6,0)),"",(VLOOKUP(K126,'KAYIT LİSTESİ'!$B$4:$H$1019,6,0))) -> 
A127: 11 | B127: 1500M-3-11 | C127: =IF(ISERROR(VLOOKUP(B127,'KAYIT LİSTESİ'!$B$4:$H$1019,2,0)),"",(VLOOKUP(B127,'KAYIT LİSTESİ'!$B$4:$H$1019,2,0))) -> 235 | D127: =IF(ISERROR(VLOOKUP(B127,'KAYIT LİSTESİ'!$B$4:$H$1019,4,0)),"",(VLOOKUP(B127,'KAYIT LİSTESİ'!$B$4:$H$1019,4,0))) -> 2001-01-02 | E127: =IF(ISERROR(VLOOKUP(B127,'KAYIT LİSTESİ'!$B$4:$H$1019,5,0)),"",(VLOOKUP(B127,'KAYIT LİSTESİ'!$B$4:$H$1019,5,0))) -> M.BAYRAM KURT | F127: =IF(ISERROR(VLOOKUP(B127,'KAYIT LİSTESİ'!$B$4:$H$1019,6,0)),"",(VLOOKUP(B127,'KAYIT LİSTESİ'!$B$4:$H$1019,6,0))) -> DİYARBAKIR | J127: 9 | K127: UZUN-9 | L127: =IF(ISERROR(VLOOKUP(K127,'KAYIT LİSTESİ'!$B$4:$H$1019,2,0)),"",(VLOOKUP(K127,'KAYIT LİSTESİ'!$B$4:$H$1019,2,0))) ->  | M127: =IF(ISERROR(VLOOKUP(K127,'KAYIT LİSTESİ'!$B$4:$H$1019,4,0)),"",(VLOOKUP(K127,'KAYIT LİSTESİ'!$B$4:$H$1019,4,0))) ->  | N127: =IF(ISERROR(VLOOKUP(K127,'KAYIT LİSTESİ'!$B$4:$H$1019,5,0)),"",(VLOOKUP(K127,'KAYIT LİSTESİ'!$B$4:$H$1019,5,0))) ->  | O127: =IF(ISERROR(VLOOKUP(K127,'KAYIT LİSTESİ'!$B$4:$H$1019,6,0)),"",(VLOOKUP(K127,'KAYIT LİSTESİ'!$B$4:$H$1019,6,0))) -> 
A128: 12 | B128: 1500M-3-12 | C128: =IF(ISERROR(VLOOKUP(B128,'KAYIT LİSTESİ'!$B$4:$H$1019,2,0)),"",(VLOOKUP(B128,'KAYIT LİSTESİ'!$B$4:$H$1019,2,0))) -> 268 | D128: =IF(ISERROR(VLOOKUP(B128,'KAYIT LİSTESİ'!$B$4:$H$1019,4,0)),"",(VLOOKUP(B128,'KAYIT LİSTESİ'!$B$4:$H$1019,4,0))) -> 2001-05-15 | E128: =IF(ISERROR(VLOOKUP(B128,'KAYIT LİSTESİ'!$B$4:$H$1019,5,0)),"",(VLOOKUP(B128,'KAYIT LİSTESİ'!$B$4:$H$1019,5,0))) -> MEHMET KARABAĞ | F128: =IF(ISERROR(VLOOKUP(B128,'KAYIT LİSTESİ'!$B$4:$H$1019,6,0)),"",(VLOOKUP(B128,'KAYIT LİSTESİ'!$B$4:$H$1019,6,0))) -> ERZURUM | J128: 10 | K128: UZUN-10 | L128: =IF(ISERROR(VLOOKUP(K128,'KAYIT LİSTESİ'!$B$4:$H$1019,2,0)),"",(VLOOKUP(K128,'KAYIT LİSTESİ'!$B$4:$H$1019,2,0))) ->  | M128: =IF(ISERROR(VLOOKUP(K128,'KAYIT LİSTESİ'!$B$4:$H$1019,4,0)),"",(VLOOKUP(K128,'KAYIT LİSTESİ'!$B$4:$H$1019,4,0))) ->  | N128: =IF(ISERROR(VLOOKUP(K128,'KAYIT LİSTESİ'!$B$4:$H$1019,5,0)),"",(VLOOKUP(K128,'KAYIT LİSTESİ'!$B$4:$H$1019,5,0))) ->  | O128: =IF(ISERROR(VLOOKUP(K128,'KAYIT LİSTESİ'!$B$4:$H$1019,6,0)),"",(VLOOKUP(K128,'KAYIT LİSTESİ'!$B$4:$H$1019,6,0))) -> 
A129: 4. SERİ | J129: 11 | K129: UZUN-11 | L129: =IF(ISERROR(VLOOKUP(K129,'KAYIT LİSTESİ'!$B$4:$H$1019,2,0)),"",(VLOOKUP(K129,'KAYIT LİSTESİ'!$B$4:$H$1019,2,0))) ->  | M129: =IF(ISERROR(VLOOKUP(K129,'KAYIT LİSTESİ'!$B$4:$H$1019,4,0)),"",(VLOOKUP(K129,'KAYIT LİSTESİ'!$B$4:$H$1019,4,0))) ->  | N129: =IF(ISERROR(VLOOKUP(K129,'KAYIT LİSTESİ'!$B$4:$H$1019,5,0)),"",(VLOOKUP(K129,'KAYIT LİSTESİ'!$B$4:$H$1019,5,0))) ->  | O129: =IF(ISERROR(VLOOKUP(K129,'KAYIT LİSTESİ'!$B$4:$H$1019,6,0)),"",(VLOOKUP(K129,'KAYIT LİSTESİ'!$B$4:$H$1019,6,0))) -> 
A130: Sıra No | B130: Formül | C130: Göğüs No | D130: Doğum Tarihi | E130: Adı ve Soyadı | F130: Okulu | G130: Start Kontrol | J130: 12 | K130: UZUN-12 | L130: =IF(ISERROR(VLOOKUP(K130,'KAYIT LİSTESİ'!$B$4:$H$1019,2,0)),"",(VLOOKUP(K130,'KAYIT LİSTESİ'!$B$4:$H$1019,2,0))) ->  | M130: =IF(ISERROR(VLOOKUP(K130,'KAYIT LİSTESİ'!$B$4:$H$1019,4,0)),"",(VLOOKUP(K130,'KAYIT LİSTESİ'!$B$4:$H$1019,4,0))) ->  | N130: =IF(ISERROR(VLOOKUP(K130,'KAYIT LİSTESİ'!$B$4:$H$1019,5,0)),"",(VLOOKUP(K130,'KAYIT LİSTESİ'!$B$4:$H$1019,5,0))) ->  | O130: =IF(ISERROR(VLOOKUP(K130,'KAYIT LİSTESİ'!$B$4:$H$1019,6,0)),"",(VLOOKUP(K130,'KAYIT LİSTESİ'!$B$4:$H$1019,6,0))) -> 
A131: 1 | B131: 1500M-4-1 | C131: =IF(ISERROR(VLOOKUP(B131,'KAYIT LİSTESİ'!$B$4:$H$1019,2,0)),"",(VLOOKUP(B131,'KAYIT LİSTESİ'!$B$4:$H$1019,2,0))) -> 176 | D131: =IF(ISERROR(VLOOKUP(B131,'KAYIT LİSTESİ'!$B$4:$H$1019,4,0)),"",(VLOOKUP(B131,'KAYIT LİSTESİ'!$B$4:$H$1019,4,0))) -> 2000-01-01 | E131: =IF(ISERROR(VLOOKUP(B131,'KAYIT LİSTESİ'!$B$4:$H$1019,5,0)),"",(VLOOKUP(B131,'KAYIT LİSTESİ'!$B$4:$H$1019,5,0))) -> HADİZ BÖRÜ | F131: =IF(ISERROR(VLOOKUP(B131,'KAYIT LİSTESİ'!$B$4:$H$1019,6,0)),"",(VLOOKUP(B131,'KAYIT LİSTESİ'!$B$4:$H$1019,6,0))) -> BİNGÖL | J131: 13 | K131: UZUN-13 | L131: =IF(ISERROR(VLOOKUP(K131,'KAYIT LİSTESİ'!$B$4:$H$1019,2,0)),"",(VLOOKUP(K131,'KAYIT LİSTESİ'!$B$4:$H$1019,2,0))) ->  | M131: =IF(ISERROR(VLOOKUP(K131,'KAYIT LİSTESİ'!$B$4:$H$1019,4,0)),"",(VLOOKUP(K131,'KAYIT LİSTESİ'!$B$4:$H$1019,4,0))) ->  | N131: =IF(ISERROR(VLOOKUP(K131,'KAYIT LİSTESİ'!$B$4:$H$1019,5,0)),"",(VLOOKUP(K131,'KAYIT LİSTESİ'!$B$4:$H$1019,5,0))) ->  | O131: =IF(ISERROR(VLOOKUP(K131,'KAYIT LİSTESİ'!$B$4:$H$1019,6,0)),"",(VLOOKUP(K131,'KAYIT LİSTESİ'!$B$4:$H$1019,6,0))) -> 
A132: 2 | B132: 1500M-4-2 | C132: =IF(ISERROR(VLOOKUP(B132,'KAYIT LİSTESİ'!$B$4:$H$1019,2,0)),"",(VLOOKUP(B132,'KAYIT LİSTESİ'!$B$4:$H$1019,2,0))) -> 594 | D132: =IF(ISERROR(VLOOKUP(B132,'KAYIT LİSTESİ'!$B$4:$H$1019,4,0)),"",(VLOOKUP(B132,'KAYIT LİSTESİ'!$B$4:$H$1019,4,0))) -> 2000-07-07 | E132: =IF(ISERROR(VLOOKUP(B132,'KAYIT LİSTESİ'!$B$4:$H$1019,5,0)),"",(VLOOKUP(B132,'KAYIT LİSTESİ'!$B$4:$H$1019,5,0))) -> OKTAY KARADUMAN | F132: =IF(ISERROR(VLOOKUP(B132,'KAYIT LİSTESİ'!$B$4:$H$1019,6,0)),"",(VLOOKUP(B132,'KAYIT LİSTESİ'!$B$4:$H$1019,6,0))) -> NEVŞEHİR | J132: 14 | K132: UZUN-14 | L132: =IF(ISERROR(VLOOKUP(K132,'KAYIT LİSTESİ'!$B$4:$H$1019,2,0)),"",(VLOOKUP(K132,'KAYIT LİSTESİ'!$B$4:$H$1019,2,0))) ->  | M132: =IF(ISERROR(VLOOKUP(K132,'KAYIT LİSTESİ'!$B$4:$H$1019,4,0)),"",(VLOOKUP(K132,'KAYIT LİSTESİ'!$B$4:$H$1019,4,0))) ->  | N132: =IF(ISERROR(VLOOKUP(K132,'KAYIT LİSTESİ'!$B$4:$H$1019,5,0)),"",(VLOOKUP(K132,'KAYIT LİSTESİ'!$B$4:$H$1019,5,0))) ->  | O132: =IF(ISERROR(VLOOKUP(K132,'KAYIT LİSTESİ'!$B$4:$H$1019,6,0)),"",(VLOOKUP(K132,'KAYIT LİSTESİ'!$B$4:$H$1019,6,0))) -> 
A133: 3 | B133: 1500M-4-3 | C133: =IF(ISERROR(VLOOKUP(B133,'KAYIT LİSTESİ'!$B$4:$H$1019,2,0)),"",(VLOOKUP(B133,'KAYIT LİSTESİ'!$B$4:$H$1019,2,0))) -> 31 | D133: =IF(ISERROR(VLOOKUP(B133,'KAYIT LİSTESİ'!$B$4:$H$1019,4,0)),"",(VLOOKUP(B133,'KAYIT LİSTESİ'!$B$4:$H$1019,4,0))) -> 2000-01-01 | E133: =IF(ISERROR(VLOOKUP(B133,'KAYIT LİSTESİ'!$B$4:$H$1019,5,0)),"",(VLOOKUP(B133,'KAYIT LİSTESİ'!$B$4:$H$1019,5,0))) -> KADER DOST | F133: =IF(ISERROR(VLOOKUP(B133,'KAYIT LİSTESİ'!$B$4:$H$1019,6,0)),"",(VLOOKUP(B133,'KAYIT LİSTESİ'!$B$4:$H$1019,6,0))) -> ADIYAMAN | J133: 15 | K133: UZUN-15 | L133: =IF(ISERROR(VLOOKUP(K133,'KAYIT LİSTESİ'!$B$4:$H$1019,2,0)),"",(VLOOKUP(K133,'KAYIT LİSTESİ'!$B$4:$H$1019,2,0))) ->  | M133: =IF(ISERROR(VLOOKUP(K133,'KAYIT LİSTESİ'!$B$4:$H$1019,4,0)),"",(VLOOKUP(K133,'KAYIT LİSTESİ'!$B$4:$H$1019,4,0))) ->  | N133: =IF(ISERROR(VLOOKUP(K133,'KAYIT LİSTESİ'!$B$4:$H$1019,5,0)),"",(VLOOKUP(K133,'KAYIT LİSTESİ'!$B$4:$H$1019,5,0))) ->  | O133: =IF(ISERROR(VLOOKUP(K133,'KAYIT LİSTESİ'!$B$4:$H$1019,6,0)),"",(VLOOKUP(K133,'KAYIT LİSTESİ'!$B$4:$H$1019,6,0))) -> 
A134: 4 | B134: 1500M-4-4 | C134: =IF(ISERROR(VLOOKUP(B134,'KAYIT LİSTESİ'!$B$4:$H$1019,2,0)),"",(VLOOKUP(B134,'KAYIT LİSTESİ'!$B$4:$H$1019,2,0))) ->  | D134: =IF(ISERROR(VLOOKUP(B134,'KAYIT LİSTESİ'!$B$4:$H$1019,4,0)),"",(VLOOKUP(B134,'KAYIT LİSTESİ'!$B$4:$H$1019,4,0))) ->  | E134: =IF(ISERROR(VLOOKUP(B134,'KAYIT LİSTESİ'!$B$4:$H$1019,5,0)),"",(VLOOKUP(B134,'KAYIT LİSTESİ'!$B$4:$H$1019,5,0))) ->  | F134: =IF(ISERROR(VLOOKUP(B134,'KAYIT LİSTESİ'!$B$4:$H$1019,6,0)),"",(VLOOKUP(B134,'KAYIT LİSTESİ'!$B$4:$H$1019,6,0))) ->  | J134: 16 | K134: UZUN-16 | L134: =IF(ISERROR(VLOOKUP(K134,'KAYIT LİSTESİ'!$B$4:$H$1019,2,0)),"",(VLOOKUP(K134,'KAYIT LİSTESİ'!$B$4:$H$1019,2,0))) ->  | M134: =IF(ISERROR(VLOOKUP(K134,'KAYIT LİSTESİ'!$B$4:$H$1019,4,0)),"",(VLOOKUP(K134,'KAYIT LİSTESİ'!$B$4:$H$1019,4,0))) ->  | N134: =IF(ISERROR(VLOOKUP(K134,'KAYIT LİSTESİ'!$B$4:$H$1019,5,0)),"",(VLOOKUP(K134,'KAYIT LİSTESİ'!$B$4:$H$1019,5,0))) ->  | O134: =IF(ISERROR(VLOOKUP(K134,'KAYIT LİSTESİ'!$B$4:$H$1019,6,0)),"",(VLOOKUP(K134,'KAYIT LİSTESİ'!$B$4:$H$1019,6,0))) -> 
A135: 5 | B135: 1500M-4-5 | C135: =IF(ISERROR(VLOOKUP(B135,'KAYIT LİSTESİ'!$B$4:$H$1019,2,0)),"",(VLOOKUP(B135,'KAYIT LİSTESİ'!$B$4:$H$1019,2,0))) -> 320 | D135: =IF(ISERROR(VLOOKUP(B135,'KAYIT LİSTESİ'!$B$4:$H$1019,4,0)),"",(VLOOKUP(B135,'KAYIT LİSTESİ'!$B$4:$H$1019,4,0))) -> 2000-06-27 | E135: =IF(ISERROR(VLOOKUP(B135,'KAYIT LİSTESİ'!$B$4:$H$1019,5,0)),"",(VLOOKUP(B135,'KAYIT LİSTESİ'!$B$4:$H$1019,5,0))) -> SERTAN KIDU | F135: =IF(ISERROR(VLOOKUP(B135,'KAYIT LİSTESİ'!$B$4:$H$1019,6,0)),"",(VLOOKUP(B135,'KAYIT LİSTESİ'!$B$4:$H$1019,6,0))) -> HATAY | J135: 17 | K135: UZUN-17 | L135: =IF(ISERROR(VLOOKUP(K135,'KAYIT LİSTESİ'!$B$4:$H$1019,2,0)),"",(VLOOKUP(K135,'KAYIT LİSTESİ'!$B$4:$H$1019,2,0))) ->  | M135: =IF(ISERROR(VLOOKUP(K135,'KAYIT LİSTESİ'!$B$4:$H$1019,4,0)),"",(VLOOKUP(K135,'KAYIT LİSTESİ'!$B$4:$H$1019,4,0))) ->  | N135: =IF(ISERROR(VLOOKUP(K135,'KAYIT LİSTESİ'!$B$4:$H$1019,5,0)),"",(VLOOKUP(K135,'KAYIT LİSTESİ'!$B$4:$H$1019,5,0))) ->  | O135: =IF(ISERROR(VLOOKUP(K135,'KAYIT LİSTESİ'!$B$4:$H$1019,6,0)),"",(VLOOKUP(K135,'KAYIT LİSTESİ'!$B$4:$H$1019,6,0))) -> 
A136: 6 | B136: 1500M-4-6 | C136: =IF(ISERROR(VLOOKUP(B136,'KAYIT LİSTESİ'!$B$4:$H$1019,2,0)),"",(VLOOKUP(B136,'KAYIT LİSTESİ'!$B$4:$H$1019,2,0))) -> 270 | D136: =IF(ISERROR(VLOOKUP(B136,'KAYIT LİSTESİ'!$B$4:$H$1019,4,0)),"",(VLOOKUP(B136,'KAYIT LİSTESİ'!$B$4:$H$1019,4,0))) -> 2000-04-25 | E136: =IF(ISERROR(VLOOKUP(B136,'KAYIT LİSTESİ'!$B$4:$H$1019,5,0)),"",(VLOOKUP(B136,'KAYIT LİSTESİ'!$B$4:$H$1019,5,0))) -> ABDULLAH CANPOLAT | F136: =IF(ISERROR(VLOOKUP(B136,'KAYIT LİSTESİ'!$B$4:$H$1019,6,0)),"",(VLOOKUP(B136,'KAYIT LİSTESİ'!$B$4:$H$1019,6,0))) -> ERZURUM | J136: 18 | K136: UZUN-18 | L136: =IF(ISERROR(VLOOKUP(K136,'KAYIT LİSTESİ'!$B$4:$H$1019,2,0)),"",(VLOOKUP(K136,'KAYIT LİSTESİ'!$B$4:$H$1019,2,0))) ->  | M136: =IF(ISERROR(VLOOKUP(K136,'KAYIT LİSTESİ'!$B$4:$H$1019,4,0)),"",(VLOOKUP(K136,'KAYIT LİSTESİ'!$B$4:$H$1019,4,0))) ->  | N136: =IF(ISERROR(VLOOKUP(K136,'KAYIT LİSTESİ'!$B$4:$H$1019,5,0)),"",(VLOOKUP(K136,'KAYIT LİSTESİ'!$B$4:$H$1019,5,0))) ->  | O136: =IF(ISERROR(VLOOKUP(K136,'KAYIT LİSTESİ'!$B$4:$H$1019,6,0)),"",(VLOOKUP(K136,'KAYIT LİSTESİ'!$B$4:$H$1019,6,0))) -> 
A137: 7 | B137: 1500M-4-7 | C137: =IF(ISERROR(VLOOKUP(B137,'KAYIT LİSTESİ'!$B$4:$H$1019,2,0)),"",(VLOOKUP(B137,'KAYIT LİSTESİ'!$B$4:$H$1019,2,0))) -> 318 | D137: =IF(ISERROR(VLOOKUP(B137,'KAYIT LİSTESİ'!$B$4:$H$1019,4,0)),"",(VLOOKUP(B137,'KAYIT LİSTESİ'!$B$4:$H$1019,4,0))) -> 2000-03-06 | E137: =IF(ISERROR(VLOOKUP(B137,'KAYIT LİSTESİ'!$B$4:$H$1019,5,0)),"",(VLOOKUP(B137,'KAYIT LİSTESİ'!$B$4:$H$1019,5,0))) -> BURHAN GÖRÜROĞLU | F137: =IF(ISERROR(VLOOKUP(B137,'KAYIT LİSTESİ'!$B$4:$H$1019,6,0)),"",(VLOOKUP(B137,'KAYIT LİSTESİ'!$B$4:$H$1019,6,0))) -> HATAY | J137: 19 | K137: UZUN-19 | L137: =IF(ISERROR(VLOOKUP(K137,'KAYIT LİSTESİ'!$B$4:$H$1019,2,0)),"",(VLOOKUP(K137,'KAYIT LİSTESİ'!$B$4:$H$1019,2,0))) ->  | M137: =IF(ISERROR(VLOOKUP(K137,'KAYIT LİSTESİ'!$B$4:$H$1019,4,0)),"",(VLOOKUP(K137,'KAYIT LİSTESİ'!$B$4:$H$1019,4,0))) ->  | N137: =IF(ISERROR(VLOOKUP(K137,'KAYIT LİSTESİ'!$B$4:$H$1019,5,0)),"",(VLOOKUP(K137,'KAYIT LİSTESİ'!$B$4:$H$1019,5,0))) ->  | O137: =IF(ISERROR(VLOOKUP(K137,'KAYIT LİSTESİ'!$B$4:$H$1019,6,0)),"",(VLOOKUP(K137,'KAYIT LİSTESİ'!$B$4:$H$1019,6,0))) -> 
A138: 8 | B138: 1500M-4-8 | C138: =IF(ISERROR(VLOOKUP(B138,'KAYIT LİSTESİ'!$B$4:$H$1019,2,0)),"",(VLOOKUP(B138,'KAYIT LİSTESİ'!$B$4:$H$1019,2,0))) -> 323 | D138: =IF(ISERROR(VLOOKUP(B138,'KAYIT LİSTESİ'!$B$4:$H$1019,4,0)),"",(VLOOKUP(B138,'KAYIT LİSTESİ'!$B$4:$H$1019,4,0))) -> 2000-01-30 | E138: =IF(ISERROR(VLOOKUP(B138,'KAYIT LİSTESİ'!$B$4:$H$1019,5,0)),"",(VLOOKUP(B138,'KAYIT LİSTESİ'!$B$4:$H$1019,5,0))) -> AHMET CAN BALCIOĞLU | F138: =IF(ISERROR(VLOOKUP(B138,'KAYIT LİSTESİ'!$B$4:$H$1019,6,0)),"",(VLOOKUP(B138,'KAYIT LİSTESİ'!$B$4:$H$1019,6,0))) -> HATAY | J138: 20 | K138: UZUN-20 | L138: =IF(ISERROR(VLOOKUP(K138,'KAYIT LİSTESİ'!$B$4:$H$1019,2,0)),"",(VLOOKUP(K138,'KAYIT LİSTESİ'!$B$4:$H$1019,2,0))) ->  | M138: =IF(ISERROR(VLOOKUP(K138,'KAYIT LİSTESİ'!$B$4:$H$1019,4,0)),"",(VLOOKUP(K138,'KAYIT LİSTESİ'!$B$4:$H$1019,4,0))) ->  | N138: =IF(ISERROR(VLOOKUP(K138,'KAYIT LİSTESİ'!$B$4:$H$1019,5,0)),"",(VLOOKUP(K138,'KAYIT LİSTESİ'!$B$4:$H$1019,5,0))) ->  | O138: =IF(ISERROR(VLOOKUP(K138,'KAYIT LİSTESİ'!$B$4:$H$1019,6,0)),"",(VLOOKUP(K138,'KAYIT LİSTESİ'!$B$4:$H$1019,6,0))) -> 
A139: 9 | B139: 1500M-4-9 | C139: =IF(ISERROR(VLOOKUP(B139,'KAYIT LİSTESİ'!$B$4:$H$1019,2,0)),"",(VLOOKUP(B139,'KAYIT LİSTESİ'!$B$4:$H$1019,2,0))) -> 616 | D139: =IF(ISERROR(VLOOKUP(B139,'KAYIT LİSTESİ'!$B$4:$H$1019,4,0)),"",(VLOOKUP(B139,'KAYIT LİSTESİ'!$B$4:$H$1019,4,0))) -> 2000-10-02 | E139: =IF(ISERROR(VLOOKUP(B139,'KAYIT LİSTESİ'!$B$4:$H$1019,5,0)),"",(VLOOKUP(B139,'KAYIT LİSTESİ'!$B$4:$H$1019,5,0))) -> MEHMET ALİ TAN | F139: =IF(ISERROR(VLOOKUP(B139,'KAYIT LİSTESİ'!$B$4:$H$1019,6,0)),"",(VLOOKUP(B139,'KAYIT LİSTESİ'!$B$4:$H$1019,6,0))) -> OSMANİYE | J139: 21 | K139: UZUN-21 | L139: =IF(ISERROR(VLOOKUP(K139,'KAYIT LİSTESİ'!$B$4:$H$1019,2,0)),"",(VLOOKUP(K139,'KAYIT LİSTESİ'!$B$4:$H$1019,2,0))) ->  | M139: =IF(ISERROR(VLOOKUP(K139,'KAYIT LİSTESİ'!$B$4:$H$1019,4,0)),"",(VLOOKUP(K139,'KAYIT LİSTESİ'!$B$4:$H$1019,4,0))) ->  | N139: =IF(ISERROR(VLOOKUP(K139,'KAYIT LİSTESİ'!$B$4:$H$1019,5,0)),"",(VLOOKUP(K139,'KAYIT LİSTESİ'!$B$4:$H$1019,5,0))) ->  | O139: =IF(ISERROR(VLOOKUP(K139,'KAYIT LİSTESİ'!$B$4:$H$1019,6,0)),"",(VLOOKUP(K139,'KAYIT LİSTESİ'!$B$4:$H$1019,6,0))) -> 
A140: 10 | B140: 1500M-4-10 | C140: =IF(ISERROR(VLOOKUP(B140,'KAYIT LİSTESİ'!$B$4:$H$1019,2,0)),"",(VLOOKUP(B140,'KAYIT LİSTESİ'!$B$4:$H$1019,2,0))) -> 617 | D140: =IF(ISERROR(VLOOKUP(B140,'KAYIT LİSTESİ'!$B$4:$H$1019,4,0)),"",(VLOOKUP(B140,'KAYIT LİSTESİ'!$B$4:$H$1019,4,0))) -> 2000-03-17 | E140: =IF(ISERROR(VLOOKUP(B140,'KAYIT LİSTESİ'!$B$4:$H$1019,5,0)),"",(VLOOKUP(B140,'KAYIT LİSTESİ'!$B$4:$H$1019,5,0))) -> AHMET BİÇER | F140: =IF(ISERROR(VLOOKUP(B140,'KAYIT LİSTESİ'!$B$4:$H$1019,6,0)),"",(VLOOKUP(B140,'KAYIT LİSTESİ'!$B$4:$H$1019,6,0))) -> OSMANİYE | J140: 22 | K140: UZUN-22 | L140: =IF(ISERROR(VLOOKUP(K140,'KAYIT LİSTESİ'!$B$4:$H$1019,2,0)),"",(VLOOKUP(K140,'KAYIT LİSTESİ'!$B$4:$H$1019,2,0))) ->  | M140: =IF(ISERROR(VLOOKUP(K140,'KAYIT LİSTESİ'!$B$4:$H$1019,4,0)),"",(VLOOKUP(K140,'KAYIT LİSTESİ'!$B$4:$H$1019,4,0))) ->  | N140: =IF(ISERROR(VLOOKUP(K140,'KAYIT LİSTESİ'!$B$4:$H$1019,5,0)),"",(VLOOKUP(K140,'KAYIT LİSTESİ'!$B$4:$H$1019,5,0))) ->  | O140: =IF(ISERROR(VLOOKUP(K140,'KAYIT LİSTESİ'!$B$4:$H$1019,6,0)),"",(VLOOKUP(K140,'KAYIT LİSTESİ'!$B$4:$H$1019,6,0))) -> 
A141: 11 | B141: 1500M-4-11 | C141: =IF(ISERROR(VLOOKUP(B141,'KAYIT LİSTESİ'!$B$4:$H$1019,2,0)),"",(VLOOKUP(B141,'KAYIT LİSTESİ'!$B$4:$H$1019,2,0))) -> 286 | D141: =IF(ISERROR(VLOOKUP(B141,'KAYIT LİSTESİ'!$B$4:$H$1019,4,0)),"",(VLOOKUP(B141,'KAYIT LİSTESİ'!$B$4:$H$1019,4,0))) -> 2001-01-01 | E141: =IF(ISERROR(VLOOKUP(B141,'KAYIT LİSTESİ'!$B$4:$H$1019,5,0)),"",(VLOOKUP(B141,'KAYIT LİSTESİ'!$B$4:$H$1019,5,0))) -> ENES TÜRKYILMAZ | F141: =IF(ISERROR(VLOOKUP(B141,'KAYIT LİSTESİ'!$B$4:$H$1019,6,0)),"",(VLOOKUP(B141,'KAYIT LİSTESİ'!$B$4:$H$1019,6,0))) -> GAZİANTEP | J141: 23 | K141: UZUN-23 | L141: =IF(ISERROR(VLOOKUP(K141,'KAYIT LİSTESİ'!$B$4:$H$1019,2,0)),"",(VLOOKUP(K141,'KAYIT LİSTESİ'!$B$4:$H$1019,2,0))) ->  | M141: =IF(ISERROR(VLOOKUP(K141,'KAYIT LİSTESİ'!$B$4:$H$1019,4,0)),"",(VLOOKUP(K141,'KAYIT LİSTESİ'!$B$4:$H$1019,4,0))) ->  | N141: =IF(ISERROR(VLOOKUP(K141,'KAYIT LİSTESİ'!$B$4:$H$1019,5,0)),"",(VLOOKUP(K141,'KAYIT LİSTESİ'!$B$4:$H$1019,5,0))) ->  | O141: =IF(ISERROR(VLOOKUP(K141,'KAYIT LİSTESİ'!$B$4:$H$1019,6,0)),"",(VLOOKUP(K141,'KAYIT LİSTESİ'!$B$4:$H$1019,6,0))) -> 
A142: 12 | B142: 1500M-4-12 | C142: =IF(ISERROR(VLOOKUP(B142,'KAYIT LİSTESİ'!$B$4:$H$1019,2,0)),"",(VLOOKUP(B142,'KAYIT LİSTESİ'!$B$4:$H$1019,2,0))) -> 532 | D142: =IF(ISERROR(VLOOKUP(B142,'KAYIT LİSTESİ'!$B$4:$H$1019,4,0)),"",(VLOOKUP(B142,'KAYIT LİSTESİ'!$B$4:$H$1019,4,0))) -> 2001-01-10 | E142: =IF(ISERROR(VLOOKUP(B142,'KAYIT LİSTESİ'!$B$4:$H$1019,5,0)),"",(VLOOKUP(B142,'KAYIT LİSTESİ'!$B$4:$H$1019,5,0))) -> VEDAT DEMİR | F142: =IF(ISERROR(VLOOKUP(B142,'KAYIT LİSTESİ'!$B$4:$H$1019,6,0)),"",(VLOOKUP(B142,'KAYIT LİSTESİ'!$B$4:$H$1019,6,0))) -> KONYA | J142: 24 | K142: UZUN-24 | L142: =IF(ISERROR(VLOOKUP(K142,'KAYIT LİSTESİ'!$B$4:$H$1019,2,0)),"",(VLOOKUP(K142,'KAYIT LİSTESİ'!$B$4:$H$1019,2,0))) ->  | M142: =IF(ISERROR(VLOOKUP(K142,'KAYIT LİSTESİ'!$B$4:$H$1019,4,0)),"",(VLOOKUP(K142,'KAYIT LİSTESİ'!$B$4:$H$1019,4,0))) ->  | N142: =IF(ISERROR(VLOOKUP(K142,'KAYIT LİSTESİ'!$B$4:$H$1019,5,0)),"",(VLOOKUP(K142,'KAYIT LİSTESİ'!$B$4:$H$1019,5,0))) ->  | O142: =IF(ISERROR(VLOOKUP(K142,'KAYIT LİSTESİ'!$B$4:$H$1019,6,0)),"",(VLOOKUP(K142,'KAYIT LİSTESİ'!$B$4:$H$1019,6,0))) -> 
J143: 25 | K143: UZUN-25 | L143: =IF(ISERROR(VLOOKUP(K143,'KAYIT LİSTESİ'!$B$4:$H$1019,2,0)),"",(VLOOKUP(K143,'KAYIT LİSTESİ'!$B$4:$H$1019,2,0))) ->  | M143: =IF(ISERROR(VLOOKUP(K143,'KAYIT LİSTESİ'!$B$4:$H$1019,4,0)),"",(VLOOKUP(K143,'KAYIT LİSTESİ'!$B$4:$H$1019,4,0))) ->  | N143: =IF(ISERROR(VLOOKUP(K143,'KAYIT LİSTESİ'!$B$4:$H$1019,5,0)),"",(VLOOKUP(K143,'KAYIT LİSTESİ'!$B$4:$H$1019,5,0))) ->  | O143: =IF(ISERROR(VLOOKUP(K143,'KAYIT LİSTESİ'!$B$4:$H$1019,6,0)),"",(VLOOKUP(K143,'KAYIT LİSTESİ'!$B$4:$H$1019,6,0))) -> 

Sheet puan (hidden)
A1: NAİLİ MORAN TÜRKİYE ŞAMPİYONASI PUAN TABLOSU
A2: PUAN | B2: FOTO FİNİSH | D2: FOTO FİNİSH | F2: FOTO FİNİSH | H2: FOTO FİNİSH | J2: FOTO FİNİSH | L2: FOTO FİNİSH | N2: FOTO FİNİSH | P2: FOTO FİNİSH | R2: FOTO FİNİSH | T2: FOTO FİNİSH | V2: FOTO FİNİSH | Y2: PUAN | Z2: ATLAMALAR | AD2: ATMALAR | AH2: PUAN
B3: 100m | D3: 200m | F3: 75 m | H3: 400m | J3: 70 m H 75 m H 80 m H | L3: 300m H | N3: 800m | P3: 1500m | R3: 2000m Yıldız | T3: 3000m | V3: 100 m H | Z3: Yüksek | AA3: Uzun | AB3: Üçadım | AC3: Sırık | AD3: Gülle | AE3: Disk | AF3: Cirit | AG3: Çekiç
B4: DERECE | D4: DERECE | F4: DERECE | H4: DERECE | J4: DERECE | L4: DERECE | N4: DERECE | P4: DERECE | R4: DERECE | T4: DERECE | V4: DERECE | Z4: DERECE | AA4: DERECE | AB4: DERECE | AC4: DERECE | AD4: DERECE | AE4: DERECE | AF4: DERECE | AG4: DERECE
J5: DNS | Y5: 0 | Z5: 10 | AA5: 100 | AB5: 100 | AC5: 100 | AD5: 100 | AE5: 100 | AF5: 100 | AG5: 100 | AH5: 0
A6: 100 | B6: 1130 | C6: 100 | D6: 2300 | E6: 100 | F6: 950 | G6: 100 | H6: 5200 | I6: 100 | J6: 1140 | K6: 100 | L6: 4250 | M6: 100 | N6: 20000 | O6: 100 | P6: 40300 | Q6: 100 | R6: 54524 | S6: 100 | T6: 85000 | U6: 100 | V6: 1440 | W6: 100 | Y6: 100 | Z6: 65 | AA6: 190 | AB6: 420 | AC6: - | AD6: - | AE6: - | AF6: - | AG6: - | AH6: 1
A7: 99 | B7: 1140 | C7: 99 | D7: 2320 | E7: 99 | F7: - | G7: 99 | H7: 5240 | I7: 99 | J7: 1150 | K7: 99 | L7: 4300 | M7: 99 | N7: 20200 | O7: 99 | P7: 40600 | Q7: 99 | R7: 54624 | S7: 99 | T7: 90000 | U7: 99 | V7: 1450 | W7: 99 | Y7: 99 | Z7: 66 | AA7: 193 | AB7: 425 | AC7: - | AD7: - | AE7: - | AF7: - | AG7: - | AH7: 2
A8: 98 | B8: 1150 | C8: 98 | D8: 2340 | E8: 98 | F8: 960 | G8: 98 | H8: 5270 | I8: 98 | J8: 1160 | K8: 98 | L8: 4350 | M8: 98 | N8: 20400 | O8: 98 | P8: 40900 | Q8: 98 | R8: 54724 | S8: 98 | T8: 91000 | U8: 98 | V8: 1460 | W8: 98 | Y8: 98 | Z8: 67 | AA8: 197 | AB8: 430 | AC8: - | AD8: - | AE8: - | AF8: - | AG8: - | AH8: 3
A9: 97 | B9: 1160 | C9: 97 | D9: 2360 | E9: 97 | F9: - | G9: 97 | H9: 5300 | I9: 97 | J9: 1170 | K9: 97 | L9: 4400 | M9: 97 | N9: 20600 | O9: 97 | P9: 41200 | Q9: 97 | R9: 54824 | S9: 97 | T9: 92000 | U9: 97 | V9: 1470 | W9: 97 | Y9: 97 | Z9: 68 | AA9: 200 | AB9: 435 | AC9: - | AD9: - | AE9: - | AF9: - | AG9: - | AH9: 4
A10: 96 | B10: 1170 | C10: 96 | D10: 2380 | E10: 96 | F10: 970 | G10: 96 | H10: 5340 | I10: 96 | J10: 1180 | K10: 96 | L10: 4450 | M10: 96 | N10: 20800 | O10: 96 | P10: 41500 | Q10: 96 | R10: 54924 | S10: 96 | T10: 93000 | U10: 96 | V10: 1480 | W10: 96 | Y10: 96 | Z10: 69 | AA10: 203 | AB10: 440 | AC10: - | AD10: - | AE10: - | AF10: - | AG10: - | AH10: 5
A11: 95 | B11: 1180 | C11: 95 | D11: 2400 | E11: 95 | F11: - | G11: 95 | H11: 5370 | I11: 95 | J11: 1190 | K11: 95 | L11: 4500 | M11: 95 | N11: 21000 | O11: 95 | P11: 41800 | Q11: 95 | R11: 55024 | S11: 95 | T11: 93500 | U11: 95 | V11: 1490 | W11: 95 | Y11: 95 | Z11: 70 | AA11: 205 | AB11: 445 | AC11: - | AD11: - | AE11: - | AF11: - | AG11: - | AH11: 6
A12: 94 | B12: 1190 | C12: 94 | D12: 2420 | E12: 94 | F12: 980 | G12: 94 | H12: 5400 | I12: 94 | J12: 1200 | K12: 94 | L12: 4550 | M12: 94 | N12: 21100 | O12: 94 | P12: 42100 | Q12: 94 | R12: 55124 | S12: 94 | T12: 94000 | U12: 94 | V12: 1500 | W12: 94 | Y12: 94 | Z12: 71 | AA12: 207 | AB12: 450 | AC12: - | AD12: - | AE12: - | AF12: - | AG12: - | AH12: 7
A13: 93 | B13: 1200 | C13: 93 | D13: 2440 | E13: 93 | F13: - | G13: 93 | H13: 5440 | I13: 93 | J13: 1210 | K13: 93 | L13: 4600 | M13: 93 | N13: 21200 | O13: 93 | P13: 42400 | Q13: 93 | R13: 55224 | S13: 93 | T13: 94500 | U13: 93 | V13: 1510 | W13: 93 | Y13: 93 | Z13: 72 | AA13: 210 | AB13: 455 | AC13: - | AD13: - | AE13: - | AF13: - | AG13: - | AH13: 8
A14: 92 | B14: 1210 | C14: 92 | D14: 2460 | E14: 92 | F14: 990 | G14: 92 | H14: 5470 | I14: 92 | J14: 1220 | K14: 92 | L14: 4650 | M14: 92 | N14: 21300 | O14: 92 | P14: 42700 | Q14: 92 | R14: 55324 | S14: 92 | T14: 95000 | U14: 92 | V14: 1520 | W14: 92 | Y14: 92 | Z14: 73 | AA14: 213 | AB14: 460 | AC14: - | AD14: - | AE14: - | AF14: - | AG14: - | AH14: 9
A15: 91 | B15: 1220 | C15: 91 | D15: 2480 | E15: 91 | F15: - | G15: 91 | H15: 5500 | I15: 91 | J15: 1230 | K15: 91 | L15: 4700 | M15: 91 | N15: 21400 | O15: 91 | P15: 43000 | Q15: 91 | R15: 55424 | S15: 91 | T15: 95500 | U15: 91 | V15: 1530 | W15: 91 | Y15: 91 | Z15: 74 | AA15: 216 | AB15: 465 | AC15: - | AD15: - | AE15: - | AF15: - | AG15: - | AH15: 10
A16: 90 | B16: 1230 | C16: 90 | D16: 2500 | E16: 90 | F16: 1000 | G16: 90 | H16: 5550 | I16: 90 | J16: 1240 | K16: 90 | L16: 4750 | M16: 90 | N16: 21500 | O16: 90 | P16: 43300 | Q16: 90 | R16: 55524 | S16: 90 | T16: 100000 | U16: 90 | V16: 1540 | W16: 90 | Y16: 90 | Z16: 75 | AA16: 219 | AB16: 470 | AC16: - | AD16: 400 | AE16: 400 | AF16: 400 | AG16: 400 | AH16: 11
A17: 89 | B17: 1240 | C17: 89 | D17: 2520 | E17: 89 | F17: - | G17: 89 | H17: 5600 | I17: 89 | J17: 1250 | K17: 89 | L17: 4800 | M17: 89 | N17: 21600 | O17: 89 | P17: 43600 | Q17: 89 | R17: 55624 | S17: 89 | T17: 100500 | U17: 89 | V17: 1550 | W17: 89 | Y17: 89 | Z17: 76 | AA17: 222 | AB17: 475 | AC17: - | AD17: 410 | AE17: 450 | AF17: 450 | AG17: 450 | AH17: 12
A18: 88 | B18: 1250 | C18: 88 | D18: 2540 | E18: 88 | F18: 1010 | G18: 88 | H18: 5650 | I18: 88 | J18: 1260 | K18: 88 | L18: 4850 | M18: 88 | N18: 21700 | O18: 88 | P18: 43900 | Q18: 88 | R18: 55724 | S18: 88 | T18: 101000 | U18: 88 | V18: 1560 | W18: 88 | Y18: 88 | Z18: 77 | AA18: 225 | AB18: 480 | AC18: - | AD18: 420 | AE18: 500 | AF18: 500 | AG18: 500 | AH18: 13
A19: 87 | B19: 1260 | C19: 87 | D19: 2560 | E19: 87 | F19: - | G19: 87 | H19: 5700 | I19: 87 | J19: 1270 | K19: 87 | L19: 4900 | M19: 87 | N19: 21800 | O19: 87 | P19: 44200 | Q19: 87 | R19: 55824 | S19: 87 | T19: 101500 | U19: 87 | V19: 1570 | W19: 87 | Y19: 87 | Z19: 78 | AA19: 228 | AB19: 485 | AC19: - | AD19: 430 | AE19: 550 | AF19: 550 | AG19: 550 | AH19: 14
A20: 86 | B20: 1270 | C20: 86 | D20: 2580 | E20: 86 | F20: 1020 | G20: 86 | H20: 5750 | I20: 86 | J20: 1280 | K20: 86 | L20: 4950 | M20: 86 | N20: 21900 | O20: 86 | P20: 44500 | Q20: 86 | R20: 55924 | S20: 86 | T20: 102000 | U20: 86 | V20: 1580 | W20: 86 | Y20: 86 | Z20: 79 | AA20: 231 | AB20: 490 | AC20: - | AD20: 440 | AE20: 600 | AF20: 600 | AG20: 600 | AH20: 15
A21: 85 | B21: 1280 | C21: 85 | D21: 2600 | E21: 85 | F21: - | G21: 85 | H21: 5800 | I21: 85 | J21: 1290 | K21: 85 | L21: 5000 | M21: 85 | N21: 22000 | O21: 85 | P21: 44800 | Q21: 85 | R21: 60024 | S21: 85 | T21: 102500 | U21: 85 | V21: 1590 | W21: 85 | Y21: 85 | Z21: 80 | AA21: 234 | AB21: 495 | AC21: 105 | AD21: 450 | AE21: 650 | AF21: 650 | AG21: 650 | AH21: 16
A22: 84 | B22: 1290 | C22: 84 | D22: 2620 | E22: 84 | F22: 1030 | G22: 84 | H22: 5850 | I22: 84 | J22: 1300 | K22: 84 | L22: 5050 | M22: 84 | N22: 22100 | O22: 84 | P22: 45100 | Q22: 84 | R22: 60124 | S22: 84 | T22: 103000 | U22: 84 | V22: 1600 | W22: 84 | Y22: 84 | Z22: 81 | AA22: 237 | AB22: 500 | AC22: - | AD22: 460 | AE22: 700 | AF22: 700 | AG22: 700 | AH22: 17
A23: 83 | B23: 1300 | C23: 83 | D23: 2640 | E23: 83 | F23: - | G23: 83 | H23: 5900 | I23: 83 | J23: 1310 | K23: 83 | L23: 5100 | M23: 83 | N23: 22200 | O23: 83 | P23: 45400 | Q23: 83 | R23: 60224 | S23: 83 | T23: 103500 | U23: 83 | V23: 1610 | W23: 83 | Y23: 83 | Z23: 82 | AA23: 240 | AB23: 505 | AC23: 110 | AD23: 470 | AE23: 750 | AF23: 750 | AG23: 750 | AH23: 18
A24: 82 | B24: 1310 | C24: 82 | D24: 2660 | E24: 82 | F24: 1040 | G24: 82 | H24: 5950 | I24: 82 | J24: 1320 | K24: 82 | L24: 5150 | M24: 82 | N24: 22300 | O24: 82 | P24: 45700 | Q24: 82 | R24: 60324 | S24: 82 | T24: 104000 | U24: 82 | V24: 1620 | W24: 82 | Y24: 82 | Z24: 83 | AA24: 243 | AB24: 510 | AC24: - | AD24: 480 | AE24: 800 | AF24: 800 | AG24: 800 | AH24: 19
A25: 81 | B25: 1320 | C25: 81 | D25: 2680 | E25: 81 | F25: - | G25: 81 | H25: 10000 | I25: 81 | J25: 1330 | K25: 81 | L25: 5200 | M25: 81 | N25: 22400 | O25: 81 | P25: 50000 | Q25: 81 | R25: 60424 | S25: 81 | T25: 104500 | U25: 81 | V25: 1630 | W25: 81 | Y25: 81 | Z25: 84 | AA25: 246 | AB25: 515 | AC25: 115 | AD25: 490 | AE25: 850 | AF25: 850 | AG25: 850 | AH25: 20
A26: 80 | B26: 1330 | C26: 80 | D26: 2700 | E26: 80 | F26: 1050 | G26: 80 | H26: 10050 | I26: 80 | J26: 1340 | K26: 80 | L26: 5250 | M26: 80 | N26: 22500 | O26: 80 | P26: 50300 | Q26: 80 | R26: 60524 | S26: 80 | T26: 105000 | U26: 80 | V26: 1640 | W26: 80 | Y26: 80 | Z26: 85 | AA26: 249 | AB26: 520 | AC26: - | AD26: 500 | AE26: 900 | AF26: 900 | AG26: 900 | AH26: 21
A27: 79 | B27: 1340 | C27: 79 | D27: 2720 | E27: 79 | F27: - | G27: 79 | H27: 10100 | I27: 79 | J27: 1350 | K27: 79 | L27: 5300 | M27: 79 | N27: 22600 | O27: 79 | P27: 50600 | Q27: 79 | R27: 60624 | S27: 79 | T27: 105500 | U27: 79 | V27: 1650 | W27: 79 | Y27: 79 | Z27: 86 | AA27: 252 | AB27: 525 | AC27: 120 | AD27: 510 | AE27: 925 | AF27: 925 | AG27: 925 | AH27: 22
A28: 78 | B28: 1350 | C28: 78 | D28: 2740 | E28: 78 | F28: 1060 | G28: 78 | H28: 10150 | I28: 78 | J28: 1360 | K28: 78 | L28: 5350 | M28: 78 | N28: 22700 | O28: 78 | P28: 50900 | Q28: 78 | R28: 60724 | S28: 78 | T28: 110000 | U28: 78 | V28: 1660 | W28: 78 | Y28: 78 | Z28: 87 | AA28: 255 | AB28: 530 | AC28: - | AD28: 520 | AE28: 950 | AF28: 950 | AG28: 950 | AH28: 23
A29: 77 | B29: 1360 | C29: 77 | D29: 2760 | E29: 77 | F29: - | G29: 77 | H29: 10200 | I29: 77 | J29: 1370 | K29: 77 | L29: 5400 | M29: 77 | N29: 22800 | O29: 77 | P29: 51200 | Q29: 77 | R29: 60824 | S29: 77 | T29: 110500 | U29: 77 | V29: 1670 | W29: 77 | Y29: 77 | Z29: 88 | AA29: 258 | AB29: 535 | AC29: 125 | AD29: 530 | AE29: 975 | AF29: 975 | AG29: 975 | AH29: 24
A30: 76 | B30: 1370 | C30: 76 | D30: 2780 | E30: 76 | F30: 1070 | G30: 76 | H30: 10250 | I30: 76 | J30: 1380 | K30: 76 | L30: 5450 | M30: 76 | N30: 22900 | O30: 76 | P30: 51500 | Q30: 76 | R30: 60924 | S30: 76 | T30: 111000 | U30: 76 | V30: 1680 | W30: 76 | Y30: 76 | Z30: 89 | AA30: 261 | AB30: 540 | AC30: - | AD30: 540 | AE30: 1000 | AF30: 1000 | AG30: 1000 | AH30: 25
A31: 75 | B31: 1380 | C31: 75 | D31: 2800 | E31: 75 | F31: - | G31: 75 | H31: 10300 | I31: 75 | J31: 1390 | K31: 75 | L31: 5500 | M31: 75 | N31: 23000 | O31: 75 | P31: 51800 | Q31: 75 | R31: 61024 | S31: 75 | T31: 111500 | U31: 75 | V31: 1690 | W31: 75 | Y31: 75 | Z31: 90 | AA31: 264 | AB31: 545 | AC31: 130 | AD31: 550 | AE31: 1025 | AF31: 1025 | AG31: 1025 | AH31: 26
A32: 74 | B32: 1390 | C32: 74 | D32: 2820 | E32: 74 | F32: 1080 | G32: 74 | H32: 10350 | I32: 74 | J32: 1400 | K32: 74 | L32: 5550 | M32: 74 | N32: 23200 | O32: 74 | P32: 52100 | Q32: 74 | R32: 61124 | S32: 74 | T32: 112000 | U32: 74 | V32: 1700 | W32: 74 | Y32: 74 | Z32: 91 | AA32: 267 | AB32: 550 | AC32: - | AD32: 560 | AE32: 1050 | AF32: 1050 | AG32: 1050 | AH32: 27
A33: 73 | B33: 1400 | C33: 73 | D33: 2840 | E33: 73 | F33: - | G33: 73 | H33: 10400 | I33: 73 | J33: 1410 | K33: 73 | L33: 5600 | M33: 73 | N33: 23400 | O33: 73 | P33: 52400 | Q33: 73 | R33: 61224 | S33: 73 | T33: 112500 | U33: 73 | V33: 1710 | W33: 73 | Y33: 73 | Z33: 92 | AA33: 270 | AB33: 555 | AC33: 135 | AD33: 570 | AE33: 1075 | AF33: 1075 | AG33: 1075 | AH33: 28
A34: 72 | B34: - | C34: 72 | D34: 2860 | E34: 72 | F34: 1090 | G34: 72 | H34: 10450 | I34: 72 | J34: 1420 | K34: 72 | L34: 5650 | M34: 72 | N34: 23600 | O34: 72 | P34: 52700 | Q34: 72 | R34: 61324 | S34: 72 | T34: 113000 | U34: 72 | V34: 1720 | W34: 72 | Y34: 72 | Z34: 93 | AA34: 273 | AB34: 560 | AC34: - | AD34: 580 | AE34: 1100 | AF34: 1100 | AG34: 1100 | AH34: 29
A35: 71 | B35: 1410 | C35: 71 | D35: 2880 | E35: 71 | F35: - | G35: 71 | H35: 10500 | I35: 71 | J35: 1430 | K35: 71 | L35: 5700 | M35: 71 | N35: 23800 | O35: 71 | P35: 53000 | Q35: 71 | R35: 61424 | S35: 71 | T35: 113500 | U35: 71 | V35: 1730 | W35: 71 | Y35: 71 | Z35: 94 | AA35: 276 | AB35: 565 | AC35: 140 | AD35: 590 | AE35: 1125 | AF35: 1125 | AG35: 1125 | AH35: 30
A36: 70 | B36: - | C36: 70 | D36: 2900 | E36: 70 | F36: 1100 | G36: 70 | H36: 10550 | I36: 70 | J36: 1440 | K36: 70 | L36: 5750 | M36: 70 | N36: 24000 | O36: 70 | P36: 53300 | Q36: 70 | R36: 61524 | S36: 70 | T36: 114000 | U36: 70 | V36: 1740 | W36: 70 | Y36: 70 | Z36: 95 | AA36: 279 | AB36: 570 | AC36: - | AD36: 600 | AE36: 1150 | AF36: 1150 | AG36: 1150 | AH36: 31
A37: 69 | B37: 1420 | C37: 69 | D37: 2920 | E37: 69 | F37: - | G37: 69 | H37: 10600 | I37: 69 | J37: 1450 | K37: 69 | L37: 5800 | M37: 69 | N37: 24200 | O37: 69 | P37: 53600 | Q37: 69 | R37: 61624 | S37: 69 | T37: 114500 | U37: 69 | V37: 1750 | W37: 69 | Y37: 69 | Z37: 96 | AA37: 282 | AB37: 575 | AC37: 145 | AD37: 610 | AE37: 1175 | AF37: 1175 | AG37: 1175 | AH37: 32
A38: 68 | B38: - | C38: 68 | D38: 2940 | E38: 68 | F38: 1110 | G38: 68 | H38: 10650 | I38: 68 | J38: 1460 | K38: 68 | L38: 5850 | M38: 68 | N38: 24400 | O38: 68 | P38: 53900 | Q38: 68 | R38: 61724 | S38: 68 | T38: 115000 | U38: 68 | V38: 1760 | W38: 68 | Y38: 68 | Z38: 97 | AA38: 285 | AB38: 580 | AC38: - | AD38: 620 | AE38: 1200 | AF38: 1200 | AG38: 1200 | AH38: 33
A39: 67 | B39: 1430 | C39: 67 | D39: 2960 | E39: 67 | F39: 1120 | G39: 67 | H39: 10700 | I39: 67 | J39: 1470 | K39: 67 | L39: 5900 | M39: 67 | N39: 24600 | O39: 67 | P39: 54200 | Q39: 67 | R39: 61824 | S39: 67 | T39: 115500 | U39: 67 | V39: 1770 | W39: 67 | Y39: 67 | Z39: 98 | AA39: 288 | AB39: 585 | AC39: 150 | AD39: 630 | AE39: 1225 | AF39: 1225 | AG39: 1225 | AH39: 34
A40: 66 | B40: - | C40: 66 | D40: 2980 | E40: 66 | F40: 1130 | G40: 66 | H40: 10750 | I40: 66 | J40: 1480 | K40: 66 | L40: 5950 | M40: 66 | N40: 24800 | O40: 66 | P40: 54500 | Q40: 66 | R40: 61924 | S40: 66 | T40: 120000 | U40: 66 | V40: 1780 | W40: 66 | Y40: 66 | Z40: 99 | AA40: 291 | AB40: 590 | AC40: - | AD40: 640 | AE40: 1250 | AF40: 1250 | AG40: 1250 | AH40: 35
A41: 65 | B41: 1440 | C41: 65 | D41: 3000 | E41: 65 | F41: 1140 | G41: 65 | H41: 10800 | I41: 65 | J41: 1490 | K41: 65 | L41: 10000 | M41: 65 | N41: 25000 | O41: 65 | P41: 54800 | Q41: 65 | R41: 62024 | S41: 65 | T41: 120500 | U41: 65 | V41: 1790 | W41: 65 | Y41: 65 | Z41: 100 | AA41: 294 | AB41: 595 | AC41: 155 | AD41: 650 | AE41: 1275 | AF41: 1275 | AG41: 1275 | AH41: 36
A42: 64 | B42: - | C42: 64 | D42: 3020 | E42: 64 | F42: 1150 | G42: 64 | H42: 10850 | I42: 64 | J42: 1500 | K42: 64 | L42: 10050 | M42: 64 | N42: 25200 | O42: 64 | P42: 55100 | Q42: 64 | R42: 62124 | S42: 64 | T42: 121000 | U42: 64 | V42: 1800 | W42: 64 | Y42: 64 | Z42: 101 | AA42: 297 | AB42: 600 | AC42: - | AD42: 660 | AE42: 1300 | AF42: 1300 | AG42: 1300 | AH42: 37
A43: 63 | B43: 1450 | C43: 63 | D43: 3040 | E43: 63 | F43: 1160 | G43: 63 | H43: 10900 | I43: 63 | J43: 1510 | K43: 63 | L43: 10100 | M43: 63 | N43: 25400 | O43: 63 | P43: 55400 | Q43: 63 | R43: 62224 | S43: 63 | T43: 121500 | U43: 63 | V43: 1810 | W43: 63 | Y43: 63 | Z43: 102 | AA43: 300 | AB43: 610 | AC43: 160 | AD43: 670 | AE43: 1325 | AF43: 1325 | AG43: 1325 | AH43: 38
A44: 62 | B44: - | C44: 62 | D44: 3060 | E44: 62 | F44: 1170 | G44: 62 | H44: 10950 | I44: 62 | J44: 1520 | K44: 62 | L44: 10150 | M44: 62 | N44: 25600 | O44: 62 | P44: 55700 | Q44: 62 | R44: 62324 | S44: 62 | T44: 122000 | U44: 62 | V44: 1820 | W44: 62 | Y44: 62 | Z44: 103 | AA44: 303 | AB44: 620 | AC44: - | AD44: 680 | AE44: 1350 | AF44: 1350 | AG44: 1350 | AH44: 39
A45: 61 | B45: 1460 | C45: 61 | D45: 3080 | E45: 61 | F45: 1180 | G45: 61 | H45: 11000 | I45: 61 | J45: 1530 | K45: 61 | L45: 10200 | M45: 61 | N45: 25800 | O45: 61 | P45: 60000 | Q45: 61 | R45: 62424 | S45: 61 | T45: 122500 | U45: 61 | V45: 1830 | W45: 61 | Y45: 61 | Z45: 104 | AA45: 306 | AB45: 630 | AC45: 165 | AD45: 690 | AE45: 1375 | AF45: 1375 | AG45: 1375 | AH45: 40
A46: 60 | B46: - | C46: 60 | D46: 3100 | E46: 60 | F46: 1190 | G46: 60 | H46: 11100 | I46: 60 | J46: 1540 | K46: 60 | L46: 10250 | M46: 60 | N46: 30000 | O46: 60 | P46: 60300 | Q46: 60 | R46: 62524 | S46: 60 | T46: 123000 | U46: 60 | V46: 1840 | W46: 60 | Y46: 60 | Z46: 105 | AA46: 309 | AB46: 640 | AC46: - | AD46: 700 | AE46: 1400 | AF46: 1400 | AG46: 1400 | AH46: 41
A47: 59 | B47: 1470 | C47: 59 | D47: 3120 | E47: 59 | F47: 1200 | G47: 59 | H47: 11200 | I47: 59 | J47: 1550 | K47: 59 | L47: 10300 | M47: 59 | N47: 30200 | O47: 59 | P47: 60600 | Q47: 59 | R47: 62624 | S47: 59 | T47: 123500 | U47: 59 | V47: 1850 | W47: 59 | Y47: 59 | Z47: 106 | AA47: 312 | AB47: 650 | AC47: 170 | AD47: 710 | AE47: 1425 | AF47: 1425 | AG47: 1425 | AH47: 42
A48: 58 | B48: - | C48: 58 | D48: 3140 | E48: 58 | F48: 1210 | G48: 58 | H48: 11300 | I48: 58 | J48: 1560 | K48: 58 | L48: 10350 | M48: 58 | N48: 30400 | O48: 58 | P48: 60900 | Q48: 58 | R48: 62724 | S48: 58 | T48: 124000 | U48: 58 | V48: 1860 | W48: 58 | Y48: 58 | Z48: 107 | AA48: 315 | AB48: 660 | AC48: - | AD48: 720 | AE48: 1450 | AF48: 1450 | AG48: 1450 | AH48: 43
A49: 57 | B49: 1480 | C49: 57 | D49: 3160 | E49: 57 | F49: 1220 | G49: 57 | H49: 11400 | I49: 57 | J49: 1570 | K49: 57 | L49: 10400 | M49: 57 | N49: 30600 | O49: 57 | P49: 61200 | Q49: 57 | R49: 62824 | S49: 57 | T49: 124500 | U49: 57 | V49: 1870 | W49: 57 | Y49: 57 | Z49: 108 | AA49: 318 | AB49: 670 | AC49: 175 | AD49: 730 | AE49: 1475 | AF49: 1475 | AG49: 1475 | AH49: 44
A50: 56 | B50: - | C50: 56 | D50: 3180 | E50: 56 | F50: 1230 | G50: 56 | H50: 11500 | I50: 56 | J50: 1580 | K50: 56 | L50: 10450 | M50: 56 | N50: 30800 | O50: 56 | P50: 61500 | Q50: 56 | R50: 62924 | S50: 56 | T50: 125000 | U50: 56 | V50: 1880 | W50: 56 | Y50: 56 | Z50: 109 | AA50: 321 | AB50: 680 | AC50: - | AD50: 740 | AE50: 1500 | AF50: 1500 | AG50: 1500 | AH50: 45
A51: 55 | B51: 1490 | C51: 55 | D51: 3200 | E51: 55 | F51: 1240 | G51: 55 | H51: 11600 | I51: 55 | J51: 1590 | K51: 55 | L51: 10500 | M51: 55 | N51: 31000 | O51: 55 | P51: 61800 | Q51: 55 | R51: 63024 | S51: 55 | T51: 125500 | U51: 55 | V51: 1890 | W51: 55 | Y51: 55 | Z51: 110 | AA51: 324 | AB51: 690 | AC51: 180 | AD51: 750 | AE51: 1525 | AF51: 1525 | AG51: 1525 | AH51: 46
A52: 54 | B52: - | C52: 54 | D52: 3220 | E52: 54 | F52: 1250 | G52: 54 | H52: 11700 | I52: 54 | J52: 1600 | K52: 54 | L52: 10550 | M52: 54 | N52: 31200 | O52: 54 | P52: 62100 | Q52: 54 | R52: 63124 | S52: 54 | T52: 130000 | U52: 54 | V52: 1900 | W52: 54 | Y52: 54 | Z52: 111 | AA52: 327 | AB52: 700 | AC52: - | AD52: 760 | AE52: 1550 | AF52: 1550 | AG52: 1550 | AH52: 47
A53: 53 | B53: 1500 | C53: 53 | D53: 3240 | E53: 53 | F53: 1260 | G53: 53 | H53: 11800 | I53: 53 | J53: 1610 | K53: 53 | L53: 10600 | M53: 53 | N53: 31400 | O53: 53 | P53: 62400 | Q53: 53 | R53: 63224 | S53: 53 | T53: 131000 | U53: 53 | V53: 1910 | W53: 53 | Y53: 53 | Z53: 112 | AA53: 330 | AB53: 710 | AC53: 185 | AD53: 770 | AE53: 1575 | AF53: 1575 | AG53: 1575 | AH53: 48
A54: 52 | B54: - | C54: 52 | D54: 3260 | E54: 52 | F54: 1270 | G54: 52 | H54: 11900 | I54: 52 | J54: 1620 | K54: 52 | L54: 10650 | M54: 52 | N54: 31600 | O54: 52 | P54: 62700 | Q54: 52 | R54: 63324 | S54: 52 | T54: 132000 | U54: 52 | V54: 1920 | W54: 52 | Y54: 52 | Z54: 113 | AA54: 333 | AB54: 720 | AC54: - | AD54: 780 | AE54: 1600 | AF54: 1600 | AG54: 1600 | AH54: 49
A55: 51 | B55: 1510 | C55: 51 | D55: 3280 | E55: 51 | F55: 1280 | G55: 51 | H55: 12000 | I55: 51 | J55: 1630 | K55: 51 | L55: 10700 | M55: 51 | N55: 31800 | O55: 51 | P55: 63000 | Q55: 51 | R55: 63424 | S55: 51 | T55: 133000 | U55: 51 | V55: 1930 | W55: 51 | Y55: 51 | Z55: 114 | AA55: 336 | AB55: 730 | AC55: 190 | AD55: 790 | AE55: 1625 | AF55: 1625 | AG55: 1625 | AH55: 50
A56: 50 | B56: - | C56: 50 | D56: 3300 | E56: 50 | F56: 1290 | G56: 50 | H56: 12100 | I56: 50 | J56: 1640 | K56: 50 | L56: 10750 | M56: 50 | N56: 32000 | O56: 50 | P56: 63300 | Q56: 50 | R56: 63524 | S56: 50 | T56: 134000 | U56: 50 | V56: 1940 | W56: 50 | Y56: 50 | Z56: 115 | AA56: 339 | AB56: 740 | AC56: - | AD56: 800 | AE56: 1650 | AF56: 1650 | AG56: 1650 | AH56: 51
A57: 49 | B57: 1520 | C57: 49 | D57: 3320 | E57: 49 | F57: 1300 | G57: 49 | H57: 12200 | I57: 49 | J57: 1650 | K57: 49 | L57: 10800 | M57: 49 | N57: 32200 | O57: 49 | P57: 63600 | Q57: 49 | R57: 63624 | S57: 49 | T57: 135000 | U57: 49 | V57: 1950 | W57: 49 | Y57: 49 | Z57: 116 | AA57: 342 | AB57: 750 | AC57: 195 | AD57: 810 | AE57: 1675 | AF57: 1675 | AG57: 1675 | AH57: 52
A58: 48 | B58: 1530 | C58: 48 | D58: 3340 | E58: 48 | F58: 1310 | G58: 48 | H58: 12300 | I58: 48 | J58: 1660 | K58: 48 | L58: 10850 | M58: 48 | N58: 32400 | O58: 48 | P58: 63900 | Q58: 48 | R58: 63724 | S58: 48 | T58: 140000 | U58: 48 | V58: 1960 | W58: 48 | Y58: 48 | Z58: 117 | AA58: 345 | AB58: 760 | AC58: - | AD58: 820 | AE58: 1700 | AF58: 1700 | AG58: 1700 | AH58: 53
A59: 47 | B59: 1540 | C59: 47 | D59: 3360 | E59: 47 | F59: 1320 | G59: 47 | H59: 12400 | I59: 47 | J59: 1670 | K59: 47 | L59: 10900 | M59: 47 | N59: 32600 | O59: 47 | P59: 64200 | Q59: 47 | R59: 63824 | S59: 47 | T59: 141000 | U59: 47 | V59: 1970 | W59: 47 | Y59: 47 | Z59: 118 | AA59: 348 | AB59: 770 | AC59: 200 | AD59: 830 | AE59: 1725 | AF59: 1725 | AG59: 1725 | AH59: 54
A60: 46 | B60: 1550 | C60: 46 | D60: 3380 | E60: 46 | F60: 1330 | G60: 46 | H60: 12500 | I60: 46 | J60: 1680 | K60: 46 | L60: 10950 | M60: 46 | N60: 32800 | O60: 46 | P60: 64500 | Q60: 46 | R60: 63924 | S60: 46 | T60: 142000 | U60: 46 | V60: 1980 | W60: 46 | Y60: 46 | Z60: 119 | AA60: 351 | AB60: 780 | AC60: - | AD60: 840 | AE60: 1750 | AF60: 1750 | AG60: 1750 | AH60: 55
A61: 45 | B61: 1560 | C61: 45 | D61: 3400 | E61: 45 | F61: 1340 | G61: 45 | H61: 12600 | I61: 45 | J61: 1690 | K61: 45 | L61: 11000 | M61: 45 | N61: 33000 | O61: 45 | P61: 64800 | Q61: 45 | R61: 64024 | S61: 45 | T61: 143000 | U61: 45 | V61: 1990 | W61: 45 | Y61: 45 | Z61: 120 | AA61: 354 | AB61: 790 | AC61: 205 | AD61: 850 | AE61: 1775 | AF61: 1775 | AG61: 1775 | AH61: 56
A62: 44 | B62: 1570 | C62: 44 | D62: 3420 | E62: 44 | F62: 1350 | G62: 44 | H62: 12700 | I62: 44 | J62: 1700 | K62: 44 | L62: 11100 | M62: 44 | N62: 33200 | O62: 44 | P62: 65100 | Q62: 44 | R62: 64124 | S62: 44 | T62: 144000 | U62: 44 | V62: 2000 | W62: 44 | Y62: 44 | Z62: 121 | AA62: 357 | AB62: 800 | AC62: - | AD62: 860 | AE62: 1800 | AF62: 1800 | AG62: 1800 | AH62: 57
A63: 43 | B63: 1580 | C63: 43 | D63: 3440 | E63: 43 | F63: 1360 | G63: 43 | H63: 12800 | I63: 43 | J63: 1710 | K63: 43 | L63: 11200 | M63: 43 | N63: 33400 | O63: 43 | P63: 65400 | Q63: 43 | R63: 64224 | S63: 43 | T63: 145000 | U63: 43 | V63: 2010 | W63: 43 | Y63: 43 | Z63: 122 | AA63: 360 | AB63: 810 | AC63: 210 | AD63: 870 | AE63: 1825 | AF63: 1825 | AG63: 1825 | AH63: 58
A64: 42 | B64: 1590 | C64: 42 | D64: 3460 | E64: 42 | F64: 1370 | G64: 42 | H64: 12900 | I64: 42 | J64: 1720 | K64: 42 | L64: 11300 | M64: 42 | N64: 33600 | O64: 42 | P64: 65700 | Q64: 42 | R64: 64324 | S64: 42 | T64: 150000 | U64: 42 | V64: 2020 | W64: 42 | Y64: 42 | Z64: 123 | AA64: 363 | AB64: 820 | AC64: - | AD64: 880 | AE64: 1850 | AF64: 1850 | AG64: 1850 | AH64: 59
A65: 41 | B65: 1600 | C65: 41 | D65: 3480 | E65: 41 | F65: 1380 | G65: 41 | H65: 13000 | I65: 41 | J65: 1730 | K65: 41 | L65: 11400 | M65: 41 | N65: 33800 | O65: 41 | P65: 70000 | Q65: 41 | R65: 64424 | S65: 41 | T65: 151000 | U65: 41 | V65: 2030 | W65: 41 | Y65: 41 | Z65: 124 | AA65: 366 | AB65: 830 | AC65: 215 | AD65: 890 | AE65: 1875 | AF65: 1875 | AG65: 1875 | AH65: 60
A66: 40 | B66: 1610 | C66: 40 | D66: 3500 | E66: 40 | F66: 1390 | G66: 40 | H66: 13100 | I66: 40 | J66: 1740 | K66: 40 | L66: 11500 | M66: 40 | N66: 34000 | O66: 40 | P66: 70300 | Q66: 40 | R66: 64524 | S66: 40 | T66: 152000 | U66: 40 | V66: 2040 | W66: 40 | Y66: 40 | Z66: 125 | AA66: 369 | AB66: 840 | AC66: - | AD66: 900 | AE66: 1900 | AF66: 1900 | AG66: 1900 | AH66: 61
A67: 39 | B67: 1620 | C67: 39 | D67: 3520 | E67: 39 | F67: 1400 | G67: 39 | H67: 13200 | I67: 39 | J67: 1750 | K67: 39 | L67: 11600 | M67: 39 | N67: 34200 | O67: 39 | P67: 70600 | Q67: 39 | R67: 64624 | S67: 39 | T67: 153000 | U67: 39 | V67: 2050 | W67: 39 | Y67: 39 | Z67: 126 | AA67: 372 | AB67: 850 | AC67: 220 | AD67: 910 | AE67: 1925 | AF67: 1925 | AG67: 1925 | AH67: 62
A68: 38 | B68: 1630 | C68: 38 | D68: 3540 | E68: 38 | F68: 1410 | G68: 38 | H68: 13300 | I68: 38 | J68: 1760 | K68: 38 | L68: 11700 | M68: 38 | N68: 34400 | O68: 38 | P68: 70900 | Q68: 38 | R68: 64724 | S68: 38 | T68: 154000 | U68: 38 | V68: 2060 | W68: 38 | Y68: 38 | Z68: 127 | AA68: 375 | AB68: 860 | AC68: - | AD68: 920 | AE68: 1950 | AF68: 1950 | AG68: 1950 | AH68: 63
A69: 37 | B69: 1640 | C69: 37 | D69: 3560 | E69: 37 | F69: 1420 | G69: 37 | H69: 13400 | I69: 37 | J69: 1770 | K69: 37 | L69: 11800 | M69: 37 | N69: 34600 | O69: 37 | P69: 71200 | Q69: 37 | R69: 64824 | S69: 37 | T69: 155000 | U69: 37 | V69: 2070 | W69: 37 | Y69: 37 | Z69: 128 | AA69: 378 | AB69: 870 | AC69: 225 | AD69: 930 | AE69: 1975 | AF69: 1975 | AG69: 1975 | AH69: 64
A70: 36 | B70: 1650 | C70: 36 | D70: 3580 | E70: 36 | F70: 1430 | G70: 36 | H70: 13500 | I70: 36 | J70: 1780 | K70: 36 | L70: 11900 | M70: 36 | N70: 34800 | O70: 36 | P70: 71500 | Q70: 36 | R70: 64924 | S70: 36 | T70: 160000 | U70: 36 | V70: 2080 | W70: 36 | Y70: 36 | Z70: 129 | AA70: 381 | AB70: 880 | AC70: - | AD70: 940 | AE70: 2000 | AF70: 2000 | AG70: 2000 | AH70: 65
A71: 35 | B71: 1660 | C71: 35 | D71: 3600 | E71: 35 | F71: 1440 | G71: 35 | H71: 13600 | I71: 35 | J71: 1790 | K71: 35 | L71: 12000 | M71: 35 | N71: 35000 | O71: 35 | P71: 71800 | Q71: 35 | R71: 65024 | S71: 35 | T71: 161000 | U71: 35 | V71: 2090 | W71: 35 | Y71: 35 | Z71: 130 | AA71: 384 | AB71: 890 | AC71: 230 | AD71: 950 | AE71: 2025 | AF71: 2025 | AG71: 2025 | AH71: 66
A72: 34 | B72: 1670 | C72: 34 | D72: 3620 | E72: 34 | F72: 1450 | G72: 34 | H72: 13700 | I72: 34 | J72: 1800 | K72: 34 | L72: 12200 | M72: 34 | N72: 35200 | O72: 34 | P72: 72100 | Q72: 34 | R72: 65124 | S72: 34 | T72: 162000 | U72: 34 | V72: 2100 | W72: 34 | Y72: 34 | Z72: 131 | AA72: 387 | AB72: 900 | AC72: - | AD72: 960 | AE72: 2050 | AF72: 2050 | AG72: 2050 | AH72: 67
A73: 33 | B73: 1680 | C73: 33 | D73: 3640 | E73: 33 | F73: 1460 | G73: 33 | H73: 13800 | I73: 33 | J73: 1810 | K73: 33 | L73: 12400 | M73: 33 | N73: 35400 | O73: 33 | P73: 72400 | Q73: 33 | R73: 65224 | S73: 33 | T73: 163000 | U73: 33 | V73: 2110 | W73: 33 | Y73: 33 | Z73: 132 | AA73: 390 | AB73: 910 | AC73: 235 | AD73: 970 | AE73: 2075 | AF73: 2075 | AG73: 2075 | AH73: 68
A74: 32 | B74: 1690 | C74: 32 | D74: 3660 | E74: 32 | F74: 1470 | G74: 32 | H74: 13900 | I74: 32 | J74: 1820 | K74: 32 | L74: 12600 | M74: 32 | N74: 35600 | O74: 32 | P74: 72700 | Q74: 32 | R74: 65324 | S74: 32 | T74: 164000 | U74: 32 | V74: 2120 | W74: 32 | Y74: 32 | Z74: 133 | AA74: 393 | AB74: 920 | AC74: - | AD74: 980 | AE74: 2100 | AF74: 2100 | AG74: 2100 | AH74: 69
A75: 31 | B75: 1700 | C75: 31 | D75: 3680 | E75: 31 | F75: 1480 | G75: 31 | H75: 14000 | I75: 31 | J75: 1830 | K75: 31 | L75: 12800 | M75: 31 | N75: 35800 | O75: 31 | P75: 73000 | Q75: 31 | R75: 65424 | S75: 31 | T75: 165000 | U75: 31 | V75: 2130 | W75: 31 | Y75: 31 | Z75: 134 | AA75: 397 | AB75: 930 | AC75: 240 | AD75: 990 | AE75: 2125 | AF75: 2200 | AG75: 2125 | AH75: 70
A76: 30 | B76: 1710 | C76: 30 | D76: 3700 | E76: 30 | F76: 1490 | G76: 30 | H76: 14100 | I76: 30 | J76: 1840 | K76: 30 | L76: 13000 | M76: 30 | N76: 40000 | O76: 30 | P76: 73500 | Q76: 30 | R76: 65524 | S76: 30 | T76: 170000 | U76: 30 | V76: 2140 | W76: 30 | Y76: 30 | Z76: 135 | AA76: 400 | AB76: 940 | AC76: - | AD76: 1000 | AE76: 2150 | AF76: 2300 | AG76: 2150 | AH76: 71
A77: 29 | B77: 1720 | C77: 29 | D77: 3720 | E77: 29 | F77: 1500 | G77: 29 | H77: 14200 | I77: 29 | J77: 1850 | K77: 29 | L77: 13200 | M77: 29 | N77: 40200 | O77: 29 | P77: 74000 | Q77: 29 | R77: 65624 | S77: 29 | T77: 171000 | U77: 29 | V77: 2150 | W77: 29 | Y77: 29 | Z77: 136 | AA77: 410 | AB77: 950 | AC77: 245 | AD77: 1010 | AE77: 2175 | AF77: 2400 | AG77: 2175 | AH77: 72
A78: 28 | B78: 1730 | C78: 28 | D78: 3740 | E78: 28 | F78: 1510 | G78: 28 | H78: 14300 | I78: 28 | J78: 1860 | K78: 28 | L78: 13400 | M78: 28 | N78: 40400 | O78: 28 | P78: 74500 | Q78: 28 | R78: 65724 | S78: 28 | T78: 172000 | U78: 28 | V78: 2160 | W78: 28 | Y78: 28 | Z78: 137 | AA78: 420 | AB78: 960 | AC78: - | AD78: 1020 | AE78: 2200 | AF78: 2500 | AG78: 2200 | AH78: 73
A79: 27 | B79: 1740 | C79: 27 | D79: 3760 | E79: 27 | F79: 1520 | G79: 27 | H79: 14400 | I79: 27 | J79: 1870 | K79: 27 | L79: 13600 | M79: 27 | N79: 40600 | O79: 27 | P79: 75000 | Q79: 27 | R79: 65824 | S79: 27 | T79: 173000 | U79: 27 | V79: 2170 | W79: 27 | Y79: 27 | Z79: 138 | AA79: 430 | AB79: 970 | AC79: 250 | AD79: 1030 | AE79: 2250 | AF79: 2600 | AG79: 2250 | AH79: 74
A80: 26 | B80: 1750 | C80: 26 | D80: 3780 | E80: 26 | F80: 1530 | G80: 26 | H80: 14500 | I80: 26 | J80: 1880 | K80: 26 | L80: 13800 | M80: 26 | N80: 40800 | O80: 26 | P80: 75500 | Q80: 26 | R80: 65924 | S80: 26 | T80: 174000 | U80: 26 | V80: 2180 | W80: 26 | Y80: 26 | Z80: 139 | AA80: 440 | AB80: 980 | AC80: - | AD80: 1040 | AE80: 2300 | AF80: 2700 | AG80: 2300 | AH80: 75
A81: 25 | B81: 1760 | C81: 25 | D81: 3800 | E81: 25 | F81: 1540 | G81: 25 | H81: 14600 | I81: 25 | J81: 1890 | K81: 25 | L81: 14000 | M81: 25 | N81: 41000 | O81: 25 | P81: 80000 | Q81: 25 | R81: 70024 | S81: 25 | T81: 175000 | U81: 25 | V81: 2190 | W81: 25 | Y81: 25 | Z81: 140 | AA81: 450 | AB81: 990 | AC81: 255 | AD81: 1050 | AE81: 2350 | AF81: 2800 | AG81: 2350 | AH81: 76
A82: 24 | B82: 1770 | C82: 24 | D82: 3850 | E82: 24 | F82: 1550 | G82: 24 | H82: 14700 | I82: 24 | J82: 1900 | K82: 24 | L82: 14200 | M82: 24 | N82: 41200 | O82: 24 | P82: 80500 | Q82: 24 | R82: 70124 | S82: 24 | T82: 180000 | U82: 24 | V82: 2200 | W82: 24 | Y82: 24 | Z82: 142 | AA82: 460 | AB82: 1000 | AC82: - | AD82: 1060 | AE82: 2400 | AF82: 2900 | AG82: 2400 | AH82: 77
A83: 23 | B83: 1780 | C83: 23 | D83: 3900 | E83: 23 | F83: 1560 | G83: 23 | H83: 14800 | I83: 23 | J83: 1910 | K83: 23 | L83: 14400 | M83: 23 | N83: 41400 | O83: 23 | P83: 81000 | Q83: 23 | R83: 70224 | S83: 23 | T83: 181000 | U83: 23 | V83: 2210 | W83: 23 | Y83: 23 | Z83: 144 | AA83: 470 | AB83: 1015 | AC83: 260 | AD83: 1070 | AE83: 2450 | AF83: 3000 | AG83: 2450 | AH83: 78
A84: 22 | B84: 1790 | C84: 22 | D84: 3950 | E84: 22 | F84: 1570 | G84: 22 | H84: 14900 | I84: 22 | J84: 1920 | K84: 22 | L84: 14600 | M84: 22 | N84: 41600 | O84: 22 | P84: 81500 | Q84: 22 | R84: 70324 | S84: 22 | T84: 182000 | U84: 22 | V84: 2220 | W84: 22 | Y84: 22 | Z84: 146 | AA84: 480 | AB84: 1030 | AC84: - | AD84: 1080 | AE84: 2500 | AF84: 3100 | AG84: 2500 | AH84: 79
A85: 21 | B85: 1800 | C85: 21 | D85: 4000 | E85: 21 | F85: 1580 | G85: 21 | H85: 15000 | I85: 21 | J85: 1930 | K85: 21 | L85: 14800 | M85: 21 | N85: 41800 | O85: 21 | P85: 82000 | Q85: 21 | R85: 70424 | S85: 21 | T85: 183000 | U85: 21 | V85: 2230 | W85: 21 | Y85: 21 | Z85: 148 | AA85: 490 | AB85: 1045 | AC85: 265 | AD85: 1090 | AE85: 2550 | AF85: 3200 | AG85: 2550 | AH85: 80
A86: 20 | B86: 1810 | C86: 20 | D86: 4050 | E86: 20 | F86: 1590 | G86: 20 | H86: 15100 | I86: 20 | J86: 1940 | K86: 20 | L86: 15000 | M86: 20 | N86: 42000 | O86: 20 | P86: 82500 | Q86: 20 | R86: 70524 | S86: 20 | T86: 184000 | U86: 20 | V86: 2240 | W86: 20 | Y86: 20 | Z86: 150 | AA86: 500 | AB86: 1060 | AC86: - | AD86: 1100 | AE86: 2600 | AF86: 3300 | AG86: 2600 | AH86: 81
A87: 19 | B87: 1820 | C87: 19 | D87: 4100 | E87: 19 | F87: 1600 | G87: 19 | H87: 15200 | I87: 19 | J87: 1950 | K87: 19 | L87: 15200 | M87: 19 | N87: 42200 | O87: 19 | P87: 83000 | Q87: 19 | R87: 70624 | S87: 19 | T87: 185000 | U87: 19 | V87: 2250 | W87: 19 | Y87: 19 | Z87: 152 | AA87: 505 | AB87: 1075 | AC87: 270 | AD87: 1110 | AE87: 2650 | AF87: 3400 | AG87: 2650 | AH87: 82
A88: 18 | B88: 1830 | C88: 18 | D88: 4150 | E88: 18 | F88: 1610 | G88: 18 | H88: 15300 | I88: 18 | J88: 1960 | K88: 18 | L88: 15400 | M88: 18 | N88: 42400 | O88: 18 | P88: 83500 | Q88: 18 | R88: 70724 | S88: 18 | T88: 190000 | U88: 18 | V88: 2260 | W88: 18 | Y88: 18 | Z88: 154 | AA88: 510 | AB88: 1090 | AC88: - | AD88: 1120 | AE88: 2700 | AF88: 3500 | AG88: 2700 | AH88: 83
A89: 17 | B89: 1840 | C89: 17 | D89: 4200 | E89: 17 | F89: 1620 | G89: 17 | H89: 15400 | I89: 17 | J89: 1970 | K89: 17 | L89: 15600 | M89: 17 | N89: 42600 | O89: 17 | P89: 84000 | Q89: 17 | R89: 70824 | S89: 17 | T89: 191000 | U89: 17 | V89: 2270 | W89: 17 | Y89: 17 | Z89: 156 | AA89: 515 | AB89: 1105 | AC89: 275 | AD89: 1130 | AE89: 2800 | AF89: 3600 | AG89: 2800 | AH89: 84
A90: 16 | B90: 1850 | C90: 16 | D90: 4250 | E90: 16 | F90: 1630 | G90: 16 | H90: 15500 | I90: 16 | J90: 1980 | K90: 16 | L90: 15800 | M90: 16 | N90: 42800 | O90: 16 | P90: 84500 | Q90: 16 | R90: 70924 | S90: 16 | T90: 192000 | U90: 16 | V90: 2280 | W90: 16 | Y90: 16 | Z90: 158 | AA90: 520 | AB90: 1120 | AC90: - | AD90: 1140 | AE90: 2900 | AF90: 3700 | AG90: 2900 | AH90: 85
A91: 15 | B91: 1860 | C91: 15 | D91: 4300 | E91: 15 | F91: 1640 | G91: 15 | H91: 15600 | I91: 15 | J91: 1990 | K91: 15 | L91: 20000 | M91: 15 | N91: 43000 | O91: 15 | P91: 85000 | Q91: 15 | R91: 71024 | S91: 15 | T91: 193000 | U91: 15 | V91: 2290 | W91: 15 | Y91: 15 | Z91: 160 | AA91: 525 | AB91: 1135 | AC91: 280 | AD91: 1150 | AE91: 3000 | AF91: 3800 | AG91: 3000 | AH91: 86
A92: 14 | B92: 1870 | C92: 14 | D92: 4350 | E92: 14 | F92: 1650 | G92: 14 | H92: 15700 | I92: 14 | J92: 2000 | K92: 14 | L92: 20200 | M92: 14 | N92: 43200 | O92: 14 | P92: 85500 | Q92: 14 | R92: 71124 | S92: 14 | T92: 194000 | U92: 14 | V92: 2300 | W92: 14 | Y92: 14 | Z92: 162 | AA92: 530 | AB92: 1150 | AC92: - | AD92: 1160 | AE92: 3100 | AF92: 3900 | AG92: 3100 | AH92: 87
A93: 13 | B93: 1880 | C93: 13 | D93: 4400 | E93: 13 | F93: 1660 | G93: 13 | H93: 15800 | I93: 13 | J93: 2010 | K93: 13 | L93: 20400 | M93: 13 | N93: 43400 | O93: 13 | P93: 90000 | Q93: 13 | R93: 71224 | S93: 13 | T93: 195000 | U93: 13 | V93: 2310 | W93: 13 | Y93: 13 | Z93: 164 | AA93: 535 | AB93: 1165 | AC93: 285 | AD93: 1170 | AE93: 3200 | AF93: 4000 | AG93: 3200 | AH93: 88
A94: 12 | B94: 1890 | C94: 12 | D94: 4450 | E94: 12 | F94: 1670 | G94: 12 | H94: 15900 | I94: 12 | J94: 2020 | K94: 12 | L94: 20600 | M94: 12 | N94: 43600 | O94: 12 | P94: 90500 | Q94: 12 | R94: 71324 | S94: 12 | T94: 200000 | U94: 12 | V94: 2320 | W94: 12 | Y94: 12 | Z94: 166 | AA94: 540 | AB94: 1180 | AC94: - | AD94: 1180 | AE94: 3300 | AF94: 4100 | AG94: 3300 | AH94: 89
A95: 11 | B95: 1900 | C95: 11 | D95: 4500 | E95: 11 | F95: 1680 | G95: 11 | H95: 20000 | I95: 11 | J95: 2030 | K95: 11 | L95: 20800 | M95: 11 | N95: 43800 | O95: 11 | P95: 91000 | Q95: 11 | R95: 71424 | S95: 11 | T95: 201000 | U95: 11 | V95: 2330 | W95: 11 | Y95: 11 | Z95: 168 | AA95: 550 | AB95: 1195 | AC95: 290 | AD95: 1190 | AE95: 3400 | AF95: 4200 | AG95: 3400 | AH95: 90
A96: 10 | B96: 1920 | C96: 10 | D96: 4550 | E96: 10 | F96: 1690 | G96: 10 | H96: 20100 | I96: 10 | J96: 2040 | K96: 10 | L96: 21000 | M96: 10 | N96: 44000 | O96: 10 | P96: 91500 | Q96: 10 | R96: 71524 | S96: 10 | T96: 202000 | U96: 10 | V96: 2340 | W96: 10 | Y96: 10 | Z96: 170 | AA96: 560 | AB96: 1210 | AC96: - | AD96: 1200 | AE96: 3500 | AF96: 4300 | AG96: 3500 | AH96: 91
A97: 9 | B97: 1940 | C97: 9 | D97: 4600 | E97: 9 | F97: 1700 | G97: 9 | H97: 20200 | I97: 9 | J97: 2050 | K97: 9 | L97: 21200 | M97: 9 | N97: 44200 | O97: 9 | P97: 92000 | Q97: 9 | R97: 71624 | S97: 9 | T97: 203000 | U97: 9 | V97: 2350 | W97: 9 | Y97: 9 | Z97: 172 | AA97: 570 | AB97: 1225 | AC97: 295 | AD97: 1220 | AE97: 3600 | AF97: 4500 | AG97: 3600 | AH97: 92
A98: 8 | B98: 1960 | C98: 8 | D98: 4650 | E98: 8 | F98: 1710 | G98: 8 | H98: 20300 | I98: 8 | J98: 2060 | K98: 8 | L98: 21400 | M98: 8 | N98: 44400 | O98: 8 | P98: 92500 | Q98: 8 | R98: 71724 | S98: 8 | T98: 204000 | U98: 8 | V98: 2360 | W98: 8 | Y98: 8 | Z98: 174 | AA98: 580 | AB98: 1240 | AC98: 300 | AD98: 1240 | AE98: 3700 | AF98: 4400 | AG98: 3700 | AH98: 93
A99: 7 | B99: 1980 | C99: 7 | D99: 4700 | E99: 7 | F99: 1720 | G99: 7 | H99: 20400 | I99: 7 | J99: 2070 | K99: 7 | L99: 21600 | M99: 7 | N99: 44600 | O99: 7 | P99: 93000 | Q99: 7 | R99: 71824 | S99: 7 | T99: 205000 | U99: 7 | V99: 2370 | W99: 7 | Y99: 7 | Z99: 176 | AA99: 590 | AB99: 1255 | AC99: 310 | AD99: 1260 | AE99: 3800 | AF99: 4600 | AG99: 3800 | AH99: 94
A100: 6 | B100: 2000 | C100: 6 | D100: 4750 | E100: 6 | F100: 1730 | G100: 6 | H100: 20500 | I100: 6 | J100: 2080 | K100: 6 | L100: 21800 | M100: 6 | N100: 44800 | O100: 6 | P100: 93500 | Q100: 6 | R100: 71924 | S100: 6 | T100: 210000 | U100: 6 | V100: 2380 | W100: 6 | Y100: 6 | Z100: 178 | AA100: 600 | AB100: 1270 | AC100: 320 | AD100: 1280 | AE100: 3900 | AF100: 4700 | AG100: 3900 | AH100: 95
A101: 5 | B101: 2020 | C101: 5 | D101: 4800 | E101: 5 | F101: 1740 | G101: 5 | H101: 20600 | I101: 5 | J101: 2090 | K101: 5 | L101: 22000 | M101: 5 | N101: 45000 | O101: 5 | P101: 94000 | Q101: 5 | R101: 72024 | S101: 5 | T101: 211000 | U101: 5 | V101: 2390 | W101: 5 | Y101: 5 | Z101: 180 | AA101: 610 | AB101: 1285 | AC101: 330 | AD101: 1300 | AE101: 4000 | AF101: 4800 | AG101: 4000 | AH101: 96
A102: 4 | B102: 2040 | C102: 4 | D102: 4850 | E102: 4 | F102: 1750 | G102: 4 | H102: 20700 | I102: 4 | J102: 2100 | K102: 4 | L102: 22200 | M102: 4 | N102: 45200 | O102: 4 | P102: 94500 | Q102: 4 | R102: 72124 | S102: 4 | T102: 212000 | U102: 4 | V102: 2400 | W102: 4 | Y102: 4 | Z102: 182 | AA102: 620 | AB102: 1300 | AC102: 340 | AD102: 1320 | AE102: 4100 | AF102: 4900 | AG102: 4100 | AH102: 97
A103: 3 | B103: 2060 | C103: 3 | D103: 4900 | E103: 3 | F103: 1760 | G103: 3 | H103: 20800 | I103: 3 | J103: 2110 | K103: 3 | L103: 22400 | M103: 3 | N103: 45400 | O103: 3 | P103: 95000 | Q103: 3 | R103: 72224 | S103: 3 | T103: 213000 | U103: 3 | V103: 2410 | W103: 3 | Y103: 3 | Z103: 184 | AA103: 630 | AB103: 1315 | AC103: 350 | AD103: 1340 | AE103: 4200 | AF103: 5000 | AG103: 4200 | AH103: 98
A104: 2 | B104: 2080 | C104: 2 | D104: 4950 | E104: 2 | F104: 1770 | G104: 2 | H104: 20900 | I104: 2 | J104: 2120 | K104: 2 | L104: 22600 | M104: 2 | N104: 45600 | O104: 2 | P104: 95500 | Q104: 2 | R104: 72324 | S104: 2 | T104: 214000 | U104: 2 | V104: 2420 | W104: 2 | Y104: 2 | Z104: 186 | AA104: 640 | AB104: 1330 | AC104: 360 | AD104: 1360 | AE104: 4300 | AF104: 5100 | AG104: 4300 | AH104: 99
A105: 1 | B105: 2100 | C105: 1 | D105: 5000 | E105: 1 | F105: 1780 | G105: 1 | H105: 21000 | I105: 1 | J105: 2130 | K105: 1 | L105: 22800 | M105: 1 | N105: 45800 | O105: 1 | P105: 100000 | Q105: 1 | R105: 72424 | S105: 1 | T105: 215000 | U105: 1 | V105: 2430 | W105: 1 | Y105: 1 | Z105: 188 | AA105: 650 | AB105: 1345 | AC105: 370 | AD105: 1380 | AE105: 4400 | AF105: 5200 | AG105: 4400 | AH105: 100
B106: DNS | D106: DNS | F106: DNS | H106: DNS | J106: DNS | L106: DNS | N106: DNS | P106: DNS | R106: DNS | T106: DNS | V106: DNS | X106: DNS | Y106: 0 | Z106: DNS | AA106: DNS | AB106: DNS | AC106: DNS | AD106: DNS | AE106: DNS | AF106: DNS | AH106: 0
B107: DNF | D107: DNF | F107: DNF | H107: DNF | J107: DNF | L107: DNF | N107: DNF | P107: DNF | R107: DNF | T107: DNF | V107: DNF | X107: DNF | Y107: 0 | Z107: NM | AA107: NM | AB107: NM | AC107: NM | AD107: NM | AE107: NM | AF107: NM | AH107: 0
B108: NM | D108: NM | F108: NM | H108: NM | J108: NM | L108: NM | N108: NM | P108: NM | R108: NM | T108: NM | V108: NM | X108: NM | Y108: 0 | Z108: DQ | AA108: DQ | AB108: DQ | AC108: DQ | AD108: DQ | AE108: DQ | AF108: DQ | AH108: 0
B109: DQ | D109: DQ | F109: DQ | H109: DQ | J109: DQ | L109: DQ | N109: DQ | P109: DQ | R109: DQ | T109: DQ | V109: DQ | X109: DQ | Y109: 0 | AH109: 0

Sheet Gülle
A1: ='YARIŞMA BİLGİLERİ'!A2:K2 -> Türkiye Atletizm Federasyonu İzmir Atletizm İl Temsilciliği
A2: ='YARIŞMA BİLGİLERİ'!A14:K14 -> Naili Moran Türkiye Atletizm Şampiyonası
A3: Yarışma : | D3: ='YARIŞMA PROGRAMI'!C23 -> Gülle Atma
A4: Kategori : | D4: ='YARIŞMA BİLGİLERİ'!F21 -> 14 Yaş Erkekler | F4: Ağırlık | G4: 4 kg. | I4: Tarih-Saat : | K4: ='YARIŞMA PROGRAMI'!B23 -> 14 Haziran 2014 - 9:30
J5: 41804.48694
A6: SIRA NO | C6: GÖĞÜS NO | D6: DOĞUM TARİHİ Gün/Ay/Yıl | E6: ADI VE SOYADI | F6: İLİ | G6: A T M A L A R | J6: SONUÇ | K6: PUAN | L6: KLASMAN
G7: 1 | H7: 2 | I7: 3
A8: 1 | B8: GÜLLE-23 | C8: 710 | D8: 2000-03-25 | E8: BURAK DERTLİ | F8: TRABZON | G8: 1206 | H8: 1251 | I8: X | J8: 1251 | K8: 93
A9: 2 | B9: GÜLLE-22 | C9: 225 | D9: 2000-01-01 | E9: ÇAĞRI BOZKAYA | F9: DENİZLİ | G9: 1168 | H9: 1208 | I9: X | J9: 1208 | K9: 91
A10: 3 | B10: GÜLLE-6 | C10: 226 | D10: 2000-01-01 | E10: EROL PINARBAŞ | F10: DENİZLİ | G10: 1123 | H10: 1098 | I10: 1050 | J10: 1123 | K10: 83
A11: 4 | B11: GÜLLE-24 | C11: 576 | D11: 2000-04-01 | E11: Yunus SÖZÜGÜZEL | F11: MUŞ | G11: 1023 | H11: 966 | I11: 1053 | J11: 1053 | K11: 76
A12: 5 | B12: GÜLLE-1 | C12: 593 | D12: 2000-09-12 | E12: MUSTAFA ÜNLÜTÜRK | F12: NEVŞEHİR | G12: 951 | H12: 1052 | I12: 1000 | J12: 1052 | K12: 76
A13: 6 | B13: GÜLLE-21 | C13: 419 | D13: 2000-02-25 | E13: ÜMİT AÇILAN | F13: İZMİR | G13: X | H13: 1000 | I13: 1043 | J13: 1043 | K13: 75
A14: 7 | B14: GÜLLE-9 | C14: 660 | D14: 2000-01-15 | E14: OKTAY EREN | F14: SİİRT | G14: 971 | H14: 1018 | I14: 1036 | J14: 1036 | K14: 74
A15: 8 | B15: GÜLLE-11 | C15: 146 | D15: 2000-10-16 | E15: SEDAT KARTAL | F15: BATMAN | G15: X | H15: 1020 | I15: 914 | J15: 1020 | K15: 73
A16: 9 | B16: GÜLLE-19 | C16: 164 | D16: 2000-08-10 | E16: EGEMEN TEZGEÇ | F16: BİLECİK | G16: 1015 | H16: 938 | I16: 953 | J16: 1015 | K16: 72
A17: 10 | B17: GÜLLE-3 | C17: 87 | D17: 2000-11-20 | E17: ABDÜLKADİR YANILMA | F17: AYDIN | G17: 992 | H17: 995 | I17: 931 | J17: 995 | K17: 70
A18: 11 | B18: GÜLLE-13 | C18: 144 | D18: 2000-01-01 | E18: FERHAT İLİMEN | F18: BATMAN | G18: 929 | H18: 940 | I18: 973 | J18: 973 | K18: 68
A19: 12 | B19: GÜLLE-17 | C19: 115 | D19: 2000-11-27 | E19: VOLKAN ŞAHİN | F19: BALIKESİR | G19: 905 | H19: 915 | I19: 956 | J19: 956 | K19: 66
A20: 13 | B20: GÜLLE-18 | C20: 194 | D20: 2000-09-17 | E20: ATAKAN GÖR | F20: BURDUR | G20: 850 | H20: 937 | I20: 899 | J20: 937 | K20: 64
A21: 14 | B21: GÜLLE-4 | C21: 252 | D21: 2000-09-03 | E21: FURKAN KIZGIN | F21: ERZİNCAN | G21: X | H21: 922 | I21: 856 | J21: 922 | K21: 63
A22: 15 | B22: GÜLLE-12 | C22: 145 | D22: 2000-02-10 | E22: AHMET DAŞ | F22: BATMAN | G22: X | H22: 845 | I22: 871 | J22: 871 | K22: 58
A23: 16 | B23: GÜLLE-20 | C23: 482 | D23: 2000-09-10 | E23: BERAT YEŞİLYURT | F23: KIRIKKALE | G23: 806 | H23: X | I23: 851 | J23: 851 | K23: 56
A24: 17 | B24: GÜLLE-8 | C24: 684 | D24: 2000-01-09 | E24: DOĞUKAN SAMAST | F24: TEKİRDAĞ | G24: 598 | H24: X | I24: 679 | J24: 679 | K24: 38
A25: 18 | B25: GÜLLE-2 | C25: 454 | D25: 2000-03-17 | E25: SANAT SARUHAN | F25: İZMİR | G25: X | H25: X | I25: 630 | J25: 630 | K25: 34
A26: 19 | B26: GÜLLE-7 | C26: 408 | D26: 2000-04-12 | E26: SALİH OĞUZ ERDEM | F26: İZMİR | G26: 587 | H26: 544 | I26: 570 | J26: 587 | K26: 29
A27: - | B27: GÜLLE-5 | C27: 62 | D27: 2000-01-01 | E27: MUSA IŞIK | F27: ARDAHAN | G27: - | H27: X | I27: X | J27: NM | K27: 0
A28: - | B28: GÜLLE-10 | C28: 414 | D28: 2000-01-01 | E28: YAĞIZ HACIOĞLU | F28: İZMİR | J28: DNS | K28: 0
A29: - | B29: GÜLLE-16 | C29: 413 | D29: 2000-01-01 | E29: SİNAN AYYILDIZ | F29: İZMİR | J29: DNS | K29: 0
B30: GÜLLE-25 | J30: 0
B31: GÜLLE-26 | J31: 0
B32: GÜLLE-27 | J32: 0
B33: GÜLLE-28 | J33: 0
B34: GÜLLE-29 | J34: 0
B35: GÜLLE-30 | J35: 0
B36: GÜLLE-31 | J36: 0
B37: GÜLLE-32 | J37: 0
B38: GÜLLE-33 | J38: 0
B39: GÜLLE-34 | J39: 0
B40: GÜLLE-35 | J40: 0
B41: GÜLLE-36 | J41: 0
B42: GÜLLE-37 | J42: 0
B43: GÜLLE-38 | J43: 0
B44: GÜLLE-39 | J44: 0
B45: GÜLLE-40 | J45: 0
A47: Müsabaka Direktörü | E47: Baş Hakem | F47: Lider | G47: Sekreter | J47: Hakem
A65534: CELAL KAYAÖZ

Sheet 100m.Eng
A1: =('YARIŞMA BİLGİLERİ'!A2) -> Türkiye Atletizm Federasyonu İzmir Atletizm İl Temsilciliği
A2: ='YARIŞMA BİLGİLERİ'!F19 -> Naili Moran Türkiye Atletizm Şampiyonası
A3: Yarışma : | D3: ='YARIŞMA PROGRAMI'!C10 -> 100 Metre Engelli
A4: Kategori : | D4: ='YARIŞMA BİLGİLERİ'!F21 -> 14 Yaş Erkekler | M4: Tarih-Saat : | N4: ='YARIŞMA PROGRAMI'!B10 -> 14 Haziran 2014 - 11:30
N5: 41804.48714
A6: Sıra No | B6: Göğüs No | C6: Doğum Tarihi Gün/Ay/Yıl | D6: Adı ve Soyadı | E6: İLİ | F6: Derece | G6: Puan | I6: 1. SERİ | M6: Rüzgar:
I7: Sıra No | J7: Formül | K7: Göğüs No | L7: Doğum Tarihi | M7: Adı ve Soyadı | N7: İLİ | O7: Derece | P7: El Kronometre | Q7: Seri Geliş
A8: 1 | B8: 12 | C8: 2000-01-01 | D8: RAMAZAN GÜL | E8: ADANA | F8: 1465 | G8: 97 | I8: 1 | J8: 100M.ENG-1-1 | K8: 640 | L8: 2000-08-31 | M8: ÖZGÜR GÜLEÇ | N8: SAMSUN | O8: 1783 | Q8: 6
A9: 2 | B9: 503 | C9: 2000-06-02 | D9: KUBİLAY TOK | E9: KKTC | F9: 1475 | G9: 96 | I9: 2 | J9: 100M.ENG-1-2 | K9: 441 | L9: 2000-02-05 | M9: ENES ŞUMNULU | N9: İZMİR | O9: 1659 | Q9: 5
A10: 3 | B10: 429 | C10: 2000-01-12 | D10: ATAKAN GÜNEŞ | E10: İZMİR | F10: 1515 | G10: 92 | I10: 3 | J10: 100M.ENG-1-3 | K10: 430 | L10: 2000-02-10 | M10: MUSTAFA VARLİ | N10: İZMİR | O10: 1545 | Q10: 3
A11: 4 | B11: 430 | C11: 2000-02-10 | D11: MUSTAFA VARLİ | E11: İZMİR | F11: 1545 | G11: 89 | I11: 4 | J11: 100M.ENG-1-4 | K11: 503 | L11: 2000-06-02 | M11: KUBİLAY TOK | N11: KKTC | O11: 1475 | Q11: 1
A12: 5 | B12: 683 | C12: 2000-05-23 | D12: YAĞIZ ARSLAN | E12: TEKİRDAĞ | F12: 1558 | G12: 88 | I12: 5 | J12: 100M.ENG-1-5 | K12: 429 | L12: 2000-01-12 | M12: ATAKAN GÜNEŞ | N12: İZMİR | O12: 1515 | Q12: 2
A13: 6 | B13: 452 | C13: 2000-01-01 | D13: MUHAMMED ENES ALTUN | E13: İZMİR | F13: 1580 | G13: 86 | I13: 6 | J13: 100M.ENG-1-6 | K13: 683 | L13: 2000-05-23 | M13: YAĞIZ ARSLAN | N13: TEKİRDAĞ | O13: 1558 | Q13: 4
A14: 7 | B14: 441 | C14: 2000-02-05 | D14: ENES ŞUMNULU | E14: İZMİR | F14: 1659 | G14: 78 | I14: 7 | J14: 100M.ENG-1-7 | K14: 352 | L14: 2000-06-28 | M14: ERDEM CAN ERGİN | N14: ISPARTA | O14: 2050 | Q14: 7
A15: 8 | B15: 89 | C15: 2000-01-02 | D15: NURİ OĞUZHAN SARI | E15: AYDIN | F15: 1727 | G15: 71 | I15: 8 | J15: 100M.ENG-1-8
A16: 9 | B16: 514 | C16: 2000-01-01 | D16: NUREDDİN YOKTAN | E16: KOCAELİ | F16: 1742 | G16: 69 | I16: 2. SERİ | M16: Rüzgar:
A17: 10 | B17: 640 | C17: 2000-08-31 | D17: ÖZGÜR GÜLEÇ | E17: SAMSUN | F17: 1783 | G17: 65 | I17: Sıra No | J17: Formül | K17: Göğüs No | L17: Doğum Tarihi | M17: Adı ve Soyadı | N17: İLİ | O17: Derece | P17: El Kronometre | Q17: Seri Geliş
A18: 11 | B18: 49 | C18: 2000-01-01 | D18: HASAN CAN BAŞARAN | E18: AMASYA | F18: 1823 | G18: 61 | I18: 1 | J18: 100M.ENG-2-1 | K18: 410 | L18: 2000-04-13 | M18: MERT KAAN ALPTEKİN | N18: İZMİR | O18: DNS | Q18: -
A19: 12 | B19: 163 | C19: 2000-01-01 | D19: ANIL ÖZTİRYAKİ | E19: BİLECİK | F19: 1979 | G19: 46 | I19: 2 | J19: 100M.ENG-2-2 | K19: 49 | L19: 2000-01-01 | M19: HASAN CAN BAŞARAN | N19: AMASYA | O19: 1823 | Q19: 5
A20: 13 | B20: 352 | C20: 2000-06-28 | D20: ERDEM CAN ERGİN | E20: ISPARTA | F20: 2050 | G20: 39 | I20: 3 | J20: 100M.ENG-2-3 | K20: 89 | L20: 2000-01-02 | M20: NURİ OĞUZHAN SARI | N20: AYDIN | O20: 1727 | Q20: 3
A21: - | B21: 410 | C21: 2000-04-13 | D21: MERT KAAN ALPTEKİN | E21: İZMİR | F21: DNS | G21: - | I21: 4 | J21: 100M.ENG-2-4 | K21: 163 | L21: 2000-01-01 | M21: ANIL ÖZTİRYAKİ | N21: BİLECİK | O21: 1979 | Q21: 6
I22: 5 | J22: 100M.ENG-2-5 | K22: 514 | L22: 2000-01-01 | M22: NUREDDİN YOKTAN | N22: KOCAELİ | O22: 1742 | Q22: 4
I23: 6 | J23: 100M.ENG-2-6 | K23: 12 | L23: 2000-01-01 | M23: RAMAZAN GÜL | N23: ADANA | O23: 1465 | Q23: 1
I24: 7 | J24: 100M.ENG-2-7 | K24: 452 | L24: 2000-01-01 | M24: MUHAMMED ENES ALTUN | N24: İZMİR | O24: 1580 | Q24: 2
I25: 8 | J25: 100M.ENG-2-8
I26: 3. SERİ | M26: Rüzgar:
I27: Sıra No | J27: Formül | K27: Göğüs No | L27: Doğum Tarihi | M27: Adı ve Soyadı | N27: İLİ | O27: Derece | P27: El Kronometre | Q27: Seri Geliş
I28: 1 | J28: 100M.ENG-3-1
I29: 2 | J29: 100M.ENG-3-2
I30: 3 | J30: 100M.ENG-3-3
I31: 4 | J31: 100M.ENG-3-4
I32: 5 | J32: 100M.ENG-3-5
I33: 6 | J33: 100M.ENG-3-6
I34: 7 | J34: 100M.ENG-3-7
I35: 8 | J35: 100M.ENG-3-8
I36: 4. SERİ | M36: Rüzgar:
I37: Sıra No | J37: Formül | K37: Göğüs No | L37: Doğum Tarihi | M37: Adı ve Soyadı | N37: İLİ | O37: Derece | P37: El Kronometre | Q37: Seri Geliş
I38: 1 | J38: 100M.ENG-4-1
I39: 2 | J39: 100M.ENG-4-2
I40: 3 | J40: 100M.ENG-4-3
I41: 4 | J41: 100M.ENG-4-4
I42: 5 | J42: 100M.ENG-4-5
I43: 6 | J43: 100M.ENG-4-6
I44: 7 | J44: 100M.ENG-4-7
I45: 8 | J45: 100M.ENG-4-8
A47: Müsabakalar Direktörü | E47: Baş Hakem | F47: Lider | H47: Sekreter | M47: Hakem | N47: Hakem | P47: Hakem
A65536: CELAL KAYAÖZ

Sheet Uzun-A
A1: ='YARIŞMA BİLGİLERİ'!A2:K2 -> Türkiye Atletizm Federasyonu İzmir Atletizm İl Temsilciliği
A2: ='YARIŞMA BİLGİLERİ'!A14:K14 -> Naili Moran Türkiye Atletizm Şampiyonası
A3: Yarışma : | D3: ='YARIŞMA PROGRAMI'!C12 -> Uzun Atlama A Grubu
A4: Kategori : | D4: ='YARIŞMA BİLGİLERİ'!F21 -> 14 Yaş Erkekler | I4: Tarih-Saat : | K4: ='YARIŞMA PROGRAMI'!B12 -> 14 Haziran 2014 - 10:15
J5: 41804.60798
A6: SIRA NO | C6: GÖĞÜS NO | D6: DOĞUM TARİHİ Gün/Ay/Yıl | E6: ADI VE SOYADI | F6: İLİ | G6: A T L A M A L A R | J6: SONUÇ | K6: PUAN | L6: RÜZGAR
G7: 1 | H7: 2 | I7: 3
A8: 1 | B8: UZUN-a-48 | C8: 569 | D8: 2000-01-01 | E8: YUSUF ŞAŞMAZ | F8: MUĞLA | G8: X | H8: X | I8: 580 | J8: 580 | K8: 93
A9: 2 | B9: UZUN-a-50 | C9: 504 | D9: 2000-01-15 | E9: MUSTAFA YORULMAZ | F9: KKTC | G9: 565 | H9: 578 | I9: 564 | J9: 578 | K9: 92
A10: 3 | B10: UZUN-a-44 | C10: 372 | D10: 2000-02-20 | E10: ÖMER FARUK IŞIKDAG | F10: İSTANBUL | G10: X | H10: 542 | I10: 573 | J10: 573 | K10: 92
A11: 4 | B11: UZUN-a-25 | C11: 736 | D11: 2000-01-01 | E11: AYKUT KORAMAN | F11: BURSA | G11: 551 | H11: X | I11: 533 | J11: 551 | K11: 90
A12: 5 | B12: UZUN-a-13 | C12: 253 | D12: 2000-08-12 | E12: ÇAYAN ENİŞ | F12: ERZİNCAN | G12: 526 | H12: 549 | I12: 525 | J12: 549 | K12: 89
A13: 6 | B13: UZUN-a-38 | C13: 683 | D13: 2000-05-23 | E13: YAĞIZ ARSLAN | F13: TEKİRDAĞ | G13: 497 | H13: 529 | I13: 548 | J13: 548 | K13: 89
A14: 7 | B14: UZUN-a-49 | C14: 448 | D14: 2000-01-01 | E14: BATUHAN ALKAN | F14: İZMİR | G14: 547 | H14: 528 | I14: 518 | J14: 547 | K14: 89
A15: 8 | B15: UZUN-a-39 | C15: 191 | D15: 2000-03-21 | E15: EGE MELEK | F15: BURDUR | G15: 509 | H15: 543 | I15: 538 | J15: 543 | K15: 89
A16: 9 | B16: UZUN-a-47 | C16: 746 | D16: 2000-05-26 | E16: EFE AHATLAR | F16: SAKARYA | G16: 523 | H16: 539 | I16: 524 | J16: 539 | K16: 88
A17: 10 | B17: UZUN-a-12 | C17: 496 | D17: 2000-07-05 | E17: A.MURAT ÇELİK | F17: KIRŞEHİR | G17: X | H17: 537 | I17: 530 | J17: 537 | K17: 88
A18: 11 | B18: UZUN-a-42 | C18: 535 | D18: 2000-05-20 | E18: BURAK ESKİL | F18: KONYA | G18: 535 | H18: 520 | I18: 534 | J18: 535 | K18: 88
A19: 12 | B19: UZUN-a-24 | C19: 13 | D19: 2000-01-01 | E19: YASİN İŞCAN | F19: ADANA | G19: 533 | H19: X | I19: X | J19: 533 | K19: 87
A20: 13 | B20: UZUN-a-34 | C20: 640 | D20: 2000-08-31 | E20: ÖZGÜR GÜLEÇ | F20: SAMSUN | G20: 522 | H20: X | I20: X | J20: 522 | K20: 85
A21: 14 | B21: UZUN-a-9 | C21: 12 | D21: 2000-01-01 | E21: RAMAZAN GÜL | F21: ADANA | G21: 508 | H21: 520 | I21: 507 | J21: 520 | K21: 85
A22: 15 | B22: UZUN-a-45 | C22: 748 | D22: 2000-02-01 | E22: DOĞAN BİLEN | F22: SAKARYA | G22: 519 | H22: 493 | I22: 284 | J22: 519 | K22: 84
A23: 16 | B23: UZUN-a-32 | C23: 303 | D23: 2000-06-22 | E23: BERKAY ONAT TOKAÇ | F23: GİRESUN | G23: 519 | H23: 483 | I23: - | J23: 519 | K23: 84
A24: 17 | B24: UZUN-a-26 | C24: 500 | D24: 2000-02-14 | E24: İSMAİL TEKBIÇAK | F24: KIRŞEHİR | G24: 494 | H24: 516 | I24: 512 | J24: 516 | K24: 84
A25: 18 | B25: UZUN-a-43 | C25: 119 | D25: 2000-01-01 | E25: KUBİLAY KARADANA | F25: BALIKESİR | G25: 516 | H25: 509 | I25: 475 | J25: 516 | K25: 84
A26: 19 | B26: UZUN-a-35 | C26: 238 | D26: 2000-01-01 | E26: FIRAT DEMİR | F26: DİYARBAKIR | G26: 516 | H26: X | I26: 507 | J26: 516 | K26: 84
A27: 20 | C27: 235 | D27: 2001-01-02 | E27: M.BAYRAM KURT | F27: DİYARBAKIR | G27: 514 | H27: 491 | I27: 513 | J27: 514 | K27: 83
A28: 21 | B28: UZUN-a-27 | C28: 48 | D28: 2000-02-06 | E28: HASAN ALİ ŞAHİN | F28: AMASYA | G28: 457 | H28: 508 | I28: 485 | J28: 508 | K28: 82
A29: 22 | B29: UZUN-a-37 | C29: 290 | D29: 2000-01-01 | E29: CEMAL TOSUN | F29: GAZİANTEP | G29: 496 | H29: 471 | I29: 494 | J29: 496 | K29: 80
A30: 23 | B30: UZUN-a-30 | C30: 617 | D30: 2000-03-17 | E30: AHMET BİÇER | F30: OSMANİYE | G30: 488 | H30: 471 | I30: 492 | J30: 492 | K30: 80
A31: 24 | B31: UZUN-a-17 | C31: 318 | D31: 2000-03-06 | E31: BURHAN GÖRÜROĞLU | F31: HATAY | G31: 492 | H31: 472 | I31: 387 | J31: 492 | K31: 80
A32: 25 | B32: UZUN-a-10 | C32: 49 | D32: 2000-01-01 | E32: HASAN CAN BAŞARAN | F32: AMASYA | G32: 491 | H32: 491 | I32: 480 | J32: 491 | K32: 80
A33: 26 | B33: UZUN-a-11 | C33: 89 | D33: 2000-01-02 | E33: NURİ OĞUZHAN SARI | F33: AYDIN | G33: 482 | H33: 475 | I33: 457 | J33: 482 | K33: 79
A34: 27 | B34: UZUN-a-28 | C34: 501 | D34: 2000-04-30 | E34: ÖMERCAN MERMER | F34: KIRŞEHİR | G34: 477 | H34: 454 | I34: 465 | J34: 477 | K34: 78
A35: 28 | B35: UZUN-a-36 | C35: 747 | D35: 2000-05-30 | E35: ÖZGÜR GİRGİN | F35: SAKARYA | G35: 473 | H35: 476 | I35: 474 | J35: 476 | K35: 78
A36: 29 | B36: UZUN-a-22 | C36: 592 | D36: 2000-04-15 | E36: ANIL KALAYCI | F36: NEVŞEHİR | G36: 471 | H36: - | I36: - | J36: 471 | K36: 78
A37: 30 | B37: UZUN-a-31 | C37: 618 | D37: 2000-04-12 | E37: GÖKTUĞ ZENCİR | F37: OSMANİYE | G37: 469 | H37: 433 | I37: 448 | J37: 469 | K37: 77
A38: 31 | B38: UZUN-a-1 | C38: 497 | D38: 2000-01-14 | E38: ÖMER ÖZGÜL | F38: KIRŞEHİR | G38: X | H38: 469 | I38: X | J38: 469 | K38: 77
A39: 32 | C39: 251 | D39: 2001-06-01 | E39: CEMEL KÖKTEN | F39: ERZİNCAN | G39: 465 | H39: 454 | I39: 460 | J39: 465 | K39: 77
A40: 33 | B40: UZUN-a-19 | C40: 320 | D40: 2000-06-27 | E40: SERTAN KIDU | F40: HATAY | G40: 448 | H40: 461 | I40: 429 | J40: 461 | K40: 77
A41: 34 | B41: UZUN-a-16 | C41: 323 | D41: 2000-01-30 | E41: AHMET CAN BALCIOĞLU | F41: HATAY | G41: 458 | H41: X | I41: 409 | J41: 458 | K41: 76
A42: 35 | B42: UZUN-a-14 | C42: 32 | D42: 2000-09-01 | E42: MUSTAFA GÖKSU | F42: ADIYAMAN | G42: X | H42: 433 | I42: 456 | J42: 456 | K42: 76
A43: 36 | B43: UZUN-a-40 | C43: 347 | D43: 2000-04-07 | E43: AŞİR ALİ GÖVERCİN | F43: ISPARTA | G43: 419 | H43: 449 | I43: 411 | J43: 449 | K43: 75
A44: 37 | B44: UZUN-a-20 | C44: 591 | D44: 2000-08-23 | E44: ERDEM ÖZ | F44: NEVŞEHİR | G44: X | H44: 447 | I44: - | J44: 447 | K44: 75
A45: 38 | B45: UZUN-a-29 | C45: 256 | D45: 2000-09-30 | E45: YUNUS ŞAHİN | F45: ERZİNCAN | G45: 437 | H45: 427 | I45: 445 | J45: 445 | K45: 75
A46: 39 | C46: 371 | D46: 2001-06-02 | E46: SELİM YETKİN | F46: İSTANBUL | G46: 415 | H46: 407 | I46: 431 | J46: 431 | K46: 74
A47: 40 | B47: UZUN-a-8 | C47: 319 | D47: 2000-01-10 | E47: AHMET RAMAZAN ESKİN | F47: HATAY | G47: 421 | H47: 355 | I47: 377 | J47: 421 | K47: 73
A48: 41 | B48: UZUN-a-3 | C48: 321 | D48: 2000-02-11 | E48: OKTAY KESER | F48: HATAY | G48: X | H48: 416 | I48: 389 | J48: 416 | K48: 72
A49: 42 | B49: UZUN-a-15 | C49: 61 | D49: 2000-01-01 | E49: EREN ERDEM ŞENTÜRK | F49: ARDAHAN | G49: 393 | H49: 396 | I49: 395 | J49: 396 | K49: 69
A50: 43 | B50: UZUN-a-33 | C50: 616 | D50: 2000-10-02 | E50: MEHMET ALİ TAN | F50: OSMANİYE | G50: 390 | H50: 350 | I50: X | J50: 390 | K50: 68
A51: 44 | B51: UZUN-a-46 | C51: 43 | D51: 2000-03-01 | E51: BATUHAN AĞIL | F51: AKSARAY | G51: X | H51: X | I51: 368 | J51: 368 | K51: 60
A52: 45 | B52: UZUN-a-5 | C52: 34 | D52: 2000-01-01 | E52: MUSTAFA SÜREN | F52: ADIYAMAN | G52: 356 | H52: 365 | I52: 357 | J52: 365 | K52: 59
A53: 46 | B53: UZUN-a-2 | C53: 316 | D53: 2000-01-30 | E53: YUSUF ASLAN | F53: HATAY | G53: X | H53: X | I53: 334 | J53: 334 | K53: 49
A54: 47 | B54: UZUN-a-7 | C54: 594 | D54: 2000-07-07 | E54: OKTAY KARADUMAN | F54: NEVŞEHİR | G54: 278 | H54: 293 | I54: - | J54: 293 | K54: 35
A55: - | B55: UZUN-a-4 | C55: 308 | D55: 2000-08-31 | E55: BATUHAN GEDİK | F55: GİRESUN | J55: DNS | K55: 0
A56: - | B56: UZUN-a-6 | C56: 31 | D56: 2000-01-01 | E56: KADER DOST | F56: ADIYAMAN | J56: DNS | K56: 0
A57: - | B57: UZUN-a-18 | C57: 270 | D57: 2000-04-25 | E57: ABDULLAH CANPOLAT | F57: ERZURUM | J57: DNS | K57: 0
A58: - | B58: UZUN-a-23 | C58: 410 | D58: 2000-04-13 | E58: MERT KAAN ALPTEKİN | F58: İZMİR | J58: DNS | K58: 0
A59: - | B59: UZUN-a-41 | C59: 373 | D59: 2000-01-01 | E59: ÖMER FARUK İÇYAR | F59: İSTANBUL | G59: - | J59: DNS | K59: 0
A61: Müsabaka Direktörü | E61: Baş Hakem | F61: Lider | G61: Sekreter | J61: Hakem
A65548: CELAL KAYAÖZ

Sheet Uzun-B
A1: ='YARIŞMA BİLGİLERİ'!A2:K2 -> Türkiye Atletizm Federasyonu İzmir Atletizm İl Temsilciliği
A2: ='YARIŞMA BİLGİLERİ'!A14:K14 -> Naili Moran Türkiye Atletizm Şampiyonası
A3: Yarışma : | D3: ='YARIŞMA PROGRAMI'!C13 -> Uzun Atlama B Grubu
A4: Kategori : | D4: ='YARIŞMA BİLGİLERİ'!F21 -> 14 Yaş Erkekler | I4: Tarih-Saat : | K4: ='YARIŞMA PROGRAMI'!B13 -> 14 Haziran 2014 - 10:15
J5: 41804.65549
A6: SIRA NO | C6: GÖĞÜS NO | D6: DOĞUM TARİHİ Gün/Ay/Yıl | E6: ADI VE SOYADI | F6: İLİ | G6: A T L A M A L A R | J6: SONUÇ | K6: PUAN | L6: RÜZGAR
G7: 1 | H7: 2 | I7: 3
A8: 1 | B8: UZUN-b-9 | C8: 452 | D8: 2000-01-01 | E8: MUHAMMED ENES ALTUN | F8: İZMİR | G8: 504 | H8: 556 | I8: 556 | J8: 556 | K8: 90
A9: 2 | B9: UZUN-b-52 | C9: 532 | D9: 2001-01-10 | E9: VEDAT DEMİR | F9: KONYA | G9: X | H9: 532 | I9: 540 | J9: 540 | K9: 89
A10: 3 | B10: UZUN-b-39 | C10: 294 | D10: 2000-01-01 | E10: ALİ DOĞAN | F10: GAZİANTEP | G10: 518 | H10: 519 | I10: X | J10: 519 | K10: 84
A11: 4 | B11: UZUN-b-47 | C11: 639 | D11: 2000-02-28 | E11: YUNUS EMRE AKER | F11: SAMSUN | G11: 494 | H11: 470 | I11: 518 | J11: 518 | K11: 84
A12: 5 | B12: UZUN-b-51 | C12: 121 | D12: 2000-01-01 | E12: ÖMERCAN KOCAİRİ | F12: BALIKESİR | G12: 517 | H12: 516 | I12: 515 | J12: 517 | K12: 84
A13: 6 | B13: UZUN-b-10 | C13: 443 | D13: 2000-05-06 | E13: MURAT MUTLU | F13: İZMİR | G13: 515 | H13: 477 | I13: 515 | J13: 515 | K13: 84
A14: 7 | B14: UZUN-b-42 | C14: 429 | D14: 2000-01-12 | E14: ATAKAN GÜNEŞ | F14: İZMİR | G14: 509 | H14: 494 | I14: 498 | J14: 509 | K14: 82
A15: 8 | B15: UZUN-b-50 | C15: 512 | D15: 2000-03-28 | E15: KAMURAN ÖZEN | F15: KOCAELİ | G15: 507 | H15: 503 | I15: 409 | J15: 507 | K15: 82
A16: 9 | B16: UZUN-b-49 | C16: 638 | D16: 2000-06-20 | E16: ERDEM BAŞ | F16: SAMSUN | G16: 502 | H16: 488 | I16: 326 | J16: 502 | K16: 81
A17: 10 | B17: UZUN-b-48 | C17: 192 | D17: 2000-11-19 | E17: HALİLCAN DANIŞ | F17: BURDUR | G17: 501 | H17: 442 | I17: 468 | J17: 501 | K17: 81
A18: 11 | B18: UZUN-b-43 | C18: 162 | D18: 2000-07-05 | E18: MUHAMMET BEGEÇ | F18: BİLECİK | G18: X | H18: 481 | I18: 494 | J18: 494 | K18: 80
A19: 12 | B19: UZUN-b-46 | C19: 163 | D19: 2000-01-01 | E19: ANIL ÖZTİRYAKİ | F19: BİLECİK | G19: 491 | H19: 434 | I19: 447 | J19: 491 | K19: 80
A20: 13 | B20: UZUN-b-34 | C20: 606 | D20: 2000-04-20 | E20: MEHMET TOK | F20: NİĞDE | G20: 484 | H20: 473 | I20: 484 | J20: 484 | K20: 79
A21: 14 | B21: UZUN-b-33 | C21: 641 | D21: 2000-07-07 | E21: BURAK YALÇIN | F21: SAMSUN | G21: 480 | H21: 474 | I21: 480 | J21: 480 | K21: 79
A22: 15 | B22: UZUN-b-31 | C22: 684 | D22: 2000-01-09 | E22: DOĞUKAN SAMAST | F22: TEKİRDAĞ | G22: 473 | H22: 469 | I22: 473 | J22: 473 | K22: 78
A23: 16 | B23: UZUN-b-32 | C23: 164 | D23: 2000-08-10 | E23: EGEMEN TEZGEÇ | F23: BİLECİK | G23: 473 | H23: 464 | I23: 473 | J23: 473 | K23: 78
A24: 17 | B24: UZUN-b-35 | C24: 161 | D24: 2000-01-01 | E24: ALPEREN KAMALI | F24: BİLECİK | G24: 470 | H24: 462 | I24: 470 | J24: 470 | K24: 78
A25: 18 | C25: 288 | D25: 2001-01-01 | E25: H.NOOR MAMAD | F25: GAZİANTEP | G25: 459 | H25: 456 | I25: 469 | J25: 469 | K25: 77
A26: 19 | B26: UZUN-b-19 | C26: 424 | D26: 2000-01-01 | E26: İSMAİL ÖZDEMİR | F26: İZMİR | G26: 446 | H26: 450 | I26: 462 | J26: 462 | K26: 77
A27: 20 | B27: UZUN-b-5 | C27: 176 | D27: 2000-01-01 | E27: HADİZ BÖRÜ | F27: BİNGÖL | G27: 461 | H27: 403 | I27: 461 | J27: 461 | K27: 77
A28: 21 | B28: UZUN-b-40 | C28: 546 | D28: 2000-01-12 | E28: ENES YÜKSEL | F28: KÜTAHYA | G28: X | H28: 458 | I28: 460 | J28: 460 | K28: 77
A29: 22 | B29: UZUN-b-15 | C29: 441 | D29: 2000-02-05 | E29: ENES ŞUMNULU | F29: İZMİR | G29: 459 | H29: X | I29: 459 | J29: 459 | K29: 76
A30: 23 | B30: UZUN-b-23 | C30: 514 | D30: 2000-01-01 | E30: NUREDDİN YOKTAN | F30: KOCAELİ | G30: X | H30: 458 | I30: 458 | J30: 458 | K30: 76
A31: 24 | B31: UZUN-b-41 | C31: 142 | D31: 2000-01-01 | E31: İDRİS GÜNEŞ | F31: BATMAN | G31: 457 | H31: 432 | I31: 434 | J31: 457 | K31: 76
A32: 25 | B32: UZUN-b-3 | C32: 289 | D32: 2000-01-01 | E32: MUSTAFA POLAT | F32: GAZİANTEP | G32: 443 | H32: 451 | I32: 451 | J32: 451 | K32: 76
A33: 26 | B33: UZUN-b-26 | C33: 724 | D33: 2000-03-08 | E33: BERKE YAĞIZ ÖZTÜRK | F33: TUNCELİ | G33: X | H33: 451 | I33: 451 | J33: 451 | K33: 76
A34: 27 | B34: UZUN-b-21 | C34: 194 | D34: 2000-09-17 | E34: ATAKAN GÖR | F34: BURDUR | G34: 449 | H34: 404 | I34: 449 | J34: 449 | K34: 75
A35: 28 | B35: UZUN-b-18 | C35: 239 | D35: 2000-01-01 | E35: ENES CUŞA | F35: DİYARBAKIR | G35: 444 | H35: X | I35: 444 | J35: 444 | K35: 75
A36: 29 | B36: UZUN-b-4 | C36: 659 | D36: 2000-04-13 | E36: MEHMET EMİN DİLDİRİM | F36: SİİRT | G36: 443 | H36: 425 | I36: 443 | J36: 443 | K36: 75
A37: 30 | B37: UZUN-b-44 | C37: 745 | D37: 2000-01-26 | E37: ENFAL KANTARCI | F37: SAKARYA | G37: 437 | H37: 430 | I37: 427 | J37: 437 | K37: 74
A38: 31 | B38: UZUN-b-8 | C38: 175 | D38: 2000-01-01 | E38: GÜRSEL EDEN | F38: BİNGÖL | G38: 420 | H38: 411 | I38: 420 | J38: 420 | K38: 73
A39: 32 | B39: UZUN-b-14 | C39: 467 | D39: 2000-12-10 | E39: M.CELİL DURMAZ | F39: KARAMAN | G39: 417 | H39: - | I39: 417 | J39: 417 | K39: 72
A40: 33 | B40: UZUN-b-16 | C40: 353 | D40: 2000-06-01 | E40: BATUHAN AKOL | F40: ISPARTA | G40: 415 | H40: 350 | I40: 415 | J40: 415 | K40: 72
A41: 34 | B41: UZUN-b-29 | C41: 435 | D41: 2000-03-30 | E41: BEDRİ ŞİMŞEK | F41: İZMİR | G41: X | H41: 415 | I41: 415 | J41: 415 | K41: 72
A42: 35 | B42: UZUN-b-2 | C42: 241 | D42: 2000-01-27 | E42: HASAN TEK | F42: EDİRNE | G42: 329 | H42: 393 | I42: 393 | J42: 393 | K42: 69
A43: 36 | B43: UZUN-b-27 | C43: 468 | D43: 2000-08-28 | E43: RECEP AKDAĞ | F43: KARAMAN | G43: X | H43: 392 | I43: 392 | J43: 392 | K43: 68
A44: 37 | B44: UZUN-b-25 | C44: 664 | D44: 2000-04-01 | E44: HARUN SAPKAMAK | F44: SİİRT | G44: 365 | H44: X | I44: 386 | J44: 386 | K44: 66
A45: 38 | B45: UZUN-b-11 | C45: 554 | D45: 2000-10-15 | E45: OĞUZ TÜRKER | F45: KÜTAHYA | G45: X | H45: 384 | I45: 384 | J45: 384 | K45: 66
A46: 39 | B46: UZUN-b-28 | C46: 125 | D46: 2000-03-19 | E46: ESAT GEZER | F46: BARTIN | G46: X | H46: 381 | I46: 381 | J46: 381 | K46: 65
A47: 40 | B47: UZUN-b-36 | C47: 662 | D47: 2000-04-01 | E47: VEYSİ TIZ | F47: SİİRT | G47: 380 | H47: X | I47: 353 | J47: 380 | K47: 64
A48: 41 | B48: UZUN-b-13 | C48: 663 | D48: 2000-01-06 | E48: İSMAİL TİMURTAŞ | F48: SİİRT | G48: 379 | H48: 367 | I48: 379 | J48: 379 | K48: 64
A49: 42 | B49: UZUN-b-12 | C49: 483 | D49: 2000-07-01 | E49: ORHAM ERDOĞAN | F49: KIRIKKALE | G49: 333 | H49: 355 | I49: 355 | J49: 355 | K49: 56
A50: 43 | B50: UZUN-b-17 | C50: 409 | D50: 2000-08-02 | E50: BURAK ALDENİZ | F50: İZMİR | G50: 298 | H50: X | I50: 298 | J50: 298 | K50: 37
A51: - | B51: UZUN-b-37 | C51: 118 | D51: 2000-01-01 | E51: MERT ADAR | F51: BALIKESİR | G51: X | H51: X | I51: X | J51: NM | K51: 0
A52: - | B52: UZUN-b-38 | C52: 193 | D52: 2000-07-11 | E52: HALİLMERT AKKAŞ | F52: BURDUR | G52: X | H52: X | I52: X | J52: NM | K52: 0
A53: - | B53: UZUN-b-1 | C53: 444 | D53: 2000-09-30 | E53: ONUR PUŞA | F53: İZMİR | J53: DNS | K53: 0
A54: - | B54: UZUN-b-24 | C54: 442 | D54: 2000-04-28 | E54: UMUT ACET | F54: İZMİR | J54: DNS | K54: 0
A55: - | B55: UZUN-b-30 | C55: 433 | D55: 2000-01-01 | E55: ABDURRAHİM KARAGÖZ | F55: İZMİR | J55: DNS | K55: 0
A56: Müsabaka Direktörü | E56: Baş Hakem | F56: Lider | G56: Sekreter | J56: Hakem
A65543: CELAL KAYAÖZ

Sheet Uzun Atlama Genel
A1: ='YARIŞMA BİLGİLERİ'!A2:K2 -> Türkiye Atletizm Federasyonu İzmir Atletizm İl Temsilciliği
A2: ='YARIŞMA BİLGİLERİ'!A14:K14 -> Naili Moran Türkiye Atletizm Şampiyonası
A3: Yarışma : | D3: Uzun Atlama Genel Sonuçları
A4: Kategori : | D4: ='YARIŞMA BİLGİLERİ'!F21 -> 14 Yaş Erkekler | I4: Tarih-Saat : | K4: ='YARIŞMA PROGRAMI'!B12 -> 14 Haziran 2014 - 10:15
J5: 41804.66141
A6: SIRA NO | C6: GÖĞÜS NO | D6: DOĞUM TARİHİ Gün/Ay/Yıl | E6: ADI VE SOYADI | F6: İLİ | G6: A T L A M A L A R | J6: SONUÇ | K6: PUAN | L6: RÜZGAR
G7: 1 | H7: 2 | I7: 3
A8: 1 | B8: UZUN-a-48 | C8: 569 | D8: 2000-01-01 | E8: YUSUF ŞAŞMAZ | F8: MUĞLA | G8: X | H8: X | I8: 580 | J8: 580 | K8: 93
A9: 2 | B9: UZUN-a-50 | C9: 504 | D9: 2000-01-15 | E9: MUSTAFA YORULMAZ | F9: KKTC | G9: 565 | H9: 578 | I9: 564 | J9: 578 | K9: 92
A10: 3 | B10: UZUN-a-44 | C10: 372 | D10: 2000-02-20 | E10: ÖMER FARUK IŞIKDAG | F10: İSTANBUL | G10: X | H10: 542 | I10: 573 | J10: 573 | K10: 92
A11: 4 | B11: UZUN-b-9 | C11: 452 | D11: 2000-01-01 | E11: MUHAMMED ENES ALTUN | F11: İZMİR | G11: 504 | H11: 556 | I11: 556 | J11: 556 | K11: 90
A12: 5 | B12: UZUN-a-25 | C12: 736 | D12: 2000-01-01 | E12: AYKUT KORAMAN | F12: BURSA | G12: 551 | H12: X | I12: 533 | J12: 551 | K12: 90
A13: 6 | B13: UZUN-a-13 | C13: 253 | D13: 2000-08-12 | E13: ÇAYAN ENİŞ | F13: ERZİNCAN | G13: 526 | H13: 549 | I13: 525 | J13: 549 | K13: 89
A14: 7 | B14: UZUN-a-38 | C14: 683 | D14: 2000-05-23 | E14: YAĞIZ ARSLAN | F14: TEKİRDAĞ | G14: 497 | H14: 529 | I14: 548 | J14: 548 | K14: 89
A15: 8 | B15: UZUN-a-49 | C15: 448 | D15: 2000-01-01 | E15: BATUHAN ALKAN | F15: İZMİR | G15: 547 | H15: 528 | I15: 518 | J15: 547 | K15: 89
A16: 9 | B16: UZUN-a-39 | C16: 191 | D16: 2000-03-21 | E16: EGE MELEK | F16: BURDUR | G16: 509 | H16: 543 | I16: 538 | J16: 543 | K16: 89
A17: 10 | B17: UZUN-b-52 | C17: 532 | D17: 2001-01-10 | E17: VEDAT DEMİR | F17: KONYA | G17: X | H17: 532 | I17: 540 | J17: 540 | K17: 89
A18: 11 | B18: UZUN-a-47 | C18: 746 | D18: 2000-05-26 | E18: EFE AHATLAR | F18: SAKARYA | G18: 523 | H18: 539 | I18: 524 | J18: 539 | K18: 88
A19: 12 | B19: UZUN-a-12 | C19: 496 | D19: 2000-07-05 | E19: A.MURAT ÇELİK | F19: KIRŞEHİR | G19: X | H19: 537 | I19: 530 | J19: 537 | K19: 88
A20: 13 | B20: UZUN-a-42 | C20: 535 | D20: 2000-05-20 | E20: BURAK ESKİL | F20: KONYA | G20: 535 | H20: 520 | I20: 534 | J20: 535 | K20: 88
A21: 14 | B21: UZUN-a-24 | C21: 13 | D21: 2000-01-01 | E21: YASİN İŞCAN | F21: ADANA | G21: 533 | H21: X | I21: X | J21: 533 | K21: 87
A22: 15 | B22: UZUN-a-34 | C22: 640 | D22: 2000-08-31 | E22: ÖZGÜR GÜLEÇ | F22: SAMSUN | G22: 522 | H22: X | I22: X | J22: 522 | K22: 85
A23: 16 | B23: UZUN-a-9 | C23: 12 | D23: 2000-01-01 | E23: RAMAZAN GÜL | F23: ADANA | G23: 508 | H23: 520 | I23: 507 | J23: 520 | K23: 85
A24: 17 | B24: UZUN-b-39 | C24: 294 | D24: 2000-01-01 | E24: ALİ DOĞAN | F24: GAZİANTEP | G24: 518 | H24: 519 | I24: X | J24: 519 | K24: 84
A25: 18 | B25: UZUN-a-45 | C25: 748 | D25: 2000-02-01 | E25: DOĞAN BİLEN | F25: SAKARYA | G25: 519 | H25: 493 | I25: 284 | J25: 519 | K25: 84
A26: 19 | B26: UZUN-a-32 | C26: 303 | D26: 2000-06-22 | E26: BERKAY ONAT TOKAÇ | F26: GİRESUN | G26: 519 | H26: 483 | I26: - | J26: 519 | K26: 84
A27: 20 | B27: UZUN-b-47 | C27: 639 | D27: 2000-02-28 | E27: YUNUS EMRE AKER | F27: SAMSUN | G27: 494 | H27: 470 | I27: 518 | J27: 518 | K27: 84
A28: 21 | B28: UZUN-b-51 | C28: 121 | D28: 2000-01-01 | E28: ÖMERCAN KOCAİRİ | F28: BALIKESİR | G28: 517 | H28: 516 | I28: 515 | J28: 517 | K28: 84
A29: 22 | B29: UZUN-a-26 | C29: 500 | D29: 2000-02-14 | E29: İSMAİL TEKBIÇAK | F29: KIRŞEHİR | G29: 494 | H29: 516 | I29: 512 | J29: 516 | K29: 84
A30: 23 | B30: UZUN-a-43 | C30: 119 | D30: 2000-01-01 | E30: KUBİLAY KARADANA | F30: BALIKESİR | G30: 516 | H30: 509 | I30: 475 | J30: 516 | K30: 84
A31: 24 | B31: UZUN-a-35 | C31: 238 | D31: 2000-01-01 | E31: FIRAT DEMİR | F31: DİYARBAKIR | G31: 516 | H31: X | I31: 507 | J31: 516 | K31: 84
A32: 25 | B32: UZUN-b-10 | C32: 443 | D32: 2000-05-06 | E32: MURAT MUTLU | F32: İZMİR | G32: 515 | H32: 477 | I32: 515 | J32: 515 | K32: 84
A33: 26 | C33: 235 | D33: 2001-01-02 | E33: M.BAYRAM KURT | F33: DİYARBAKIR | G33: 514 | H33: 491 | I33: 513 | J33: 514 | K33: 83
A34: 27 | B34: UZUN-b-42 | C34: 429 | D34: 2000-01-12 | E34: ATAKAN GÜNEŞ | F34: İZMİR | G34: 509 | H34: 494 | I34: 498 | J34: 509 | K34: 82
A35: 28 | B35: UZUN-a-27 | C35: 48 | D35: 2000-02-06 | E35: HASAN ALİ ŞAHİN | F35: AMASYA | G35: 457 | H35: 508 | I35: 485 | J35: 508 | K35: 82
A36: 29 | B36: UZUN-b-50 | C36: 512 | D36: 2000-03-28 | E36: KAMURAN ÖZEN | F36: KOCAELİ | G36: 507 | H36: 503 | I36: 409 | J36: 507 | K36: 82
A37: 30 | B37: UZUN-b-49 | C37: 638 | D37: 2000-06-20 | E37: ERDEM BAŞ | F37: SAMSUN | G37: 502 | H37: 488 | I37: 326 | J37: 502 | K37: 81
A38: 31 | B38: UZUN-b-48 | C38: 192 | D38: 2000-11-19 | E38: HALİLCAN DANIŞ | F38: BURDUR | G38: 501 | H38: 442 | I38: 468 | J38: 501 | K38: 81
A39: 32 | B39: UZUN-a-37 | C39: 290 | D39: 2000-01-01 | E39: CEMAL TOSUN | F39: GAZİANTEP | G39: 496 | H39: 471 | I39: 494 | J39: 496 | K39: 80
A40: 33 | B40: UZUN-b-43 | C40: 162 | D40: 2000-07-05 | E40: MUHAMMET BEGEÇ | F40: BİLECİK | G40: X | H40: 481 | I40: 494 | J40: 494 | K40: 80
A41: 34 | B41: UZUN-a-30 | C41: 617 | D41: 2000-03-17 | E41: AHMET BİÇER | F41: OSMANİYE | G41: 488 | H41: 471 | I41: 492 | J41: 492 | K41: 80
A42: 35 | B42: UZUN-a-17 | C42: 318 | D42: 2000-03-06 | E42: BURHAN GÖRÜROĞLU | F42: HATAY | G42: 492 | H42: 472 | I42: 387 | J42: 492 | K42: 80
A43: 36 | B43: UZUN-a-10 | C43: 49 | D43: 2000-01-01 | E43: HASAN CAN BAŞARAN | F43: AMASYA | G43: 491 | H43: 491 | I43: 480 | J43: 491 | K43: 80
A44: 37 | B44: UZUN-b-46 | C44: 163 | D44: 2000-01-01 | E44: ANIL ÖZTİRYAKİ | F44: BİLECİK | G44: 491 | H44: 434 | I44: 447 | J44: 491 | K44: 80
A45: 38 | B45: UZUN-b-34 | C45: 606 | D45: 2000-04-20 | E45: MEHMET TOK | F45: NİĞDE | G45: 484 | H45: 473 | I45: 484 | J45: 484 | K45: 79
A46: 39 | B46: UZUN-a-11 | C46: 89 | D46: 2000-01-02 | E46: NURİ OĞUZHAN SARI | F46: AYDIN | G46: 482 | H46: 475 | I46: 457 | J46: 482 | K46: 79
A47: 40 | B47: UZUN-b-33 | C47: 641 | D47: 2000-07-07 | E47: BURAK YALÇIN | F47: SAMSUN | G47: 480 | H47: 474 | I47: 480 | J47: 480 | K47: 79
A48: 41 | B48: UZUN-a-28 | C48: 501 | D48: 2000-04-30 | E48: ÖMERCAN MERMER | F48: KIRŞEHİR | G48: 477 | H48: 454 | I48: 465 | J48: 477 | K48: 78
A49: 42 | B49: UZUN-a-36 | C49: 747 | D49: 2000-05-30 | E49: ÖZGÜR GİRGİN | F49: SAKARYA | G49: 473 | H49: 476 | I49: 474 | J49: 476 | K49: 78
A50: 43 | B50: UZUN-b-31 | C50: 684 | D50: 2000-01-09 | E50: DOĞUKAN SAMAST | F50: TEKİRDAĞ | G50: 473 | H50: 469 | I50: 473 | J50: 473 | K50: 78
A51: 44 | B51: UZUN-b-32 | C51: 164 | D51: 2000-08-10 | E51: EGEMEN TEZGEÇ | F51: BİLECİK | G51: 473 | H51: 464 | I51: 473 | J51: 473 | K51: 78
A52: 45 | B52: UZUN-a-22 | C52: 592 | D52: 2000-04-15 | E52: ANIL KALAYCI | F52: NEVŞEHİR | G52: 471 | H52: - | I52: - | J52: 471 | K52: 78
A53: 46 | B53: UZUN-b-35 | C53: 161 | D53: 2000-01-01 | E53: ALPEREN KAMALI | F53: BİLECİK | G53: 470 | H53: 462 | I53: 470 | J53: 470 | K53: 78
A54: 47 | C54: 288 | D54: 2001-01-01 | E54: H.NOOR MAMAD | F54: GAZİANTEP | G54: 459 | H54: 456 | I54: 469 | J54: 469 | K54: 77
A55: 48 | B55: UZUN-a-31 | C55: 618 | D55: 2000-04-12 | E55: GÖKTUĞ ZENCİR | F55: OSMANİYE | G55: 469 | H55: 433 | I55: 448 | J55: 469 | K55: 77
A56: 49 | B56: UZUN-a-1 | C56: 497 | D56: 2000-01-14 | E56: ÖMER ÖZGÜL | F56: KIRŞEHİR | G56: X | H56: 469 | I56: X | J56: 469 | K56: 77
A57: 50 | C57: 288 | D57: 2001-01-01 | E57: H.NOOR MAMAD | F57: GAZİANTEP | G57: 459 | H57: 456 | I57: 469 | J57: 469 | K57: 77
A58: 51 | C58: 251 | D58: 2001-06-01 | E58: CEMEL KÖKTEN | F58: ERZİNCAN | G58: 465 | H58: 454 | I58: 460 | J58: 465 | K58: 77
A59: 52 | B59: UZUN-b-19 | C59: 424 | D59: 2000-01-01 | E59: İSMAİL ÖZDEMİR | F59: İZMİR | G59: 446 | H59: 450 | I59: 462 | J59: 462 | K59: 77
A60: 53 | B60: UZUN-b-5 | C60: 176 | D60: 2000-01-01 | E60: HADİZ BÖRÜ | F60: BİNGÖL | G60: 461 | H60: 403 | I60: 461 | J60: 461 | K60: 77
A61: 54 | B61: UZUN-a-19 | C61: 320 | D61: 2000-06-27 | E61: SERTAN KIDU | F61: HATAY | G61: 448 | H61: 461 | I61: 429 | J61: 461 | K61: 77
A62: 55 | B62: UZUN-b-40 | C62: 546 | D62: 2000-01-12 | E62: ENES YÜKSEL | F62: KÜTAHYA | G62: X | H62: 458 | I62: 460 | J62: 460 | K62: 77
A63: 56 | B63: UZUN-b-15 | C63: 441 | D63: 2000-02-05 | E63: ENES ŞUMNULU | F63: İZMİR | G63: 459 | H63: X | I63: 459 | J63: 459 | K63: 76
A64: 57 | B64: UZUN-b-23 | C64: 514 | D64: 2000-01-01 | E64: NUREDDİN YOKTAN | F64: KOCAELİ | G64: X | H64: 458 | I64: 458 | J64: 458 | K64: 76
A65: 58 | B65: UZUN-a-16 | C65: 323 | D65: 2000-01-30 | E65: AHMET CAN BALCIOĞLU | F65: HATAY | G65: 458 | H65: X | I65: 409 | J65: 458 | K65: 76
A66: 59 | B66: UZUN-b-41 | C66: 142 | D66: 2000-01-01 | E66: İDRİS GÜNEŞ | F66: BATMAN | G66: 457 | H66: 432 | I66: 434 | J66: 457 | K66: 76
A67: 60 | B67: UZUN-a-14 | C67: 32 | D67: 2000-09-01 | E67: MUSTAFA GÖKSU | F67: ADIYAMAN | G67: X | H67: 433 | I67: 456 | J67: 456 | K67: 76
A68: 61 | B68: UZUN-b-3 | C68: 289 | D68: 2000-01-01 | E68: MUSTAFA POLAT | F68: GAZİANTEP | G68: 443 | H68: 451 | I68: 451 | J68: 451 | K68: 76
A69: 62 | B69: UZUN-b-26 | C69: 724 | D69: 2000-03-08 | E69: BERKE YAĞIZ ÖZTÜRK | F69: TUNCELİ | G69: X | H69: 451 | I69: 451 | J69: 451 | K69: 76
A70: 63 | B70: UZUN-b-21 | C70: 194 | D70: 2000-09-17 | E70: ATAKAN GÖR | F70: BURDUR | G70: 449 | H70: 404 | I70: 449 | J70: 449 | K70: 75
A71: 64 | B71: UZUN-a-40 | C71: 347 | D71: 2000-04-07 | E71: AŞİR ALİ GÖVERCİN | F71: ISPARTA | G71: 419 | H71: 449 | I71: 411 | J71: 449 | K71: 75
A72: 65 | B72: UZUN-a-20 | C72: 591 | D72: 2000-08-23 | E72: ERDEM ÖZ | F72: NEVŞEHİR | G72: X | H72: 447 | I72: - | J72: 447 | K72: 75
A73: 66 | B73: UZUN-a-29 | C73: 256 | D73: 2000-09-30 | E73: YUNUS ŞAHİN | F73: ERZİNCAN | G73: 437 | H73: 427 | I73: 445 | J73: 445 | K73: 75
A74: 67 | B74: UZUN-b-18 | C74: 239 | D74: 2000-01-01 | E74: ENES CUŞA | F74: DİYARBAKIR | G74: 444 | H74: X | I74: 444 | J74: 444 | K74: 75
A75: 68 | B75: UZUN-b-4 | C75: 659 | D75: 2000-04-13 | E75: MEHMET EMİN DİLDİRİM | F75: SİİRT | G75: 443 | H75: 425 | I75: 443 | J75: 443 | K75: 75
A76: 69 | B76: UZUN-b-44 | C76: 745 | D76: 2000-01-26 | E76: ENFAL KANTARCI | F76: SAKARYA | G76: 437 | H76: 430 | I76: 427 | J76: 437 | K76: 74
A77: 70 | C77: 371 | D77: 2001-06-02 | E77: SELİM YETKİN | F77: İSTANBUL | G77: 415 | H77: 407 | I77: 431 | J77: 431 | K77: 74
A78: 71 | B78: UZUN-a-8 | C78: 319 | D78: 2000-01-10 | E78: AHMET RAMAZAN ESKİN | F78: HATAY | G78: 421 | H78: 355 | I78: 377 | J78: 421 | K78: 73
A79: 72 | B79: UZUN-b-8 | C79: 175 | D79: 2000-01-01 | E79: GÜRSEL EDEN | F79: BİNGÖL | G79: 420 | H79: 411 | I79: 420 | J79: 420 | K79: 73
A80: 73 | B80: UZUN-b-14 | C80: 467 | D80: 2000-12-10 | E80: M.CELİL DURMAZ | F80: KARAMAN | G80: 417 | H80: - | I80: 417 | J80: 417 | K80: 72
A81: 74 | B81: UZUN-a-3 | C81: 321 | D81: 2000-02-11 | E81: OKTAY KESER | F81: HATAY | G81: X | H81: 416 | I81: 389 | J81: 416 | K81: 72
A82: 75 | B82: UZUN-b-16 | C82: 353 | D82: 2000-06-01 | E82: BATUHAN AKOL | F82: ISPARTA | G82: 415 | H82: 350 | I82: 415 | J82: 415 | K82: 72
A83: 76 | B83: UZUN-b-29 | C83: 435 | D83: 2000-03-30 | E83: BEDRİ ŞİMŞEK | F83: İZMİR | G83: X | H83: 415 | I83: 415 | J83: 415 | K83: 72
A84: 77 | B84: UZUN-a-15 | C84: 61 | D84: 2000-01-01 | E84: EREN ERDEM ŞENTÜRK | F84: ARDAHAN | G84: 393 | H84: 396 | I84: 395 | J84: 396 | K84: 69
A85: 78 | B85: UZUN-b-2 | C85: 241 | D85: 2000-01-27 | E85: HASAN TEK | F85: EDİRNE | G85: 329 | H85: 393 | I85: 393 | J85: 393 | K85: 69
A86: 79 | B86: UZUN-b-27 | C86: 468 | D86: 2000-08-28 | E86: RECEP AKDAĞ | F86: KARAMAN | G86: X | H86: 392 | I86: 392 | J86: 392 | K86: 68
A87: 80 | B87: UZUN-a-33 | C87: 616 | D87: 2000-10-02 | E87: MEHMET ALİ TAN | F87: OSMANİYE | G87: 390 | H87: 350 | I87: X | J87: 390 | K87: 68
A88: 81 | B88: UZUN-b-25 | C88: 664 | D88: 2000-04-01 | E88: HARUN SAPKAMAK | F88: SİİRT | G88: 365 | H88: X | I88: 386 | J88: 386 | K88: 66
A89: 82 | B89: UZUN-b-11 | C89: 554 | D89: 2000-10-15 | E89: OĞUZ TÜRKER | F89: KÜTAHYA | G89: X | H89: 384 | I89: 384 | J89: 384 | K89: 66
A90: 83 | B90: UZUN-b-28 | C90: 125 | D90: 2000-03-19 | E90: ESAT GEZER | F90: BARTIN | G90: X | H90: 381 | I90: 381 | J90: 381 | K90: 65
A91: 84 | B91: UZUN-b-36 | C91: 662 | D91: 2000-04-01 | E91: VEYSİ TIZ | F91: SİİRT | G91: 380 | H91: X | I91: 353 | J91: 380 | K91: 64
A92: 85 | B92: UZUN-b-13 | C92: 663 | D92: 2000-01-06 | E92: İSMAİL TİMURTAŞ | F92: SİİRT | G92: 379 | H92: 367 | I92: 379 | J92: 379 | K92: 64
A93: 86 | B93: UZUN-a-46 | C93: 43 | D93: 2000-03-01 | E93: BATUHAN AĞIL | F93: AKSARAY | G93: X | H93: X | I93: 368 | J93: 368 | K93: 60
A94: 87 | B94: UZUN-a-5 | C94: 34 | D94: 2000-01-01 | E94: MUSTAFA SÜREN | F94: ADIYAMAN | G94: 356 | H94: 365 | I94: 357 | J94: 365 | K94: 59
A95: 88 | B95: UZUN-b-12 | C95: 483 | D95: 2000-07-01 | E95: ORHAM ERDOĞAN | F95: KIRIKKALE | G95: 333 | H95: 355 | I95: 355 | J95: 355 | K95: 56
A96: 89 | B96: UZUN-a-2 | C96: 316 | D96: 2000-01-30 | E96: YUSUF ASLAN | F96: HATAY | G96: X | H96: X | I96: 334 | J96: 334 | K96: 49
A97: 90 | B97: UZUN-b-17 | C97: 409 | D97: 2000-08-02 | E97: BURAK ALDENİZ | F97: İZMİR | G97: 298 | H97: X | I97: 298 | J97: 298 | K97: 37
A98: 91 | B98: UZUN-a-7 | C98: 594 | D98: 2000-07-07 | E98: OKTAY KARADUMAN | F98: NEVŞEHİR | G98: 278 | H98: 293 | I98: - | J98: 293 | K98: 35
A99: - | B99: UZUN-b-37 | C99: 118 | D99: 2000-01-01 | E99: MERT ADAR | F99: BALIKESİR | G99: X | H99: X | I99: X | J99: NM | K99: 0
A100: - | B100: UZUN-b-38 | C100: 193 | D100: 2000-07-11 | E100: HALİLMERT AKKAŞ | F100: BURDUR | G100: X | H100: X | I100: X | J100: NM | K100: 0
A101: - | B101: UZUN-a-4 | C101: 308 | D101: 2000-08-31 | E101: BATUHAN GEDİK | F101: GİRESUN | J101: DNS | K101: 0
A102: - | B102: UZUN-a-6 | C102: 31 | D102: 2000-01-01 | E102: KADER DOST | F102: ADIYAMAN | J102: DNS | K102: 0
A103: - | B103: UZUN-a-18 | C103: 270 | D103: 2000-04-25 | E103: ABDULLAH CANPOLAT | F103: ERZURUM | J103: DNS | K103: 0
A104: - | B104: UZUN-a-23 | C104: 410 | D104: 2000-04-13 | E104: MERT KAAN ALPTEKİN | F104: İZMİR | J104: DNS | K104: 0
A105: - | B105: UZUN-a-41 | C105: 373 | D105: 2000-01-01 | E105: ÖMER FARUK İÇYAR | F105: İSTANBUL | G105: - | J105: DNS | K105: 0
A106: - | B106: UZUN-b-1 | C106: 444 | D106: 2000-09-30 | E106: ONUR PUŞA | F106: İZMİR | J106: DNS | K106: 0
A107: - | B107: UZUN-b-24 | C107: 442 | D107: 2000-04-28 | E107: UMUT ACET | F107: İZMİR | J107: DNS | K107: 0
A108: - | B108: UZUN-b-30 | C108: 433 | D108: 2000-01-01 | E108: ABDURRAHİM KARAGÖZ | F108: İZMİR | J108: DNS | K108: 0
A109: Müsabaka Direktörü | E109: Baş Hakem | F109: Lider | G109: Sekreter | J109: Hakem
A65596: CELAL KAYAÖZ

Sheet Çekiç
A1: ='YARIŞMA BİLGİLERİ'!A2:K2 -> Türkiye Atletizm Federasyonu İzmir Atletizm İl Temsilciliği
A2: ='YARIŞMA BİLGİLERİ'!A14:K14 -> Naili Moran Türkiye Atletizm Şampiyonası
A3: Yarışma : | D3: ='YARIŞMA PROGRAMI'!C25 -> Çekiç Atma
A4: Kategori : | D4: ='YARIŞMA BİLGİLERİ'!F21 -> 14 Yaş Erkekler | F4: Ağırlık | G4: 4 kg. | I4: Tarih-Saat : | K4: ='YARIŞMA PROGRAMI'!B25 -> 14 Haziran 2014 - 17:45
J5: 41804.76279
A6: SIRA NO | C6: GÖĞÜS NO | D6: DOĞUM TARİHİ Gün/Ay/Yıl | E6: ADI VE SOYADI | F6: İLİ | G6: A T M A L A R | J6: SONUÇ | K6: PUAN | L6: KLASMAN
G7: 1 | H7: 2 | I7: 3
A8: 1 | B8: ÇEKİÇ-3 | C8: 406 | D8: 2000-01-14 | E8: BATUHAN HIZAL | F8: İZMİR | G8: X | H8: 5516 | I8: 5394 | J8: 5516 | K8: 111
A9: 2 | B9: ÇEKİÇ-2 | C9: 558 | D9: 2000-01-24 | E9: ÇAĞRI UZUNBİLEK | F9: MERSİN | G9: X | H9: X | I9: 5291 | J9: 5291 | K9: 108
A10: 3 | B10: ÇEKİÇ-1 | C10: 416 | D10: 2000-01-07 | E10: ALİCAN KARAOĞLAN | F10: İZMİR | G10: 2577 | H10: 2561 | I10: 2927 | J10: 2927 | K10: 85
B11: ÇEKİÇ-4 | J11: 0
B12: ÇEKİÇ-5 | J12: 0
B13: ÇEKİÇ-6 | J13: 0
B14: ÇEKİÇ-7 | J14: 0
B15: ÇEKİÇ-8 | J15: 0
B16: ÇEKİÇ-9 | J16: 0
B17: ÇEKİÇ-10 | J17: 0
B18: ÇEKİÇ-11 | J18: 0
B19: ÇEKİÇ-12 | J19: 0
B20: ÇEKİÇ-13 | J20: 0
B21: ÇEKİÇ-14 | J21: 0
B22: ÇEKİÇ-15 | J22: 0
B23: ÇEKİÇ-16 | J23: 0
B24: ÇEKİÇ-17 | J24: 0
B25: ÇEKİÇ-18 | J25: 0
B26: ÇEKİÇ-19 | J26: 0
B27: ÇEKİÇ-20 | J27: 0
B28: ÇEKİÇ-21 | J28: 0
B29: ÇEKİÇ-22 | J29: 0
B30: ÇEKİÇ-23 | J30: 0
B31: ÇEKİÇ-24 | J31: 0
B32: ÇEKİÇ-25 | J32: 0
B33: ÇEKİÇ-26 | J33: 0
B34: ÇEKİÇ-27 | J34: 0
B35: ÇEKİÇ-28 | J35: 0
B36: ÇEKİÇ-29 | J36: 0
B37: ÇEKİÇ-30 | J37: 0
B38: ÇEKİÇ-31 | J38: 0
B39: ÇEKİÇ-32 | J39: 0
B40: ÇEKİÇ-33 | J40: 0
B41: ÇEKİÇ-34 | J41: 0
B42: ÇEKİÇ-35 | J42: 0
B43: ÇEKİÇ-36 | J43: 0
B44: ÇEKİÇ-37 | J44: 0
B45: ÇEKİÇ-38 | J45: 0
B46: ÇEKİÇ-39 | J46: 0
B47: ÇEKİÇ-40 | J47: 0
A49: Müsabaka Direktörü | E49: Baş Hakem | F49: Lider | G49: Sekreter | J49: Hakem
A65536: CELAL KAYAÖZ

Sheet 100m.
A1: =('YARIŞMA BİLGİLERİ'!A2) -> Türkiye Atletizm Federasyonu İzmir Atletizm İl Temsilciliği
A2: ='YARIŞMA BİLGİLERİ'!F19 -> Naili Moran Türkiye Atletizm Şampiyonası
A3: Yarışma : | E3: ='YARIŞMA PROGRAMI'!C7 -> 100 Metre
A4: Kategori : | E4: ='YARIŞMA BİLGİLERİ'!F21 -> 14 Yaş Erkekler | N4: Tarih-Saat : | O4: ='YARIŞMA PROGRAMI'!B7 -> 14 Haziran 2014 - 18:40
O5: 41804.83895
A6: 1. SERİ | E6: Rüzgar: | J6: 5. SERİ | N6: Rüzgar:
A7: Sıra No | B7: Formül | C7: Göğüs No | D7: Doğum Tarihi | E7: Adı ve Soyadı | F7: İLİ | G7: Derece | H7: Seri Geliş | J7: Sıra No | K7: Formül | L7: Göğüs No | M7: Doğum Tarihi | N7: Adı ve Soyadı | O7: İLİ | P7: Derece | Q7: El Kronometre | R7: Seri Geliş
A8: 1 | B8: 100M-1-1 | C8: 372 | D8: 2000-02-20 | E8: ÖMER FARUK IŞIKDAG | F8: İSTANBUL | G8: 1198 | H8: 1 | J8: 1 | K8: 100M-5-1 | L8: 352 | M8: 2000-06-28 | N8: ERDEM CAN ERGİN | O8: ISPARTA | P8: 13.60 (600) | R8: 4
A9: 2 | B9: 100M-1-2 | C9: 448 | D9: 2000-01-01 | E9: BATUHAN ALKAN | F9: İZMİR | G9: 12.78 (786) | H9: 7 | J9: 2 | K9: 100M-5-2 | L9: 409 | M9: 2000-08-02 | N9: BURAK ALDENİZ | O9: İZMİR | P9: 1526 | R9: 8
A10: 3 | B10: 100M-1-3 | C10: 119 | D10: 2000-01-01 | E10: KUBİLAY KARADANA | F10: BALIKESİR | G10: 1231 | H10: 4 | J10: 3 | K10: 100M-5-3 | L10: 710 | M10: 2000-03-25 | N10: BURAK DERTLİ | O10: TRABZON | P10: 1288 | R10: 1
A11: 4 | B11: 100M-1-4 | C11: 638 | D11: 2000-06-20 | E11: ERDEM BAŞ | F11: SAMSUN | G11: 1271 | H11: 5 | J11: 4 | K11: 100M-5-4 | L11: 192 | M11: 2000-11-19 | N11: HALİLCAN DANIŞ | O11: BURDUR | P11: 13.60 (604) | R11: 5
A12: 5 | B12: 100M-1-5 | C12: 529 | D12: 2000-01-04 | E12: BURAK ALIMCI | F12: KONYA | G12: 1220 | H12: 2 | J12: 5 | K12: 100M-5-5 | L12: 576 | M12: 2000-04-01 | N12: Yunus SÖZÜGÜZEL | O12: MUŞ | P12: 1478 | R12: 7
A13: 6 | B13: 100M-1-6 | C13: 639 | D13: 2000-02-28 | E13: YUNUS EMRE AKER | F13: SAMSUN | G13: 12.78 (782) | H13: 6 | J13: 6 | K13: 100M-5-6 | L13: 162 | M13: 2000-07-05 | N13: MUHAMMET BEGEÇ | O13: BİLECİK | P13: 13.43 (432) | R13: 2
A14: 7 | B14: 100M-1-7 | C14: 88 | D14: 2000-05-28 | E14: BERKAY ŞİMŞEK | F14: AYDIN | G14: 1229 | H14: 3 | J14: 7 | K14: 100M-5-7 | L14: 408 | M14: 2000-04-12 | N14: SALİH OĞUZ ERDEM | O14: İZMİR | P14: 1414 | R14: 6
A15: 8 | B15: 100M-1-8 | C15: 373 | D15: 2000-01-01 | E15: ÖMER FARUK İÇYAR | F15: İSTANBUL | G15: DNS | H15: - | J15: 8 | K15: 100M-5-8 | L15: 293 | M15: 2000-01-01 | N15: ÖKKEŞ FURKAN KARAKUZULU | O15: GAZİANTEP | P15: 13.43 (432) | R15: 2
A16: 2. SERİ | E16: Rüzgar: | J16: 6. SERİ | N16: Rüzgar:
A17: Sıra No | B17: Formül | C17: Göğüs No | D17: Doğum Tarihi | E17: Adı ve Soyadı | F17: İLİ | G17: Derece | H17: Seri Geliş | J17: Sıra No | K17: Formül | L17: Göğüs No | M17: Doğum Tarihi | N17: Adı ve Soyadı | O17: İLİ | P17: Derece | Q17: El Kronometre | R17: Seri Geliş
A18: 1 | B18: 100M-2-1 | C18: 504 | D18: 2000-01-15 | E18: MUSTAFA YORULMAZ | F18: KKTC | G18: 1212 | H18: 2 | K18: 100M-6-1 | L18: 414 | M18: 2000-01-01 | N18: YAĞIZ HACIOĞLU | O18: İZMİR | P18: DNS | R18: -
A19: 2 | B19: 100M-2-2 | C19: 374 | D19: 2000-05-10 | E19: YUNUS EMRE CİN | F19: İSTANBUL | G19: 1227 | H19: 3 | K19: 100M-6-2 | L19: 747 | M19: 2000-05-30 | N19: ÖZGÜR GİRGİN | O19: SAKARYA | P19: 1414 | R19: 5
A20: 3 | B20: 100M-2-3 | C20: 431 | D20: 2000-02-02 | E20: BURAK YÜCEER | F20: İZMİR | G20: 1254 | H20: 6 | K20: 100M-6-3 | L20: 419 | M20: 2000-02-25 | N20: ÜMİT AÇILAN | O20: İZMİR | P20: 1428 | R20: 6
A21: 4 | B21: 100M-2-4 | C21: 354 | D21: 2000-05-15 | E21: NADİR BİLİR | F21: ISPARTA | G21: 1206 | H21: 1 | K21: 100M-6-4 | L21: 413 | M21: 2000-01-01 | N21: SİNAN AYYILDIZ | O21: İZMİR | P21: DNS | R21: -
A22: 5 | B22: 100M-2-5 | C22: 746 | D22: 2000-05-26 | E22: EFE AHATLAR | F22: SAKARYA | G22: 1250 | H22: 5 | K22: 100M-6-5 | L22: 684 | M22: 2000-01-09 | N22: DOĞUKAN SAMAST | O22: TEKİRDAĞ | P22: 1384 | R22: 4
A23: 6 | B23: 100M-2-6 | C23: 203 | D23: 2000-05-23 | E23: AHMET MELİH ŞEN | F23: BURSA | G23: 1232 | H23: 4 | K23: 100M-6-6 | L23: 194 | M23: 2000-09-17 | N23: ATAKAN GÖR | O23: BURDUR | P23: 1327 | R23: 1
A24: 7 | B24: 100M-2-7 | C24: 443 | D24: 2000-05-06 | E24: MURAT MUTLU | F24: İZMİR | G24: 1268 | H24: 7 | K24: 100M-6-7 | L24: 145 | M24: 2000-02-10 | N24: AHMET DAŞ | O24: BATMAN | P24: 1379 | R24: 3
A25: 8 | B25: 100M-2-8 | C25: 503 | D25: 2000-06-02 | E25: KUBİLAY TOK | F25: KKTC | G25: 1220 | H25: - | K25: 100M-6-8 | L25: 115 | M25: 2000-11-27 | N25: VOLKAN ŞAHİN | O25: BALIKESİR | P25: 1378 | R25: 2
A26: 3. SERİ | E26: Rüzgar: | J26: 7. SERİ | N26: Rüzgar:
A27: Sıra No | B27: Formül | C27: Göğüs No | D27: Doğum Tarihi | E27: Adı ve Soyadı | F27: İLİ | G27: Derece | H27: Seri Geliş | J27: Sıra No | K27: Formül | L27: Göğüs No | M27: Doğum Tarihi | N27: Adı ve Soyadı | O27: İLİ | P27: Derece | Q27: El Kronometre | R27: Seri Geliş
A28: 1 | B28: 100M-3-1 | C28: 724 | D28: 2000-03-08 | E28: BERKE YAĞIZ ÖZTÜRK | F28: TUNCELİ | G28: 1521 | H28: 8 | K28: 100M-7-1 | L28: 48 | M28: 2000-02-06 | N28: HASAN ALİ ŞAHİN | O28: AMASYA | P28: 1306 | R28: 3
A29: 2 | B29: 100M-3-2 | C29: 660 | D29: 2000-01-15 | E29: OKTAY EREN | F29: SİİRT | G29: 1326 | H29: 7 | K29: 100M-7-2 | L29: 496 | M29: 2000-07-05 | N29: A.MURAT ÇELİK | O29: KIRŞEHİR | P29: 1239 | R29: 2
A30: 3 | B30: 100M-3-3 | C30: 193 | D30: 2000-07-11 | E30: HALİLMERT AKKAŞ | F30: BURDUR | G30: 1289 | H30: 2 | K30: 100M-7-3 | L30: 256 | M30: 2000-09-30 | N30: YUNUS ŞAHİN | O30: ERZİNCAN | P30: 1501 | R30: 6
A31: 4 | B31: 100M-3-4 | C31: 513 | D31: 2000-01-06 | E31: EMRE ÇETİNKAYA | F31: KOCAELİ | G31: 1233 | H31: 1 | K31: 100M-7-4 | L31: 416 | M31: 2000-01-07 | N31: ALİCAN KARAOĞLAN | O31: İZMİR | P31: 1732 | R31: 8
A32: 5 | B32: 100M-3-5 | C32: 253 | D32: 2000-08-12 | E32: ÇAYAN ENİŞ | F32: ERZİNCAN | G32: 1271 | H32: 5 | K32: 100M-7-5 | L32: 454 | M32: 2000-03-17 | N32: SANAT SARUHAN | O32: İZMİR | P32: 1694 | R32: 7
A33: 6 | B33: 100M-3-6 | C33: 535 | D33: 2000-05-20 | E33: BURAK ESKİL | F33: KONYA | G33: 1262 | H33: 3 | K33: 100M-7-6 | L33: 32 | M33: 2000-09-01 | N33: MUSTAFA GÖKSU | O33: ADIYAMAN | P33: 1372 | R33: 4
A34: 7 | B34: 100M-3-7 | C34: 482 | D34: 2000-09-10 | E34: BERAT YEŞİLYURT | F34: KIRIKKALE | G34: 1267 | H34: 4 | K34: 100M-7-7 | L34: 501 | M34: 2000-04-30 | N34: ÖMERCAN MERMER | O34: KIRŞEHİR | P34: 1432 | R34: 5
A35: 8 | B35: 100M-3-8 | C35: 224 | D35: 2000-01-01 | E35: BEHİÇ CAN ÜNAL | F35: DENİZLİ | G35: 1298 | H35: 6 | K35: 100M-7-8 | L35: 13 | M35: 2000-01-01 | N35: YASİN İŞCAN | O35: ADANA | P35: 1228 | R35: 1
A36: 4. SERİ | E36: Rüzgar: | J36: 8. SERİ | N36: Rüzgar:
A37: Sıra No | B37: Formül | C37: Göğüs No | D37: Doğum Tarihi | E37: Adı ve Soyadı | F37: İLİ | G37: Derece | H37: Seri Geliş | J37: Sıra No | K37: Formül | L37: Göğüs No | M37: Doğum Tarihi | N37: Adı ve Soyadı | O37: İLİ | P37: Derece | Q37: El Kronometre | R37: Seri Geliş
A38: 1 | B38: 100M-4-1 | C38: 441 | D38: 2000-02-05 | E38: ENES ŞUMNULU | F38: İZMİR | G38: DNS | H38: - | K38: 100M-8-1 | L38: 618 | M38: 2000-04-12 | N38: GÖKTUĞ ZENCİR | O38: OSMANİYE | P38: 1396 | R38: 5
A39: 2 | B39: 100M-4-2 | C39: 163 | D39: 2000-01-01 | E39: ANIL ÖZTİRYAKİ | F39: BİLECİK | G39: 1373 | H39: 4 | K39: 100M-8-2 | L39: 307 | M39: 2000-03-05 | N39: SEDAT TUNAHAN TORUN | O39: GİRESUN | P39: 1403 | R39: 7
A40: 3 | B40: 100M-4-3 | C40: 225 | D40: 2000-01-01 | E40: ÇAĞRI BOZKAYA | F40: DENİZLİ | G40: 1360 | H40: 3 | K40: 100M-8-3 | L40: 252 | M40: 2000-09-03 | N40: FURKAN KIZGIN | O40: ERZİNCAN | P40: 1352 | R40: 4
A41: 4 | B41: 100M-4-4 | C41: 191 | D41: 2000-03-21 | E41: EGE MELEK | F41: BURDUR | G41: 1321 | H41: - | K41: 100M-8-4 | L41: 303 | M41: 2000-06-22 | N41: BERKAY ONAT TOKAÇ | O41: GİRESUN | P41: 1268 | R41: 2
A42: 5 | B42: 100M-4-5 | C42: 161 | D42: 2000-01-01 | E42: ALPEREN KAMALI | F42: BİLECİK | G42: 1381 | H42: 5 | K42: 100M-8-5 | L42: 406 | M42: 2000-01-14 | N42: BATUHAN HIZAL | O42: İZMİR | P42: 1398 | R42: 6
A43: 6 | B43: 100M-4-6 | C43: 239 | D43: 2000-01-01 | E43: ENES CUŞA | F43: DİYARBAKIR | G43: 1322 | H43: 2 | K43: 100M-8-6 | L43: 615 | M43: 2000-05-15 | N43: ÖMER FARUK AVAN | O43: OSMANİYE | P43: 1517 | R43: 8
A44: 7 | B44: 100M-4-7 | C44: 442 | D44: 2000-04-28 | E44: UMUT ACET | F44: İZMİR | G44: DNS | H44: - | K44: 100M-8-7 | L44: 593 | M44: 2000-09-12 | N44: MUSTAFA ÜNLÜTÜRK | O44: NEVŞEHİR | P44: 1263 | R44: 1
A45: 8 | B45: 100M-4-8 | C45: 569 | D45: 2000-01-01 | E45: YUSUF ŞAŞMAZ | F45: MUĞLA | G45: 1227 | H45: 1 | K45: 100M-8-8 | L45: 121 | M45: 2000-01-01 | N45: ÖMERCAN KOCAİRİ | O45: BALIKESİR | P45: 1305 | R45: 3
A47: Müsabakalar Direktörü | F47: Baş Hakem | G47: Lider | N47: Hakem | O47: Hakem | Q47: Hakem
A65536: CELAL KAYAÖZ

Sheet 100m.Genel
A1: =('YARIŞMA BİLGİLERİ'!A2) -> Türkiye Atletizm Federasyonu İzmir Atletizm İl Temsilciliği
A2: ='YARIŞMA BİLGİLERİ'!F19 -> Naili Moran Türkiye Atletizm Şampiyonası
A3: Yarışma : | D3: ='YARIŞMA PROGRAMI'!C7 -> 100 Metre
A4: Kategori : | D4: ='YARIŞMA BİLGİLERİ'!F21 -> 14 Yaş Erkekler | M4: Tarih-Saat : | N4: ='YARIŞMA PROGRAMI'!B7 -> 14 Haziran 2014 - 18:40
I5: GÜNCELLEME: 14.06.2014 21:15 | N5: 41804.83944
A6: Sıra No | B6: Göğüs No | C6: Doğum Tarihi Gün/Ay/Yıl | D6: Adı ve Soyadı | E6: İLİ | F6: Derece | G6: Puan | I6: 1. SERİ | M6: Rüzgar:
I7: Sıra No | J7: Formül | K7: Göğüs No | L7: Doğum Tarihi | M7: Adı ve Soyadı | N7: İLİ | O7: Derece | P7: El Kronometre | Q7: Seri Geliş
A8: 1 | B8: 372 | C8: 2000-02-20 | D8: ÖMER FARUK IŞIKDAG | E8: İSTANBUL | F8: 1198 | G8: 93
A9: 2 | B9: 354 | C9: 2000-05-15 | D9: NADİR BİLİR | E9: ISPARTA | F9: 1206 | G9: 92
A10: 3 | B10: 504 | C10: 2000-01-15 | D10: MUSTAFA YORULMAZ | E10: KKTC | F10: 1212 | G10: 91
A11: 4 | B11: 529 | C11: 2000-01-04 | D11: BURAK ALIMCI | E11: KONYA | F11: 1220 | G11: 91
A12: 4 | B12: 503 | C12: 2000-06-02 | D12: KUBİLAY TOK | E12: KKTC | F12: 1220 | G12: 91
A13: 6 | B13: 374 | C13: 2000-05-10 | D13: YUNUS EMRE CİN | E13: İSTANBUL | F13: 1227 | G13: 90
A14: 6 | B14: 569 | C14: 2000-01-01 | D14: YUSUF ŞAŞMAZ | E14: MUĞLA | F14: 1227 | G14: 90
A15: 8 | B15: 13 | C15: 2000-01-01 | D15: YASİN İŞCAN | E15: ADANA | F15: 1228 | G15: 90
A16: 9 | B16: 88 | C16: 2000-05-28 | D16: BERKAY ŞİMŞEK | E16: AYDIN | F16: 1229 | G16: 90
A17: 10 | B17: 119 | C17: 2000-01-01 | D17: KUBİLAY KARADANA | E17: BALIKESİR | F17: 1231 | G17: 89 | I17: 2. SERİ | M17: Rüzgar:
A18: 11 | B18: 203 | C18: 2000-05-23 | D18: AHMET MELİH ŞEN | E18: BURSA | F18: 1232 | G18: 89 | I18: Sıra No | J18: Formül | K18: Göğüs No | L18: Doğum Tarihi | M18: Adı ve Soyadı | N18: İLİ | O18: Derece | P18: El Kronometre | Q18: Seri Geliş
A19: 12 | B19: 513 | C19: 2000-01-06 | D19: EMRE ÇETİNKAYA | E19: KOCAELİ | F19: 1233 | G19: 89
A20: 13 | B20: 496 | C20: 2000-07-05 | D20: A.MURAT ÇELİK | E20: KIRŞEHİR | F20: 1239 | G20: 89
A21: 14 | B21: 746 | C21: 2000-05-26 | D21: EFE AHATLAR | E21: SAKARYA | F21: 1250 | G21: 88
A22: 15 | B22: 431 | C22: 2000-02-02 | D22: BURAK YÜCEER | E22: İZMİR | F22: 1254 | G22: 87
A23: 16 | B23: 535 | C23: 2000-05-20 | D23: BURAK ESKİL | E23: KONYA | F23: 1262 | G23: 86
A24: 17 | B24: 593 | C24: 2000-09-12 | D24: MUSTAFA ÜNLÜTÜRK | E24: NEVŞEHİR | F24: 1263 | G24: 86
A25: 18 | B25: 482 | C25: 2000-09-10 | D25: BERAT YEŞİLYURT | E25: KIRIKKALE | F25: 1267 | G25: 86
A26: 19 | B26: 443 | C26: 2000-05-06 | D26: MURAT MUTLU | E26: İZMİR | F26: 1268 | G26: 86
A27: 19 | B27: 303 | C27: 2000-06-22 | D27: BERKAY ONAT TOKAÇ | E27: GİRESUN | F27: 1268 | G27: 86 | I27: 3. SERİ | M27: Rüzgar:
A28: 21 | B28: 638 | C28: 2000-06-20 | D28: ERDEM BAŞ | E28: SAMSUN | F28: 1271 | G28: 85 | I28: Sıra No | J28: Formül | K28: Göğüs No | L28: Doğum Tarihi | M28: Adı ve Soyadı | N28: İLİ | O28: Derece | P28: El Kronometre | Q28: Seri Geliş
A29: 21 | B29: 253 | C29: 2000-08-12 | D29: ÇAYAN ENİŞ | E29: ERZİNCAN | F29: 1271 | G29: 85
A30: 23 | B30: 639 | C30: 2000-02-28 | D30: YUNUS EMRE AKER | E30: SAMSUN | F30: 12.78 (782) | G30: 85
A31: 24 | B31: 448 | C31: 2000-01-01 | D31: BATUHAN ALKAN | E31: İZMİR | F31: 12.78 (786) | G31: 85
A32: 25 | B32: 710 | C32: 2000-03-25 | D32: BURAK DERTLİ | E32: TRABZON | F32: 1288 | G32: 84
A33: 26 | B33: 193 | C33: 2000-07-11 | D33: HALİLMERT AKKAŞ | E33: BURDUR | F33: 1289 | G33: 84
A34: 27 | B34: 224 | C34: 2000-01-01 | D34: BEHİÇ CAN ÜNAL | E34: DENİZLİ | F34: 1298 | G34: 83
A35: 28 | B35: 121 | C35: 2000-01-01 | D35: ÖMERCAN KOCAİRİ | E35: BALIKESİR | F35: 1305 | G35: 82
A36: 29 | B36: 48 | C36: 2000-02-06 | D36: HASAN ALİ ŞAHİN | E36: AMASYA | F36: 1306 | G36: 82
A37: 30 | B37: 191 | C37: 2000-03-21 | D37: EGE MELEK | E37: BURDUR | F37: 1321 | G37: 80
A38: 31 | B38: 239 | C38: 2000-01-01 | D38: ENES CUŞA | E38: DİYARBAKIR | F38: 1322 | G38: 80 | I38: 4. SERİ | M38: Rüzgar:
A39: 32 | B39: 660 | C39: 2000-01-15 | D39: OKTAY EREN | E39: SİİRT | F39: 1326 | G39: 80 | I39: Sıra No | J39: Formül | K39: Göğüs No | L39: Doğum Tarihi | M39: Adı ve Soyadı | N39: İLİ | O39: Derece | P39: El Kronometre | Q39: Seri Geliş
A40: 33 | B40: 194 | C40: 2000-09-17 | D40: ATAKAN GÖR | E40: BURDUR | F40: 1327 | G40: 80
A41: 34 | B41: 162 | C41: 2000-07-05 | D41: MUHAMMET BEGEÇ | E41: BİLECİK | F41: 13.43 (432) | G41: 78
A42: 35 | B42: 293 | C42: 2000-01-01 | D42: ÖKKEŞ FURKAN KARAKUZULU | E42: GAZİANTEP | F42: 13.43 (432) | G42: 78
A43: 36 | B43: 252 | C43: 2000-09-03 | D43: FURKAN KIZGIN | E43: ERZİNCAN | F43: 1352 | G43: 77
A44: 37 | B44: 225 | C44: 2000-01-01 | D44: ÇAĞRI BOZKAYA | E44: DENİZLİ | F44: 1360 | G44: 77
A45: 38 | B45: 352 | C45: 2000-06-28 | D45: ERDEM CAN ERGİN | E45: ISPARTA | F45: 13.60 (600) | G45: 77
A46: 39 | B46: 192 | C46: 2000-11-19 | D46: HALİLCAN DANIŞ | E46: BURDUR | F46: 13.60 (604) | G46: 77
A47: 40 | B47: 32 | C47: 2000-09-01 | D47: MUSTAFA GÖKSU | E47: ADIYAMAN | F47: 1372 | G47: 75
A48: 41 | B48: 163 | C48: 2000-01-01 | D48: ANIL ÖZTİRYAKİ | E48: BİLECİK | F48: 1373 | G48: 75 | I48: 5. SERİ | M48: Rüzgar:
A49: 42 | B49: 115 | C49: 2000-11-27 | D49: VOLKAN ŞAHİN | E49: BALIKESİR | F49: 1378 | G49: 75 | I49: Sıra No | J49: Formül | K49: Göğüs No | L49: Doğum Tarihi | M49: Adı ve Soyadı | N49: İLİ | O49: Derece | P49: El Kronometre | Q49: Seri Geliş
A50: 43 | B50: 145 | C50: 2000-02-10 | D50: AHMET DAŞ | E50: BATMAN | F50: 1379 | G50: 75
A51: 44 | B51: 161 | C51: 2000-01-01 | D51: ALPEREN KAMALI | E51: BİLECİK | F51: 1381 | G51: 74
A52: 45 | B52: 684 | C52: 2000-01-09 | D52: DOĞUKAN SAMAST | E52: TEKİRDAĞ | F52: 1384 | G52: 74
A53: 46 | B53: 618 | C53: 2000-04-12 | D53: GÖKTUĞ ZENCİR | E53: OSMANİYE | F53: 1396 | G53: 73
A54: 47 | B54: 406 | C54: 2000-01-14 | D54: BATUHAN HIZAL | E54: İZMİR | F54: 1398 | G54: 73
A55: 48 | B55: 307 | C55: 2000-03-05 | D55: SEDAT TUNAHAN TORUN | E55: GİRESUN | F55: 1403 | G55: 71
A56: 49 | B56: 408 | C56: 2000-04-12 | D56: SALİH OĞUZ ERDEM | E56: İZMİR | F56: 1414 | G56: 69
A57: 49 | B57: 747 | C57: 2000-05-30 | D57: ÖZGÜR GİRGİN | E57: SAKARYA | F57: 1414 | G57: 69
A58: 51 | B58: 419 | C58: 2000-02-25 | D58: ÜMİT AÇILAN | E58: İZMİR | F58: 1428 | G58: 67 | I58: 6. SERİ | M58: Rüzgar:
A59: 52 | B59: 501 | C59: 2000-04-30 | D59: ÖMERCAN MERMER | E59: KIRŞEHİR | F59: 1432 | G59: 65 | I59: Sıra No | J59: Formül | K59: Göğüs No | L59: Doğum Tarihi | M59: Adı ve Soyadı | N59: İLİ | O59: Derece | P59: El Kronometre | Q59: Seri Geliş
A60: 53 | B60: 576 | C60: 2000-04-01 | D60: Yunus SÖZÜGÜZEL | E60: MUŞ | F60: 1478 | G60: 57
A61: 54 | B61: 256 | C61: 2000-09-30 | D61: YUNUS ŞAHİN | E61: ERZİNCAN | F61: 1501 | G61: 51
A62: 55 | B62: 615 | C62: 2000-05-15 | D62: ÖMER FARUK AVAN | E62: OSMANİYE | F62: 1517 | G62: 49
A63: 56 | B63: 724 | C63: 2000-03-08 | D63: BERKE YAĞIZ ÖZTÜRK | E63: TUNCELİ | F63: 1521 | G63: 48
A64: 57 | B64: 409 | C64: 2000-08-02 | D64: BURAK ALDENİZ | E64: İZMİR | F64: 1526 | G64: 48
A65: 58 | B65: 454 | C65: 2000-03-17 | D65: SANAT SARUHAN | E65: İZMİR | F65: 1694 | G65: 31
A66: 59 | B66: 416 | C66: 2000-01-07 | D66: ALİCAN KARAOĞLAN | E66: İZMİR | F66: 1732 | G66: 27
A67: - | B67: 373 | C67: 2000-01-01 | D67: ÖMER FARUK İÇYAR | E67: İSTANBUL | F67: DNS | G67: 0
A68: - | B68: 441 | C68: 2000-02-05 | D68: ENES ŞUMNULU | E68: İZMİR | F68: DNS | G68: 0 | I68: 7. SERİ | M68: Rüzgar:
A69: - | B69: 442 | C69: 2000-04-28 | D69: UMUT ACET | E69: İZMİR | F69: DNS | G69: 0 | I69: Sıra No | J69: Formül | K69: Göğüs No | L69: Doğum Tarihi | M69: Adı ve Soyadı | N69: İLİ | O69: Derece | P69: El Kronometre | Q69: Seri Geliş
A70: - | B70: 414 | C70: 2000-01-01 | D70: YAĞIZ HACIOĞLU | E70: İZMİR | F70: DNS | G70: 0
A71: - | B71: 413 | C71: 2000-01-01 | D71: SİNAN AYYILDIZ | E71: İZMİR | F71: DNS | G71: 0
H79: Sekreter | M79: Hakem | N79: Hakem | P79: Hakem
A65566: CELAL KAYAÖZ

Sheet Yüksek
A1: =('YARIŞMA BİLGİLERİ'!A2) -> Türkiye Atletizm Federasyonu İzmir Atletizm İl Temsilciliği | CA1: DERECE
A2: ='YARIŞMA BİLGİLERİ'!F19 -> Naili Moran Türkiye Atletizm Şampiyonası | CA2: 1 | CB2: 0
A3: Yarışma : | E3: ='YARIŞMA PROGRAMI'!C11 -> Yüksek Atlama | CA3: 98 | CB3: 1
A4: Kategori : | E4: ='YARIŞMA BİLGİLERİ'!F21 -> 14 Yaş Erkekler | AW4: Tarih-Saat : | BC4: ='YARIŞMA PROGRAMI'!B11 -> 14 Haziran 2014 - 17:00 | CA4: 100 | CB4: 2
BU5: 41804.86945 | CA5: 102 | CB5: 3
A6: SIRA NO | C6: GÖĞÜS NO | D6: DOĞUM TARİHİ | E6: ADI VE SOYADI | F6: İLİ | G6: A T L A M A L A R | BU6: SONUÇ | BV6: PUAN | BW6: KLASMAN | CA6: 104 | CB6: 4
G7: 120 | J7: 125 | M7: 130 | P7: 134 | S7: 138 | V7: 142 | Y7: 146 | AB7: 150 | AE7: 152 | AH7: 154 | AK7: 156 | AN7: 158 | AQ7: 160 | AT7: 162 | AW7: 164 | AZ7: 166 | BC7: 168 | BF7: 170 | BI7: 172 | BL7: 174 | BO7: 176 | BR7: 178 | CA7: 106 | CB7: 5
A8: 1 | B8: Yüksek-11 | C8: 503 | D8: 2000-06-02 | E8: KUBİLAY TOK | F8: KKTC | G8: - | J8: - | M8: - | P8: - | S8: - | V8: O | Y8: O | AB8: X | AC8: O | AE8: O | AH8: O | AK8: - | AN8: O | AQ8: O | AT8: O | AW8: O | AZ8: O | BC8: O | BF8: O | BI8: O | BL8: X | BM8: O | BO8: O | BR8: X | BS8: X | BT8: X | BU8: 176 | BV8: 94 | CA8: 108 | CB8: 6
A9: 2 | B9: Yüksek-12 | C9: 88 | D9: 2000-05-28 | E9: BERKAY ŞİMŞEK | F9: AYDIN | G9: - | H9: - | J9: - | M9: - | P9: - | S9: - | V9: - | Y9: - | AB9: - | AE9: - | AH9: - | AK9: O | AN9: O | AQ9: O | AT9: O | AW9: - | AZ9: O | BC9: O | BF9: O | BI9: O | BL9: O | BO9: X | BP9: O | BR9: X | BS9: X | BT9: X | BU9: 176 | BV9: 94 | CA9: 110 | CB9: 7
A10: 3 | B10: Yüksek-10 | C10: 191 | D10: 2000-03-21 | E10: EGE MELEK | F10: BURDUR | G10: - | J10: - | M10: - | P10: - | S10: - | V10: - | Y10: - | AB10: O | AE10: - | AH10: - | AK10: O | AN10: - | AQ10: O | AT10: - | AW10: O | AZ10: O | BC10: X | BD10: X | BE10: O | BF10: O | BI10: X | BJ10: X | BK10: X | BU10: 170 | BV10: 91 | CA10: 112 | CB10: 8
A11: 4 | B11: Yüksek-9 | C11: 161 | D11: 2000-01-01 | E11: ALPEREN KAMALI | F11: BİLECİK | G11: - | J11: - | M11: O | P11: O | S11: O | V11: O | Y11: O | AB11: O | AE11: X | AF11: X | AG11: O | AH11: O | AK11: O | AN11: X | AO11: - | AQ11: - | AT11: - | AW11: - | AZ11: X | BA11: - | BC11: - | BF11: X | BU11: 156 | BV11: 84 | CA11: 114 | CB11: 9
A12: 5 | B12: Yüksek-1 | C12: 307 | D12: 2000-03-05 | E12: SEDAT TUNAHAN TORUN | F12: GİRESUN | G12: - | J12: - | M12: O | P12: O | S12: O | V12: O | Y12: O | AB12: O | AE12: O | AH12: X | AI12: X | AJ12: O | AK12: X | AL12: X | AM12: X | BU12: 154 | BV12: 83 | CA12: 116 | CB12: 10
A13: 6 | B13: Yüksek-4 | C13: 256 | D13: 2000-09-30 | E13: YUNUS ŞAHİN | F13: ERZİNCAN | G13: - | J13: - | M13: O | P13: O | S13: X | T13: O | V13: O | Y13: X | Z13: X | AA13: O | AB13: X | AC13: X | AD13: O | AE13: X | AF13: O | AH13: X | AI13: X | AJ13: X | BU13: 152 | BV13: 82 | CA13: 118 | CB13: 11
A14: 7 | B14: Yüksek-7 | C14: 218 | D14: 2000-05-06 | E14: AHMET RAHİM SEYHAN | F14: ÇANAKKALE | G14: - | J14: - | M14: - | P14: - | S14: O | V14: O | Y14: O | AB14: X | AC14: X | AD14: O | AE14: X | AF14: X | AG14: O | AH14: X | AI14: X | AJ14: X | BU14: 152 | BV14: 82 | CA14: 120 | CB14: 12
A15: 8 | B15: Yüksek-6 | C15: 352 | D15: 2000-06-28 | E15: ERDEM CAN ERGİN | F15: ISPARTA | G15: - | J15: - | M15: O | P15: O | S15: X | T15: O | V15: O | Y15: O | AB15: O | AE15: X | AF15: X | AG15: X | BU15: 150 | BV15: 81 | CA15: 122 | CB15: 13
A16: 9 | B16: Yüksek-5 | C16: 48 | D16: 2000-02-06 | E16: HASAN ALİ ŞAHİN | F16: AMASYA | G16: - | J16: - | M16: O | P16: O | S16: O | V16: O | Y16: O | AB16: X | AC16: O | AE16: X | AF16: X | AG16: X | BU16: 150 | BV16: 81 | CA16: 124 | CB16: 14
A17: 10 | B17: Yüksek-2 | C17: 593 | D17: 2000-09-12 | E17: MUSTAFA ÜNLÜTÜRK | F17: NEVŞEHİR | G17: - | J17: - | M17: O | P17: O | S17: O | V17: X | W17: X | X17: - | Y17: O | AB17: X | AC17: O | AE17: X | AF17: X | AG17: X | BU17: 150 | BV17: 81 | CA17: 126 | CB17: 15
A18: - | B18: Yüksek-3 | C18: 618 | D18: 2000-04-12 | E18: GÖKTUĞ ZENCİR | F18: OSMANİYE | G18: - | J18: - | M18: - | P18: - | S18: - | V18: X | W18: X | X18: X | BU18: NM | BV18: 0 | CA18: 128 | CB18: 16
A19: - | B19: Yüksek-8 | C19: 410 | D19: 2000-04-13 | E19: MERT KAAN ALPTEKİN | F19: İZMİR | BU19: DNS | BV19: 0 | CA19: 130 | CB19: 17
B20: Yüksek-13 | CA20: 132 | CB20: 18
B21: Yüksek-14 | CA21: 134 | CB21: 19
B22: Yüksek-15 | CA22: 136 | CB22: 20
B23: Yüksek-16 | CA23: 138 | CB23: 21
B24: Yüksek-17 | CA24: 140 | CB24: 22
B25: Yüksek-18 | CA25: 142 | CB25: 23
B26: Yüksek-19 | CA26: 144 | CB26: 24
B27: Yüksek-20 | CA27: 146 | CB27: 25
B28: Yüksek-21 | CA28: 148 | CB28: 26
B29: Yüksek-22 | CA29: 150 | CB29: 27
B30: Yüksek-23 | CA30: 152 | CB30: 28
B31: Yüksek-24 | CA31: 154 | CB31: 29
B32: Yüksek-25 | CA32: 156 | CB32: 30
CA33: 157 | CB33: 31
A34: Müsabaka Direktörü | F34: Baş Hakem | J34: Lider | S34: Sekreter | BU34: Hakem | CA34: 158 | CB34: 32
CA35: 159 | CB35: 33
CA36: 160 | CB36: 34
CA37: 161 | CB37: 35
CA38: 162 | CB38: 36
CA39: 163 | CB39: 37
CA40: 164 | CB40: 38
CA41: 165 | CB41: 39
CA42: 166 | CB42: 40
CA43: 167 | CB43: 41
CA44: 168 | CB44: 42
CA45: 169 | CB45: 43
CA46: 170 | CB46: 44
CA47: 171 | CB47: 45
CA48: 172 | CB48: 46
CA49: 173 | CB49: 47
CA50: 174 | CB50: 48
CA51: 175 | CB51: 49
CA52: 176 | CB52: 50
CA53: 177 | CB53: 51
CA54: 178 | CB54: 52
CA55: 179 | CB55: 53
CA56: 180 | CB56: 54
CA57: 181 | CB57: 55
CA58: 182 | CB58: 56
CA59: 183 | CB59: 57
CA60: 184 | CB60: 58
CA61: 185 | CB61: 59
CA62: 186 | CB62: 60
CA63: 187 | CB63: 61
CA64: 188 | CB64: 62
CA65: 189 | CB65: 63
CA66: 190 | CB66: 64
CA67: 191 | CB67: 65
CA68: 192 | CB68: 66
CA69: 193 | CB69: 67
CA70: 194 | CB70: 68
CA71: 195 | CB71: 69
CA72: 196 | CB72: 70
CA73: 197 | CB73: 71
CA74: 198 | CB74: 72
CA75: 199 | CB75: 73
CA76: 200 | CB76: 74
CA77: 201 | CB77: 75
CA78: 202 | CB78: 76
CA79: 203 | CB79: 77
CA80: 204 | CB80: 78
CA81: 205 | CB81: 79
CA82: 206 | CB82: 80
CA83: 207 | CB83: 81
CA84: 208 | CB84: 82
CA85: 209 | CB85: 83
CA86: 210 | CB86: 84
CA87: 211 | CB87: 85
CA88: 212 | CB88: 86
CA89: 213 | CB89: 87
CA90: 214 | CB90: 88
CA91: 215 | CB91: 89
CA92: 216 | CB92: 90
CB93: 91
CA94: 217 | CB94: 92
CB95: 93
CA96: 218 | CB96: 94
CB97: 95
CA98: 219 | CB98: 96
CB99: 97
CA100: 220 | CB100: 98
CB101: 99
CA102: 221 | CB102: 100
CA281: DNS | CB281: 0
A65536: CELAL KAYAÖZ

Sheet Üçadım
A1: ='YARIŞMA BİLGİLERİ'!A2:K2 -> Türkiye Atletizm Federasyonu İzmir Atletizm İl Temsilciliği | M1: DERECE
A2: ='YARIŞMA BİLGİLERİ'!A14:K14 -> Naili Moran Türkiye Atletizm Şampiyonası | M2: 100 | N2: 0
A3: Yarışma : | D3: ='YARIŞMA PROGRAMI'!C21 -> Üçadım Atlama | M3: 760 | N3: 1
A4: Kategori : | D4: ='YARIŞMA BİLGİLERİ'!F21 -> 14 Yaş Erkekler | I4: Tarih-Saat : | K4: ='YARIŞMA PROGRAMI'!B21 -> 14 Haziran 2014 - 19:15 | M4: 764 | N4: 2
J5: 41804.87355 | M5: 768 | N5: 3
A6: SIRA NO | C6: GÖĞÜS NO | D6: DOĞUM TARİHİ Gün/Ay/Yıl | E6: ADI VE SOYADI | F6: İLİ | G6: A T L A M A L A R | J6: SONUÇ | K6: PUAN | L6: RÜZGAR | M6: 782 | N6: 4
G7: 1 | H7: 2 | I7: 3 | M7: 796 | N7: 5
A8: 1 | B8: ÜÇADIM-22 | C8: 504 | D8: 2000-01-15 | E8: MUSTAFA YORULMAZ | F8: KKTC | G8: X | H8: 1232 | I8: 1244 | J8: 1244 | K8: 93 | M8: 808 | N8: 6
A9: 2 | B9: ÜÇADIM-20 | C9: 430 | D9: 2000-02-10 | E9: MUSTAFA VARLİ | F9: İZMİR | G9: 1234 | H9: 1237 | I9: 1220 | J9: 1237 | K9: 92 | M9: 822 | N9: 7
A10: 3 | B10: ÜÇADIM-21 | C10: 372 | D10: 2000-02-20 | E10: ÖMER FARUK IŞIKDAG | F10: İSTANBUL | G10: 1112 | H10: 1168 | I10: 1204 | J10: 1204 | K10: 90 | M10: 836 | N10: 8
A11: 4 | B11: ÜÇADIM-4 | C11: 203 | D11: 2000-05-23 | E11: AHMET MELİH ŞEN | F11: BURSA | G11: 1197 | H11: X | I11: X | J11: 1197 | K11: 90 | M11: 848 | N11: 9
A12: 5 | B12: ÜÇADIM-19 | C12: 88 | D12: 2000-05-28 | E12: BERKAY ŞİMŞEK | F12: AYDIN | G12: 1196 | H12: - | I12: 1179 | J12: 1196 | K12: 90 | M12: 860 | N12: 10
A13: 6 | B13: ÜÇADIM-16 | C13: 513 | D13: 2000-01-06 | E13: EMRE ÇETİNKAYA | F13: KOCAELİ | G13: 1172 | H13: 1159 | I13: 1162 | J13: 1172 | K13: 88 | M13: 872 | N13: 11
A14: 7 | B14: ÜÇADIM-14 | C14: 535 | D14: 2000-05-20 | E14: BURAK ESKİL | F14: KONYA | G14: 1138 | H14: 1166 | I14: 1169 | J14: 1169 | K14: 88 | M14: 884 | N14: 12
A15: 8 | B15: ÜÇADIM-15 | C15: 374 | D15: 2000-05-10 | E15: YUNUS EMRE CİN | F15: İSTANBUL | G15: 1156 | H15: 1133 | I15: 1127 | J15: 1156 | K15: 87 | M15: 896 | N15: 13
A16: 9 | B16: ÜÇADIM-1 | C16: 736 | D16: 2000-01-01 | E16: AYKUT KORAMAN | F16: BURSA | G16: 1123 | H16: 1110 | I16: 1146 | J16: 1146 | K16: 86 | M16: 908 | N16: 14
A17: 10 | B17: ÜÇADIM-17 | C17: 431 | D17: 2000-02-02 | E17: BURAK YÜCEER | F17: İZMİR | G17: 1123 | H17: 1090 | I17: - | J17: 1123 | K17: 85 | M17: 920 | N17: 15
A18: 11 | B18: ÜÇADIM-23 | C18: 121 | D18: 2000-01-01 | E18: ÖMERCAN KOCAİRİ | F18: BALIKESİR | G18: 1045 | H18: 1078 | I18: 1123 | J18: 1123 | K18: 85 | M18: 932 | N18: 16
A19: 12 | B19: ÜÇADIM-7 | C19: 500 | D19: 2000-02-14 | E19: İSMAİL TEKBIÇAK | F19: KIRŞEHİR | G19: X | H19: 1099 | I19: 1116 | J19: 1116 | K19: 84 | M19: 944 | N19: 17
A20: 13 | B20: ÜÇADIM-11 | C20: 354 | D20: 2000-05-15 | E20: NADİR BİLİR | F20: ISPARTA | G20: 1021 | H20: 1075 | I20: 1087 | J20: 1087 | K20: 82 | M20: 956 | N20: 18
A21: 14 | B21: ÜÇADIM-13 | C21: 746 | D21: 2000-05-26 | E21: EFE AHATLAR | F21: SAKARYA | G21: X | H21: 1084 | I21: 1085 | J21: 1085 | K21: 82 | M21: 968 | N21: 19
A22: 15 | B22: ÜÇADIM-6 | C22: 501 | D22: 2000-04-30 | E22: ÖMERCAN MERMER | F22: KIRŞEHİR | G22: 1056 | H22: 1063 | I22: 1026 | J22: 1063 | K22: 81 | M22: 980 | N22: 20
A23: 16 | B23: ÜÇADIM-10 | C23: 747 | D23: 2000-05-30 | E23: ÖZGÜR GİRGİN | F23: SAKARYA | G23: 1020 | H23: 1029 | I23: 1045 | J23: 1045 | K23: 80 | M23: 992 | N23: 21
A24: 17 | B24: ÜÇADIM-3 | C24: 307 | D24: 2000-03-05 | E24: SEDAT TUNAHAN TORUN | F24: GİRESUN | G24: 1043 | H24: 1035 | I24: 1030 | J24: 1043 | K24: 79 | M24: 1004 | N24: 22
A25: 18 | B25: ÜÇADIM-18 | C25: 683 | D25: 2000-05-23 | E25: YAĞIZ ARSLAN | F25: TEKİRDAĞ | G25: 1040 | H25: X | I25: X | J25: 1040 | K25: 79 | M25: 1016 | N25: 23
A26: 19 | B26: ÜÇADIM-9 | C26: 219 | D26: 2000-03-07 | E26: TOLGA GARİP | F26: ÇANAKKALE | G26: 1000 | H26: X | I26: X | J26: 1000 | K26: 77 | M26: 1028 | N26: 24
A27: 20 | B27: ÜÇADIM-12 | C27: 484 | D27: 2000-03-30 | E27: MEHMET KÖRPE | F27: KIRIKKALE | G27: 973 | H27: 958 | I27: 978 | J27: 978 | K27: 74 | M27: 1040 | N27: 25
A28: 21 | B28: ÜÇADIM-8 | C28: 724 | D28: 2000-03-08 | E28: BERKE YAĞIZ ÖZTÜRK | F28: TUNCELİ | G28: 929 | H28: 901 | I28: 883 | J28: 929 | K28: 69 | M28: 1049 | N28: 26
A29: 22 | B29: ÜÇADIM-2 | C29: 615 | D29: 2000-05-15 | E29: ÖMER FARUK AVAN | F29: OSMANİYE | G29: 887 | H29: 916 | I29: X | J29: 916 | K29: 68 | M29: 1058 | N29: 27
A30: 23 | B30: ÜÇADIM-5 | C30: 46 | D30: 2000-09-25 | E30: ŞAFAK AY | F30: AMASYA | G30: 875 | H30: 881 | I30: 886 | J30: 886 | K30: 65 | M30: 1067 | N30: 28
B31: ÜÇADIM-24 | J31: 0 | M31: 1076 | N31: 29
B32: ÜÇADIM-25 | J32: 0 | M32: 1085 | N32: 30
B33: ÜÇADIM-26 | J33: 0 | M33: 1094 | N33: 31
B34: ÜÇADIM-27 | J34: 0 | M34: 1103 | N34: 32
B35: ÜÇADIM-28 | J35: 0 | M35: 1112 | N35: 33
B36: ÜÇADIM-29 | J36: 0 | M36: 1121 | N36: 34
B37: ÜÇADIM-30 | J37: 0 | M37: 1130 | N37: 35
B38: ÜÇADIM-31 | J38: 0 | M38: 1139 | N38: 36
B39: ÜÇADIM-32 | J39: 0 | M39: 1148 | N39: 37
B40: ÜÇADIM-33 | J40: 0 | M40: 1157 | N40: 38
B41: ÜÇADIM-34 | J41: 0 | M41: 1166 | N41: 39
B42: ÜÇADIM-35 | J42: 0 | M42: 1175 | N42: 40
B43: ÜÇADIM-36 | J43: 0 | M43: 1184 | N43: 41
B44: ÜÇADIM-37 | J44: 0 | M44: 1193 | N44: 42
B45: ÜÇADIM-38 | J45: 0 | M45: 1202 | N45: 43
B46: ÜÇADIM-39 | J46: 0 | M46: 1211 | N46: 44
B47: ÜÇADIM-40 | J47: 0 | M47: 1220 | N47: 45
M48: 1229 | N48: 46
A49: Müsabaka Direktörü | E49: Baş Hakem | F49: Lider | G49: Sekreter | J49: Hakem | M49: 1238 | N49: 47
M50: 1247 | N50: 48
M51: 1256 | N51: 49
M52: 1265 | N52: 50
M53: 1273 | N53: 51
M54: 1281 | N54: 52
M55: 1289 | N55: 53
M56: 1297 | N56: 54
M57: 1305 | N57: 55
M58: 1313 | N58: 56
M59: 1321 | N59: 57
M60: 1329 | N60: 58
M61: 1337 | N61: 59
M62: 1345 | N62: 60
M63: 1352 | N63: 61
M64: 1359 | N64: 62
M65: 1366 | N65: 63
M66: 1373 | N66: 64
M67: 1380 | N67: 65
M68: 1387 | N68: 66
M69: 1394 | N69: 67
M70: 1401 | N70: 68
M71: 1408 | N71: 69
M72: 1415 | N72: 70
M73: 1422 | N73: 71
M74: 1429 | N74: 72
M75: 1436 | N75: 73
M76: 1443 | N76: 74
M77: 1450 | N77: 75
M78: 1456 | N78: 76
M79: 1462 | N79: 77
M80: 1468 | N80: 78
M81: 1474 | N81: 79
M82: 1480 | N82: 80
M83: 1486 | N83: 81
M84: 1492 | N84: 82
M85: 1498 | N85: 83
M86: 1504 | N86: 84
M87: 1510 | N87: 85
M88: 1516 | N88: 86
M89: 1522 | N89: 87
M90: 1528 | N90: 88
M91: 1534 | N91: 89
M92: 1540 | N92: 90
M93: 1546 | N93: 91
M94: 1552 | N94: 92
M95: 1558 | N95: 93
M96: 1564 | N96: 94
M97: 1570 | N97: 95
M98: 1576 | N98: 96
M99: 1582 | N99: 97
M100: 1588 | N100: 98
M101: 1594 | N101: 99
M102: 1600 | N102: 100
A65536: CELAL KAYAÖZ

Sheet Disk
A1: ='YARIŞMA BİLGİLERİ'!A2:K2 -> Türkiye Atletizm Federasyonu İzmir Atletizm İl Temsilciliği | M1: DERECE
A2: ='YARIŞMA BİLGİLERİ'!A14:K14 -> Naili Moran Türkiye Atletizm Şampiyonası | M2: 100 | N2: 0
A3: Yarışma : | D3: ='YARIŞMA PROGRAMI'!C14 -> Disk Atma | M3: 1000 | N3: 1
A4: Kategori : | D4: ='YARIŞMA BİLGİLERİ'!F21 -> 14 Yaş Erkekler | F4: Ağırlık: | G4: 1 kg. | I4: Tarih-Saat : | K4: ='YARIŞMA PROGRAMI'!B14 -> 14 Haziran 2014 - 19:30 | M4: 1060 | N4: 2
J5: 41804.89462 | M5: 1120 | N5: 3
A6: SIRA NO | C6: GÖĞÜS NO | D6: DOĞUM TARİHİ Gün/Ay/Yıl | E6: ADI VE SOYADI | F6: İLİ | G6: A T M A L A R | J6: SONUÇ | K6: PUAN | L6: KLASMAN | M6: 1180 | N6: 4
G7: 1 | H7: 2 | I7: 3 | M7: 1240 | N7: 5
A8: 1 | B8: DİSK-14 | C8: 293 | D8: 2000-01-01 | E8: ÖKKEŞ FURKAN KARAKUZULU | F8: GAZİANTEP | G8: 3587 | H8: 4082 | I8: 4215 | J8: 4215 | K8: 98 | M8: 1300 | N8: 6
A9: 2 | B9: DİSK-13 | C9: 710 | D9: 2000-03-25 | E9: BURAK DERTLİ | F9: TRABZON | G9: 4061 | H9: X | I9: 4058 | J9: 4061 | K9: 96 | M9: 1360 | N9: 7
A10: 3 | B10: DİSK-12 | C10: 406 | D10: 2000-01-14 | E10: BATUHAN HIZAL | F10: İZMİR | G10: 3838 | H10: 3935 | I10: 3880 | J10: 3935 | K10: 95 | M10: 1420 | N10: 8
A11: 4 | B11: DİSK-1 | C11: 252 | D11: 2000-09-03 | E11: FURKAN KIZGIN | F11: ERZİNCAN | G11: 3845 | H11: 3754 | I11: 2676 | J11: 3845 | K11: 94 | M11: 1480 | N11: 9
A12: 5 | B12: DİSK-11 | C12: 225 | D12: 2000-01-01 | E12: ÇAĞRI BOZKAYA | F12: DENİZLİ | G12: 3266 | H12: 2946 | I12: 3427 | J12: 3427 | K12: 90 | M12: 1540 | N12: 10
A13: 6 | B13: DİSK-3 | C13: 558 | D13: 2000-01-24 | E13: ÇAĞRI UZUNBİLEK | F13: MERSİN | G13: X | H13: 2877 | I13: 3122 | J13: 3122 | K13: 87 | M13: 1600 | N13: 11
A14: 7 | B14: DİSK-5 | C14: 87 | D14: 2000-11-20 | E14: ABDÜLKADİR YANILMA | F14: AYDIN | G14: 3038 | H14: X | I14: 2700 | J14: 3038 | K14: 86 | M14: 1650 | N14: 12
A15: 8 | B15: DİSK-9 | C15: 115 | D15: 2000-11-27 | E15: VOLKAN ŞAHİN | F15: BALIKESİR | G15: 2809 | H15: 2818 | I15: 2583 | J15: 2818 | K15: 84 | M15: 1700 | N15: 13
A16: 9 | B16: DİSK-10 | C16: 164 | D16: 2000-08-10 | E16: EGEMEN TEZGEÇ | F16: BİLECİK | G16: 2593 | H16: 2687 | I16: 2491 | J16: 2687 | K16: 82 | M16: 1750 | N16: 14
A17: 10 | B17: DİSK-2 | C17: 47 | D17: 2000-03-24 | E17: EMRE DEMİR | F17: AMASYA | G17: 2494 | H17: 2257 | I17: 2146 | J17: 2494 | K17: 78 | M17: 1800 | N17: 15
A18: 11 | B18: DİSK-8 | C18: 529 | D18: 2000-01-04 | E18: BURAK ALIMCI | F18: KONYA | G18: 2181 | H18: X | I18: 2224 | J18: 2224 | K18: 73 | M18: 1850 | N18: 16
A19: 12 | B19: DİSK-6 | C19: 416 | D19: 2000-01-07 | E19: ALİCAN KARAOĞLAN | F19: İZMİR | G19: X | H19: 2083 | I19: 2055 | J19: 2083 | K19: 68 | M19: 1900 | N19: 17
A20: 13 | B20: DİSK-4 | C20: 454 | D20: 2000-03-17 | E20: SANAT SARUHAN | F20: İZMİR | G20: X | H20: 1278 | I20: 1295 | J20: 1295 | K20: 36 | M20: 1950 | N20: 18
A21: - | B21: DİSK-7 | C21: 414 | D21: 2000-01-01 | E21: YAĞIZ HACIOĞLU | F21: İZMİR | J21: DNS | K21: 0 | M21: 2000 | N21: 19
B22: DİSK-15 | J22: 0 | M22: 2050 | N22: 20
B23: DİSK-16 | J23: 0 | M23: 2100 | N23: 21
B24: DİSK-17 | J24: 0 | M24: 2150 | N24: 22
B25: DİSK-18 | J25: 0 | M25: 2200 | N25: 23
B26: DİSK-19 | J26: 0 | M26: 2250 | N26: 24
B27: DİSK-20 | J27: 0 | M27: 2300 | N27: 25
B28: DİSK-21 | J28: 0 | M28: 2325 | N28: 26
B29: DİSK-22 | J29: 0 | M29: 2350 | N29: 27
B30: DİSK-23 | J30: 0 | M30: 2400 | N30: 28
B31: DİSK-24 | J31: 0 | M31: 2450 | N31: 29
B32: DİSK-25 | J32: 0 | M32: 2500 | N32: 30
B33: DİSK-26 | J33: 0 | M33: 2550 | N33: 31
B34: DİSK-27 | J34: 0 | M34: 2600 | N34: 32
B35: DİSK-28 | J35: 0 | M35: 2650 | N35: 33
B36: DİSK-29 | J36: 0 | M36: 2700 | N36: 34
B37: DİSK-30 | J37: 0 | M37: 2750 | N37: 35
B38: DİSK-31 | J38: 0 | M38: 2800 | N38: 36
B39: DİSK-32 | J39: 0 | M39: 2850 | N39: 37
B40: DİSK-33 | J40: 0 | M40: 2900 | N40: 38
B41: DİSK-34 | J41: 0 | M41: 2950 | N41: 39
B42: DİSK-35 | J42: 0 | M42: 3000 | N42: 40
B43: DİSK-36 | J43: 0 | M43: 3050 | N43: 41
B44: DİSK-37 | J44: 0 | M44: 3100 | N44: 42
B45: DİSK-38 | J45: 0 | M45: 3150 | N45: 43
B46: DİSK-39 | J46: 0 | M46: 3200 | N46: 44
B47: DİSK-40 | J47: 0 | M47: 3250 | N47: 45
M48: 3300 | N48: 46
A49: Müsabaka Direktörü | E49: Baş Hakem | F49: Lider | G49: Sekreter | J49: Hakem | M49: 3350 | N49: 47
M50: 3400 | N50: 48
M51: 3450 | N51: 49
M52: 3500 | N52: 50
M53: 3550 | N53: 51
M54: 3600 | N54: 52
M55: 3650 | N55: 53
M56: 3700 | N56: 54
M57: 3750 | N57: 55
M58: 3800 | N58: 56
M59: 3850 | N59: 57
M60: 3900 | N60: 58
M61: 3950 | N61: 59
M62: 4000 | N62: 60
M63: 4040 | N63: 61
M64: 4080 | N64: 62
M65: 4120 | N65: 63
M66: 4160 | N66: 64
M67: 4200 | N67: 65
M68: 4240 | N68: 66
M69: 4280 | N69: 67
M70: 4320 | N70: 68
M71: 4360 | N71: 69
M72: 4400 | N72: 70
M73: 4440 | N73: 71
M74: 4480 | N74: 72
M75: 4520 | N75: 73
M76: 4560 | N76: 74
M77: 4600 | N77: 75
M78: 4640 | N78: 76
M79: 4680 | N79: 77
M80: 4720 | N80: 78
M81: 4760 | N81: 79
M82: 4800 | N82: 80
M83: 4840 | N83: 81
M84: 4880 | N84: 82
M85: 4920 | N85: 83
M86: 4960 | N86: 84
M87: 5000 | N87: 85
M88: 5040 | N88: 86
M89: 5080 | N89: 87
M90: 5120 | N90: 88
M91: 5160 | N91: 89
M92: 5200 | N92: 90
M93: 5240 | N93: 91
M94: 5280 | N94: 92
M95: 5320 | N95: 93
M96: 5360 | N96: 94
M97: 5400 | N97: 95
M98: 5440 | N98: 96
M99: 5480 | N99: 97
M100: 5520 | N100: 98
M101: 5560 | N101: 99
M102: 5600 | N102: 100
A65536: CELAL KAYAÖZ

Sheet 400m.
A1: =('YARIŞMA BİLGİLERİ'!A2) -> Türkiye Atletizm Federasyonu İzmir Atletizm İl Temsilciliği
A2: ='YARIŞMA BİLGİLERİ'!F19 -> Naili Moran Türkiye Atletizm Şampiyonası
A3: Yarışma : | D3: ='YARIŞMA PROGRAMI'!C8 -> 400 Metre
A4: Kategori : | D4: ='YARIŞMA BİLGİLERİ'!F21 -> 14 Yaş Erkekler | M4: Tarih-Saat : | N4: ='YARIŞMA PROGRAMI'!B8 -> 14 Haziran 2014 - 20:45
N5: 41804.99913
A6: Sıra No | B6: Göğüs No | C6: Doğum Tarihi Gün/Ay/Yıl | D6: Adı ve Soyadı | E6: İLİ | F6: Derece | G6: Puan | I6: 1. SERİ
I7: Sıra No | J7: Formül | K7: Göğüs No | L7: Doğum Tarihi | M7: Adı ve Soyadı | N7: İLİ | O7: Derece | P7: El Kronometre | Q7: Seri Geliş
A8: 1 | B8: 606 | C8: 2000-04-20 | D8: MEHMET TOK | E8: NİĞDE | F8: 5323 | G8: 96 | I8: 1 | J8: 400M-1-1 | K8: 144 | L8: 2000-01-01 | M8: FERHAT İLİMEN | N8: BATMAN | O8: 5760 | Q8: 6
A9: 2 | B9: 512 | C9: 2000-03-28 | D9: KAMURAN ÖZEN | E9: KOCAELİ | F9: 5326 | G9: 96 | I9: 2 | J9: 400M-1-2 | K9: 641 | L9: 2000-07-07 | M9: BURAK YALÇIN | N9: SAMSUN | O9: 5563 | Q9: 2
A10: 3 | B10: 641 | C10: 2000-07-07 | D10: BURAK YALÇIN | E10: SAMSUN | F10: 5563 | G10: 89 | I10: 3 | J10: 400M-1-3 | K10: 238 | L10: 2000-01-01 | M10: FIRAT DEMİR | N10: DİYARBAKIR | O10: 5746 | Q10: 5
A11: 4 | B11: 226 | C11: 2000-01-01 | D11: EROL PINARBAŞ | E11: DENİZLİ | F11: 5564 | G11: 89 | I11: 4 | J11: 400M-1-4 | K11: 226 | L11: 2000-01-01 | M11: EROL PINARBAŞ | N11: DENİZLİ | O11: 5564 | Q11: 3
A12: 5 | B12: 294 | C12: 2000-01-01 | D12: ALİ DOĞAN | E12: GAZİANTEP | F12: 5688 | G12: 87 | I12: 5 | J12: 400M-1-5 | K12: 294 | L12: 2000-01-01 | M12: ALİ DOĞAN | N12: GAZİANTEP | O12: 5688 | Q12: 4
A13: 6 | B13: 238 | C13: 2000-01-01 | D13: FIRAT DEMİR | E13: DİYARBAKIR | F13: 5746 | G13: 86 | I13: 6 | J13: 400M-1-6 | K13: 512 | L13: 2000-03-28 | M13: KAMURAN ÖZEN | N13: KOCAELİ | O13: 5326 | Q13: 1
A14: 7 | B14: 144 | C14: 2000-01-01 | D14: FERHAT İLİMEN | E14: BATMAN | F14: 5760 | G14: 85 | I14: 7 | J14: 400M-1-7 | K14: 218 | L14: 2000-05-06 | M14: AHMET RAHİM SEYHAN | N14: ÇANAKKALE | O14: 5972 | Q14: 7
A15: 8 | B15: 664 | C15: 2000-04-01 | D15: HARUN SAPKAMAK | E15: SİİRT | F15: 5796 | G15: 85 | I15: 8 | J15: 400M-1-8
A16: 9 | B16: 218 | C16: 2000-05-06 | D16: AHMET RAHİM SEYHAN | E16: ÇANAKKALE | F16: 5972 | G16: 81 | I16: 2. SERİ
A17: 10 | B17: 424 | C17: 2000-01-01 | D17: İSMAİL ÖZDEMİR | E17: İZMİR | F17: 10183 | G17: 77 | I17: Sıra No | J17: Formül | K17: Göğüs No | L17: Doğum Tarihi | M17: Adı ve Soyadı | N17: İLİ | O17: Derece | P17: El Kronometre | Q17: Seri Geliş
A18: 11 | B18: 321 | C18: 2000-02-11 | D18: OKTAY KESER | E18: HATAY | F18: 10252 | G18: 75 | I18: 1 | J18: 400M-2-1 | K18: 424 | L18: 2000-01-01 | M18: İSMAİL ÖZDEMİR | N18: İZMİR | O18: 10183 | Q18: 3
A19: 12 | B19: 219 | C19: 2000-03-07 | D19: TOLGA GARİP | E19: ÇANAKKALE | F19: 10324 | G19: 74 | I19: 2 | J19: 400M-2-2 | K19: 146 | L19: 2000-10-16 | M19: SEDAT KARTAL | N19: BATMAN | O19: 10543 | Q19: 6
A20: 13 | B20: 290 | C20: 2000-01-01 | D20: CEMAL TOSUN | E20: GAZİANTEP | F20: 10521 | G20: 70 | I20: 3 | J20: 400M-2-3 | K20: 664 | L20: 2000-04-01 | M20: HARUN SAPKAMAK | N20: SİİRT | O20: 5796 | Q20: 2
A21: 14 | B21: 146 | C21: 2000-10-16 | D21: SEDAT KARTAL | E21: BATMAN | F21: 10543 | G21: 70 | I21: 4 | J21: 400M-2-4 | K21: 606 | L21: 2000-04-20 | M21: MEHMET TOK | N21: NİĞDE | O21: 5323 | Q21: 1
A22: 15 | B22: 46 | C22: 2000-09-25 | D22: ŞAFAK AY | E22: AMASYA | F22: 10817 | G22: 64 | I22: 5 | J22: 400M-2-5 | K22: 290 | L22: 2000-01-01 | M22: CEMAL TOSUN | N22: GAZİANTEP | O22: 10521 | Q22: 5
A23: 16 | B23: 319 | C23: 2000-01-10 | D23: AHMET RAMAZAN ESKİN | E23: HATAY | F23: 10968 | G23: 61 | I23: 6 | J23: 400M-2-6 | K23: 663 | L23: 2000-01-06 | M23: İSMAİL TİMURTAŞ | N23: SİİRT | O23: 11590 | Q23: 7
A24: 17 | B24: 355 | C24: 2000-02-05 | D24: ŞERİF DOĞAN | E24: ISPARTA | F24: 11154 | G24: 59 | I24: 7 | J24: 400M-2-7 | K24: 219 | L24: 2000-03-07 | M24: TOLGA GARİP | N24: ÇANAKKALE | O24: 10324 | Q24: 4
A25: 18 | B25: 663 | C25: 2000-01-06 | D25: İSMAİL TİMURTAŞ | E25: SİİRT | F25: 11590 | G25: 55 | I25: 8 | J25: 400M-2-8
A26: 19 | B26: 47 | C26: 2000-03-24 | D26: EMRE DEMİR | E26: AMASYA | F26: 11698 | G26: 54 | I26: 3. SERİ
A27: 20 | B27: 316 | C27: 2000-01-30 | D27: YUSUF ASLAN | E27: HATAY | F27: 11924 | G27: 51 | I27: Sıra No | J27: Formül | K27: Göğüs No | L27: Doğum Tarihi | M27: Adı ve Soyadı | N27: İLİ | O27: Derece | P27: El Kronometre | Q27: Seri Geliş
A28: - | B28: 308 | C28: 2000-08-31 | D28: BATUHAN GEDİK | E28: GİRESUN | F28: DNS | G28: 0 | I28: 1 | J28: 400M-3-1 | K28: 319 | L28: 2000-01-10 | M28: AHMET RAMAZAN ESKİN | N28: HATAY | O28: 10968 | Q28: 3
I29: 2 | J29: 400M-3-2 | K29: 321 | L29: 2000-02-11 | M29: OKTAY KESER | N29: HATAY | O29: 10252 | Q29: 1
I30: 3 | J30: 400M-3-3 | K30: 308 | L30: 2000-08-31 | M30: BATUHAN GEDİK | N30: GİRESUN | O30: DNS | Q30: -
I31: 4 | J31: 400M-3-4 | K31: 355 | L31: 2000-02-05 | M31: ŞERİF DOĞAN | N31: ISPARTA | O31: 11154 | Q31: 2
I32: 5 | J32: 400M-3-5 | K32: 46 | L32: 2000-09-25 | M32: ŞAFAK AY | N32: AMASYA | O32: 10817 | Q32: 4
I33: 6 | J33: 400M-3-6 | K33: 47 | L33: 2000-03-24 | M33: EMRE DEMİR | N33: AMASYA | O33: 11698 | Q33: 5
I34: 7 | J34: 400M-3-7 | K34: 316 | L34: 2000-01-30 | M34: YUSUF ASLAN | N34: HATAY | O34: 11924 | Q34: 6
I35: 8 | J35: 400M-3-8
I36: 4. SERİ
I37: Sıra No | J37: Formül | K37: Göğüs No | L37: Doğum Tarihi | M37: Adı ve Soyadı | N37: İLİ | O37: Derece | P37: El Kronometre | Q37: Seri Geliş
I38: 1 | J38: 400M-4-1
I39: 2 | J39: 400M-4-2
I40: 3 | J40: 400M-4-3
I41: 4 | J41: 400M-4-4
I42: 5 | J42: 400M-4-5
I43: 6 | J43: 400M-4-6
I44: 7 | J44: 400M-4-7
I45: 8 | J45: 400M-4-8
A47: Müsabakalar Direktörü | E47: Baş Hakem | F47: Lider | H47: Sekreter | M47: Hakem | N47: Hakem | P47: Hakem
A65536: CELAL KAYAÖZ

Sheet 1500m.
A1: =('YARIŞMA BİLGİLERİ'!A2) -> Türkiye Atletizm Federasyonu İzmir Atletizm İl Temsilciliği
A2: ='YARIŞMA BİLGİLERİ'!F19 -> Naili Moran Türkiye Atletizm Şampiyonası
A3: Yarışma : | D3: ='YARIŞMA PROGRAMI'!C9 -> 1500 Metre
A4: Kategori : | D4: ='YARIŞMA BİLGİLERİ'!F21 -> 14 Yaş Erkekler | M4: Tarih-Saat | N4: ='YARIŞMA PROGRAMI'!B9 -> 14 Haziran 2014 - 19:45
N5: 41805.45585
A6: Sıra No | B6: Göğüs No | C6: Doğum Tarihi Gün/Ay/Yıl | D6: Adı ve Soyadı | E6: İLİ | F6: Derece | G6: Puan | I6: 1. SERİ
I7: Sıra No | J7: Formül | K7: Göğüs No | L7: Doğum Tarihi | M7: Adı ve Soyadı | N7: İLİ | O7: Derece | P7: El Kronometre | Q7: Seri Geliş
A8: 1 | B8: 591 | C8: 2000-08-23 | D8: ERDEM ÖZ | E8: NEVŞEHİR | F8: 42034 | G8: 94 | I8: 1 | J8: 1500M-1-1 | K8: 43 | L8: 2000-03-01 | M8: BATUHAN AĞIL | N8: AKSARAY | O8: 43081 | Q8: 5
A9: 2 | B9: 592 | C9: 2000-04-15 | D9: ANIL KALAYCI | E9: NEVŞEHİR | F9: 42048 | G9: 94 | I9: 2 | J9: 1500M-1-2
A10: 3 | B10: 532 | C10: 2001-01-10 | D10: VEDAT DEMİR | E10: KONYA | F10: 42125 | G10: 93 | I10: 3 | J10: 1500M-1-3 | K10: 591 | L10: 2000-08-23 | M10: ERDEM ÖZ | N10: NEVŞEHİR | O10: 42034 | Q10: 1
A11: 4 | B11: 318 | C11: 2000-03-06 | D11: BURHAN GÖRÜROĞLU | E11: HATAY | F11: 42277 | G11: 93 | I11: 4 | J11: 1500M-1-4 | K11: 592 | L11: 2000-04-15 | M11: ANIL KALAYCI | N11: NEVŞEHİR | O11: 42048 | Q11: 2
A12: 5 | B12: 468 | C12: 2000-08-28 | D12: RECEP AKDAĞ | E12: KARAMAN | F12: 42281 | G12: 93 | I12: 5 | J12: 1500M-1-5 | K12: 468 | L12: 2000-08-28 | M12: RECEP AKDAĞ | N12: KARAMAN | O12: 42281 | Q12: 3
A13: 6 | B13: 320 | C13: 2000-06-27 | D13: SERTAN KIDU | E13: HATAY | F13: 42502 | G13: 92 | I13: 6 | J13: 1500M-1-6 | K13: 289 | L13: 2000-01-01 | M13: MUSTAFA POLAT | N13: GAZİANTEP | O13: 42558 | Q13: 4
A14: 7 | B14: 289 | C14: 2000-01-01 | D14: MUSTAFA POLAT | E14: GAZİANTEP | F14: 42558 | G14: 92 | I14: 7 | J14: 1500M-1-7
A15: 8 | B15: 43 | C15: 2000-03-01 | D15: BATUHAN AĞIL | E15: AKSARAY | F15: 43081 | G15: 90 | I15: 8 | J15: 1500M-1-8
A16: 9 | B16: 483 | C16: 2000-07-01 | D16: ORHAM ERDOĞAN | E16: KIRIKKALE | F16: 43127 | G16: 90 | I16: 9 | J16: 1500M-1-9 | K16: 467 | L16: 2000-12-10 | M16: M.CELİL DURMAZ | N16: KARAMAN | O16: 43281 | Q16: 7
A17: 10 | B17: 467 | C17: 2000-12-10 | D17: M.CELİL DURMAZ | E17: KARAMAN | F17: 43281 | G17: 90 | I17: 10 | J17: 1500M-1-10 | K17: 444 | L17: 2000-09-30 | M17: ONUR PUŞA | N17: İZMİR | O17: DNS | Q17: -
A18: 11 | B18: 371 | C18: 2001-06-02 | D18: SELİM YETKİN | E18: İSTANBUL | F18: 43304 | G18: 89 | I18: 11 | J18: 1500M-1-11 | K18: 371 | L18: 2001-06-02 | M18: SELİM YETKİN | N18: İSTANBUL | O18: 43304 | Q18: 8
A19: 12 | B19: 241 | C19: 2000-01-27 | D19: HASAN TEK | E19: EDİRNE | F19: 43879 | G19: 88 | I19: 12 | J19: 1500M-1-12 | K19: 288 | L19: 2001-01-01 | M19: H.NOOR MAMAD | N19: GAZİANTEP | O19: 45448 | Q19: 12
A20: 13 | B20: 484 | C20: 2000-03-30 | D20: MEHMET KÖRPE | E20: KIRIKKALE | F20: 43942 | G20: 87 | I20: 2. SERİ
A21: 14 | B21: 118 | C21: 2000-01-01 | D21: MERT ADAR | E21: BALIKESİR | F21: 44251 | G21: 86 | I21: Sıra No | J21: Formül | K21: Göğüs No | L21: Doğum Tarihi | M21: Adı ve Soyadı | N21: İLİ | O21: Derece | P21: El Kronometre | Q21: Seri Geliş
A22: 15 | B22: 176 | C22: 2000-01-01 | D22: HADİZ BÖRÜ | E22: BİNGÖL | F22: 44300 | G22: 86 | I22: 1 | J22: 1500M-2-1
A23: 16 | B23: 745 | C23: 2000-01-26 | D23: ENFAL KANTARCI | E23: SAKARYA | F23: 44373 | G23: 86 | I23: 2 | J23: 1500M-2-2
A24: 17 | B24: 268 | C24: 2001-05-15 | D24: MEHMET KARABAĞ | E24: ERZURUM | F24: 44630 | G24: 85 | I24: 3 | J24: 1500M-2-3 | K24: 484 | L24: 2000-03-30 | M24: MEHMET KÖRPE | N24: KIRIKKALE | O24: 43942 | Q24: 10
A25: 18 | B25: 286 | C25: 2001-01-01 | D25: ENES TÜRKYILMAZ | E25: GAZİANTEP | F25: 44662 | G25: 85 | I25: 4 | J25: 1500M-2-4 | K25: 483 | L25: 2000-07-01 | M25: ORHAM ERDOĞAN | N25: KIRIKKALE | O25: 43127 | Q25: 6
A26: 19 | B26: 659 | C26: 2000-04-13 | D26: MEHMET EMİN DİLDİRİM | E26: SİİRT | F26: 44959 | G26: 84 | I26: 5 | J26: 1500M-2-5 | K26: 61 | L26: 2000-01-01 | M26: EREN ERDEM ŞENTÜRK | N26: ARDAHAN | O26: 45396 | Q26: 11
A27: 20 | B27: 616 | C27: 2000-10-02 | D27: MEHMET ALİ TAN | E27: OSMANİYE | F27: 45389 | G27: 83 | I27: 6 | J27: 1500M-2-6 | K27: 62 | L27: 2000-01-01 | M27: MUSA IŞIK | N27: ARDAHAN | O27: 52192 | Q27: 15
A28: 21 | B28: 61 | C28: 2000-01-01 | D28: EREN ERDEM ŞENTÜRK | E28: ARDAHAN | F28: 45396 | G28: 83 | I28: 7 | J28: 1500M-2-7 | K28: 241 | L28: 2000-01-27 | M28: HASAN TEK | N28: EDİRNE | O28: 43879 | Q28: 9
A29: 22 | B29: 288 | C29: 2001-01-01 | D29: H.NOOR MAMAD | E29: GAZİANTEP | F29: 45448 | G29: 82 | I29: 8 | J29: 1500M-2-8 | K29: 347 | L29: 2000-04-07 | M29: AŞİR ALİ GÖVERCİN | N29: ISPARTA | O29: 54586 | Q29: 16
A30: 23 | B30: 235 | C30: 2001-01-02 | D30: M.BAYRAM KURT | E30: DİYARBAKIR | F30: 45619 | G30: 82 | I30: 9 | J30: 1500M-2-9 | K30: 554 | L30: 2000-10-15 | M30: OĞUZ TÜRKER | N30: KÜTAHYA | O30: 45820 | Q30: 13
A31: 24 | B31: 554 | C31: 2000-10-15 | D31: OĞUZ TÜRKER | E31: KÜTAHYA | F31: 45820 | G31: 81 | I31: 10 | J31: 1500M-2-10
A32: 25 | B32: 175 | C32: 2000-01-01 | D32: GÜRSEL EDEN | E32: BİNGÖL | F32: 50572 | G32: 79 | I32: 11 | J32: 1500M-2-11 | K32: 251 | L32: 2001-06-01 | M32: CEMEL KÖKTEN | N32: ERZİNCAN | O32: 50845 | Q32: 14
A33: 26 | B33: 251 | C33: 2001-06-01 | D33: CEMEL KÖKTEN | E33: ERZİNCAN | F33: 50845 | G33: 78 | I33: 12 | J33: 1500M-2-12
A34: 27 | B34: 663 | C34: 2000-01-06 | D34: İSMAİL TİMURTAŞ | E34: SİİRT | F34: 50885 | G34: 78 | I34: 3. SERİ
A35: 28 | B35: 323 | C35: 2000-01-30 | D35: AHMET CAN BALCIOĞLU | E35: HATAY | F35: 50895 | G35: 78 | I35: Sıra No | J35: Formül | K35: Göğüs No | L35: Doğum Tarihi | M35: Adı ve Soyadı | N35: İLİ | O35: Derece | P35: El Kronometre | Q35: Seri Geliş
A36: 29 | B36: 594 | C36: 2000-07-07 | D36: OKTAY KARADUMAN | E36: NEVŞEHİR | F36: 51564 | G36: 75 | I36: 1 | J36: 1500M-3-1 | K36: 663 | L36: 2000-01-06 | M36: İSMAİL TİMURTAŞ | N36: SİİRT | O36: 50885 | Q36: 14
A37: 30 | B37: 62 | C37: 2000-01-01 | D37: MUSA IŞIK | E37: ARDAHAN | F37: 52192 | G37: 73 | I37: 2 | J37: 1500M-3-2 | K37: 662 | L37: 2000-04-01 | M37: VEYSİ TIZ | N37: SİİRT | O37: 55766 | Q37: 12
A38: 31 | B38: 353 | C38: 2000-06-01 | D38: BATUHAN AKOL | E38: ISPARTA | F38: 53336 | G38: 69 | I38: 3 | J38: 1500M-3-3 | K38: 546 | L38: 2000-01-12 | M38: ENES YÜKSEL | N38: KÜTAHYA | O38: DNS | Q38: -
A39: 32 | B39: 347 | C39: 2000-04-07 | D39: AŞİR ALİ GÖVERCİN | E39: ISPARTA | F39: 54586 | G39: 65 | I39: 4 | J39: 1500M-3-4 | K39: 118 | L39: 2000-01-01 | M39: MERT ADAR | N39: BALIKESİR | O39: 44251 | Q39: 4
A40: 33 | B40: 662 | C40: 2000-04-01 | D40: VEYSİ TIZ | E40: SİİRT | F40: 55766 | G40: 61 | I40: 5 | J40: 1500M-3-5
A41: - | B41: 125 | C41: 2000-03-19 | D41: ESAT GEZER | E41: BARTIN | F41: DNF | G41: 0 | I41: 6 | J41: 1500M-3-6 | K41: 125 | L41: 2000-03-19 | M41: ESAT GEZER | N41: BARTIN | O41: DNF | Q41: -
A42: - | B42: 617 | C42: 2000-03-17 | D42: AHMET BİÇER | E42: OSMANİYE | F42: DNF | G42: 0 | I42: 7 | J42: 1500M-3-7 | K42: 659 | L42: 2000-04-13 | M42: MEHMET EMİN DİLDİRİM | N42: SİİRT | O42: 44959 | Q42: 9
A43: - | B43: 444 | C43: 2000-09-30 | D43: ONUR PUŞA | E43: İZMİR | F43: DNS | G43: 0 | I43: 8 | J43: 1500M-3-8 | K43: 745 | L43: 2000-01-26 | M43: ENFAL KANTARCI | N43: SAKARYA | O43: 44373 | Q43: 6
A44: - | B44: 546 | C44: 2000-01-12 | D44: ENES YÜKSEL | E44: KÜTAHYA | F44: DNS | G44: 0 | I44: 9 | J44: 1500M-3-9 | K44: 353 | L44: 2000-06-01 | M44: BATUHAN AKOL | N44: ISPARTA | O44: 53336 | Q44: 17
A45: - | B45: 31 | C45: 2000-01-01 | D45: KADER DOST | E45: ADIYAMAN | F45: DNS | G45: 0 | I45: 10 | J45: 1500M-3-10 | K45: 175 | L45: 2000-01-01 | M45: GÜRSEL EDEN | N45: BİNGÖL | O45: 50572 | Q45: 13
A46: - | B46: 270 | C46: 2000-04-25 | D46: ABDULLAH CANPOLAT | E46: ERZURUM | F46: DNS | G46: 0 | I46: 11 | J46: 1500M-3-11 | K46: 235 | L46: 2001-01-02 | M46: M.BAYRAM KURT | N46: DİYARBAKIR | O46: 45619 | Q46: 11
I47: 12 | J47: 1500M-3-12 | K47: 268 | L47: 2001-05-15 | M47: MEHMET KARABAĞ | N47: ERZURUM | O47: 44630 | Q47: 7
I48: 4. SERİ
I49: Sıra No | J49: Formül | K49: Göğüs No | L49: Doğum Tarihi | M49: Adı ve Soyadı | N49: İLİ | O49: Derece | P49: El Kronometre | Q49: Seri Geliş
I50: 1 | J50: 1500M-4-1 | K50: 176 | L50: 2000-01-01 | M50: HADİZ BÖRÜ | N50: BİNGÖL | O50: 44300 | Q50: 5
I51: 2 | J51: 1500M-4-2 | K51: 594 | L51: 2000-07-07 | M51: OKTAY KARADUMAN | N51: NEVŞEHİR | O51: 51564 | Q51: 16
I52: 3 | J52: 1500M-4-3 | K52: 31 | L52: 2000-01-01 | M52: KADER DOST | N52: ADIYAMAN | O52: DNS | Q52: -
I53: 4 | J53: 1500M-4-4
I54: 5 | J54: 1500M-4-5 | K54: 320 | L54: 2000-06-27 | M54: SERTAN KIDU | N54: HATAY | O54: 42502 | Q54: 3
I55: 6 | J55: 1500M-4-6 | K55: 270 | L55: 2000-04-25 | M55: ABDULLAH CANPOLAT | N55: ERZURUM | O55: DNS | Q55: -
I56: 7 | J56: 1500M-4-7 | K56: 318 | L56: 2000-03-06 | M56: BURHAN GÖRÜROĞLU | N56: HATAY | O56: 42277 | Q56: 2
I57: 8 | J57: 1500M-4-8 | K57: 323 | L57: 2000-01-30 | M57: AHMET CAN BALCIOĞLU | N57: HATAY | O57: 50895 | Q57: 15
I58: 9 | J58: 1500M-4-9 | K58: 616 | L58: 2000-10-02 | M58: MEHMET ALİ TAN | N58: OSMANİYE | O58: 45389 | Q58: 10
I59: 10 | J59: 1500M-4-10 | K59: 617 | L59: 2000-03-17 | M59: AHMET BİÇER | N59: OSMANİYE | O59: DNF | Q59: -
I60: 11 | J60: 1500M-4-11 | K60: 286 | L60: 2001-01-01 | M60: ENES TÜRKYILMAZ | N60: GAZİANTEP | O60: 44662 | Q60: 8
I61: 12 | J61: 1500M-4-12 | K61: 532 | L61: 2001-01-10 | M61: VEDAT DEMİR | N61: KONYA | O61: 42125 | Q61: 1
A63: Müsabakalar Direktörü | E63: Baş Hakem | F63: Lider | H63: Sekreter | M63: Hakem | N63: Hakem | P63: Hakem
A65536: CELAL KAYAÖZ

Sheet 2.Gün Start Listesi (hidden)
A1: =('YARIŞMA BİLGİLERİ'!A2) -> Türkiye Atletizm Federasyonu İzmir Atletizm İl Temsilciliği
A2: ='YARIŞMA BİLGİLERİ'!F19 -> Naili Moran Türkiye Atletizm Şampiyonası
A3: 2.GÜN GENÇ ERKEKLER START LİSTELERİ
A4: 800 METRE | I4: ÜÇADIM ATLAMA
A5: 1. SERİ
A6: Sıra No | B6: Formül | C6: Göğüs No | D6: Doğum Tarihi | E6: Adı ve Soyadı | F6: Okulu | G6: Start Kontrol | I6: SIRA NO | K6: GÖĞÜS NO | L6: DOĞUM TARİHİ | M6: ADI VE SOYADI | N6: OKULU | O6: START KONTROL
A7: 1 | B7: 800M-1-1 | C7: =IF(ISERROR(VLOOKUP(B7,'KAYIT LİSTESİ'!$B$4:$H$1019,2,0)),"",(VLOOKUP(B7,'KAYIT LİSTESİ'!$B$4:$H$1019,2,0))) -> 43 | D7: =IF(ISERROR(VLOOKUP(B7,'KAYIT LİSTESİ'!$B$4:$H$1019,4,0)),"",(VLOOKUP(B7,'KAYIT LİSTESİ'!$B$4:$H$1019,4,0))) -> 2000-03-01 | E7: =IF(ISERROR(VLOOKUP(B7,'KAYIT LİSTESİ'!$B$4:$H$1019,5,0)),"",(VLOOKUP(B7,'KAYIT LİSTESİ'!$B$4:$H$1019,5,0))) -> BATUHAN AĞIL | F7: =IF(ISERROR(VLOOKUP(B7,'KAYIT LİSTESİ'!$B$4:$H$1019,6,0)),"",(VLOOKUP(B7,'KAYIT LİSTESİ'!$B$4:$H$1019,6,0))) -> AKSARAY
A8: 2 | B8: 800M-1-2 | C8: =IF(ISERROR(VLOOKUP(B8,'KAYIT LİSTESİ'!$B$4:$H$1019,2,0)),"",(VLOOKUP(B8,'KAYIT LİSTESİ'!$B$4:$H$1019,2,0))) -> 591 | D8: =IF(ISERROR(VLOOKUP(B8,'KAYIT LİSTESİ'!$B$4:$H$1019,4,0)),"",(VLOOKUP(B8,'KAYIT LİSTESİ'!$B$4:$H$1019,4,0))) -> 2000-08-23 | E8: =IF(ISERROR(VLOOKUP(B8,'KAYIT LİSTESİ'!$B$4:$H$1019,5,0)),"",(VLOOKUP(B8,'KAYIT LİSTESİ'!$B$4:$H$1019,5,0))) -> ERDEM ÖZ | F8: =IF(ISERROR(VLOOKUP(B8,'KAYIT LİSTESİ'!$B$4:$H$1019,6,0)),"",(VLOOKUP(B8,'KAYIT LİSTESİ'!$B$4:$H$1019,6,0))) -> NEVŞEHİR | I8: 1 | J8: ÜÇADIM-1 | K8: =IF(ISERROR(VLOOKUP(J8,'KAYIT LİSTESİ'!$B$4:$H$1019,2,0)),"",(VLOOKUP(J8,'KAYIT LİSTESİ'!$B$4:$H$1019,2,0))) -> 736 | L8: =IF(ISERROR(VLOOKUP(J8,'KAYIT LİSTESİ'!$B$4:$H$1019,4,0)),"",(VLOOKUP(J8,'KAYIT LİSTESİ'!$B$4:$H$1019,4,0))) -> 2000-01-01 | M8: =IF(ISERROR(VLOOKUP(J8,'KAYIT LİSTESİ'!$B$4:$H$1019,5,0)),"",(VLOOKUP(J8,'KAYIT LİSTESİ'!$B$4:$H$1019,5,0))) -> AYKUT KORAMAN | N8: =IF(ISERROR(VLOOKUP(J8,'KAYIT LİSTESİ'!$B$4:$H$1019,6,0)),"",(VLOOKUP(J8,'KAYIT LİSTESİ'!$B$4:$H$1019,6,0))) -> BURSA
A9: 3 | B9: 800M-1-3 | C9: =IF(ISERROR(VLOOKUP(B9,'KAYIT LİSTESİ'!$B$4:$H$1019,2,0)),"",(VLOOKUP(B9,'KAYIT LİSTESİ'!$B$4:$H$1019,2,0))) -> 371 | D9: =IF(ISERROR(VLOOKUP(B9,'KAYIT LİSTESİ'!$B$4:$H$1019,4,0)),"",(VLOOKUP(B9,'KAYIT LİSTESİ'!$B$4:$H$1019,4,0))) -> 2001-06-02 | E9: =IF(ISERROR(VLOOKUP(B9,'KAYIT LİSTESİ'!$B$4:$H$1019,5,0)),"",(VLOOKUP(B9,'KAYIT LİSTESİ'!$B$4:$H$1019,5,0))) -> SELİM YETKİN | F9: =IF(ISERROR(VLOOKUP(B9,'KAYIT LİSTESİ'!$B$4:$H$1019,6,0)),"",(VLOOKUP(B9,'KAYIT LİSTESİ'!$B$4:$H$1019,6,0))) -> İSTANBUL | I9: 2 | J9: ÜÇADIM-2 | K9: =IF(ISERROR(VLOOKUP(J9,'KAYIT LİSTESİ'!$B$4:$H$1019,2,0)),"",(VLOOKUP(J9,'KAYIT LİSTESİ'!$B$4:$H$1019,2,0))) -> 615 | L9: =IF(ISERROR(VLOOKUP(J9,'KAYIT LİSTESİ'!$B$4:$H$1019,4,0)),"",(VLOOKUP(J9,'KAYIT LİSTESİ'!$B$4:$H$1019,4,0))) -> 2000-05-15 | M9: =IF(ISERROR(VLOOKUP(J9,'KAYIT LİSTESİ'!$B$4:$H$1019,5,0)),"",(VLOOKUP(J9,'KAYIT LİSTESİ'!$B$4:$H$1019,5,0))) -> ÖMER FARUK AVAN | N9: =IF(ISERROR(VLOOKUP(J9,'KAYIT LİSTESİ'!$B$4:$H$1019,6,0)),"",(VLOOKUP(J9,'KAYIT LİSTESİ'!$B$4:$H$1019,6,0))) -> OSMANİYE
A10: 4 | B10: 800M-1-4 | C10: =IF(ISERROR(VLOOKUP(B10,'KAYIT LİSTESİ'!$B$4:$H$1019,2,0)),"",(VLOOKUP(B10,'KAYIT LİSTESİ'!$B$4:$H$1019,2,0))) -> 512 | D10: =IF(ISERROR(VLOOKUP(B10,'KAYIT LİSTESİ'!$B$4:$H$1019,4,0)),"",(VLOOKUP(B10,'KAYIT LİSTESİ'!$B$4:$H$1019,4,0))) -> 2000-03-28 | E10: =IF(ISERROR(VLOOKUP(B10,'KAYIT LİSTESİ'!$B$4:$H$1019,5,0)),"",(VLOOKUP(B10,'KAYIT LİSTESİ'!$B$4:$H$1019,5,0))) -> KAMURAN ÖZEN | F10: =IF(ISERROR(VLOOKUP(B10,'KAYIT LİSTESİ'!$B$4:$H$1019,6,0)),"",(VLOOKUP(B10,'KAYIT LİSTESİ'!$B$4:$H$1019,6,0))) -> KOCAELİ | I10: 3 | J10: ÜÇADIM-3 | K10: =IF(ISERROR(VLOOKUP(J10,'KAYIT LİSTESİ'!$B$4:$H$1019,2,0)),"",(VLOOKUP(J10,'KAYIT LİSTESİ'!$B$4:$H$1019,2,0))) -> 307 | L10: =IF(ISERROR(VLOOKUP(J10,'KAYIT LİSTESİ'!$B$4:$H$1019,4,0)),"",(VLOOKUP(J10,'KAYIT LİSTESİ'!$B$4:$H$1019,4,0))) -> 2000-03-05 | M10: =IF(ISERROR(VLOOKUP(J10,'KAYIT LİSTESİ'!$B$4:$H$1019,5,0)),"",(VLOOKUP(J10,'KAYIT LİSTESİ'!$B$4:$H$1019,5,0))) -> SEDAT TUNAHAN TORUN | N10: =IF(ISERROR(VLOOKUP(J10,'KAYIT LİSTESİ'!$B$4:$H$1019,6,0)),"",(VLOOKUP(J10,'KAYIT LİSTESİ'!$B$4:$H$1019,6,0))) -> GİRESUN
A11: 5 | B11: 800M-1-5 | C11: =IF(ISERROR(VLOOKUP(B11,'KAYIT LİSTESİ'!$B$4:$H$1019,2,0)),"",(VLOOKUP(B11,'KAYIT LİSTESİ'!$B$4:$H$1019,2,0))) -> 468 | D11: =IF(ISERROR(VLOOKUP(B11,'KAYIT LİSTESİ'!$B$4:$H$1019,4,0)),"",(VLOOKUP(B11,'KAYIT LİSTESİ'!$B$4:$H$1019,4,0))) -> 2000-08-28 | E11: =IF(ISERROR(VLOOKUP(B11,'KAYIT LİSTESİ'!$B$4:$H$1019,5,0)),"",(VLOOKUP(B11,'KAYIT LİSTESİ'!$B$4:$H$1019,5,0))) -> RECEP AKDAĞ | F11: =IF(ISERROR(VLOOKUP(B11,'KAYIT LİSTESİ'!$B$4:$H$1019,6,0)),"",(VLOOKUP(B11,'KAYIT LİSTESİ'!$B$4:$H$1019,6,0))) -> KARAMAN | I11: 4 | J11: ÜÇADIM-4 | K11: =IF(ISERROR(VLOOKUP(J11,'KAYIT LİSTESİ'!$B$4:$H$1019,2,0)),"",(VLOOKUP(J11,'KAYIT LİSTESİ'!$B$4:$H$1019,2,0))) -> 203 | L11: =IF(ISERROR(VLOOKUP(J11,'KAYIT LİSTESİ'!$B$4:$H$1019,4,0)),"",(VLOOKUP(J11,'KAYIT LİSTESİ'!$B$4:$H$1019,4,0))) -> 2000-05-23 | M11: =IF(ISERROR(VLOOKUP(J11,'KAYIT LİSTESİ'!$B$4:$H$1019,5,0)),"",(VLOOKUP(J11,'KAYIT LİSTESİ'!$B$4:$H$1019,5,0))) -> AHMET MELİH ŞEN | N11: =IF(ISERROR(VLOOKUP(J11,'KAYIT LİSTESİ'!$B$4:$H$1019,6,0)),"",(VLOOKUP(J11,'KAYIT LİSTESİ'!$B$4:$H$1019,6,0))) -> BURSA
A12: 6 | B12: 800M-1-6 | C12: =IF(ISERROR(VLOOKUP(B12,'KAYIT LİSTESİ'!$B$4:$H$1019,2,0)),"",(VLOOKUP(B12,'KAYIT LİSTESİ'!$B$4:$H$1019,2,0))) -> 288 | D12: =IF(ISERROR(VLOOKUP(B12,'KAYIT LİSTESİ'!$B$4:$H$1019,4,0)),"",(VLOOKUP(B12,'KAYIT LİSTESİ'!$B$4:$H$1019,4,0))) -> 2001-01-01 | E12: =IF(ISERROR(VLOOKUP(B12,'KAYIT LİSTESİ'!$B$4:$H$1019,5,0)),"",(VLOOKUP(B12,'KAYIT LİSTESİ'!$B$4:$H$1019,5,0))) -> H.NOOR MAMAD | F12: =IF(ISERROR(VLOOKUP(B12,'KAYIT LİSTESİ'!$B$4:$H$1019,6,0)),"",(VLOOKUP(B12,'KAYIT LİSTESİ'!$B$4:$H$1019,6,0))) -> GAZİANTEP | I12: 5 | J12: ÜÇADIM-5 | K12: =IF(ISERROR(VLOOKUP(J12,'KAYIT LİSTESİ'!$B$4:$H$1019,2,0)),"",(VLOOKUP(J12,'KAYIT LİSTESİ'!$B$4:$H$1019,2,0))) -> 46 | L12: =IF(ISERROR(VLOOKUP(J12,'KAYIT LİSTESİ'!$B$4:$H$1019,4,0)),"",(VLOOKUP(J12,'KAYIT LİSTESİ'!$B$4:$H$1019,4,0))) -> 2000-09-25 | M12: =IF(ISERROR(VLOOKUP(J12,'KAYIT LİSTESİ'!$B$4:$H$1019,5,0)),"",(VLOOKUP(J12,'KAYIT LİSTESİ'!$B$4:$H$1019,5,0))) -> ŞAFAK AY | N12: =IF(ISERROR(VLOOKUP(J12,'KAYIT LİSTESİ'!$B$4:$H$1019,6,0)),"",(VLOOKUP(J12,'KAYIT LİSTESİ'!$B$4:$H$1019,6,0))) -> AMASYA
A13: 7 | B13: 800M-1-7 | C13: =IF(ISERROR(VLOOKUP(B13,'KAYIT LİSTESİ'!$B$4:$H$1019,2,0)),"",(VLOOKUP(B13,'KAYIT LİSTESİ'!$B$4:$H$1019,2,0))) -> 289 | D13: =IF(ISERROR(VLOOKUP(B13,'KAYIT LİSTESİ'!$B$4:$H$1019,4,0)),"",(VLOOKUP(B13,'KAYIT LİSTESİ'!$B$4:$H$1019,4,0))) -> 2000-01-01 | E13: =IF(ISERROR(VLOOKUP(B13,'KAYIT LİSTESİ'!$B$4:$H$1019,5,0)),"",(VLOOKUP(B13,'KAYIT LİSTESİ'!$B$4:$H$1019,5,0))) -> MUSTAFA POLAT | F13: =IF(ISERROR(VLOOKUP(B13,'KAYIT LİSTESİ'!$B$4:$H$1019,6,0)),"",(VLOOKUP(B13,'KAYIT LİSTESİ'!$B$4:$H$1019,6,0))) -> GAZİANTEP | I13: 6 | J13: ÜÇADIM-6 | K13: =IF(ISERROR(VLOOKUP(J13,'KAYIT LİSTESİ'!$B$4:$H$1019,2,0)),"",(VLOOKUP(J13,'KAYIT LİSTESİ'!$B$4:$H$1019,2,0))) -> 501 | L13: =IF(ISERROR(VLOOKUP(J13,'KAYIT LİSTESİ'!$B$4:$H$1019,4,0)),"",(VLOOKUP(J13,'KAYIT LİSTESİ'!$B$4:$H$1019,4,0))) -> 2000-04-30 | M13: =IF(ISERROR(VLOOKUP(J13,'KAYIT LİSTESİ'!$B$4:$H$1019,5,0)),"",(VLOOKUP(J13,'KAYIT LİSTESİ'!$B$4:$H$1019,5,0))) -> ÖMERCAN MERMER | N13: =IF(ISERROR(VLOOKUP(J13,'KAYIT LİSTESİ'!$B$4:$H$1019,6,0)),"",(VLOOKUP(J13,'KAYIT LİSTESİ'!$B$4:$H$1019,6,0))) -> KIRŞEHİR
A14: 8 | B14: 800M-1-8 | C14: =IF(ISERROR(VLOOKUP(B14,'KAYIT LİSTESİ'!$B$4:$H$1019,2,0)),"",(VLOOKUP(B14,'KAYIT LİSTESİ'!$B$4:$H$1019,2,0))) -> 144 | D14: =IF(ISERROR(VLOOKUP(B14,'KAYIT LİSTESİ'!$B$4:$H$1019,4,0)),"",(VLOOKUP(B14,'KAYIT LİSTESİ'!$B$4:$H$1019,4,0))) -> 2000-01-01 | E14: =IF(ISERROR(VLOOKUP(B14,'KAYIT LİSTESİ'!$B$4:$H$1019,5,0)),"",(VLOOKUP(B14,'KAYIT LİSTESİ'!$B$4:$H$1019,5,0))) -> FERHAT İLİMEN | F14: =IF(ISERROR(VLOOKUP(B14,'KAYIT LİSTESİ'!$B$4:$H$1019,6,0)),"",(VLOOKUP(B14,'KAYIT LİSTESİ'!$B$4:$H$1019,6,0))) -> BATMAN | I14: 7 | J14: ÜÇADIM-7 | K14: =IF(ISERROR(VLOOKUP(J14,'KAYIT LİSTESİ'!$B$4:$H$1019,2,0)),"",(VLOOKUP(J14,'KAYIT LİSTESİ'!$B$4:$H$1019,2,0))) -> 500 | L14: =IF(ISERROR(VLOOKUP(J14,'KAYIT LİSTESİ'!$B$4:$H$1019,4,0)),"",(VLOOKUP(J14,'KAYIT LİSTESİ'!$B$4:$H$1019,4,0))) -> 2000-02-14 | M14: =IF(ISERROR(VLOOKUP(J14,'KAYIT LİSTESİ'!$B$4:$H$1019,5,0)),"",(VLOOKUP(J14,'KAYIT LİSTESİ'!$B$4:$H$1019,5,0))) -> İSMAİL TEKBIÇAK | N14: =IF(ISERROR(VLOOKUP(J14,'KAYIT LİSTESİ'!$B$4:$H$1019,6,0)),"",(VLOOKUP(J14,'KAYIT LİSTESİ'!$B$4:$H$1019,6,0))) -> KIRŞEHİR
